Workbook

Sheet INTRO
D1: Introduction
A3: Workbook description
B5: File name: | C5: Mobile network infrastructure model XACMA
B6: Version: | C6: v2 - public version
B7: Status: | C7: Approved for release
C8: Under construction
C9: Work in progress
C10: Ready for review
C11: Approved for release
B13: Author: | C13: Loïc Tchoukriel-Thébaud
B14: Email: | C14: Loic.Tchoukriel-Thebaud@analysysmason.com
B16: Description : | C16: Calculations of the number of sites and other radio assets required for the Australian mobile operators. In particular the following parameters can be modified as sensitivities: - total traffic - traffic in the busy hour - volumes of spectrum - spectral efficiency
B18: Calculation flows:
A51: Sheets in this workbook
B53: Sheet | C53: Description
B55: Sheet | C55: Description
B56: INTRO | C56: Presents the calculation flows of the model, the list of worksheets it contains and the formatting styles used
B57: Model >>> | C57: Blank slide introducing the section
B58: R - op and scenario selected | C58: * Parameters of the scenario being run * Results for the operator selected for this scenario including: - Annual capex and opex - Radio equipment by technology - Logical sites by technology and type (purely coverage, coverage with capacity upgrades, capacity sites) - Physical sites: total and new sites required by LTE
B59: C - op and scenario selected | C59: Chart of the number of macro-sites by technology for the operator selected for this scenario
B60: CTRL | C60: “Control” sheet of the model, where all sorts of parameters can be selected/modified
B61: MKT | C61: Number of connections and volumes of traffic from 2010 to 2027 for the total Australian mobile market. Volumes of traffic are volumes carried on mobile networks, therefore already excluding any existing off-loading to Wi-Fi.
B62: C_monthly data traffic | C62: Charts of the monthly data traffic in the market (in PB) for each year for the scenario selected
B63: C_traffic scenarios | C63: Charts of the monthly data traffic in the market (in PB) for each year for each of the traffic volume sensitivities
B64: IN | C64: Inputs related to the busy hour and to the technical parameters and area/population coverage by technology and operator
B65: C-Area coverage | C65: Chart of the area covered by geotype for the operator selected
B66: C-Pop coverage | C66: Chart of the population covered by geotype for the operator selected
B67: NW-2G | C67: Dimensioning of the 2G network (active equipment) for the operator and scenario selected
B68: NW-3G | C68: Dimensioning of the 3G network (active equipment) for the operator and scenario selected
B69: NW-LTE | C69: Dimensioning of the LTE network (active equipment) for the operator and scenario selected
B70: In-traffic distribution | C70: Parameters for the uneven distribution of traffic per site within each geotype
B71: C-3G data traffic | C71: Charts of the annual volume of 3G data traffic in the busy hour for the operator and scenario being run
B72: C-LTE traffic | C72: Charts of the annual volume of LTE traffic in the busy hour for the operator and scenario being run
B73: NW-physical sites | C73: Dimensioning of the physical sites (taking into account sharing between technologies) for the operator and scenario selected
B74: Results >>> | C74: Blank slide introducing the section
B75: R - sites | C75: Results of logical sites for pre-programmed sensitivities
B76: R - Optus-sce. selected | C76: * Parameters of the last scenario run with the macro * Results for Optus for this scenario including: - Annual capex and opex - Radio equipment by technology - Logical sites by technology and type (purely coverage, coverage with capacity upgrades, capacity sites) - Physical sites: total and new sites required by LTE
B77: R - Telstra-sce. selected | C77: Results for Telstra for the same parameters
B78: R - VHA-sce. selected | C78: Results for Vodafone for the same parameters
B79: R - market-sce. selected | C79: Results for the total market (i.e. all three operators added to each other) for the same parameters
B80: C - Optus-sce. Selected | C80: Chart of the number of logical sites by technology for Optus for this scenario
B81: C - Telstra-sce. Selected | C81: Similar chart for Telstra
B82: C - VHA-sce. Selected | C82: Similar chart for Vodafone
B83: C - market-sce. selected | C83: Similar chart for the total market
B84: C-Phys.sites Optus sce.sel. | C84: Chart of the number of physical sites for Optus for this scenario
B85: C-Phys.sites Telstra sce.sel. | C85: Similar chart for Telstra
B86: C-Phys.sites VHA sce.sel. | C86: Similar chart for Vodafone
B87: C-Phys.sites market sce.sel. | C87: Similar chart for the total market
B88: C- radio eq. Optus sce.sel. | C88: Chart of the number of radio equipment by technology for Optus for this scenario
B89: C- radio eq. Telstra sce.sel. | C89: Similar chart for Telstra
B90: C- radio eq. VHA sce.sel. | C90: Similar chart for Vodafone
B91: C- radio eq. market sce.sel. | C91: Similar chart for the total market
B92: Data >> | C92: Blank slide introducing the section
B93: GEO | C93: Definition of the geotypes
B94: SRC | C94: Source data on the Australian population and households
B95: Charts >> | C95: Blank slide introducing the section
B96: C-[…] | C96: Followed by various charts
B97: Others>> | C97: Blank slide introducing the section
B98: Lists | C98: List of name ranges used in the model
B99: Curves | C99: Set of curves used to build the forecast of connections and traffic volumes
B100: Erlang Tables | C100: Erlang tables for 2G and 3G used to dimension the 2G and 3G voice networks
A104: Styles used in this workbook
B106: Links | C106: External link | D106: 100
C108: Local link | D108: 100
B110: Data | C110: Parameter defined by the user | D110: 100
C112: Real piece of data | D112: 100
C114: Estimate used in the absence of real data | D114: 100
C116: Data calculated from other inputs | D116: 100
C118: Data calculated based on a trend line | D118: 100
C120: Output of a sheet or workbook | D120: 100
C122: Parameter linked to a sensitivity | D122: 100
C124: Dummy value (to protect the confidentiality of inputs provided by the operators) | D124: 100
C126: Other value changed from public version
B128: Other | C128: Checksum | D128: TRUE
C130: Excel name of a list or a single cell | D130: Name

Sheet Model >>>

Sheet R - op and scenario selected
E1: Results for the operator selected | M1: =operator.selected -> Vodafone Hutchison
J2: 1 | K2: 1 | L2: =1+K2 -> 2 | M2: 3 | N2: 4 | O2: 5 | P2: 6 | Q2: 7 | R2: 8 | S2: 9 | T2: 10 | U2: 11 | V2: 12 | W2: 13 | X2: 14 | Y2: 15 | Z2: 16 | AA2: 17
J3: =TRANSPOSE(years) -> 2010 | K3: 2011 | L3: 2012 | M3: 2013 | N3: 2014 | O3: 2015 | P3: 2016 | Q3: 2017 | R3: 2018 | S3: 2019 | T3: 2020 | U3: 2021 | V3: 2022 | W3: 2023 | X3: 2024 | Y3: 2025 | Z3: 2026 | AA3: 2027
A4: Results
B6: Parameters selected
C7: Extra usage | G7: =sensitivity.traffic.selected -> 0
C8: Data traffic in the busy hour | G8: =sensitivity.BH.start.selected -> 0.07
C9: Extra spectrum
C10: Include the use of the 2.3GHz band (for Optus) | G10: =Include.2.3GHz.band -> FALSE
C11: Run spectrum sensitivity
C12: National level | G12: =Run.spectrum.sensitivity.national -> No
C13: Metropolitan areas | G13: =Run.spectrum.sensitivity.by.area -> No
C14: Regional areas | G14: No
C15: Remote areas | G15: No
C16: Amount of extra spectrum by operator | G16: =sensitivity.spectrum.allocation.selected -> Proportional to market share
C17: Spectral efficiency multiplier | G17: =sensitivity.spectral.efficiency.selected -> 1
C18: Distribution of traffic | G18: =Distribution.of.traffic.selected -> Curved
C19: Shutdown of 2G | G19: =Sensitivity.2G.shutdown -> TRUE
C20: Level of infrastructure (sites) sharing | G20: =sensitivity.site.sharing.selected -> 0.25
C21: Site lifetime | G21: =sensitivity.site.lifetime.selected -> 20
G22: Parameters.scenario.selected
B24: Active equipment
C26: Macrocells
D28: Total number of BTS required | K28: =SUM(K29:K38) -> 5226 | L28: =SUM(L29:L38) -> 5226 | M28: 5226 | N28: 5226 | O28: 5226 | P28: 5226 | Q28: 5226 | R28: 5226 | S28: 0 | T28: 0 | U28: 0 | V28: 0 | W28: 0 | X28: 0 | Y28: 0 | Z28: 0 | AA28: 0
E29: =geotypes -> Dense urban | G29: # | K29: =Required.assets.BTS -> 856 | L29: 856 | M29: 856 | N29: 856 | O29: 856 | P29: 856 | Q29: 856 | R29: 856 | S29: 0 | T29: 0 | U29: 0 | V29: 0 | W29: 0 | X29: 0 | Y29: 0 | Z29: 0 | AA29: 0
E30: Urban in metropolitan areas | G30: # | K30: 995 | L30: 995 | M30: 995 | N30: 995 | O30: 995 | P30: 995 | Q30: 995 | R30: 995 | S30: 0 | T30: 0 | U30: 0 | V30: 0 | W30: 0 | X30: 0 | Y30: 0 | Z30: 0 | AA30: 0
E31: Urban in regional areas | G31: # | K31: 116 | L31: 116 | M31: 116 | N31: 116 | O31: 116 | P31: 116 | Q31: 116 | R31: 116 | S31: 0 | T31: 0 | U31: 0 | V31: 0 | W31: 0 | X31: 0 | Y31: 0 | Z31: 0 | AA31: 0
E32: Suburban in metropolitan areas | G32: # | K32: 460 | L32: 460 | M32: 460 | N32: 460 | O32: 460 | P32: 460 | Q32: 460 | R32: 460 | S32: 0 | T32: 0 | U32: 0 | V32: 0 | W32: 0 | X32: 0 | Y32: 0 | Z32: 0 | AA32: 0
E33: Suburban in regional areas | G33: # | K33: 648 | L33: 648 | M33: 648 | N33: 648 | O33: 648 | P33: 648 | Q33: 648 | R33: 648 | S33: 0 | T33: 0 | U33: 0 | V33: 0 | W33: 0 | X33: 0 | Y33: 0 | Z33: 0 | AA33: 0
E34: Rural | G34: # | K34: 1753 | L34: 1753 | M34: 1753 | N34: 1753 | O34: 1753 | P34: 1753 | Q34: 1753 | R34: 1753 | S34: 0 | T34: 0 | U34: 0 | V34: 0 | W34: 0 | X34: 0 | Y34: 0 | Z34: 0 | AA34: 0
E35: Remote | G35: # | K35: 398 | L35: 398 | M35: 398 | N35: 398 | O35: 398 | P35: 398 | Q35: 398 | R35: 398 | S35: 0 | T35: 0 | U35: 0 | V35: 0 | W35: 0 | X35: 0 | Y35: 0 | Z35: 0 | AA35: 0
E36: Spare | G36: # | K36: 0 | L36: 0 | M36: 0 | N36: 0 | O36: 0 | P36: 0 | Q36: 0 | R36: 0 | S36: 0 | T36: 0 | U36: 0 | V36: 0 | W36: 0 | X36: 0 | Y36: 0 | Z36: 0 | AA36: 0
E37: Spare | G37: # | K37: 0 | L37: 0 | M37: 0 | N37: 0 | O37: 0 | P37: 0 | Q37: 0 | R37: 0 | S37: 0 | T37: 0 | U37: 0 | V37: 0 | W37: 0 | X37: 0 | Y37: 0 | Z37: 0 | AA37: 0
E38: Spare | G38: # | K38: 0 | L38: 0 | M38: 0 | N38: 0 | O38: 0 | P38: 0 | Q38: 0 | R38: 0 | S38: 0 | T38: 0 | U38: 0 | V38: 0 | W38: 0 | X38: 0 | Y38: 0 | Z38: 0 | AA38: 0
D40: Total number of NodeB required | K40: =SUM(K41:K50) -> 6701 | L40: =SUM(L41:L50) -> 8471 | M40: =SUM(M41:M50) -> 9310 | N40: =SUM(N41:N50) -> 9732 | O40: =SUM(O41:O50) -> 10323 | P40: =SUM(P41:P50) -> 10323 | Q40: =SUM(Q41:Q50) -> 10323 | R40: =SUM(R41:R50) -> 10122 | S40: =SUM(S41:S50) -> 9623 | T40: =SUM(T41:T50) -> 9210 | U40: =SUM(U41:U50) -> 8493 | V40: =SUM(V41:V50) -> 7736 | W40: =SUM(W41:W50) -> 7087 | X40: =SUM(X41:X50) -> 6595 | Y40: =SUM(Y41:Y50) -> 6305 | Z40: =SUM(Z41:Z50) -> 6152 | AA40: =SUM(AA41:AA50) -> 6064
E41: =geotypes -> Dense urban | G41: # | K41: =Required.assets.NodeB -> 1009 | L41: 1377 | M41: 1542 | N41: 1625 | O41: 1625 | P41: 1625 | Q41: 1625 | R41: 1575 | S41: 1484 | T41: 1416 | U41: 1295 | V41: 1229 | W41: 1155 | X41: 1094 | Y41: 1047 | Z41: 1016 | AA41: 997
E42: Urban in metropolitan areas | G42: # | K42: 1217 | L42: 1784 | M42: 2028 | N42: 2151 | O42: 2151 | P42: 2151 | Q42: 2151 | R42: 2061 | S42: 1933 | T42: 1838 | U42: 1666 | V42: 1500 | W42: 1395 | X42: 1304 | Y42: 1237 | Z42: 1191 | AA42: 1164
E43: Urban in regional areas | G43: # | K43: 236 | L43: 373 | M43: 432 | N43: 459 | O43: 517 | P43: 517 | Q43: 517 | R43: 517 | S43: 492 | T43: 466 | U43: 421 | V43: 343 | W43: 258 | X43: 191 | Y43: 154 | Z43: 143 | AA43: 138
E44: Suburban in metropolitan areas | G44: # | K44: 584 | L44: 893 | M44: 1025 | N44: 1094 | O44: 1094 | P44: 1094 | Q44: 1094 | R44: 1033 | S44: 967 | T44: 917 | U44: 828 | V44: 722 | W44: 664 | X44: 615 | Y44: 579 | Z44: 555 | AA44: 540
E45: Suburban in regional areas | G45: # | K45: 1067 | L45: 1441 | M45: 1671 | N45: 1785 | O45: 2265 | P45: 2265 | Q45: 2265 | R45: 2265 | S45: 2106 | T45: 1959 | U45: 1704 | V45: 1392 | W45: 1091 | X45: 889 | Y45: 803 | Z45: 773 | AA45: 757
E46: Rural | G46: # | K46: 2129 | L46: 2143 | M46: 2152 | N46: 2158 | O46: 2211 | P46: 2211 | Q46: 2211 | R46: 2211 | S46: 2181 | T46: 2154 | U46: 2120 | V46: 2092 | W46: 2067 | X46: 2045 | Y46: 2029 | Z46: 2018 | AA46: 2012
E47: Remote | G47: # | K47: 459 | L47: 460 | M47: 460 | N47: 460 | O47: 460 | P47: 460 | Q47: 460 | R47: 460 | S47: 460 | T47: 460 | U47: 459 | V47: 458 | W47: 457 | X47: 457 | Y47: 456 | Z47: 456 | AA47: 456
E48: Spare | G48: # | K48: 0 | L48: 0 | M48: 0 | N48: 0 | O48: 0 | P48: 0 | Q48: 0 | R48: 0 | S48: 0 | T48: 0 | U48: 0 | V48: 0 | W48: 0 | X48: 0 | Y48: 0 | Z48: 0 | AA48: 0
E49: Spare | G49: # | K49: 0 | L49: 0 | M49: 0 | N49: 0 | O49: 0 | P49: 0 | Q49: 0 | R49: 0 | S49: 0 | T49: 0 | U49: 0 | V49: 0 | W49: 0 | X49: 0 | Y49: 0 | Z49: 0 | AA49: 0
E50: Spare | G50: # | K50: 0 | L50: 0 | M50: 0 | N50: 0 | O50: 0 | P50: 0 | Q50: 0 | R50: 0 | S50: 0 | T50: 0 | U50: 0 | V50: 0 | W50: 0 | X50: 0 | Y50: 0 | Z50: 0 | AA50: 0
D52: Total number of eNodeB required | K52: =SUM(K53:K62) -> 8 | L52: =SUM(L53:L62) -> 188 | M52: =SUM(M53:M62) -> 1295 | N52: =SUM(N53:N62) -> 2291 | O52: =SUM(O53:O62) -> 4206 | P52: =SUM(P53:P62) -> 5710 | Q52: =SUM(Q53:Q62) -> 7053 | R52: =SUM(R53:R62) -> 8290 | S52: =SUM(S53:S62) -> 9858 | T52: =SUM(T53:T62) -> 11224 | U52: =SUM(U53:U62) -> 12598 | V52: =SUM(V53:V62) -> 13950 | W52: =SUM(W53:W62) -> 15240 | X52: =SUM(X53:X62) -> 16487 | Y52: =SUM(Y53:Y62) -> 17722 | Z52: =SUM(Z53:Z62) -> 17722 | AA52: =SUM(AA53:AA62) -> 17722
E53: =geotypes -> Dense urban | G53: # | K53: =Required.assets.eNodeB.macrocell -> 8 | L53: 128 | M53: 790 | N53: 1280 | O53: 1891 | P53: 2301 | Q53: 2593 | R53: 2817 | S53: 3049 | T53: 3322 | U53: 3647 | V53: 3992 | W53: 4338 | X53: 4686 | Y53: 5047 | Z53: 5047 | AA53: 5047
E54: Urban in metropolitan areas | G54: # | K54: 0 | L54: 60 | M54: 473 | N54: 919 | O54: 1812 | P54: 2509 | Q54: 3138 | R54: 3738 | S54: 4480 | T54: 5142 | U54: 5820 | V54: 6474 | W54: 7094 | X54: 7688 | Y54: 8268 | Z54: 8268 | AA54: 8268
E55: Urban in regional areas | G55: # | K55: 0 | L55: 0 | M55: 0 | N55: 0 | O55: 0 | P55: 0 | Q55: 0 | R55: 0 | S55: 0 | T55: 0 | U55: 0 | V55: 0 | W55: 0 | X55: 0 | Y55: 0 | Z55: 0 | AA55: 0
E56: Suburban in metropolitan areas | G56: # | K56: 0 | L56: 0 | M56: 32 | N56: 92 | O56: 503 | P56: 900 | Q56: 1322 | R56: 1735 | S56: 2329 | T56: 2760 | U56: 3131 | V56: 3484 | W56: 3808 | X56: 4113 | Y56: 4407 | Z56: 4407 | AA56: 4407
E57: Suburban in regional areas | G57: # | K57: 0 | L57: 0 | M57: 0 | N57: 0 | O57: 0 | P57: 0 | Q57: 0 | R57: 0 | S57: 0 | T57: 0 | U57: 0 | V57: 0 | W57: 0 | X57: 0 | Y57: 0 | Z57: 0 | AA57: 0
E58: Rural | G58: # | K58: 0 | L58: 0 | M58: 0 | N58: 0 | O58: 0 | P58: 0 | Q58: 0 | R58: 0 | S58: 0 | T58: 0 | U58: 0 | V58: 0 | W58: 0 | X58: 0 | Y58: 0 | Z58: 0 | AA58: 0
E59: Remote | G59: # | K59: 0 | L59: 0 | M59: 0 | N59: 0 | O59: 0 | P59: 0 | Q59: 0 | R59: 0 | S59: 0 | T59: 0 | U59: 0 | V59: 0 | W59: 0 | X59: 0 | Y59: 0 | Z59: 0 | AA59: 0
E60: Spare | G60: # | K60: 0 | L60: 0 | M60: 0 | N60: 0 | O60: 0 | P60: 0 | Q60: 0 | R60: 0 | S60: 0 | T60: 0 | U60: 0 | V60: 0 | W60: 0 | X60: 0 | Y60: 0 | Z60: 0 | AA60: 0
E61: Spare | G61: # | K61: 0 | L61: 0 | M61: 0 | N61: 0 | O61: 0 | P61: 0 | Q61: 0 | R61: 0 | S61: 0 | T61: 0 | U61: 0 | V61: 0 | W61: 0 | X61: 0 | Y61: 0 | Z61: 0 | AA61: 0
E62: Spare | G62: # | K62: 0 | L62: 0 | M62: 0 | N62: 0 | O62: 0 | P62: 0 | Q62: 0 | R62: 0 | S62: 0 | T62: 0 | U62: 0 | V62: 0 | W62: 0 | X62: 0 | Y62: 0 | Z62: 0 | AA62: 0
C64: Small cells
D66: Total number of eNodeB required (small cells) | K66: =SUM(K67:K76) -> 0 | L66: =SUM(L67:L76) -> 0 | M66: =SUM(M67:M76) -> 0 | N66: =SUM(N67:N76) -> 0 | O66: =SUM(O67:O76) -> 111 | P66: =SUM(P67:P76) -> 243 | Q66: =SUM(Q67:Q76) -> 403 | R66: =SUM(R67:R76) -> 611 | S66: =SUM(S67:S76) -> 940 | T66: =SUM(T67:T76) -> 1076 | U66: =SUM(U67:U76) -> 1220 | V66: =SUM(V67:V76) -> 1356 | W66: =SUM(W67:W76) -> 1481 | X66: =SUM(X67:X76) -> 1594 | Y66: =SUM(Y67:Y76) -> 1704 | Z66: =SUM(Z67:Z76) -> 1704 | AA66: =SUM(AA67:AA76) -> 1704
E67: =geotypes -> Dense urban | G67: # | K67: =Required.assets.eNodeB.small.cell -> 0 | L67: 0 | M67: 0 | N67: 0 | O67: 111 | P67: 243 | Q67: 403 | R67: 611 | S67: 940 | T67: 1076 | U67: 1220 | V67: 1356 | W67: 1481 | X67: 1594 | Y67: 1704 | Z67: 1704 | AA67: 1704
E68: Urban in metropolitan areas | G68: # | K68: 0 | L68: 0 | M68: 0 | N68: 0 | O68: 0 | P68: 0 | Q68: 0 | R68: 0 | S68: 0 | T68: 0 | U68: 0 | V68: 0 | W68: 0 | X68: 0 | Y68: 0 | Z68: 0 | AA68: 0
E69: Urban in regional areas | G69: # | K69: 0 | L69: 0 | M69: 0 | N69: 0 | O69: 0 | P69: 0 | Q69: 0 | R69: 0 | S69: 0 | T69: 0 | U69: 0 | V69: 0 | W69: 0 | X69: 0 | Y69: 0 | Z69: 0 | AA69: 0
E70: Suburban in metropolitan areas | G70: # | K70: 0 | L70: 0 | M70: 0 | N70: 0 | O70: 0 | P70: 0 | Q70: 0 | R70: 0 | S70: 0 | T70: 0 | U70: 0 | V70: 0 | W70: 0 | X70: 0 | Y70: 0 | Z70: 0 | AA70: 0
E71: Suburban in regional areas | G71: # | K71: 0 | L71: 0 | M71: 0 | N71: 0 | O71: 0 | P71: 0 | Q71: 0 | R71: 0 | S71: 0 | T71: 0 | U71: 0 | V71: 0 | W71: 0 | X71: 0 | Y71: 0 | Z71: 0 | AA71: 0
E72: Rural | G72: # | K72: 0 | L72: 0 | M72: 0 | N72: 0 | O72: 0 | P72: 0 | Q72: 0 | R72: 0 | S72: 0 | T72: 0 | U72: 0 | V72: 0 | W72: 0 | X72: 0 | Y72: 0 | Z72: 0 | AA72: 0
E73: Remote | G73: # | K73: 0 | L73: 0 | M73: 0 | N73: 0 | O73: 0 | P73: 0 | Q73: 0 | R73: 0 | S73: 0 | T73: 0 | U73: 0 | V73: 0 | W73: 0 | X73: 0 | Y73: 0 | Z73: 0 | AA73: 0
E74: Spare | G74: # | K74: 0 | L74: 0 | M74: 0 | N74: 0 | O74: 0 | P74: 0 | Q74: 0 | R74: 0 | S74: 0 | T74: 0 | U74: 0 | V74: 0 | W74: 0 | X74: 0 | Y74: 0 | Z74: 0 | AA74: 0
E75: Spare | G75: # | K75: 0 | L75: 0 | M75: 0 | N75: 0 | O75: 0 | P75: 0 | Q75: 0 | R75: 0 | S75: 0 | T75: 0 | U75: 0 | V75: 0 | W75: 0 | X75: 0 | Y75: 0 | Z75: 0 | AA75: 0
E76: Spare | G76: # | K76: 0 | L76: 0 | M76: 0 | N76: 0 | O76: 0 | P76: 0 | Q76: 0 | R76: 0 | S76: 0 | T76: 0 | U76: 0 | V76: 0 | W76: 0 | X76: 0 | Y76: 0 | Z76: 0 | AA76: 0
B79: Sites by technology
C81: Macrosites
D83: 2G coverage sites | K83: =SUM(K84:K93) -> 5226 | L83: =SUM(L84:L93) -> 5226 | M83: =SUM(M84:M93) -> 5226 | N83: =SUM(N84:N93) -> 5226 | O83: =SUM(O84:O93) -> 5226 | P83: =SUM(P84:P93) -> 5226 | Q83: =SUM(Q84:Q93) -> 5226 | R83: =SUM(R84:R93) -> 5226 | S83: =SUM(S84:S93) -> 0 | T83: =SUM(T84:T93) -> 0 | U83: =SUM(U84:U93) -> 0 | V83: =SUM(V84:V93) -> 0 | W83: =SUM(W84:W93) -> 0 | X83: =SUM(X84:X93) -> 0 | Y83: =SUM(Y84:Y93) -> 0 | Z83: =SUM(Z84:Z93) -> 0 | AA83: =SUM(AA84:AA93) -> 0
E84: =geotypes -> Dense urban | G84: # | K84: =Coverage.sites.2G -> 856 | L84: 856 | M84: 856 | N84: 856 | O84: 856 | P84: 856 | Q84: 856 | R84: 856 | S84: 0 | T84: 0 | U84: 0 | V84: 0 | W84: 0 | X84: 0 | Y84: 0 | Z84: 0 | AA84: 0
E85: Urban in metropolitan areas | G85: # | K85: 995 | L85: 995 | M85: 995 | N85: 995 | O85: 995 | P85: 995 | Q85: 995 | R85: 995 | S85: 0 | T85: 0 | U85: 0 | V85: 0 | W85: 0 | X85: 0 | Y85: 0 | Z85: 0 | AA85: 0
E86: Urban in regional areas | G86: # | K86: 116 | L86: 116 | M86: 116 | N86: 116 | O86: 116 | P86: 116 | Q86: 116 | R86: 116 | S86: 0 | T86: 0 | U86: 0 | V86: 0 | W86: 0 | X86: 0 | Y86: 0 | Z86: 0 | AA86: 0
E87: Suburban in metropolitan areas | G87: # | K87: 460 | L87: 460 | M87: 460 | N87: 460 | O87: 460 | P87: 460 | Q87: 460 | R87: 460 | S87: 0 | T87: 0 | U87: 0 | V87: 0 | W87: 0 | X87: 0 | Y87: 0 | Z87: 0 | AA87: 0
E88: Suburban in regional areas | G88: # | K88: 648 | L88: 648 | M88: 648 | N88: 648 | O88: 648 | P88: 648 | Q88: 648 | R88: 648 | S88: 0 | T88: 0 | U88: 0 | V88: 0 | W88: 0 | X88: 0 | Y88: 0 | Z88: 0 | AA88: 0
E89: Rural | G89: # | K89: 1753 | L89: 1753 | M89: 1753 | N89: 1753 | O89: 1753 | P89: 1753 | Q89: 1753 | R89: 1753 | S89: 0 | T89: 0 | U89: 0 | V89: 0 | W89: 0 | X89: 0 | Y89: 0 | Z89: 0 | AA89: 0
E90: Remote | G90: # | K90: 398 | L90: 398 | M90: 398 | N90: 398 | O90: 398 | P90: 398 | Q90: 398 | R90: 398 | S90: 0 | T90: 0 | U90: 0 | V90: 0 | W90: 0 | X90: 0 | Y90: 0 | Z90: 0 | AA90: 0
E91: Spare | G91: # | K91: 0 | L91: 0 | M91: 0 | N91: 0 | O91: 0 | P91: 0 | Q91: 0 | R91: 0 | S91: 0 | T91: 0 | U91: 0 | V91: 0 | W91: 0 | X91: 0 | Y91: 0 | Z91: 0 | AA91: 0
E92: Spare | G92: # | K92: 0 | L92: 0 | M92: 0 | N92: 0 | O92: 0 | P92: 0 | Q92: 0 | R92: 0 | S92: 0 | T92: 0 | U92: 0 | V92: 0 | W92: 0 | X92: 0 | Y92: 0 | Z92: 0 | AA92: 0
E93: Spare | G93: # | K93: 0 | L93: 0 | M93: 0 | N93: 0 | O93: 0 | P93: 0 | Q93: 0 | R93: 0 | S93: 0 | T93: 0 | U93: 0 | V93: 0 | W93: 0 | X93: 0 | Y93: 0 | Z93: 0 | AA93: 0
D95: 2G purely coverage sites | K95: =SUM(K96:K105) -> 5226 | L95: =SUM(L96:L105) -> 5226 | M95: =SUM(M96:M105) -> 5226 | N95: =SUM(N96:N105) -> 5226 | O95: =SUM(O96:O105) -> 5226 | P95: =SUM(P96:P105) -> 5226 | Q95: =SUM(Q96:Q105) -> 5226 | R95: =SUM(R96:R105) -> 5226 | S95: =SUM(S96:S105) -> 0 | T95: =SUM(T96:T105) -> 0 | U95: =SUM(U96:U105) -> 0 | V95: =SUM(V96:V105) -> 0 | W95: =SUM(W96:W105) -> 0 | X95: =SUM(X96:X105) -> 0 | Y95: =SUM(Y96:Y105) -> 0 | Z95: =SUM(Z96:Z105) -> 0 | AA95: =SUM(AA96:AA105) -> 0
E96: =geotypes -> Dense urban | G96: # | K96: =K84:AA93-K108:AA117 -> 856 | L96: 856 | M96: 856 | N96: 856 | O96: 856 | P96: 856 | Q96: 856 | R96: 856 | S96: 0 | T96: 0 | U96: 0 | V96: 0 | W96: 0 | X96: 0 | Y96: 0 | Z96: 0 | AA96: 0
E97: Urban in metropolitan areas | G97: # | K97: 995 | L97: 995 | M97: 995 | N97: 995 | O97: 995 | P97: 995 | Q97: 995 | R97: 995 | S97: 0 | T97: 0 | U97: 0 | V97: 0 | W97: 0 | X97: 0 | Y97: 0 | Z97: 0 | AA97: 0
E98: Urban in regional areas | G98: # | K98: 116 | L98: 116 | M98: 116 | N98: 116 | O98: 116 | P98: 116 | Q98: 116 | R98: 116 | S98: 0 | T98: 0 | U98: 0 | V98: 0 | W98: 0 | X98: 0 | Y98: 0 | Z98: 0 | AA98: 0
E99: Suburban in metropolitan areas | G99: # | K99: 460 | L99: 460 | M99: 460 | N99: 460 | O99: 460 | P99: 460 | Q99: 460 | R99: 460 | S99: 0 | T99: 0 | U99: 0 | V99: 0 | W99: 0 | X99: 0 | Y99: 0 | Z99: 0 | AA99: 0
E100: Suburban in regional areas | G100: # | K100: 648 | L100: 648 | M100: 648 | N100: 648 | O100: 648 | P100: 648 | Q100: 648 | R100: 648 | S100: 0 | T100: 0 | U100: 0 | V100: 0 | W100: 0 | X100: 0 | Y100: 0 | Z100: 0 | AA100: 0
E101: Rural | G101: # | K101: 1753 | L101: 1753 | M101: 1753 | N101: 1753 | O101: 1753 | P101: 1753 | Q101: 1753 | R101: 1753 | S101: 0 | T101: 0 | U101: 0 | V101: 0 | W101: 0 | X101: 0 | Y101: 0 | Z101: 0 | AA101: 0
E102: Remote | G102: # | K102: 398 | L102: 398 | M102: 398 | N102: 398 | O102: 398 | P102: 398 | Q102: 398 | R102: 398 | S102: 0 | T102: 0 | U102: 0 | V102: 0 | W102: 0 | X102: 0 | Y102: 0 | Z102: 0 | AA102: 0
E103: Spare | G103: # | K103: 0 | L103: 0 | M103: 0 | N103: 0 | O103: 0 | P103: 0 | Q103: 0 | R103: 0 | S103: 0 | T103: 0 | U103: 0 | V103: 0 | W103: 0 | X103: 0 | Y103: 0 | Z103: 0 | AA103: 0
E104: Spare | G104: # | K104: 0 | L104: 0 | M104: 0 | N104: 0 | O104: 0 | P104: 0 | Q104: 0 | R104: 0 | S104: 0 | T104: 0 | U104: 0 | V104: 0 | W104: 0 | X104: 0 | Y104: 0 | Z104: 0 | AA104: 0
E105: Spare | G105: # | K105: 0 | L105: 0 | M105: 0 | N105: 0 | O105: 0 | P105: 0 | Q105: 0 | R105: 0 | S105: 0 | T105: 0 | U105: 0 | V105: 0 | W105: 0 | X105: 0 | Y105: 0 | Z105: 0 | AA105: 0
D107: 2G coverage sites with capacity upgrade | K107: =SUM(K108:K117) -> 0 | L107: =SUM(L108:L117) -> 0 | M107: =SUM(M108:M117) -> 0 | N107: =SUM(N108:N117) -> 0 | O107: =SUM(O108:O117) -> 0 | P107: =SUM(P108:P117) -> 0 | Q107: =SUM(Q108:Q117) -> 0 | R107: =SUM(R108:R117) -> 0 | S107: =SUM(S108:S117) -> 0 | T107: =SUM(T108:T117) -> 0 | U107: =SUM(U108:U117) -> 0 | V107: =SUM(V108:V117) -> 0 | W107: =SUM(W108:W117) -> 0 | X107: =SUM(X108:X117) -> 0 | Y107: =SUM(Y108:Y117) -> 0 | Z107: =SUM(Z108:Z117) -> 0 | AA107: =SUM(AA108:AA117) -> 0
E108: =geotypes -> Dense urban | G108: # | K108: =Coverage.sites.with.capacity.upgrade.2G -> 0 | L108: 0 | M108: 0 | N108: 0 | O108: 0 | P108: 0 | Q108: 0 | R108: 0 | S108: 0 | T108: 0 | U108: 0 | V108: 0 | W108: 0 | X108: 0 | Y108: 0 | Z108: 0 | AA108: 0
E109: Urban in metropolitan areas | G109: # | K109: 0 | L109: 0 | M109: 0 | N109: 0 | O109: 0 | P109: 0 | Q109: 0 | R109: 0 | S109: 0 | T109: 0 | U109: 0 | V109: 0 | W109: 0 | X109: 0 | Y109: 0 | Z109: 0 | AA109: 0
E110: Urban in regional areas | G110: # | K110: 0 | L110: 0 | M110: 0 | N110: 0 | O110: 0 | P110: 0 | Q110: 0 | R110: 0 | S110: 0 | T110: 0 | U110: 0 | V110: 0 | W110: 0 | X110: 0 | Y110: 0 | Z110: 0 | AA110: 0
E111: Suburban in metropolitan areas | G111: # | K111: 0 | L111: 0 | M111: 0 | N111: 0 | O111: 0 | P111: 0 | Q111: 0 | R111: 0 | S111: 0 | T111: 0 | U111: 0 | V111: 0 | W111: 0 | X111: 0 | Y111: 0 | Z111: 0 | AA111: 0
E112: Suburban in regional areas | G112: # | K112: 0 | L112: 0 | M112: 0 | N112: 0 | O112: 0 | P112: 0 | Q112: 0 | R112: 0 | S112: 0 | T112: 0 | U112: 0 | V112: 0 | W112: 0 | X112: 0 | Y112: 0 | Z112: 0 | AA112: 0
E113: Rural | G113: # | K113: 0 | L113: 0 | M113: 0 | N113: 0 | O113: 0 | P113: 0 | Q113: 0 | R113: 0 | S113: 0 | T113: 0 | U113: 0 | V113: 0 | W113: 0 | X113: 0 | Y113: 0 | Z113: 0 | AA113: 0
E114: Remote | G114: # | K114: 0 | L114: 0 | M114: 0 | N114: 0 | O114: 0 | P114: 0 | Q114: 0 | R114: 0 | S114: 0 | T114: 0 | U114: 0 | V114: 0 | W114: 0 | X114: 0 | Y114: 0 | Z114: 0 | AA114: 0
E115: Spare | G115: # | K115: 0 | L115: 0 | M115: 0 | N115: 0 | O115: 0 | P115: 0 | Q115: 0 | R115: 0 | S115: 0 | T115: 0 | U115: 0 | V115: 0 | W115: 0 | X115: 0 | Y115: 0 | Z115: 0 | AA115: 0
E116: Spare | G116: # | K116: 0 | L116: 0 | M116: 0 | N116: 0 | O116: 0 | P116: 0 | Q116: 0 | R116: 0 | S116: 0 | T116: 0 | U116: 0 | V116: 0 | W116: 0 | X116: 0 | Y116: 0 | Z116: 0 | AA116: 0
E117: Spare | G117: # | K117: 0 | L117: 0 | M117: 0 | N117: 0 | O117: 0 | P117: 0 | Q117: 0 | R117: 0 | S117: 0 | T117: 0 | U117: 0 | V117: 0 | W117: 0 | X117: 0 | Y117: 0 | Z117: 0 | AA117: 0
D119: 2G capacity sites | K119: =SUM(K120:K129) -> 0 | L119: =SUM(L120:L129) -> 0 | M119: =SUM(M120:M129) -> 0 | N119: =SUM(N120:N129) -> 0 | O119: =SUM(O120:O129) -> 0 | P119: =SUM(P120:P129) -> 0 | Q119: =SUM(Q120:Q129) -> 0 | R119: =SUM(R120:R129) -> 0 | S119: =SUM(S120:S129) -> 0 | T119: =SUM(T120:T129) -> 0 | U119: =SUM(U120:U129) -> 0 | V119: =SUM(V120:V129) -> 0 | W119: =SUM(W120:W129) -> 0 | X119: =SUM(X120:X129) -> 0 | Y119: =SUM(Y120:Y129) -> 0 | Z119: =SUM(Z120:Z129) -> 0 | AA119: =SUM(AA120:AA129) -> 0
E120: =geotypes -> Dense urban | G120: # | K120: =Capacity.sites.2G -> 0 | L120: 0 | M120: 0 | N120: 0 | O120: 0 | P120: 0 | Q120: 0 | R120: 0 | S120: 0 | T120: 0 | U120: 0 | V120: 0 | W120: 0 | X120: 0 | Y120: 0 | Z120: 0 | AA120: 0
E121: Urban in metropolitan areas | G121: # | K121: 0 | L121: 0 | M121: 0 | N121: 0 | O121: 0 | P121: 0 | Q121: 0 | R121: 0 | S121: 0 | T121: 0 | U121: 0 | V121: 0 | W121: 0 | X121: 0 | Y121: 0 | Z121: 0 | AA121: 0
E122: Urban in regional areas | G122: # | K122: 0 | L122: 0 | M122: 0 | N122: 0 | O122: 0 | P122: 0 | Q122: 0 | R122: 0 | S122: 0 | T122: 0 | U122: 0 | V122: 0 | W122: 0 | X122: 0 | Y122: 0 | Z122: 0 | AA122: 0
E123: Suburban in metropolitan areas | G123: # | K123: 0 | L123: 0 | M123: 0 | N123: 0 | O123: 0 | P123: 0 | Q123: 0 | R123: 0 | S123: 0 | T123: 0 | U123: 0 | V123: 0 | W123: 0 | X123: 0 | Y123: 0 | Z123: 0 | AA123: 0
E124: Suburban in regional areas | G124: # | K124: 0 | L124: 0 | M124: 0 | N124: 0 | O124: 0 | P124: 0 | Q124: 0 | R124: 0 | S124: 0 | T124: 0 | U124: 0 | V124: 0 | W124: 0 | X124: 0 | Y124: 0 | Z124: 0 | AA124: 0
E125: Rural | G125: # | K125: 0 | L125: 0 | M125: 0 | N125: 0 | O125: 0 | P125: 0 | Q125: 0 | R125: 0 | S125: 0 | T125: 0 | U125: 0 | V125: 0 | W125: 0 | X125: 0 | Y125: 0 | Z125: 0 | AA125: 0
E126: Remote | G126: # | K126: 0 | L126: 0 | M126: 0 | N126: 0 | O126: 0 | P126: 0 | Q126: 0 | R126: 0 | S126: 0 | T126: 0 | U126: 0 | V126: 0 | W126: 0 | X126: 0 | Y126: 0 | Z126: 0 | AA126: 0
E127: Spare | G127: # | K127: 0 | L127: 0 | M127: 0 | N127: 0 | O127: 0 | P127: 0 | Q127: 0 | R127: 0 | S127: 0 | T127: 0 | U127: 0 | V127: 0 | W127: 0 | X127: 0 | Y127: 0 | Z127: 0 | AA127: 0
E128: Spare | G128: # | K128: 0 | L128: 0 | M128: 0 | N128: 0 | O128: 0 | P128: 0 | Q128: 0 | R128: 0 | S128: 0 | T128: 0 | U128: 0 | V128: 0 | W128: 0 | X128: 0 | Y128: 0 | Z128: 0 | AA128: 0
E129: Spare | G129: # | K129: 0 | L129: 0 | M129: 0 | N129: 0 | O129: 0 | P129: 0 | Q129: 0 | R129: 0 | S129: 0 | T129: 0 | U129: 0 | V129: 0 | W129: 0 | X129: 0 | Y129: 0 | Z129: 0 | AA129: 0
D131: 3G coverage sites | K131: =SUM(K132:K141) -> 5977 | L131: =SUM(L132:L141) -> 5977 | M131: =SUM(M132:M141) -> 5977 | N131: =SUM(N132:N141) -> 5977 | O131: =SUM(O132:O141) -> 5977 | P131: =SUM(P132:P141) -> 5977 | Q131: =SUM(Q132:Q141) -> 5977 | R131: =SUM(R132:R141) -> 5977 | S131: =SUM(S132:S141) -> 5977 | T131: =SUM(T132:T141) -> 5977 | U131: =SUM(U132:U141) -> 5977 | V131: =SUM(V132:V141) -> 5977 | W131: =SUM(W132:W141) -> 5977 | X131: =SUM(X132:X141) -> 5977 | Y131: =SUM(Y132:Y141) -> 5977 | Z131: =SUM(Z132:Z141) -> 5977 | AA131: =SUM(AA132:AA141) -> 5977
E132: =geotypes -> Dense urban | G132: # | K132: =Coverage.sites.3G -> 979 | L132: 979 | M132: 979 | N132: 979 | O132: 979 | P132: 979 | Q132: 979 | R132: 979 | S132: 979 | T132: 979 | U132: 979 | V132: 979 | W132: 979 | X132: 979 | Y132: 979 | Z132: 979 | AA132: 979
E133: Urban in metropolitan areas | G133: # | K133: 1138 | L133: 1138 | M133: 1138 | N133: 1138 | O133: 1138 | P133: 1138 | Q133: 1138 | R133: 1138 | S133: 1138 | T133: 1138 | U133: 1138 | V133: 1138 | W133: 1138 | X133: 1138 | Y133: 1138 | Z133: 1138 | AA133: 1138
E134: Urban in regional areas | G134: # | K134: 133 | L134: 133 | M134: 133 | N134: 133 | O134: 133 | P134: 133 | Q134: 133 | R134: 133 | S134: 133 | T134: 133 | U134: 133 | V134: 133 | W134: 133 | X134: 133 | Y134: 133 | Z134: 133 | AA134: 133
E135: Suburban in metropolitan areas | G135: # | K135: 526 | L135: 526 | M135: 526 | N135: 526 | O135: 526 | P135: 526 | Q135: 526 | R135: 526 | S135: 526 | T135: 526 | U135: 526 | V135: 526 | W135: 526 | X135: 526 | Y135: 526 | Z135: 526 | AA135: 526
E136: Suburban in regional areas | G136: # | K136: 741 | L136: 741 | M136: 741 | N136: 741 | O136: 741 | P136: 741 | Q136: 741 | R136: 741 | S136: 741 | T136: 741 | U136: 741 | V136: 741 | W136: 741 | X136: 741 | Y136: 741 | Z136: 741 | AA136: 741
E137: Rural | G137: # | K137: 2005 | L137: 2005 | M137: 2005 | N137: 2005 | O137: 2005 | P137: 2005 | Q137: 2005 | R137: 2005 | S137: 2005 | T137: 2005 | U137: 2005 | V137: 2005 | W137: 2005 | X137: 2005 | Y137: 2005 | Z137: 2005 | AA137: 2005
E138: Remote | G138: # | K138: 455 | L138: 455 | M138: 455 | N138: 455 | O138: 455 | P138: 455 | Q138: 455 | R138: 455 | S138: 455 | T138: 455 | U138: 455 | V138: 455 | W138: 455 | X138: 455 | Y138: 455 | Z138: 455 | AA138: 455
E139: Spare | G139: # | K139: 0 | L139: 0 | M139: 0 | N139: 0 | O139: 0 | P139: 0 | Q139: 0 | R139: 0 | S139: 0 | T139: 0 | U139: 0 | V139: 0 | W139: 0 | X139: 0 | Y139: 0 | Z139: 0 | AA139: 0
E140: Spare | G140: # | K140: 0 | L140: 0 | M140: 0 | N140: 0 | O140: 0 | P140: 0 | Q140: 0 | R140: 0 | S140: 0 | T140: 0 | U140: 0 | V140: 0 | W140: 0 | X140: 0 | Y140: 0 | Z140: 0 | AA140: 0
E141: Spare | G141: # | K141: 0 | L141: 0 | M141: 0 | N141: 0 | O141: 0 | P141: 0 | Q141: 0 | R141: 0 | S141: 0 | T141: 0 | U141: 0 | V141: 0 | W141: 0 | X141: 0 | Y141: 0 | Z141: 0 | AA141: 0
D143: 3G purely coverage sites | K143: =SUM(K144:K153) -> 5779 | L143: =SUM(L144:L153) -> 4293 | M143: =SUM(M144:M153) -> 3756 | N143: =SUM(N144:N153) -> 3526 | O143: =SUM(O144:O153) -> 3139 | P143: =SUM(P144:P153) -> 3139 | Q143: =SUM(Q144:Q153) -> 3139 | R143: =SUM(R144:R153) -> 3236 | S143: =SUM(S144:S153) -> 3524 | T143: =SUM(T144:T153) -> 3749 | U143: =SUM(U144:U153) -> 4195 | V143: =SUM(V144:V153) -> 4834 | W143: =SUM(W144:W153) -> 5483 | X143: =SUM(X144:X153) -> 5871 | Y143: =SUM(Y144:Y153) -> 5967 | Z143: =SUM(Z144:Z153) -> 5976 | AA143: =SUM(AA144:AA153) -> 5977
E144: =geotypes -> Dense urban | G144: # | K144: =K132:AA141-K156:AA165 -> 949 | L144: 591 | M144: 445 | N144: 381 | O144: 381 | P144: 381 | Q144: 381 | R144: 417 | S144: 494 | T144: 554 | U144: 669 | V144: 815 | W144: 933 | X144: 975 | Y144: 978 | Z144: 979 | AA144: 979
E145: Urban in metropolitan areas | G145: # | K145: 1059 | L145: 525 | M145: 346 | N145: 271 | O145: 271 | P145: 271 | Q145: 271 | R145: 313 | S145: 405 | T145: 478 | U145: 626 | V145: 831 | W145: 1028 | X145: 1124 | Y145: 1137 | Z145: 1138 | AA145: 1138
E146: Urban in regional areas | G146: # | K146: 118 | L146: 48 | M146: 27 | N146: 18 | O146: 0 | P146: 0 | Q146: 0 | R146: 0 | S146: 0 | T146: 0 | U146: 0 | V146: 25 | W146: 63 | X146: 105 | Y146: 129 | Z146: 132 | AA146: 133
E147: Suburban in metropolitan areas | G147: # | K147: 469 | L147: 191 | M147: 108 | N147: 74 | O147: 74 | P147: 74 | Q147: 74 | R147: 93 | S147: 135 | T147: 169 | U147: 240 | V147: 342 | W147: 450 | X147: 513 | Y147: 525 | Z147: 526 | AA147: 526
E148: Suburban in regional areas | G148: # | K148: 724 | L148: 479 | M148: 371 | N148: 324 | O148: 6 | P148: 6 | Q148: 6 | R148: 6 | S148: 62 | T148: 108 | U148: 207 | V148: 362 | W148: 550 | X148: 694 | Y148: 738 | Z148: 741 | AA148: 741
E149: Rural | G149: # | K149: 2005 | L149: 2004 | M149: 2004 | N149: 2003 | O149: 1952 | P149: 1952 | Q149: 1952 | R149: 1952 | S149: 1973 | T149: 1985 | U149: 1998 | V149: 2004 | W149: 2004 | X149: 2005 | Y149: 2005 | Z149: 2005 | AA149: 2005
E150: Remote | G150: # | K150: 455 | L150: 455 | M150: 455 | N150: 455 | O150: 455 | P150: 455 | Q150: 455 | R150: 455 | S150: 455 | T150: 455 | U150: 455 | V150: 455 | W150: 455 | X150: 455 | Y150: 455 | Z150: 455 | AA150: 455
E151: Spare | G151: # | K151: 0 | L151: 0 | M151: 0 | N151: 0 | O151: 0 | P151: 0 | Q151: 0 | R151: 0 | S151: 0 | T151: 0 | U151: 0 | V151: 0 | W151: 0 | X151: 0 | Y151: 0 | Z151: 0 | AA151: 0
E152: Spare | G152: # | K152: 0 | L152: 0 | M152: 0 | N152: 0 | O152: 0 | P152: 0 | Q152: 0 | R152: 0 | S152: 0 | T152: 0 | U152: 0 | V152: 0 | W152: 0 | X152: 0 | Y152: 0 | Z152: 0 | AA152: 0
E153: Spare | G153: # | K153: 0 | L153: 0 | M153: 0 | N153: 0 | O153: 0 | P153: 0 | Q153: 0 | R153: 0 | S153: 0 | T153: 0 | U153: 0 | V153: 0 | W153: 0 | X153: 0 | Y153: 0 | Z153: 0 | AA153: 0
D155: 3G coverage sites with capacity upgrade | K155: =SUM(K156:K165) -> 198 | L155: =SUM(L156:L165) -> 1684 | M155: =SUM(M156:M165) -> 2221 | N155: =SUM(N156:N165) -> 2451 | O155: =SUM(O156:O165) -> 2838 | P155: =SUM(P156:P165) -> 2838 | Q155: =SUM(Q156:Q165) -> 2838 | R155: =SUM(R156:R165) -> 2741 | S155: =SUM(S156:S165) -> 2453 | T155: =SUM(T156:T165) -> 2228 | U155: =SUM(U156:U165) -> 1782 | V155: =SUM(V156:V165) -> 1143 | W155: =SUM(W156:W165) -> 494 | X155: =SUM(X156:X165) -> 106 | Y155: =SUM(Y156:Y165) -> 10 | Z155: =SUM(Z156:Z165) -> 1 | AA155: =SUM(AA156:AA165) -> 0
E156: =geotypes -> Dense urban | G156: # | K156: =IF(Distribution.of.traffic.selected=INDEX(Distribution.of.traffic.options,1,),Coverage.sites.with.capacity.upgrade.3G.homogeneous.traffic.distribution,Coverage.sites.with.capacity.upgrade.3G.curved.traffic.distribution) -> 30 | L156: 388 | M156: 534 | N156: 598 | O156: 598 | P156: 598 | Q156: 598 | R156: 562 | S156: 485 | T156: 425 | U156: 310 | V156: 164 | W156: 46 | X156: 4 | Y156: 1 | Z156: 0 | AA156: 0
E157: Urban in metropolitan areas | G157: # | K157: 79 | L157: 613 | M157: 792 | N157: 867 | O157: 867 | P157: 867 | Q157: 867 | R157: 825 | S157: 733 | T157: 660 | U157: 512 | V157: 307 | W157: 110 | X157: 14 | Y157: 1 | Z157: 0 | AA157: 0
E158: Urban in regional areas | G158: # | K158: 15 | L158: 85 | M158: 106 | N158: 115 | O158: 133 | P158: 133 | Q158: 133 | R158: 133 | S158: 133 | T158: 133 | U158: 133 | V158: 108 | W158: 70 | X158: 28 | Y158: 4 | Z158: 1 | AA158: 0
E159: Suburban in metropolitan areas | G159: # | K159: 57 | L159: 335 | M159: 418 | N159: 452 | O159: 452 | P159: 452 | Q159: 452 | R159: 433 | S159: 391 | T159: 357 | U159: 286 | V159: 184 | W159: 76 | X159: 13 | Y159: 1 | Z159: 0 | AA159: 0
E160: Suburban in regional areas | G160: # | K160: 17 | L160: 262 | M160: 370 | N160: 417 | O160: 735 | P160: 735 | Q160: 735 | R160: 735 | S160: 679 | T160: 633 | U160: 534 | V160: 379 | W160: 191 | X160: 47 | Y160: 3 | Z160: 0 | AA160: 0
E161: Rural | G161: # | K161: 0 | L161: 1 | M161: 1 | N161: 2 | O161: 53 | P161: 53 | Q161: 53 | R161: 53 | S161: 32 | T161: 20 | U161: 7 | V161: 1 | W161: 1 | X161: 0 | Y161: 0 | Z161: 0 | AA161: 0
E162: Remote | G162: # | K162: 0 | L162: 0 | M162: 0 | N162: 0 | O162: 0 | P162: 0 | Q162: 0 | R162: 0 | S162: 0 | T162: 0 | U162: 0 | V162: 0 | W162: 0 | X162: 0 | Y162: 0 | Z162: 0 | AA162: 0
E163: Spare | G163: # | K163: 0 | L163: 0 | M163: 0 | N163: 0 | O163: 0 | P163: 0 | Q163: 0 | R163: 0 | S163: 0 | T163: 0 | U163: 0 | V163: 0 | W163: 0 | X163: 0 | Y163: 0 | Z163: 0 | AA163: 0
E164: Spare | G164: # | K164: 0 | L164: 0 | M164: 0 | N164: 0 | O164: 0 | P164: 0 | Q164: 0 | R164: 0 | S164: 0 | T164: 0 | U164: 0 | V164: 0 | W164: 0 | X164: 0 | Y164: 0 | Z164: 0 | AA164: 0
E165: Spare | G165: # | K165: 0 | L165: 0 | M165: 0 | N165: 0 | O165: 0 | P165: 0 | Q165: 0 | R165: 0 | S165: 0 | T165: 0 | U165: 0 | V165: 0 | W165: 0 | X165: 0 | Y165: 0 | Z165: 0 | AA165: 0
D167: 3G capacity sites | K167: =SUM(K168:K177) -> 2 | L167: =SUM(L168:L177) -> 94 | M167: =SUM(M168:M177) -> 185 | N167: =SUM(N168:N177) -> 241 | O167: =SUM(O168:O177) -> 384 | P167: =SUM(P168:P177) -> 384 | Q167: =SUM(Q168:Q177) -> 384 | R167: =SUM(R168:R177) -> 384 | S167: =SUM(S168:S177) -> 293 | T167: =SUM(T168:T177) -> 230 | U167: =SUM(U168:U177) -> 138 | V167: =SUM(V168:V177) -> 54 | W167: =SUM(W168:W177) -> 12 | X167: =SUM(X168:X177) -> 2 | Y167: =SUM(Y168:Y177) -> 0 | Z167: =SUM(Z168:Z177) -> 0 | AA167: =SUM(AA168:AA177) -> 0
E168: =geotypes -> Dense urban | G168: # | K168: =IF(Distribution.of.traffic.selected=INDEX(Distribution.of.traffic.options,1,),Capacity.sites.3G.homogeneous.traffic.distribution,Capacity.sites.3G.curved.traffic.distribution) -> 0 | L168: 2 | M168: 5 | N168: 9 | O168: 17 | P168: 17 | Q168: 17 | R168: 17 | S168: 10 | T168: 6 | U168: 2 | V168: 1 | W168: 0 | X168: 0 | Y168: 0 | Z168: 0 | AA168: 0
E169: Urban in metropolitan areas | G169: # | K169: 0 | L169: 6 | M169: 19 | N169: 29 | O169: 49 | P169: 49 | Q169: 49 | R169: 49 | S169: 31 | T169: 20 | U169: 8 | V169: 1 | W169: 1 | X169: 0 | Y169: 0 | Z169: 0 | AA169: 0
E170: Urban in regional areas | G170: # | K170: 1 | L170: 30 | M170: 46 | N170: 53 | O170: 73 | P170: 73 | Q170: 73 | R170: 73 | S170: 63 | T170: 55 | U170: 40 | V170: 21 | W170: 6 | X170: 1 | Y170: 0 | Z170: 0 | AA170: 0
E171: Suburban in metropolitan areas | G171: # | K171: 0 | L171: 6 | M171: 16 | N171: 24 | O171: 37 | P171: 37 | Q171: 37 | R171: 37 | S171: 25 | T171: 17 | U171: 8 | V171: 2 | W171: 1 | X171: 0 | Y171: 0 | Z171: 0 | AA171: 0
E172: Suburban in regional areas | G172: # | K172: 1 | L172: 50 | M172: 99 | N172: 126 | O172: 207 | P172: 207 | Q172: 207 | R172: 207 | S172: 164 | T172: 132 | U172: 80 | V172: 29 | W172: 4 | X172: 1 | Y172: 0 | Z172: 0 | AA172: 0
E173: Rural | G173: # | K173: 0 | L173: 0 | M173: 0 | N173: 0 | O173: 1 | P173: 1 | Q173: 1 | R173: 1 | S173: 0 | T173: 0 | U173: 0 | V173: 0 | W173: 0 | X173: 0 | Y173: 0 | Z173: 0 | AA173: 0
E174: Remote | G174: # | K174: 0 | L174: 0 | M174: 0 | N174: 0 | O174: 0 | P174: 0 | Q174: 0 | R174: 0 | S174: 0 | T174: 0 | U174: 0 | V174: 0 | W174: 0 | X174: 0 | Y174: 0 | Z174: 0 | AA174: 0
E175: Spare | G175: # | K175: 0 | L175: 0 | M175: 0 | N175: 0 | O175: 0 | P175: 0 | Q175: 0 | R175: 0 | S175: 0 | T175: 0 | U175: 0 | V175: 0 | W175: 0 | X175: 0 | Y175: 0 | Z175: 0 | AA175: 0
E176: Spare | G176: # | K176: 0 | L176: 0 | M176: 0 | N176: 0 | O176: 0 | P176: 0 | Q176: 0 | R176: 0 | S176: 0 | T176: 0 | U176: 0 | V176: 0 | W176: 0 | X176: 0 | Y176: 0 | Z176: 0 | AA176: 0
E177: Spare | G177: # | K177: 0 | L177: 0 | M177: 0 | N177: 0 | O177: 0 | P177: 0 | Q177: 0 | R177: 0 | S177: 0 | T177: 0 | U177: 0 | V177: 0 | W177: 0 | X177: 0 | Y177: 0 | Z177: 0 | AA177: 0
D179: 4G coverage sites | K179: =SUM(K180:K189) -> 8 | L179: =SUM(L180:L189) -> 188 | M179: =SUM(M180:M189) -> 1295 | N179: =SUM(N180:N189) -> 2291 | O179: =SUM(O180:O189) -> 3478 | P179: =SUM(P180:P189) -> 4637 | Q179: =SUM(Q180:Q189) -> 5581 | R179: =SUM(R180:R189) -> 6232 | S179: =SUM(S180:S189) -> 6611 | T179: =SUM(T180:T189) -> 6913 | U179: =SUM(U180:U189) -> 6913 | V179: =SUM(V180:V189) -> 6913 | W179: =SUM(W180:W189) -> 6913 | X179: =SUM(X180:X189) -> 6913 | Y179: =SUM(Y180:Y189) -> 6913 | Z179: =SUM(Z180:Z189) -> 6913 | AA179: =SUM(AA180:AA189) -> 6913
E180: =geotypes -> Dense urban | G180: # | K180: =Coverage.sites.LTE -> 8 | L180: 128 | M180: 790 | N180: 1280 | O180: 1770 | P180: 2154 | Q180: 2389 | R180: 2502 | S180: 2544 | T180: 2560 | U180: 2560 | V180: 2560 | W180: 2560 | X180: 2560 | Y180: 2560 | Z180: 2560 | AA180: 2560
E181: Urban in metropolitan areas | G181: # | K181: 0 | L181: 60 | M181: 473 | N181: 919 | O181: 1489 | P181: 2058 | Q181: 2504 | R181: 2778 | S181: 2909 | T181: 2977 | U181: 2977 | V181: 2977 | W181: 2977 | X181: 2977 | Y181: 2977 | Z181: 2977 | AA181: 2977
E182: Urban in regional areas | G182: # | K182: 0 | L182: 0 | M182: 0 | N182: 0 | O182: 0 | P182: 0 | Q182: 0 | R182: 0 | S182: 0 | T182: 0 | U182: 0 | V182: 0 | W182: 0 | X182: 0 | Y182: 0 | Z182: 0 | AA182: 0
E183: Suburban in metropolitan areas | G183: # | K183: 0 | L183: 0 | M183: 32 | N183: 92 | O183: 219 | P183: 425 | Q183: 688 | R183: 952 | S183: 1158 | T183: 1376 | U183: 1376 | V183: 1376 | W183: 1376 | X183: 1376 | Y183: 1376 | Z183: 1376 | AA183: 1376
E184: Suburban in regional areas | G184: # | K184: 0 | L184: 0 | M184: 0 | N184: 0 | O184: 0 | P184: 0 | Q184: 0 | R184: 0 | S184: 0 | T184: 0 | U184: 0 | V184: 0 | W184: 0 | X184: 0 | Y184: 0 | Z184: 0 | AA184: 0
E185: Rural | G185: # | K185: 0 | L185: 0 | M185: 0 | N185: 0 | O185: 0 | P185: 0 | Q185: 0 | R185: 0 | S185: 0 | T185: 0 | U185: 0 | V185: 0 | W185: 0 | X185: 0 | Y185: 0 | Z185: 0 | AA185: 0
E186: Remote | G186: # | K186: 0 | L186: 0 | M186: 0 | N186: 0 | O186: 0 | P186: 0 | Q186: 0 | R186: 0 | S186: 0 | T186: 0 | U186: 0 | V186: 0 | W186: 0 | X186: 0 | Y186: 0 | Z186: 0 | AA186: 0
E187: Spare | G187: # | K187: 0 | L187: 0 | M187: 0 | N187: 0 | O187: 0 | P187: 0 | Q187: 0 | R187: 0 | S187: 0 | T187: 0 | U187: 0 | V187: 0 | W187: 0 | X187: 0 | Y187: 0 | Z187: 0 | AA187: 0
E188: Spare | G188: # | K188: 0 | L188: 0 | M188: 0 | N188: 0 | O188: 0 | P188: 0 | Q188: 0 | R188: 0 | S188: 0 | T188: 0 | U188: 0 | V188: 0 | W188: 0 | X188: 0 | Y188: 0 | Z188: 0 | AA188: 0
E189: Spare | G189: # | K189: 0 | L189: 0 | M189: 0 | N189: 0 | O189: 0 | P189: 0 | Q189: 0 | R189: 0 | S189: 0 | T189: 0 | U189: 0 | V189: 0 | W189: 0 | X189: 0 | Y189: 0 | Z189: 0 | AA189: 0
D191: 4G purely coverage sites | K191: =SUM(K192:K201) -> 8 | L191: =SUM(L192:L201) -> 188 | M191: =SUM(M192:M201) -> 1295 | N191: =SUM(N192:N201) -> 2291 | O191: =SUM(O192:O201) -> 3078 | P191: =SUM(P192:P201) -> 4052 | Q191: =SUM(Q192:Q201) -> 4777 | R191: =SUM(R192:R201) -> 5122 | S191: =SUM(S192:S201) -> 5123 | T191: =SUM(T192:T201) -> 5020 | U191: =SUM(U192:U201) -> 4578 | V191: =SUM(V192:V201) -> 4175 | W191: =SUM(W192:W201) -> 3811 | X191: =SUM(X192:X201) -> 3477 | Y191: =SUM(Y192:Y201) -> 3159 | Z191: =SUM(Z192:Z201) -> 2858 | AA191: =SUM(AA192:AA201) -> 2569
E192: =geotypes -> Dense urban | G192: # | K192: =K180:AA189-K204:AA213 -> 8 | L192: 128 | M192: 790 | N192: 1280 | O192: 1687 | P192: 2053 | Q192: 2253 | R192: 2301 | S192: 2252 | T192: 2154 | U192: 2024 | V192: 1899 | W192: 1782 | X192: 1671 | Y192: 1563 | Z192: 1458 | AA192: 1356
E193: Urban in metropolitan areas | G193: # | K193: 0 | L193: 60 | M193: 473 | N193: 919 | O193: 1298 | P193: 1791 | Q193: 2136 | R193: 2246 | S193: 2177 | T193: 2040 | U193: 1832 | V193: 1645 | W193: 1478 | X193: 1327 | Y193: 1184 | Z193: 1050 | AA193: 922
E194: Urban in regional areas | G194: # | K194: 0 | L194: 0 | M194: 0 | N194: 0 | O194: 0 | P194: 0 | Q194: 0 | R194: 0 | S194: 0 | T194: 0 | U194: 0 | V194: 0 | W194: 0 | X194: 0 | Y194: 0 | Z194: 0 | AA194: 0
E195: Suburban in metropolitan areas | G195: # | K195: 0 | L195: 0 | M195: 32 | N195: 92 | O195: 93 | P195: 208 | Q195: 388 | R195: 575 | S195: 694 | T195: 826 | U195: 722 | V195: 631 | W195: 551 | X195: 479 | Y195: 412 | Z195: 350 | AA195: 291
E196: Suburban in regional areas | G196: # | K196: 0 | L196: 0 | M196: 0 | N196: 0 | O196: 0 | P196: 0 | Q196: 0 | R196: 0 | S196: 0 | T196: 0 | U196: 0 | V196: 0 | W196: 0 | X196: 0 | Y196: 0 | Z196: 0 | AA196: 0
E197: Rural | G197: # | K197: 0 | L197: 0 | M197: 0 | N197: 0 | O197: 0 | P197: 0 | Q197: 0 | R197: 0 | S197: 0 | T197: 0 | U197: 0 | V197: 0 | W197: 0 | X197: 0 | Y197: 0 | Z197: 0 | AA197: 0
E198: Remote | G198: # | K198: 0 | L198: 0 | M198: 0 | N198: 0 | O198: 0 | P198: 0 | Q198: 0 | R198: 0 | S198: 0 | T198: 0 | U198: 0 | V198: 0 | W198: 0 | X198: 0 | Y198: 0 | Z198: 0 | AA198: 0
E199: Spare | G199: # | K199: 0 | L199: 0 | M199: 0 | N199: 0 | O199: 0 | P199: 0 | Q199: 0 | R199: 0 | S199: 0 | T199: 0 | U199: 0 | V199: 0 | W199: 0 | X199: 0 | Y199: 0 | Z199: 0 | AA199: 0
E200: Spare | G200: # | K200: 0 | L200: 0 | M200: 0 | N200: 0 | O200: 0 | P200: 0 | Q200: 0 | R200: 0 | S200: 0 | T200: 0 | U200: 0 | V200: 0 | W200: 0 | X200: 0 | Y200: 0 | Z200: 0 | AA200: 0
E201: Spare | G201: # | K201: 0 | L201: 0 | M201: 0 | N201: 0 | O201: 0 | P201: 0 | Q201: 0 | R201: 0 | S201: 0 | T201: 0 | U201: 0 | V201: 0 | W201: 0 | X201: 0 | Y201: 0 | Z201: 0 | AA201: 0
D203: 4G coverage sites with capacity upgrade | K203: =SUM(K204:K213) -> 0 | L203: =SUM(L204:L213) -> 0 | M203: =SUM(M204:M213) -> 0 | N203: =SUM(N204:N213) -> 0 | O203: =SUM(O204:O213) -> 400 | P203: =SUM(P204:P213) -> 585 | Q203: =SUM(Q204:Q213) -> 804 | R203: =SUM(R204:R213) -> 1110 | S203: =SUM(S204:S213) -> 1488 | T203: =SUM(T204:T213) -> 1893 | U203: =SUM(U204:U213) -> 2335 | V203: =SUM(V204:V213) -> 2738 | W203: =SUM(W204:W213) -> 3102 | X203: =SUM(X204:X213) -> 3436 | Y203: =SUM(Y204:Y213) -> 3754 | Z203: =SUM(Z204:Z213) -> 4055 | AA203: =SUM(AA204:AA213) -> 4344
D204: 1 | E204: =geotypes -> Dense urban | G204: # | K204: =IF(Distribution.of.traffic.selected=INDEX(Distribution.of.traffic.options,1,), MAX(INDEX(Coverage.sites.with.capacity.upgrade.LTE.homogeneous.traffic.distribution,$D204,K$2),INDEX(Coverage.sites.with.second.capacity.upgrade.LTE.homogeneous.traffic.distribution,$D204,K$2),INDEX(Coverage.sites.with.third.capacity.upgrade.LTE.homogeneous.traffic.distribution,$D204,K$2),INDEX(Coverage.sites.with.fourth.capacity.upgrade.LTE.homogeneous.traffic.distribution,$D204,K$2),INDEX(Coverage.sites.with.fifth.capacity.upgrade.LTE.homogeneous.traffic.distribution,$D204,K$2),INDEX(Coverage.sites.with.sixth.capacity.upgrade.LTE.homogeneous.traffic.distribution,$D204,K$2)), MAX(INDEX(Coverage.sites.with.capacity.upgrade.LTE.curved.traffic.distribution,$D204,K$2),INDEX(Coverage.sites.with.second.capacity.upgrade.LTE.curved.traffic.distribution,$D204,K$2),INDEX(Coverage.sites.with.third.capacity.upgrade.LTE.curved.traffic.distribution,$D204,K$2),INDEX(Coverage.sites.with.fourth.capacity.upgrade.LTE.curved.traffic.distribution,$D204,K$2),INDEX(Coverage.sites.with.fifth.capacity.upgrade.LTE.curved.traffic.distribution,$D204,K$2),INDEX(Coverage.sites.with.sixth.capacity.upgrade.LTE.curved.traffic.distribution,$D204,K$2))) -> 0 | L204: 0 | M204: 0 | N204: 0 | O204: 83 | P204: 101 | Q204: 136 | R204: 201 | S204: 292 | T204: 406 | U204: =IF(Distribution.of.traffic.selected=INDEX(Distribution.of.traffic.options,1,), MAX(INDEX(Coverage.sites.with.capacity.upgrade.LTE.homogeneous.traffic.distribution,$D204,U$2),INDEX(Coverage.sites.with.second.capacity.upgrade.LTE.homogeneous.traffic.distribution,$D204,U$2),INDEX(Coverage.sites.with.third.capacity.upgrade.LTE.homogeneous.traffic.distribution,$D204,U$2),INDEX(Coverage.sites.with.fourth.capacity.upgrade.LTE.homogeneous.traffic.distribution,$D204,U$2),INDEX(Coverage.sites.with.fifth.capacity.upgrade.LTE.homogeneous.traffic.distribution,$D204,U$2),INDEX(Coverage.sites.with.sixth.capacity.upgrade.LTE.homogeneous.traffic.distribution,$D204,U$2)), MAX(INDEX(Coverage.sites.with.capacity.upgrade.LTE.curved.traffic.distribution,$D204,U$2),INDEX(Coverage.sites.with.second.capacity.upgrade.LTE.curved.traffic.distribution,$D204,U$2),INDEX(Coverage.sites.with.third.capacity.upgrade.LTE.curved.traffic.distribution,$D204,U$2),INDEX(Coverage.sites.with.fourth.capacity.upgrade.LTE.curved.traffic.distribution,$D204,U$2),INDEX(Coverage.sites.with.fifth.capacity.upgrade.LTE.curved.traffic.distribution,$D204,U$2),INDEX(Coverage.sites.with.sixth.capacity.upgrade.LTE.curved.traffic.distribution,$D204,U$2))) -> 536 | V204: 661 | W204: 778 | X204: 889 | Y204: 997 | Z204: 1102 | AA204: 1204
D205: =1+D204 -> 2 | E205: Urban in metropolitan areas | G205: # | K205: 0 | L205: 0 | M205: 0 | N205: 0 | O205: 191 | P205: 267 | Q205: 368 | R205: 532 | S205: 732 | T205: 937 | U205: 1145 | V205: 1332 | W205: 1499 | X205: 1650 | Y205: 1793 | Z205: 1927 | AA205: 2055
D206: =1+D205 -> 3 | E206: Urban in regional areas | G206: # | K206: 0 | L206: 0 | M206: 0 | N206: 0 | O206: 0 | P206: 0 | Q206: 0 | R206: 0 | S206: 0 | T206: 0 | U206: 0 | V206: 0 | W206: 0 | X206: 0 | Y206: 0 | Z206: 0 | AA206: 0
D207: 4 | E207: Suburban in metropolitan areas | G207: # | K207: 0 | L207: 0 | M207: 0 | N207: 0 | O207: 126 | P207: 217 | Q207: 300 | R207: 377 | S207: 464 | T207: 550 | U207: 654 | V207: 745 | W207: 825 | X207: 897 | Y207: 964 | Z207: 1026 | AA207: 1085
D208: 5 | E208: Suburban in regional areas | G208: # | K208: 0 | L208: 0 | M208: 0 | N208: 0 | O208: 0 | P208: 0 | Q208: 0 | R208: 0 | S208: 0 | T208: 0 | U208: 0 | V208: 0 | W208: 0 | X208: 0 | Y208: 0 | Z208: 0 | AA208: 0
D209: 6 | E209: Rural | G209: # | K209: 0 | L209: 0 | M209: 0 | N209: 0 | O209: 0 | P209: 0 | Q209: 0 | R209: 0 | S209: 0 | T209: 0 | U209: 0 | V209: 0 | W209: 0 | X209: 0 | Y209: 0 | Z209: 0 | AA209: 0
D210: 7 | E210: Remote | G210: # | K210: 0 | L210: 0 | M210: 0 | N210: 0 | O210: 0 | P210: 0 | Q210: 0 | R210: 0 | S210: 0 | T210: 0 | U210: 0 | V210: 0 | W210: 0 | X210: 0 | Y210: 0 | Z210: 0 | AA210: 0
D211: 8 | E211: Spare | G211: # | K211: 0 | L211: 0 | M211: 0 | N211: 0 | O211: 0 | P211: 0 | Q211: 0 | R211: 0 | S211: 0 | T211: 0 | U211: 0 | V211: 0 | W211: 0 | X211: 0 | Y211: 0 | Z211: 0 | AA211: 0
D212: 9 | E212: Spare | G212: # | K212: 0 | L212: 0 | M212: 0 | N212: 0 | O212: 0 | P212: 0 | Q212: 0 | R212: 0 | S212: 0 | T212: 0 | U212: 0 | V212: 0 | W212: 0 | X212: 0 | Y212: 0 | Z212: 0 | AA212: 0
D213: 10 | E213: Spare | G213: # | K213: 0 | L213: 0 | M213: 0 | N213: 0 | O213: 0 | P213: 0 | Q213: 0 | R213: 0 | S213: 0 | T213: 0 | U213: 0 | V213: 0 | W213: 0 | X213: 0 | Y213: 0 | Z213: 0 | AA213: 0
D215: 4G capacity sites | K215: =SUM(K216:K225) -> 0 | L215: =SUM(L216:L225) -> 0 | M215: =SUM(M216:M225) -> 0 | N215: =SUM(N216:N225) -> 0 | O215: =SUM(O216:O225) -> 164 | P215: =SUM(P216:P225) -> 244 | Q215: =SUM(Q216:Q225) -> 334 | R215: =SUM(R216:R225) -> 474 | S215: =SUM(S216:S225) -> 474 | T215: =SUM(T216:T225) -> 527 | U215: =SUM(U216:U225) -> 713 | V215: =SUM(V216:V225) -> 931 | W215: =SUM(W216:W225) -> 1146 | X215: =SUM(X216:X225) -> 1360 | Y215: =SUM(Y216:Y225) -> 1577 | Z215: =SUM(Z216:Z225) -> 1577 | AA215: =SUM(AA216:AA225) -> 1577
E216: =geotypes -> Dense urban | G216: # | K216: =IF(Distribution.of.traffic.selected=INDEX(Distribution.of.traffic.options,1,),Capacity.sites.LTE.homogeneous.traffic.distribution,Capacity.sites.LTE.curved.traffic.distribution) -> 0 | L216: 0 | M216: 0 | N216: 0 | O216: 19 | P216: 23 | Q216: 34 | R216: 57 | S216: 57 | T216: 68 | U216: 109 | V216: 157 | W216: 208 | X216: 261 | Y216: 319 | Z216: 319 | AA216: 319
E217: Urban in metropolitan areas | G217: # | K217: 0 | L217: 0 | M217: 0 | N217: 0 | O217: 66 | P217: 92 | Q217: 133 | R217: 214 | S217: 214 | T217: 256 | U217: 363 | V217: 471 | W217: 577 | X217: 682 | Y217: 786 | Z217: 786 | AA217: 786
E218: Urban in regional areas | G218: # | K218: 0 | L218: 0 | M218: 0 | N218: 0 | O218: 0 | P218: 0 | Q218: 0 | R218: 0 | S218: 0 | T218: 0 | U218: 0 | V218: 0 | W218: 0 | X218: 0 | Y218: 0 | Z218: 0 | AA218: 0
E219: Suburban in metropolitan areas | G219: # | K219: 0 | L219: 0 | M219: 0 | N219: 0 | O219: 79 | P219: 129 | Q219: 167 | R219: 203 | S219: 203 | T219: 203 | U219: 241 | V219: 303 | W219: 361 | X219: 417 | Y219: 472 | Z219: 472 | AA219: 472
E220: Suburban in regional areas | G220: # | K220: 0 | L220: 0 | M220: 0 | N220: 0 | O220: 0 | P220: 0 | Q220: 0 | R220: 0 | S220: 0 | T220: 0 | U220: 0 | V220: 0 | W220: 0 | X220: 0 | Y220: 0 | Z220: 0 | AA220: 0
E221: Rural | G221: # | K221: 0 | L221: 0 | M221: 0 | N221: 0 | O221: 0 | P221: 0 | Q221: 0 | R221: 0 | S221: 0 | T221: 0 | U221: 0 | V221: 0 | W221: 0 | X221: 0 | Y221: 0 | Z221: 0 | AA221: 0
E222: Remote | G222: # | K222: 0 | L222: 0 | M222: 0 | N222: 0 | O222: 0 | P222: 0 | Q222: 0 | R222: 0 | S222: 0 | T222: 0 | U222: 0 | V222: 0 | W222: 0 | X222: 0 | Y222: 0 | Z222: 0 | AA222: 0
E223: Spare | G223: # | K223: 0 | L223: 0 | M223: 0 | N223: 0 | O223: 0 | P223: 0 | Q223: 0 | R223: 0 | S223: 0 | T223: 0 | U223: 0 | V223: 0 | W223: 0 | X223: 0 | Y223: 0 | Z223: 0 | AA223: 0
... 203 more rows

Sheet CTRL
A1: Control
I2: 1 | J2: =1+I2 -> 2 | K2: =1+J2 -> 3 | L2: 4 | M2: 5 | N2: 6 | O2: 7 | P2: 8 | Q2: 9 | R2: 10 | S2: 11 | T2: 12 | U2: 13 | V2: 14 | W2: 15 | X2: 16 | Y2: 17 | Z2: 18
E3: Source | F3: Unit | I3: =TRANSPOSE(years) -> 2010 | J3: 2011 | K3: 2012 | L3: 2013 | M3: 2014 | N3: 2015 | O3: 2016 | P3: 2017 | Q3: 2018 | R3: 2019 | S3: 2020 | T3: 2021 | U3: 2022 | V3: 2023 | W3: 2024 | X3: 2025 | Y3: 2026 | Z3: 2027 | AA3: Name | AC3: Note | AD3: 5 years | AE3: 10 years | AF3: 15 years
B5: Macro last calculated
D6: 2015-02-10T22:57:17 | E6: date.macro.scenario.selected.last.calculated | J6: 2015-02-10T22:57:21 | K6: date.macro.sensitivities.sites.count.last.calculated
A15: Operators
H17: Vodafone Hutchison | I17: operator.selected | K17: =MATCH(INDEX(Coverage.option.by.operator,MATCH(operator.selected,Operators,0),),Coverage.options,0) -> 4 | L17: Coverage.option.selected
H18: Optus | I18: operator.Optus | K18: =H645 -> Optus' 2013 coverage
H19: Telstra | I19: operator.Telstra | K19: =H644 -> Telstra's 2013 coverage
H20: Vodafone Hutchison | I20: operator.VHA | K20: =H646 -> Vodafone Hutchison's 2013 coverage
H21: Operators | K21: Coverage.option.by.operator
A25: Market shares
B27: Market shares by operator and by geotype | I27: Market shares taken from "Roy Morgan Single Source Mobile Market Share 3 Years Cumulative Report March 2012" with some extra calculations to adapt them to the geotypes used in this model; they are assumed flat throughout the model
I28: =TRANSPOSE(Operators) -> Optus | J28: Telstra | K28: Vodafone Hutchison
D29: =geotypes -> Dense urban | H29: =INDEX(Market.shares.by.operator,,MATCH(operator.selected,Operators)) -> 0.3333333333 | I29: =1/3 -> 0.3333333333 | J29: 0.3333333333 | K29: 0.3333333333
D30: Urban in metropolitan areas | H30: 0.3333333333 | I30: 0.3333333333 | J30: 0.3333333333 | K30: 0.3333333333
D31: Urban in regional areas | H31: 0.3333333333 | I31: 0.3333333333 | J31: 0.3333333333 | K31: 0.3333333333
D32: Suburban in metropolitan areas | H32: 0.3333333333 | I32: 0.3333333333 | J32: 0.3333333333 | K32: 0.3333333333
D33: Suburban in regional areas | H33: 0.3333333333 | I33: 0.3333333333 | J33: 0.3333333333 | K33: 0.3333333333
D34: Rural | H34: 0.3333333333 | I34: 0.3333333333 | J34: 0.3333333333 | K34: 0.3333333333
D35: Remote | H35: 0.3333333333 | I35: 0.3333333333 | J35: 0.3333333333 | K35: 0.3333333333
D36: Spare | H36: 0 | I36: 0 | J36: 0 | K36: 0
D37: Spare | H37: 0 | I37: 0 | J37: 0 | K37: 0
D38: Spare | H38: 0 | I38: 0 | J38: 0 | K38: 0
H39: Market.shares.selected | L39: Market.shares.by.operator
B42: Average national market share | H42: =INDEX(Market.share.by.operator,,MATCH(operator.selected,Operators)) -> 0.3333333333 | I42: =SUMPRODUCT(I29:I38,Population.distribution.2013) -> 0.3333333333 | J42: =SUMPRODUCT(J29:J38,Population.distribution.2013) -> 0.3333333333 | K42: =SUMPRODUCT(K29:K38,Population.distribution.2013) -> 0.3333333333 | L42: Market.share.by.operator
H43: Market.share.selected
A46: Sensitivities
B48: Extra usage | F48: % | H48: 0 | I48: sensitivity.traffic.selected
D49: Note: applies to the value in 2020 of the data traffic compared to the base case
D50: ="Adj. "&ROUNDUP(H50*100,0)&"%" -> Adj. -67% | F50: % | H50: -0.67
D51: ="Adj. "&ROUNDUP(H51*100,0)&"%" -> Adj. -33% | F51: % | H51: -0.33
D52: Base case | F52: % | H52: 0 | I52: sensitivity.traffic.base.case
D53: ="Adj. "&ROUNDUP(H53*100,0)&"%" -> Adj. 50% | F53: % | H53: 0.5
D54: ="Adj. "&ROUNDUP(H54*100,0)&"%" -> Adj. 100% | F54: % | H54: 1
D55: ="Adj. "&ROUNDUP(H55*100,0)&"%" -> Adj. 0% | H55: 0
D56: ="Adj. "&ROUNDUP(H56*100,0)&"%" -> Adj. 0% | H56: 0
D57: Adj. 0% | H57: 0
D58: ="Adj. "&ROUNDUP(H58*100,0)&"% (sensitivity shown in the report)" -> Adj. 70% (sensitivity shown in the report) | H58: 0.7
D59: =D52 -> Base case | H59: =sensitivity.traffic.base.case -> 0
C60: 50 | D60: ="Adjustment to get "&C60&" PB monthly data traffic in 2020: "&ROUND(H60*100,0)&"%" -> Adjustment to get 50 PB monthly data traffic in 2020: -64% | H60: -0.6405511746
C61: 100 | D61: ="Adjustment to get "&C61&" PB monthly data traffic in 2020: "&ROUND(H61*100,0)&"%" -> Adjustment to get 100 PB monthly data traffic in 2020: -28% | H61: -0.2760151248
C62: 150 | D62: Adjustment to get 150 PB monthly data traffic in 2020: 9% | H62: 0.08852092513
C63: 200 | D63: Adjustment to get 200 PB monthly data traffic in 2020: 45% | H63: 0.453056975
C64: 250 | D64: Adjustment to get 250 PB monthly data traffic in 2020: 82% | H64: 0.8175930249
C65: 300 | D65: Adjustment to get 300 PB monthly data traffic in 2020: 118% | H65: 1.182129075
C66: 350 | D66: Adjustment to get 350 PB monthly data traffic in 2020: 155% | H66: 1.546665125
C67: 400 | D67: Adjustment to get 400 PB monthly data traffic in 2020: 191% | H67: 1.911201175
C68: 450 | D68: Adjustment to get 450 PB monthly data traffic in 2020: 228% | H68: 2.275737224
C69: 500 | D69: Adjustment to get 500 PB monthly data traffic in 2020: 264% | H69: 2.640273274 | I69: Scenarios.for.the.CIE.traffic.multiplier
C70: sensitivity.traffic.scenarios | H70: sensitivity.traffic.options
H72: =Market.LTE.capacity.sites.macro.2020 -> 1400 | I72: Number of 4G capacity macro sites in 2020 in the total market for the scenario selected (the macro above on the left needs to be run to update this value)
H73: =Market.LTE.capacity.sites.macro.2020+Market.LTE.capacity.sites.small.2020 -> 1519 | I73: Number of 4G capacity sites (macro and small cells) in 2020 in the total market for the scenario selected (the macro above on the left needs to be run to update this value)
H75: =MKT!R212 -> 142.5160472 | I75: Total monthly data traffic in 2020
H77: Increase of physical sites by geotype from 2013 to 2020
D78: =geotypes -> Dense urban | H78: =IF(Market.physical.sites.2020=0,0,Market.physical.sites.2020/Market.physical.sites.2013-1) -> 0.4820928931
D79: Urban in metropolitan areas | H79: 0.413500118
D80: Urban in regional areas | H80: -0.005405405405
D81: Suburban in metropolitan areas | H81: 0.4448327509
D82: Suburban in regional areas | H82: -0.04567988669
D83: Rural | H83: -0.1078051481
D84: Remote | H84: -0.1081246182
D85: Spare | H85: 0
D86: Spare | H86: 0
D87: Spare | H87: 0
B90: Exponential 4G data traffic growth
H91: FALSE | I91: Sensitivity.exponential.data.traffic.growth
D92: =H92&" "&F92 -> TRUE | H92: TRUE
D93: =H93&" "&F93&" (base case)" -> FALSE (base case) | H93: FALSE
B96: Data traffic in the busy hour
C98: Proportion in 2011 | H98: 0.07 | I98: sensitivity.BH.start.selected
D99: =H99*100&" % (base case)" -> 7 % (base case) | H99: 0.07
D100: =H100*100&" %" -> 11 % | H100: 0.11
D101: =H101*100&" %" -> 7 % | H101: 0.07
H102: sensitivity.BH.start.options
C104: Proportion in 2027 | H104: 0.07 | I104: sensitivity.BH.end.selected
D105: =H105*100&" % (base case)" -> 7 % (base case) | H105: 0.07
D106: =H106*100&" %" -> 11 % | H106: 0.11
D107: =H107*100&" %" -> 10 % | H107: 0.1
H108: sensitivity.BH.end.options
B110: Extra spectrum
B111: ="The sensitivity considering the case where no 700MHz nor 2.5GHz spectrum had been awarded can be found further down this sheet, at row "&ROW(B240) -> The sensitivity considering the case where no 700MHz nor 2.5GHz spectrum had been awarded can be found further down this sheet, at row 240
C112: Include the use of the 2.3GHz band (for Optus)
H113: FALSE | I113: Include.2.3GHz.band
D114: =H114&" "&F114 -> TRUE | H114: TRUE
D115: =H115&" "&F115&" (base case)" -> FALSE (base case) | H115: FALSE
C117: Additional spectrum for spectrum sensitivity
D119: Run spectrum sensitivity
D120: At the national level | H120: No | I120: Run.spectrum.sensitivity.national
D121: If a spectrum sensitivity is activated at the national level, the sensitivites in the smaller areas below are ignored
D122: Metropolitan areas | H122: No
D123: Regional areas | H123: No
D124: Remote areas | H124: No
H125: Run.spectrum.sensitivity.by.area
D126: Spectrum sensitivity options
D127: =H127 -> Incremental allocation | G127: 1 | H127: Incremental allocation | J127: Spectrum allocated as follows: by end of 2016: 40 MHz < 1GHz, 80 MHz 1 – 6 GHz; by end of 2019: 40 MHz < 1GHz, 80 MHz 1 – 6 GHz; by end of 2020: 20 MHz < 1GHz, 40 MHz 1 – 6 GHz
D128: =H128 -> Delayed allocation | G128: =1+G127 -> 2 | H128: Delayed allocation | J128: Spectrum allocated as follows: 300 MHz (100 MHz < 1GHz and 200 MHz 1 – 6 GHz) by end of 2022
D129: =H129&" "&F129&" (base case)" -> No (base case) | G129: =1+G128 -> 3 | H129: No | I129: Run.spectrum.sensitivity.NO.option
D130: =H130 -> +50MHz | G130: 4 | H130: +50MHz
D131: =H131 -> +150MHz | G131: 5 | H131: +150MHz
D132: +240MHz | G132: 6 | H132: +240MHz
D133: +540MHz | G133: 7 | H133: +540MHz | I133: Scenarios.for.the.CIE.spectrum.allocation
D134: +300MHz in 2015 | G134: 8 | H134: +300MHz in 2015
D135: +300MHz in 2020 | G135: 9 | H135: +300MHz in 2020
D136: Test increase of capacity sites by 2020 | G136: 10 | H136: Test increase of capacity sites by 2020
D137: Spare | G137: 11 | H137: Spare
H138: sensitivity.spectrum.options
D140: Amount of extra spectrum by operator | H140: Proportional to market share | I140: sensitivity.spectrum.allocation.selected
G141: 1 | H141: Equal for each operator
G142: 2 | H142: Proportional to market share
H143: sensitivity.spectrum.allocation.options
D145: Amount of extra spectrum (2*MHz) | I145: =TRANSPOSE(years) -> 2010 | J145: 2011 | K145: 2012 | L145: 2013 | M145: 2014 | N145: 2015 | O145: 2016 | P145: 2017 | Q145: 2018 | R145: 2019 | S145: 2020 | T145: 2021 | U145: 2022 | V145: 2023 | W145: 2024 | X145: 2025 | Y145: 2026 | Z145: 2027
C146: 1 | D146: =INDEX(sensitivity.spectrum.options,C146,) -> Incremental allocation
D147: Sub 1GHz spectrum released in each year | P147: 20 | S147: 20 | T147: 10
D148: 1-6GHz spectrum released in each year | P148: 40 | S148: 40 | T148: 20
D149: Sub 1GHz spectrum released in total | I149: =H149+I147 -> 0 | J149: =I149+J147 -> 0 | K149: 0 | L149: 0 | M149: 0 | N149: 0 | O149: 0 | P149: 20 | Q149: 20 | R149: 20 | S149: 40 | T149: 50 | U149: 50 | V149: 50 | W149: 50 | X149: 50 | Y149: 50 | Z149: 50
D150: 1-6GHz spectrum released in total | I150: =H150+I148 -> 0 | J150: 0 | K150: 0 | L150: 0 | M150: 0 | N150: 0 | O150: 0 | P150: 40 | Q150: 40 | R150: 40 | S150: 80 | T150: 100 | U150: 100 | V150: 100 | W150: 100 | X150: 100 | Y150: 100 | Z150: 100
C152: =1+C146 -> 2 | D152: =INDEX(sensitivity.spectrum.options,C152,) -> Delayed allocation
D153: Sub 1GHz spectrum released in each year | V153: 50
D154: 1-6GHz spectrum released in each year | V154: 100
D155: Sub 1GHz spectrum released in total | I155: =H155+I153 -> 0 | J155: =I155+J153 -> 0 | K155: 0 | L155: 0 | M155: 0 | N155: 0 | O155: 0 | P155: 0 | Q155: 0 | R155: 0 | S155: 0 | T155: 0 | U155: 0 | V155: 50 | W155: 50 | X155: 50 | Y155: 50 | Z155: 50
D156: 1-6GHz spectrum released in total | I156: =H156+I154 -> 0 | J156: 0 | K156: 0 | L156: 0 | M156: 0 | N156: 0 | O156: 0 | P156: 0 | Q156: 0 | R156: 0 | S156: 0 | T156: 0 | U156: 0 | V156: 100 | W156: 100 | X156: 100 | Y156: 100 | Z156: 100
C158: =1+C152 -> 3 | D158: =INDEX(sensitivity.spectrum.options,C158,) -> No
D159: Sub 1GHz spectrum released in each year
D160: 1-6GHz spectrum released in each year
D161: Sub 1GHz spectrum released in total | I161: =H161+I159 -> 0 | J161: =I161+J159 -> 0 | K161: =J161+K159 -> 0 | L161: =K161+L159 -> 0 | M161: =L161+M159 -> 0 | N161: =M161+N159 -> 0 | O161: =N161+O159 -> 0 | P161: =O161+P159 -> 0 | Q161: =P161+Q159 -> 0 | R161: =Q161+R159 -> 0 | S161: =R161+S159 -> 0 | T161: =S161+T159 -> 0 | U161: =T161+U159 -> 0 | V161: =U161+V159 -> 0 | W161: =V161+W159 -> 0 | X161: =W161+X159 -> 0 | Y161: =X161+Y159 -> 0 | Z161: =Y161+Z159 -> 0
D162: 1-6GHz spectrum released in total | I162: =H162+I160 -> 0 | J162: 0 | K162: 0 | L162: 0 | M162: 0 | N162: 0 | O162: 0 | P162: 0 | Q162: 0 | R162: 0 | S162: 0 | T162: 0 | U162: 0 | V162: 0 | W162: 0 | X162: 0 | Y162: 0 | Z162: 0
C164: =1+C158 -> 4 | D164: =INDEX(sensitivity.spectrum.options,C164,) -> +50MHz
D165: Sub 1GHz spectrum released in each year | N165: 25
D166: 1-6GHz spectrum released in each year
D167: Sub 1GHz spectrum released in total | I167: =H167+I165 -> 0 | J167: =I167+J165 -> 0 | K167: =J167+K165 -> 0 | L167: =K167+L165 -> 0 | M167: =L167+M165 -> 0 | N167: =M167+N165 -> 25 | O167: =N167+O165 -> 25 | P167: =O167+P165 -> 25 | Q167: =P167+Q165 -> 25 | R167: =Q167+R165 -> 25 | S167: =R167+S165 -> 25 | T167: =S167+T165 -> 25 | U167: =T167+U165 -> 25 | V167: =U167+V165 -> 25 | W167: =V167+W165 -> 25 | X167: =W167+X165 -> 25 | Y167: =X167+Y165 -> 25 | Z167: =Y167+Z165 -> 25
D168: 1-6GHz spectrum released in total | I168: =H168+I166 -> 0 | J168: 0 | K168: 0 | L168: 0 | M168: 0 | N168: 0 | O168: 0 | P168: 0 | Q168: 0 | R168: 0 | S168: 0 | T168: 0 | U168: 0 | V168: 0 | W168: 0 | X168: 0 | Y168: 0 | Z168: 0
C170: =1+C164 -> 5 | D170: =INDEX(sensitivity.spectrum.options,C170,) -> +150MHz
D171: Sub 1GHz spectrum released in each year | N171: 25
D172: 1-6GHz spectrum released in each year | N172: 50
D173: Sub 1GHz spectrum released in total | I173: =H173+I171 -> 0 | J173: =I173+J171 -> 0 | K173: =J173+K171 -> 0 | L173: =K173+L171 -> 0 | M173: =L173+M171 -> 0 | N173: =M173+N171 -> 25 | O173: =N173+O171 -> 25 | P173: =O173+P171 -> 25 | Q173: =P173+Q171 -> 25 | R173: =Q173+R171 -> 25 | S173: =R173+S171 -> 25 | T173: =S173+T171 -> 25 | U173: =T173+U171 -> 25 | V173: =U173+V171 -> 25 | W173: =V173+W171 -> 25 | X173: =W173+X171 -> 25 | Y173: =X173+Y171 -> 25 | Z173: =Y173+Z171 -> 25
D174: 1-6GHz spectrum released in total | I174: =H174+I172 -> 0 | J174: 0 | K174: 0 | L174: 0 | M174: 0 | N174: 50 | O174: 50 | P174: 50 | Q174: 50 | R174: 50 | S174: 50 | T174: 50 | U174: 50 | V174: 50 | W174: 50 | X174: 50 | Y174: 50 | Z174: 50
C176: =1+C170 -> 6 | D176: =INDEX(sensitivity.spectrum.options,C176,) -> +240MHz
D177: Sub 1GHz spectrum released in each year | N177: 25
D178: 1-6GHz spectrum released in each year | N178: 95
D179: Sub 1GHz spectrum released in total | I179: =H179+I177 -> 0 | J179: =I179+J177 -> 0 | K179: =J179+K177 -> 0 | L179: =K179+L177 -> 0 | M179: =L179+M177 -> 0 | N179: =M179+N177 -> 25 | O179: =N179+O177 -> 25 | P179: =O179+P177 -> 25 | Q179: =P179+Q177 -> 25 | R179: =Q179+R177 -> 25 | S179: =R179+S177 -> 25 | T179: =S179+T177 -> 25 | U179: =T179+U177 -> 25 | V179: =U179+V177 -> 25 | W179: =V179+W177 -> 25 | X179: =W179+X177 -> 25 | Y179: =X179+Y177 -> 25 | Z179: =Y179+Z177 -> 25
D180: 1-6GHz spectrum released in total | I180: =H180+I178 -> 0 | J180: 0 | K180: 0 | L180: 0 | M180: 0 | N180: 95 | O180: 95 | P180: 95 | Q180: 95 | R180: 95 | S180: 95 | T180: 95 | U180: 95 | V180: 95 | W180: 95 | X180: 95 | Y180: 95 | Z180: 95
C182: =1+C176 -> 7 | D182: =INDEX(sensitivity.spectrum.options,C182,) -> +540MHz
D183: Sub 1GHz spectrum released in each year | N183: 25
D184: 1-6GHz spectrum released in each year | N184: 245
D185: Sub 1GHz spectrum released in total | I185: =H185+I183 -> 0 | J185: =I185+J183 -> 0 | K185: =J185+K183 -> 0 | L185: =K185+L183 -> 0 | M185: =L185+M183 -> 0 | N185: =M185+N183 -> 25 | O185: =N185+O183 -> 25 | P185: =O185+P183 -> 25 | Q185: =P185+Q183 -> 25 | R185: =Q185+R183 -> 25 | S185: =R185+S183 -> 25 | T185: =S185+T183 -> 25 | U185: =T185+U183 -> 25 | V185: =U185+V183 -> 25 | W185: =V185+W183 -> 25 | X185: =W185+X183 -> 25 | Y185: =X185+Y183 -> 25 | Z185: =Y185+Z183 -> 25
D186: 1-6GHz spectrum released in total | I186: =H186+I184 -> 0 | J186: 0 | K186: 0 | L186: 0 | M186: 0 | N186: 245 | O186: 245 | P186: 245 | Q186: 245 | R186: 245 | S186: 245 | T186: 245 | U186: 245 | V186: 245 | W186: 245 | X186: 245 | Y186: 245 | Z186: 245
C188: =1+C182 -> 8 | D188: =INDEX(sensitivity.spectrum.options,C188,) -> +300MHz in 2015
D189: Sub 1GHz spectrum released in each year | N189: 25
D190: 1-6GHz spectrum released in each year | N190: 125
D191: Sub 1GHz spectrum released in total | I191: =H191+I189 -> 0 | J191: =I191+J189 -> 0 | K191: =J191+K189 -> 0 | L191: =K191+L189 -> 0 | M191: =L191+M189 -> 0 | N191: =M191+N189 -> 25 | O191: =N191+O189 -> 25 | P191: =O191+P189 -> 25 | Q191: =P191+Q189 -> 25 | R191: =Q191+R189 -> 25 | S191: =R191+S189 -> 25 | T191: =S191+T189 -> 25 | U191: =T191+U189 -> 25 | V191: =U191+V189 -> 25 | W191: =V191+W189 -> 25 | X191: =W191+X189 -> 25 | Y191: =X191+Y189 -> 25 | Z191: =Y191+Z189 -> 25
D192: 1-6GHz spectrum released in total | I192: =H192+I190 -> 0 | J192: 0 | K192: 0 | L192: 0 | M192: 0 | N192: 125 | O192: 125 | P192: 125 | Q192: 125 | R192: 125 | S192: 125 | T192: 125 | U192: 125 | V192: 125 | W192: 125 | X192: 125 | Y192: 125 | Z192: 125
C194: =1+C188 -> 9 | D194: =INDEX(sensitivity.spectrum.options,C194,) -> +300MHz in 2020
D195: Sub 1GHz spectrum released in each year | S195: 25
D196: 1-6GHz spectrum released in each year | S196: 125
D197: Sub 1GHz spectrum released in total | I197: =H197+I195 -> 0 | J197: =I197+J195 -> 0 | K197: =J197+K195 -> 0 | L197: =K197+L195 -> 0 | M197: =L197+M195 -> 0 | N197: =M197+N195 -> 0 | O197: =N197+O195 -> 0 | P197: =O197+P195 -> 0 | Q197: =P197+Q195 -> 0 | R197: =Q197+R195 -> 0 | S197: =R197+S195 -> 25 | T197: =S197+T195 -> 25 | U197: =T197+U195 -> 25 | V197: =U197+V195 -> 25 | W197: =V197+W195 -> 25 | X197: =W197+X195 -> 25 | Y197: =X197+Y195 -> 25 | Z197: =Y197+Z195 -> 25
D198: 1-6GHz spectrum released in total | I198: =H198+I196 -> 0 | J198: 0 | K198: 0 | L198: 0 | M198: 0 | N198: 0 | O198: 0 | P198: 0 | Q198: 0 | R198: 0 | S198: 125 | T198: 125 | U198: 125 | V198: 125 | W198: 125 | X198: 125 | Y198: 125 | Z198: 125
C200: =1+C194 -> 10 | D200: =INDEX(sensitivity.spectrum.options,C200,) -> Test increase of capacity sites by 2020
D201: Sub 1GHz spectrum released in each year
D202: 1-6GHz spectrum released in each year | N202: 136
D203: Sub 1GHz spectrum released in total | I203: =H203+I201 -> 0 | J203: =I203+J201 -> 0 | K203: =J203+K201 -> 0 | L203: =K203+L201 -> 0 | M203: =L203+M201 -> 0 | N203: =M203+N201 -> 0 | O203: =N203+O201 -> 0 | P203: =O203+P201 -> 0 | Q203: =P203+Q201 -> 0 | R203: =Q203+R201 -> 0 | S203: =R203+S201 -> 0 | T203: =S203+T201 -> 0 | U203: =T203+U201 -> 0 | V203: =U203+V201 -> 0 | W203: =V203+W201 -> 0 | X203: =W203+X201 -> 0 | Y203: =X203+Y201 -> 0 | Z203: =Y203+Z201 -> 0
D204: 1-6GHz spectrum released in total | I204: =H204+I202 -> 0 | J204: 0 | K204: 0 | L204: 0 | M204: 0 | N204: 136 | O204: 136 | P204: 136 | Q204: 136 | R204: 136 | S204: 136 | T204: 136 | U204: 136 | V204: 136 | W204: 136 | X204: 136 | Y204: 136 | Z204: 136
C206: =1+C200 -> 11 | D206: =INDEX(sensitivity.spectrum.options,C206,) -> Spare
D207: Sub 1GHz spectrum released in each year
D208: 1-6GHz spectrum released in each year
D209: Sub 1GHz spectrum released in total | I209: =H209+I207 -> 0 | J209: =I209+J207 -> 0 | K209: =J209+K207 -> 0 | L209: =K209+L207 -> 0 | M209: =L209+M207 -> 0 | N209: =M209+N207 -> 0 | O209: =N209+O207 -> 0 | P209: =O209+P207 -> 0 | Q209: =P209+Q207 -> 0 | R209: =Q209+R207 -> 0 | S209: =R209+S207 -> 0 | T209: =S209+T207 -> 0 | U209: =T209+U207 -> 0 | V209: =U209+V207 -> 0 | W209: =V209+W207 -> 0 | X209: =W209+X207 -> 0 | Y209: =X209+Y207 -> 0 | Z209: =Y209+Z207 -> 0
D210: 1-6GHz spectrum released in total | I210: =H210+I208 -> 0 | J210: 0 | K210: 0 | L210: 0 | M210: 0 | N210: 0 | O210: 0 | P210: 0 | Q210: 0 | R210: 0 | S210: 0 | T210: 0 | U210: 0 | V210: 0 | W210: 0 | X210: 0 | Y210: 0 | Z210: 0
D213: Amount of extra sub-1GHz spectrum (2*MHz)
C214: 1 | D214: =sensitivity.spectrum.options -> Incremental allocation | I214: =INDEX($I$146:$Z$210,MATCH($C214,$C$146:$C$206,0)+3,I$2) -> 0 | J214: 0 | K214: 0 | L214: 0 | M214: 0 | N214: 0 | O214: 0 | P214: 20 | Q214: 20 | R214: 20 | S214: =INDEX($I$146:$Z$210,MATCH($C214,$C$146:$C$206,0)+3,S$2) -> 40 | T214: 50 | U214: 50 | V214: 50 | W214: 50 | X214: 50 | Y214: 50 | Z214: 50
C215: =1+C214 -> 2 | D215: Delayed allocation | I215: 0 | J215: 0 | K215: 0 | L215: 0 | M215: 0 | N215: 0 | O215: 0 | P215: 0 | Q215: 0 | R215: 0 | S215: 0 | T215: 0 | U215: 0 | V215: 50 | W215: 50 | X215: 50 | Y215: 50 | Z215: 50
C216: =1+C215 -> 3 | D216: No | I216: 0 | J216: 0 | K216: 0 | L216: 0 | M216: 0 | N216: 0 | O216: 0 | P216: 0 | Q216: 0 | R216: 0 | S216: 0 | T216: 0 | U216: 0 | V216: 0 | W216: 0 | X216: 0 | Y216: 0 | Z216: 0
C217: 4 | D217: +50MHz | I217: 0 | J217: 0 | K217: 0 | L217: 0 | M217: 0 | N217: 25 | O217: 25 | P217: 25 | Q217: 25 | R217: 25 | S217: 25 | T217: 25 | U217: 25 | V217: 25 | W217: 25 | X217: 25 | Y217: 25 | Z217: 25
C218: 5 | D218: +150MHz | I218: 0 | J218: 0 | K218: 0 | L218: 0 | M218: 0 | N218: 25 | O218: 25 | P218: 25 | Q218: 25 | R218: 25 | S218: 25 | T218: 25 | U218: 25 | V218: 25 | W218: 25 | X218: 25 | Y218: 25 | Z218: 25
C219: 6 | D219: +240MHz | I219: 0 | J219: 0 | K219: 0 | L219: 0 | M219: 0 | N219: 25 | O219: 25 | P219: 25 | Q219: 25 | R219: 25 | S219: 25 | T219: 25 | U219: 25 | V219: 25 | W219: 25 | X219: 25 | Y219: 25 | Z219: 25
C220: 7 | D220: +540MHz | I220: 0 | J220: 0 | K220: 0 | L220: 0 | M220: 0 | N220: 25 | O220: 25 | P220: 25 | Q220: 25 | R220: 25 | S220: 25 | T220: 25 | U220: 25 | V220: 25 | W220: 25 | X220: 25 | Y220: 25 | Z220: 25
C221: 8 | D221: +300MHz in 2015 | I221: 0 | J221: 0 | K221: 0 | L221: 0 | M221: 0 | N221: 25 | O221: 25 | P221: 25 | Q221: 25 | R221: 25 | S221: 25 | T221: 25 | U221: 25 | V221: 25 | W221: 25 | X221: 25 | Y221: 25 | Z221: 25
C222: 9 | D222: +300MHz in 2020 | I222: 0 | J222: 0 | K222: 0 | L222: 0 | M222: 0 | N222: 0 | O222: 0 | P222: 0 | Q222: 0 | R222: 0 | S222: 25 | T222: 25 | U222: 25 | V222: 25 | W222: 25 | X222: 25 | Y222: 25 | Z222: 25
C223: 10 | D223: Test increase of capacity sites by 2020 | I223: 0 | J223: 0 | K223: 0 | L223: 0 | M223: 0 | N223: 0 | O223: 0 | P223: 0 | Q223: 0 | R223: 0 | S223: 0 | T223: 0 | U223: 0 | V223: 0 | W223: 0 | X223: 0 | Y223: 0 | Z223: 0
C224: 11 | D224: =sensitivity.spectrum.options -> Incremental allocation | I224: 0 | J224: 0 | K224: 0 | L224: 0 | M224: 0 | N224: 0 | O224: 0 | P224: 0 | Q224: 0 | R224: 0 | S224: 0 | T224: 0 | U224: 0 | V224: 0 | W224: 0 | X224: 0 | Y224: 0 | Z224: 0
AA225: sensitivity.spectrum.sub.1GHZ
D226: Amount of extra 1-6GHz spectrum (2*MHz)
C227: 1 | D227: =sensitivity.spectrum.options -> Incremental allocation | I227: =INDEX($I$146:$Z$210,MATCH($C227,$C$146:$C$206,0)+4,I$2) -> 0 | J227: 0 | K227: 0 | L227: 0 | M227: 0 | N227: 0 | O227: 0 | P227: 40 | Q227: 40 | R227: 40 | S227: =INDEX($I$146:$Z$210,MATCH($C227,$C$146:$C$206,0)+4,S$2) -> 80 | T227: 100 | U227: 100 | V227: 100 | W227: 100 | X227: 100 | Y227: 100 | Z227: 100
C228: =1+C227 -> 2 | D228: Delayed allocation | I228: 0 | J228: 0 | K228: 0 | L228: 0 | M228: 0 | N228: 0 | O228: 0 | P228: 0 | Q228: 0 | R228: 0 | S228: 0 | T228: 0 | U228: 0 | V228: 100 | W228: 100 | X228: 100 | Y228: 100 | Z228: 100
C229: =1+C228 -> 3 | D229: No | I229: 0 | J229: 0 | K229: 0 | L229: 0 | M229: 0 | N229: 0 | O229: 0 | P229: 0 | Q229: 0 | R229: 0 | S229: 0 | T229: 0 | U229: 0 | V229: 0 | W229: 0 | X229: 0 | Y229: 0 | Z229: 0
C230: 4 | D230: +50MHz | I230: 0 | J230: 0 | K230: 0 | L230: 0 | M230: 0 | N230: 0 | O230: 0 | P230: 0 | Q230: 0 | R230: 0 | S230: 0 | T230: 0 | U230: 0 | V230: 0 | W230: 0 | X230: 0 | Y230: 0 | Z230: 0
C231: 5 | D231: +150MHz | I231: 0 | J231: 0 | K231: 0 | L231: 0 | M231: 0 | N231: 50 | O231: 50 | P231: 50 | Q231: 50 | R231: 50 | S231: 50 | T231: 50 | U231: 50 | V231: 50 | W231: 50 | X231: 50 | Y231: 50 | Z231: 50
C232: 6 | D232: +240MHz | I232: 0 | J232: 0 | K232: 0 | L232: 0 | M232: 0 | N232: 95 | O232: 95 | P232: 95 | Q232: 95 | R232: 95 | S232: 95 | T232: 95 | U232: 95 | V232: 95 | W232: 95 | X232: 95 | Y232: 95 | Z232: 95
C233: 7 | D233: +540MHz | I233: 0 | J233: 0 | K233: 0 | L233: 0 | M233: 0 | N233: 245 | O233: 245 | P233: 245 | Q233: 245 | R233: 245 | S233: 245 | T233: 245 | U233: 245 | V233: 245 | W233: 245 | X233: 245 | Y233: 245 | Z233: 245
C234: 8 | D234: +300MHz in 2015 | I234: 0 | J234: 0 | K234: 0 | L234: 0 | M234: 0 | N234: 125 | O234: 125 | P234: 125 | Q234: 125 | R234: 125 | S234: 125 | T234: 125 | U234: 125 | V234: 125 | W234: 125 | X234: 125 | Y234: 125 | Z234: 125
C235: 9 | D235: +300MHz in 2020 | I235: 0 | J235: 0 | K235: 0 | L235: 0 | M235: 0 | N235: 0 | O235: 0 | P235: 0 | Q235: 0 | R235: 0 | S235: 125 | T235: 125 | U235: 125 | V235: 125 | W235: 125 | X235: 125 | Y235: 125 | Z235: 125
C236: 10 | D236: Test increase of capacity sites by 2020 | I236: 0 | J236: 0 | K236: 0 | L236: 0 | M236: 0 | N236: 136 | O236: 136 | P236: 136 | Q236: 136 | R236: 136 | S236: 136 | T236: 136 | U236: 136 | V236: 136 | W236: 136 | X236: 136 | Y236: 136 | Z236: 136
C237: 11 | D237: =sensitivity.spectrum.options -> Incremental allocation | I237: 0 | J237: 0 | K237: 0 | L237: 0 | M237: 0 | N237: 0 | O237: 0 | P237: 0 | Q237: 0 | R237: 0 | S237: 0 | T237: 0 | U237: 0 | V237: 0 | W237: 0 | X237: 0 | Y237: 0 | Z237: 0
AA238: sensitivity.spectrum.1to6GHZ
B240: Less spectrum
C241: Scenario in which no 700MHz nor 2.5GHz spectrum would have been awarded to the mobile operators
H242: FALSE | I242: sensitivity.no.700MHz.nor.2.5GHz.spectrum.selected
D243: =H243&" i.e. no 700MHz nor 2.5GHz spectrum allocated to the mobile operators" -> TRUE i.e. no 700MHz nor 2.5GHz spectrum allocated to the mobile operators | H243: TRUE
D244: =H244&" i.e. real 700MHz and 2.5GHz spectrum allocations (base case)" -> FALSE i.e. real 700MHz and 2.5GHz spectrum allocations (base case) | H244: FALSE
H245: sensitivity.no.700MHz.nor.2.5GHz.spectrum.options
B247: Spectral efficiency
... 329 more rows

Sheet MKT
A1: Australia mobile data market model 2012 - 2027
H2: 1 | I2: =1+H2 -> 2 | J2: =1+I2 -> 3 | K2: 4 | L2: 5 | M2: 6 | N2: 7 | O2: 8 | P2: 9 | Q2: 10 | R2: 11 | S2: 12 | T2: 13 | U2: 14 | V2: 15 | W2: 16 | X2: 17 | Y2: 18 | AC2: Trends
E3: Source | F3: Unit | H3: =TRANSPOSE(years) -> 2010 | I3: 2011 | J3: 2012 | K3: 2013 | L3: 2014 | M3: 2015 | N3: 2016 | O3: 2017 | P3: 2018 | Q3: 2019 | R3: 2020 | S3: 2021 | T3: 2022 | U3: 2023 | V3: 2024 | W3: 2025 | X3: 2026 | Y3: 2027 | Z3: Name | AB3: Note | AC3: 5 years | AD3: 10 years | AE3: 15 years
A5: Mobile subscribers (entire market, 2G / 3G / 4G)
B7: Mobile subscribers, EOP
D8: Population | E8: Australian Bureau of Statistics (ABS) | F8: thousand | H8: =Population.2010.2027 -> 22172.5 | I8: 22512.1 | J8: 22906.4 | K8: 23239.06346 | L8: 23572.3621 | M8: 23906.34851 | N8: 24241.00449 | O8: 24575.61799 | P8: 24910.01808 | Q8: 25243.98426 | R8: 25577.21716 | S8: 25909.42749 | T8: 26240.28756 | U8: 26569.96527 | V8: 26898.07829 | W8: 27224.22913 | X8: 27548.05569 | Y8: 27868.84391
D9: Growth year on year | I9: =I8/H8-1 -> 0.01531627015 | J9: 0.01751502525 | K9: 0.01452272979 | L9: 0.01434217168 | M9: 0.01416855939 | N9: 0.01399862389 | O9: 0.01380361532 | P9: 0.01360698595 | Q9: 0.0134069025 | R9: 0.01320048733 | S9: 0.01298852543 | T9: 0.01276987197 | U9: 0.01256379929 | V9: 0.01234901949 | W9: 0.01212543271 | X9: 0.0118947928 | Y9: 0.0116446773
D11: Population penetration of handsets | H11: =H12/H8 -> 0.9316495659 | I11: =I12/I8 -> 0.9373625739 | J11: =J12/J8 -> 0.9279066113 | K11: =$J11+($T11-$J11)*INDEX(curves.10Y,MATCH($AD11,curves,0),K$3-$J$3+1) -> 0.9381159501 | L11: 0.948325289 | M11: 0.9585346279 | N11: 0.9687439668 | O11: 0.9789533056 | P11: 0.9891626445 | Q11: 0.9993719834 | R11: 1.009581322 | S11: 1.019790661 | T11: 1.03 | U11: =$T11+($Y11-$T11)*INDEX(curves.5Y,MATCH($AC11,curves,0),U$3-$T$3+1) -> 1.03 | V11: =$T11+($Y11-$T11)*INDEX(curves.5Y,MATCH($AC11,curves,0),V$3-$T$3+1) -> 1.03 | W11: =$T11+($Y11-$T11)*INDEX(curves.5Y,MATCH($AC11,curves,0),W$3-$T$3+1) -> 1.03 | X11: =$T11+($Y11-$T11)*INDEX(curves.5Y,MATCH($AC11,curves,0),X$3-$T$3+1) -> 1.03 | Y11: 1.03 | AC11: Linear | AD11: Linear
D12: Total handset subscriptions | E12: GSMA | F12: thousand | H12: 20657 | I12: 21102 | J12: 21255 | K12: =K11*K8 -> 21800.9361 | L12: 22354.2671 | M12: 22915.06287 | N12: 23483.32685 | O12: 24058.38247 | P12: 24640.05936 | Q12: 25228.13062 | R12: 25822.28072 | S12: 26422.19219 | T12: 27027.49619 | U12: 27367.06423 | V12: 27705.02064 | W12: 28040.956 | X12: 28374.49736 | Y12: 28704.90923 | Z12: Connections.handsets.total
D13: Growth year on year | F13: % | I13: =I12/H12-1 -> 0.02154233432 | J13: 0.007250497583 | K13: 0.02568506683 | L13: 0.02538106614 | M13: 0.02508674392 | N13: 0.024798709 | O13: 0.02448782603 | P13: 0.02417772221 | Q13: 0.02386647105 | R13: 0.02355109481 | S13: 0.02323231947 | T13: 0.02290892425 | U13: 0.01256379929 | V13: 0.01234901949 | W13: 0.01212543271 | X13: 0.0118947928 | Y13: 0.0116446773
I14: =I16/I8 -> 0.6747482465 | J14: 0.7068766808 | K14: 0.8326457814 | L14: 0.888113648 | M14: 0.9301628086 | N14: 0.9578716619 | O14: 0.9756005421 | P14: 0.9883368723 | Q14: 0.9992104238 | R14: 1.009556314 | S14: 1.019790661 | T14: 1.03 | U14: 1.03 | V14: 1.03 | W14: 1.03 | X14: 1.03 | Y14: 1.03
D15: Proportion that are data users | F15: % | H15: =H16/H12 -> 0 | I15: =I16/I12 -> 0.7198369823 | J15: =J16/J12 -> 0.7617972242 | K15: =$I15+($S15-$I15)*INDEX(curves.10Y,MATCH($AD15,curves,0),K$3-$I$3+1) -> 0.8875723532 | L15: 0.9365073971 | M15: 0.9704008406 | N15: 0.9887769057 | O15: 0.9965751549 | P15: 0.9991651805 | Q15: 0.9998383389 | R15: 0.9999752287 | S15: =IF(Sensitivity.2G.shutdown,100%,95%) -> 1 | T15: =$S15+($W15-$S15)*INDEX(curves.5Y,MATCH($AC15,curves,0),T$3-$S$3+1) -> 1 | U15: =$S15+($W15-$S15)*INDEX(curves.5Y,MATCH($AC15,curves,0),U$3-$S$3+1) -> 1 | V15: =$S15+($W15-$S15)*INDEX(curves.5Y,MATCH($AC15,curves,0),V$3-$S$3+1) -> 1 | W15: =IF(Sensitivity.2G.shutdown,100%,95%) -> 1 | X15: =W15 -> 1 | Y15: =X15 -> 1 | AC15: Linear | AD15: S-curve 2
D16: Total handset data subscriptions | E16: Australian Bureau of Statistics (ABS) | F16: thousand | I16: 15190 | J16: 16192 | K16: =K15*K12 -> 19349.90815 | L16: 20934.93649 | M16: 22236.79627 | N16: 23219.77126 | O16: 23975.98623 | P16: 24619.48936 | Q16: 25224.05221 | R16: 25821.64107 | S16: 26422.19219 | T16: 27027.49619 | U16: 27367.06423 | V16: 27705.02064 | W16: 28040.956 | X16: 28374.49736 | Y16: 28704.90923
B18: Penetration - tablets / mid-screens, EOP
D19: Number of households | E19: Australian Bureau of Statistics (ABS) | F19: thousand | H19: =Households.2010.2027 -> 8475.2275 | I19: 8633.123 | J19: 8788.6945 | K19: 8945.1 | L19: 9103.2495 | M19: 9262.4725 | N19: 9420.105 | O19: 9575.7935 | P19: 9731.1005 | Q19: 9886.9265 | R19: 10042.4585 | S19: 10195.0595 | T19: 10344.6635 | U19: 10493.127 | V19: 10641.2455 | W19: 10789.2515 | X19: 10936.039 | Y19: 11081.19
D20: Population per household | H20: =H8/H19 -> 2.616153962 | I20: 2.60764268 | J20: 2.606348417 | K20: 2.597965753 | L20: 2.589444802 | M20: 2.580989958 | N20: 2.573326358 | O20: 2.566431491 | P20: 2.559835661 | Q20: 2.553269134 | R20: 2.546907927 | S20: =S8/S19 -> 2.541370896 | T20: 2.536601366 | U20: 2.532130343 | V20: 2.527718986 | W20: 2.523273197 | X20: 2.519015861 | Y20: 2.514968511
D22: Household penetration of connected tablets | F22: % | H22: =H23/H19 -> 0 | I22: =I23/I19 -> 0.06360386618 | J22: =J23/J19 -> 0.1159614776 | K22: 0.147 | L22: 0.179 | M22: 0.209 | N22: 0.234 | O22: 0.259 | P22: 0.283 | Q22: 0.303 | R22: 0.32 | S22: 0.337 | T22: 0.351 | U22: 0.364 | V22: 0.377 | W22: 0.387 | X22: 0.395 | Y22: 0.4
D23: Total tablet subscriptions | E23: Analysys Mason | F23: thousand | I23: =5491*0.1 -> 549.1 | J23: =5995*0.17 -> 1019.15 | K23: =K19*K22 -> 1314.9297 | L23: =L19*L22 -> 1629.48166 | M23: 1935.856752 | N23: 2204.30457 | O23: 2480.130516 | P23: 2753.901441 | Q23: 2995.738729 | R23: 3213.58672 | S23: 3435.735051 | T23: 3630.976888 | U23: 3819.498228 | V23: 4011.749554 | W23: 4175.440331 | X23: 4319.735405 | Y23: 4432.476
D25: Population penetration of connected tablets | H25: =H23/H8 -> 0 | I25: =I23/I8 -> 0.02439132733 | J25: 0.04449193239 | K25: 0.05658273202 | L25: 0.06912678729 | M25: 0.08097668081 | N25: 0.09093288898 | O25: 0.1009183377 | P25: 0.110553972 | Q25: 0.1186713911 | R25: 0.1256425474 | S25: 0.1326055951 | T25: 0.1383741272 | U25: 0.1437524735 | V25: 0.149146326 | W25: 0.1533722153 | X25: 0.1568072699 | Y25: 0.159047717
B27: Penetration - dongles / large screens, EOP
D28: Population penetration of dongles | F28: % | H28: =H29/H8 -> 0 | I28: =I29/I8 -> 0.219521946 | J28: =J29/J8 -> 0.2172253169 | K28: =$J28+($T28-$J28)*INDEX(curves.10Y,MATCH($AD28,curves,0),K$3-$J$3+1) -> 0.2115027852 | L28: 0.2057802536 | M28: 0.2000577219 | N28: 0.1943351902 | O28: 0.1886126585 | P28: 0.1828901268 | Q28: 0.1771675951 | R28: 0.1714450634 | S28: 0.1657225317 | T28: 0.16 | U28: =$T28+($Y28-$T28)*INDEX(curves.5Y,MATCH($AC28,curves,0),U$3-$T$3+1) -> 0.156 | V28: =$T28+($Y28-$T28)*INDEX(curves.5Y,MATCH($AC28,curves,0),V$3-$T$3+1) -> 0.152 | W28: =$T28+($Y28-$T28)*INDEX(curves.5Y,MATCH($AC28,curves,0),W$3-$T$3+1) -> 0.148 | X28: =$T28+($Y28-$T28)*INDEX(curves.5Y,MATCH($AC28,curves,0),X$3-$T$3+1) -> 0.144 | Y28: 0.14 | AC28: Linear | AD28: Linear
D29: Total dongle subscriptions | E29: Analysys Mason | F29: thousand | I29: =5491*0.9 -> 4941.9 | J29: =5995*0.83 -> 4975.85 | K29: =K28*K8 -> 4915.126648 | L29: 4850.726649 | M29: 4782.64962 | N29: 4710.880217 | O29: 4635.272643 | P29: 4555.796364 | Q29: 4472.415982 | R29: 4385.087617 | S29: 4293.775919 | T29: 4198.44601 | U29: 4144.914582 | V29: 4088.5079 | W29: 4029.185911 | X29: 3966.92002 | Y29: 3901.638148
B31: Penetration - M2M, EOP
D32: Population penetration of M2M | F32: % | H32: =H33/H8 -> 0.01436077459 | I32: =I33/I8 -> 0.0179630567 | J32: 0.02242038835 | K32: 0.028066294 | L32: 0.03497653725 | M32: 0.04338563621 | N32: 0.05346413448 | O32: 0.06538320786 | P32: 0.0794698317 | Q32: 0.09623663875 | R32: 0.1163658456 | S32: 0.1408026864 | T32: 0.1705443191 | U32: 0.2066695933 | V32: 0.2490612417 | W32: 0.2977537099 | X32: 0.3531043488 | Y32: 0.4153574713
D33: Total M2M subscriptions | E33: AM 2013 M2M forecast | F33: thousand | H33: 318.4142747 | I33: 404.3861288 | J33: 513.5703836 | K33: 652.2343872 | L33: 824.4796009 | M33: 1037.192139 | N33: 1296.024324 | O33: 1606.832739 | P33: 1979.594944 | Q33: 2429.396194 | R33: 2976.314504 | S33: 3648.116993 | T33: 4475.131975 | U33: 5491.203916 | V33: 6699.268778 | W33: 8106.115221 | X33: 9727.338265 | Y33: 11575.53254
B35: Mobile voice subscribers by type, EOP
D36: Voice only | I36: =I12-I37 -> 5912 | J36: 5063 | K36: 2451.027943 | L36: 1419.330605 | M36: 678.2665989 | N36: 263.5555911 | O36: 82.39623449 | P36: 20.57000105 | Q36: 4.078406771 | R36: 0.63965026 | S36: 0 | T36: 0 | U36: 0 | V36: 0 | W36: 0 | X36: 0 | Y36: 0
D37: Voice and data | I37: =I16 -> 15190 | J37: 16192 | K37: 19349.90815 | L37: 20934.93649 | M37: 22236.79627 | N37: 23219.77126 | O37: 23975.98623 | P37: 24619.48936 | Q37: 25224.05221 | R37: 25821.64107 | S37: 26422.19219 | T37: 27027.49619 | U37: 27367.06423 | V37: 27705.02064 | W37: 28040.956 | X37: 28374.49736 | Y37: 28704.90923
B39: Mobile data subscribers by type, EOP | F39: thousand | I39: =SUM(I40:I43) -> 21085.38613 | J39: 22700.57038 | K39: 26232.19889 | L39: 28239.6244 | M39: 29992.49478 | N39: 31430.98037 | O39: 32698.22213 | P39: 33908.78211 | Q39: 35121.60312 | R39: 36396.62991 | S39: 37799.82016 | T39: 39332.05106 | U39: 40822.68095 | V39: 42504.54687 | W39: 44351.69746 | X39: 46388.49105 | Y39: 48614.55591
D40: =segments -> Handsets | F40: thousand | I40: =I16 -> 15190 | J40: 16192 | K40: 19349.90815 | L40: 20934.93649 | M40: 22236.79627 | N40: 23219.77126 | O40: 23975.98623 | P40: 24619.48936 | Q40: 25224.05221 | R40: 25821.64107 | S40: 26422.19219 | T40: 27027.49619 | U40: 27367.06423 | V40: 27705.02064 | W40: 28040.956 | X40: 28374.49736 | Y40: 28704.90923 | Z40: Connections.handsets.data
D41: Tablets | F41: thousand | I41: =I23 -> 549.1 | J41: 1019.15 | K41: 1314.9297 | L41: 1629.48166 | M41: 1935.856752 | N41: 2204.30457 | O41: 2480.130516 | P41: 2753.901441 | Q41: 2995.738729 | R41: 3213.58672 | S41: 3435.735051 | T41: 3630.976888 | U41: 3819.498228 | V41: 4011.749554 | W41: 4175.440331 | X41: 4319.735405 | Y41: =Y23 -> 4432.476 | Z41: Connections.tablets
D42: Dongles/laptops | F42: thousand | I42: =I29 -> 4941.9 | J42: 4975.85 | K42: 4915.126648 | L42: 4850.726649 | M42: 4782.64962 | N42: 4710.880217 | O42: 4635.272643 | P42: 4555.796364 | Q42: 4472.415982 | R42: 4385.087617 | S42: 4293.775919 | T42: 4198.44601 | U42: 4144.914582 | V42: 4088.5079 | W42: 4029.185911 | X42: 3966.92002 | Y42: 3901.638148 | Z42: Connections.dongles
D43: M2M | E43: AM 2013 M2M forecast | F43: thousand | I43: =I33 -> 404.3861288 | J43: 513.5703836 | K43: 652.2343872 | L43: 824.4796009 | M43: 1037.192139 | N43: 1296.024324 | O43: 1606.832739 | P43: 1979.594944 | Q43: 2429.396194 | R43: 2976.314504 | S43: 3648.116993 | T43: 4475.131975 | U43: 5491.203916 | V43: 6699.268778 | W43: 8106.115221 | X43: 9727.338265 | Y43: 11575.53254
D45: =segments -> Handsets | F45: % | H45: =IF(H$39=0,0,H40/H$39) -> 0 | I45: =IF(I$39=0,0,I40/I$39) -> 0.7204041656 | J45: 0.713286042 | K45: 0.7376395793 | L45: 0.7413319736 | M45: 0.7414120243 | N45: 0.7387542795 | O45: 0.7332504543 | P45: 0.726050534 | Q45: 0.7181919381 | R45: 0.7094514281 | S45: 0.6990031191 | T45: 0.6871621352 | U45: 0.6703887052 | V45: 0.6518131042 | W45: 0.6322408748 | X45: 0.6116710572 | Y45: 0.5904591473
D46: Tablets | F46: % | H46: =IF(H$39=0,0,H41/H$39) -> 0 | I46: =IF(I$39=0,0,I41/I$39) -> 0.0260417332 | J46: 0.04489534768 | K46: 0.0501265527 | L46: 0.05770195939 | M46: 0.06454470582 | N46: 0.07013158814 | O46: 0.07584909376 | P46: 0.08121499123 | Q46: 0.08529618421 | R46: 0.0882935241 | S46: 0.09089289413 | T46: 0.09231598125 | U46: 0.09356314036 | V46: 0.09438400945 | W46: 0.09414386752 | X46: 0.09312084327 | Y46: 0.0911759023
D47: Dongles/laptops | F47: % | H47: =IF(H$39=0,0,H42/H$39) -> 0 | I47: =IF(I$39=0,0,I42/I$39) -> 0.2343755988 | J47: 0.2191949328 | K47: 0.1873699826 | L47: 0.1717702254 | M47: 0.1594615471 | N47: 0.1498801553 | O47: 0.1417591643 | P47: 0.1343544675 | Q47: 0.1273408838 | R47: 0.1204805947 | S47: 0.113592496 | T47: 0.1067436327 | U47: 0.1015346 | V47: 0.09618989499 | W47: 0.09084626162 | X47: 0.08551517692 | Y47: 0.08025658312
D48: M2M | F48: % | H48: 0 | I48: 0.01917850242 | J48: 0.02262367751 | K48: 0.02486388541 | L48: 0.0291958416 | M48: 0.03458172276 | N48: 0.04123397708 | O48: 0.04914128765 | P48: 0.05838000722 | Q48: 0.06917099387 | R48: 0.08177445306 | S48: 0.09651149075 | T48: 0.1137782509 | U48: 0.1345135544 | V48: 0.1576129913 | W48: 0.1827689961 | X48: 0.2096929226 | Y48: 0.2381083673
B50: Proportion of data devices that are LTE-enabled | H50: =IF(ISERR(H66/H39),0,H66/H39) -> 0 | I50: =I66/I39 -> 0.01039358155 | J50: 0.1043679106 | K50: 0.2535250188 | L50: 0.4144516035 | M50: 0.5693522826 | N50: 0.6676721362 | O50: 0.7600100287 | P50: 0.8383698882 | Q50: 0.8985318453 | R50: 0.9405434334 | S50: 0.9674013166 | T50: 0.9832266229 | U50: 0.9918639995 | V50: 0.9963082152 | W50: 0.9984429555 | X50: 1 | Y50: 1
D51: =segments -> Handsets | E51: AMR, forecast | F51: % | H51: 0 | I51: 0.003154121864 | J51: 0.09050954539 | K51: 0.2475586428 | L51: 0.4280732987 | M51: =IF(AND(Sensitivity.3G.shutdown,M$3>=INDEX(Sensitivity.3G.shutdown.year,MATCH(operator.selected,Operators,0),)),$AB51,$K51+($AB51-$K51)*INDEX(curves.15Y,MATCH($AE51,curves,0),M$3-$K$3+1)) -> 0.598793188 | N51: 0.6980500431 | O51: 0.7894409764 | P51: 0.8648173871 | Q51: 0.9205047409 | R51: 0.9573570756 | S51: 0.9792024108 | T51: 0.9908018012 | U51: 0.9963186531 | V51: 0.9986689551 | W51: 0.9995658225 | X51: 1 | Y51: 1 | AB51: 1 | AE51: S-curve 2
D52: Tablets | E52: AMR, forecast | F52: % | H52: 0 | I52: 0 | J52: 0.1305855676 | K52: 0.3168058184 | L52: =IF(AND(Sensitivity.3G.shutdown,L$3>=INDEX(Sensitivity.3G.shutdown.year,MATCH(operator.selected,Operators,0),)),$AB52,$H52+($AB52-$H52)*INDEX(curves.15Y,MATCH($AE52,curves,0),L$3-$H$3+1)) -> 0.4142340635 | M52: 0.546437897 | N52: 0.6736447797 | O52: 0.7832843031 | P52: 0.8679315624 | Q52: 0.9264707404 | R52: 0.9627339708 | S52: 0.9828559261 | T52: 0.9928571893 | U52: 0.9973098251 | V52: 0.9990854587 | W52: 0.9997197067 | X52: 1 | Y52: 1 | AB52: 1 | AE52: S-curve 4
D53: Dongles/laptops | E53: AMR, forecast | F53: % | H53: 0 | I53: 0.03341288783 | J53: 0.1514219831 | K53: 0.2848615065 | L53: 0.4054994494 | M53: 0.5213374461 | N53: =IF(AND(Sensitivity.3G.shutdown,N$3>=INDEX(Sensitivity.3G.shutdown.year,MATCH(operator.selected,Operators,0),)),$AB53,$K53+($AB53-$K53)*INDEX(curves.15Y,MATCH($AE53,curves,0),N$3-$K$3+1)) -> 0.6139483337 | O53: 0.708401358 | P53: 0.795849174 | Q53: 0.8683715192 | R53: 0.9222460573 | S53: 0.958095521 | T53: 0.9794636827 | U53: 0.9908723402 | V53: 0.9963284337 | W53: 0.9986656851 | X53: 1 | Y53: 1 | AB53: 1 | AE53: S-curve 3
D54: M2M | E54: AMR, forecast | F54: % | H54: =H51 -> 0 | I54: =IF(AND(Sensitivity.3G.shutdown,I$3>=INDEX(Sensitivity.3G.shutdown.year,MATCH(operator.selected,Operators,0),)),$AB54,$H54+($AB54-$H54)*INDEX(curves.15Y,MATCH($AE54,curves,0),I$3-$H$3+1)) -> 0.01513014001 | J54: 0.03337650758 | K54: 0.06680720127 | L54: 0.1216725046 | M54: 0.202328381 | N54: 0.3085375387 | O54: 0.4338161674 | P54: 0.5661838326 | Q54: 0.6914624613 | R54: 0.797671619 | S54: 0.8783274954 | T54: 0.9331927987 | U54: 0.9666234924 | V54: 0.98486986 | W54: 0.9937903347 | X54: 1 | Y54: 1 | AB54: 1 | AE54: S-curve 6
B56: Susbcribers, EOP
C58: Voice only subscribers, EOP | F58: thousand | H58: =H36 -> 0 | I58: 5912 | J58: 5063 | K58: 2451.027943 | L58: 1419.330605 | M58: 678.2665989 | N58: 263.5555911 | O58: 82.39623449 | P58: 20.57000105 | Q58: 4.078406771 | R58: 0.63965026 | S58: 0 | T58: 0 | U58: 0 | V58: 0 | W58: 0 | X58: 0 | Y58: 0
C60: 3G subscribers by type, EOP | F60: thousand | H60: =SUM(H61:H64) -> 0 | I60: =SUM(I61:I64) -> 20866.23345 | J60: =SUM(J61:J64) -> 20331.35928 | K60: =SUM(K61:K64) -> 19581.68017 | L60: =SUM(L61:L64) -> 16535.66679 | M60: =SUM(M61:M64) -> 12916.19942 | N60: =SUM(N61:N64) -> 10445.39056 | O60: =SUM(O61:O64) -> 7847.245391 | P60: =SUM(P61:P64) -> 5480.680242 | Q60: =SUM(Q61:Q64) -> 3563.72426 | R60: =SUM(R61:R64) -> 2164.018651 | S60: =SUM(S61:S64) -> 1232.224369 | T60: =SUM(T61:T64) -> 659.7313257 | U60: =SUM(U61:U64) -> 332.1333539 | V60: =SUM(V61:V64) -> 156.9176384 | W60: =SUM(W61:W64) -> 69.05756566 | X60: =SUM(X61:X64) -> 0 | Y60: =SUM(Y61:Y64) -> 0
D61: =segments -> Handsets | F61: thousand | H61: =H40-H67 -> 0 | I61: 15142.08889 | J61: 14726.46944 | K61: 14559.67115 | L61: 11973.24917 | M61: 8921.554142 | N61: 7011.208931 | O61: 5048.360251 | P61: 3328.126898 | Q61: 2005.192566 | R61: 1101.110288 | S61: 549.5178987 | T61: 248.6042829 | U61: 100.7476565 | V61: 36.87662539 | W61: 12.17475234 | X61: 0 | Y61: 0
D62: Tablets | F62: thousand | H62: =H41-H68 -> 0 | I62: 549.1 | J62: 886.0637188 | K62: 898.3523203 | L62: 954.4948508 | M62: 878.0312598 | N62: 719.3863035 | O62: 537.4832132 | P62: 363.7034608 | Q62: 220.2744508 | R62: 119.7576165 | S62: 58.90249552 | T62: 25.9353807 | U62: 10.27511818 | V62: 3.668910599 | W62: 1.170347852 | X62: 0 | Y62: 0
D63: Dongles/laptops | F63: thousand | H63: =H42-H69 -> 0 | I63: 4776.77685 | J63: 4222.396925 | K63: 3514.996266 | L63: 2883.759664 | M63: 2289.275282 | N63: 1818.643158 | O63: 1351.639208 | P63: 930.0695907 | Q63: 588.697321 | R63: 340.9578515 | S63: 179.928443 | T63: 86.22061954 | U63: 37.83337005 | V63: 15.01122788 | W63: 5.376202847 | X63: 0 | Y63: 0
D64: M2M | F64: thousand | H64: =H43-H70 -> 0 | I64: 398.2677101 | J64: 496.4291978 | K64: 608.6604332 | L64: 724.1631029 | M64: 827.3387331 | N64: 896.1521689 | O64: 909.7627187 | P64: 858.7802917 | Q64: 749.5599223 | R64: 602.1928948 | S64: 443.8755316 | T64: 298.9710425 | U64: 183.2772092 | V64: 101.3608746 | W64: 50.33626262 | X64: 0 | Y64: 0
C66: LTE subscribers by type, EOP | F66: thousand | H66: =SUM(H67:H70) -> 0 | I66: =SUM(I67:I70) -> 219.1526802 | J66: =SUM(J67:J70) -> 2369.211101 | K66: =SUM(K67:K70) -> 6650.518715 | L66: =SUM(L67:L70) -> 11703.95762 | M66: =SUM(M67:M70) -> 17076.29537 | N66: =SUM(N67:N70) -> 20985.58981 | O66: =SUM(O67:O70) -> 24850.97674 | P66: =SUM(P67:P70) -> 28428.10186 | Q66: =SUM(Q67:Q70) -> 31557.87886 | R66: =SUM(R67:R70) -> 34232.61126 | S66: =SUM(S67:S70) -> 36567.59579 | T66: =SUM(T67:T70) -> 38672.31974 | U66: =SUM(U67:U70) -> 40490.5476 | V66: =SUM(V67:V70) -> 42347.62923 | W66: =SUM(W67:W70) -> 44282.6399 | X66: =SUM(X67:X70) -> 46388.49105 | Y66: =SUM(Y67:Y70) -> 48614.55591
D67: =segments -> Handsets | F67: thousand | H67: =H51*H40 -> 0 | I67: 47.91111111 | J67: 1465.530559 | K67: 4790.237 | L67: 8961.687323 | M67: 13315.24213 | N67: 16208.56232 | O67: 18927.62598 | P67: 21291.36246 | Q67: 23218.85965 | R67: 24720.53078 | S67: 25872.67429 | T67: 26778.89191 | U67: 27266.31657 | V67: 27668.14401 | W67: 28028.78125 | X67: 28374.49736 | Y67: 28704.90923
D68: Tablets | F68: thousand | H68: =H52*H41 -> 0 | I68: 0 | J68: 133.0862812 | K68: 416.5773797 | L68: 674.9868097 | M68: 1057.825493 | N68: 1484.918266 | O68: 1942.647303 | P68: 2390.197981 | Q68: 2775.464279 | R68: 3093.829104 | S68: 3376.832556 | T68: 3605.041508 | U68: 3809.22311 | V68: 4008.080643 | W68: 4174.269983 | X68: 4319.735405 | Y68: 4432.476
D69: Dongles/laptops | F69: thousand | H69: =H53*H42 -> 0 | I69: 165.1231504 | J69: 753.4530746 | K69: 1400.130382 | L69: 1966.966985 | M69: 2493.374339 | N69: 2892.23706 | O69: 3283.633435 | P69: 3625.726774 | Q69: 3883.718661 | R69: 4044.129765 | S69: 4113.847476 | T69: 4112.225391 | U69: 4107.081212 | V69: 4073.496672 | W69: 4023.809708 | X69: 3966.92002 | Y69: 3901.638148
D70: M2M | F70: thousand | H70: =H54*H43 -> 0 | I70: 6.118418747 | J70: 17.1411858 | K70: 43.57395398 | L70: 100.316498 | M70: 209.8534063 | N70: 399.872155 | O70: 697.0700206 | P70: 1120.814653 | Q70: 1679.836272 | R70: 2374.121609 | S70: 3204.241462 | T70: 4176.160932 | U70: 5307.926707 | V70: 6597.907903 | W70: 8055.778959 | X70: 9727.338265 | Y70: 11575.53254
C72: Penetration - all devices combined, EOP | H72: =(H58+H60+H66)/H8 -> 0 | I72: =(I58+I60+I66)/I8 -> 1.199238904 | J72: 1.212044249 | K72: 1.234267761 | L72: 1.258208867 | M72: 1.282954667 | N72: 1.30747618 | O72: 1.33386751 | P72: 1.362076575 | Q72: 1.391447608 | R72: 1.423034779 | S72: 1.458921474 | T72: 1.498918446 | U72: 1.536422067 | V72: 1.580207568 | W72: 1.629125925 | X72: 1.683911619 | Y72: 1.744405188
B74: Susbcribers, AOP
C76: Voice only subscribers, AOP | F76: thousand | I76: =AVERAGE(H58:I58) -> 2956 | J76: 5487.5 | K76: 3757.013972 | L76: 1935.179274 | M76: 1048.798602 | N76: 470.911095 | O76: 172.9759128 | P76: 51.48311777 | Q76: 12.32420391 | R76: 2.359028516 | S76: 0.31982513 | T76: 0 | U76: 0 | V76: 0 | W76: 0 | X76: 0 | Y76: 0
C78: 3G subscribers by type, AOP | F78: thousand | I78: =SUM(I79:I82) -> 10433.11672 | J78: =SUM(J79:J82) -> 20598.79637 | K78: =SUM(K79:K82) -> 19956.51973 | L78: =SUM(L79:L82) -> 18058.67348 | M78: =SUM(M79:M82) -> 14725.9331 | N78: =SUM(N79:N82) -> 11680.79499 | O78: =SUM(O79:O82) -> 9146.317976 | P78: =SUM(P79:P82) -> 6663.962816 | Q78: =SUM(Q79:Q82) -> 4522.202251 | R78: =SUM(R79:R82) -> 2863.871455 | S78: =SUM(S79:S82) -> 1698.12151 | T78: =SUM(T79:T82) -> 945.9778472 | U78: =SUM(U79:U82) -> 495.9323398 | V78: =SUM(V79:V82) -> 244.5254962 | W78: =SUM(W79:W82) -> 112.9876021 | X78: =SUM(X79:X82) -> 0 | Y78: =SUM(Y79:Y82) -> 0
D79: =segments -> Handsets | F79: thousand | I79: =IF(I61=0,0,AVERAGE(H61:I61)) -> 7571.044444 | J79: =IF(J61=0,0,AVERAGE(I61:J61)) -> 14934.27916 | K79: 14643.0703 | L79: 13266.46016 | M79: 10447.40166 | N79: 7966.381537 | O79: 6029.784591 | P79: 4188.243575 | Q79: 2666.659732 | R79: 1553.151427 | S79: 825.3140932 | T79: 399.0610908 | U79: 174.6759697 | V79: 68.81214097 | W79: 24.52568887 | X79: 0 | Y79: 0
D80: Tablets | F80: thousand | I80: =IF(I62=0,0,AVERAGE(H62:I62)) -> 274.55 | J80: 717.5818594 | K80: 892.2080196 | L80: 926.4235856 | M80: 916.2630553 | N80: 798.7087816 | O80: 628.4347583 | P80: 450.593337 | Q80: 291.9889558 | R80: 170.0160336 | S80: 89.33005601 | T80: 42.41893811 | U80: 18.10524944 | V80: 6.972014387 | W80: 2.419629226 | X80: 0 | Y80: 0
D81: Dongles/laptops | F81: thousand | I81: =IF(I63=0,0,AVERAGE(H63:I63)) -> 2388.388425 | J81: 4499.586888 | K81: 3868.696596 | L81: 3199.377965 | M81: 2586.517473 | N81: 2053.95922 | O81: 1585.141183 | P81: 1140.854399 | Q81: 759.3834558 | R81: 464.8275863 | S81: 260.4431472 | T81: 133.0745312 | U81: 62.02699479 | V81: 26.42229896 | W81: 10.19371536 | X81: 0 | Y81: 0
D82: M2M | F82: thousand | I82: =IF(I64=0,0,AVERAGE(H64:I64)) -> 199.133855 | J82: 447.3484539 | K82: 552.5448155 | L82: 666.411768 | M82: 775.750918 | N82: 861.745451 | O82: 902.9574438 | P82: 884.2715052 | Q82: 804.170107 | R82: 675.8764086 | S82: 523.0342132 | T82: 371.423287 | U82: 241.1241258 | V82: 142.3190419 | W82: 75.8485686 | X82: 0 | Y82: 0
C84: LTE subscribers by type, AOP | F84: thousand | I84: =SUM(I85:I88) -> 109.5763401 | J84: =SUM(J85:J88) -> 1294.18189 | K84: 4509.864908 | L84: 9177.238166 | M84: 14390.12649 | N84: 19030.94259 | O84: 22918.28327 | P84: 26639.5393 | Q84: 29992.99036 | R84: 32895.24506 | S84: 35400.10352 | T84: 37619.95776 | U84: 39581.43367 | V84: 41419.08842 | W84: 43315.13456 | X84: 45335.56548 | Y84: 47501.52348
D85: =segments -> Handsets | F85: thousand | I85: =AVERAGE(H67:I67) -> 23.95555556 | J85: 756.7208351 | K85: 3127.88378 | L85: 6875.962162 | M85: 11138.46473 | N85: =AVERAGE(M67:N67) -> 14761.90223 | O85: 17568.09415 | P85: 20109.49422 | Q85: 22255.11105 | R85: 23969.69521 | S85: 25296.60254 | T85: 26325.7831 | U85: 27022.60424 | V85: 27467.23029 | W85: 27848.46263 | X85: 28201.63931 | Y85: 28539.7033
D86: Tablets | F86: thousand | I86: =AVERAGE(H68:I68) -> 0 | J86: 66.54314059 | K86: 274.8318304 | L86: 545.7820947 | M86: 866.4061512 | N86: 1271.37188 | O86: 1713.782785 | P86: 2166.422642 | Q86: 2582.83113 | R86: 2934.646691 | S86: 3235.33083 | T86: 3490.937032 | U86: 3707.132309 | V86: 3908.651876 | W86: 4091.175313 | X86: 4247.002694 | Y86: 4376.105703
D87: Dongles/laptops | F87: thousand | I87: =AVERAGE(H69:I69) -> 82.56157518 | J87: 459.2881125 | K87: 1076.791728 | L87: 1683.548683 | M87: 2230.170662 | N87: 2692.805699 | O87: 3087.935247 | P87: 3454.680104 | Q87: 3754.722717 | R87: 3963.924213 | S87: 4078.988621 | T87: 4113.036433 | U87: 4109.653301 | V87: 4090.288942 | W87: 4048.65319 | X87: 3995.364864 | Y87: 3934.279084
D88: M2M | F88: thousand | I88: =AVERAGE(H70:I70) -> 3.059209374 | J88: =AVERAGE(I70:J70) -> 11.62980228 | K88: =AVERAGE(J70:K70) -> 30.35756989 | L88: =AVERAGE(K70:L70) -> 71.94522599 | M88: =AVERAGE(L70:M70) -> 155.0849522 | N88: =AVERAGE(M70:N70) -> 304.8627807 | O88: =AVERAGE(N70:O70) -> 548.4710878 | P88: =AVERAGE(O70:P70) -> 908.9423366 | Q88: =AVERAGE(P70:Q70) -> 1400.325462 | R88: =AVERAGE(Q70:R70) -> 2026.97894 | S88: =AVERAGE(R70:S70) -> 2789.181535 | T88: =AVERAGE(S70:T70) -> 3690.201197 | U88: =AVERAGE(T70:U70) -> 4742.04382 | V88: =AVERAGE(U70:V70) -> 5952.917305 | W88: =AVERAGE(V70:W70) -> 7326.843431 | X88: =AVERAGE(W70:X70) -> 8891.558612 | Y88: =AVERAGE(X70:Y70) -> 10651.4354
A91: Voice subscribers
B93: Voice traffic
C95: Number of handsets | F95: AOP, thousand | H95: =AVERAGE(G12:H12) -> 20657 | I95: 20879.5 | J95: 21178.5 | K95: 21527.96805 | L95: 22077.6016 | M95: 22634.66498 | N95: 23199.19486 | O95: 23770.85466 | P95: 24349.22091 | Q95: 24934.09499 | R95: 25525.20567 | S95: 26122.23645 | T95: 26724.84419 | U95: 27197.28021 | V95: 27536.04243 | W95: 27872.98832 | X95: 28207.72668 | Y95: 28539.7033
C97: Average monthly voice traffic per handset
D98: Total outgoing | F98: minutes | H98: 140.4133173 | I98: 157.0991283 | J98: 165.6509021 | K98: =J98*(1+K99) -> 173.0367528 | L98: =K98*(1+L99) -> 179.9003881 | M98: 186.0147587 | N98: 191.2452414 | O98: 195.5836444 | P98: 199.1391221 | Q98: 202.092611 | R98: 204.6397374 | S98: 206.9472623 | T98: 209.1341055 | U98: 211.2731573 | V98: 213.4034052 | W98: 215.5432405 | X98: 217.7004044 | Y98: 219.8774084
D99: Annual growth of total outgoing | F99: % | I99: =I98/H98-1 -> 0.1188335359 | J99: =J98/I98-1 -> 0.05443552678 | K99: =$J99+($Y99-$J99)*INDEX(curves.15Y,MATCH($AE99,curves,0),K$3-$J$3+1) -> 0.04458684269 | L99: 0.03966576589 | M99: 0.03398753432 | N99: 0.02811864329 | O99: 0.02268502476 | P99: 0.01817880863 | Q99: 0.01483128434 | R99: 0.01260375804 | S99: 0.01127603546 | T99: 0.0105671522 | U99: 0.01022813481 | V99: 0.0100829084 | W99: 0.01002718448 | X99: 0.01000803285 | Y99: 0.01 | AE99: S-curve 3
D101: Outgoing on-net as a proportion of total outgoing | H101: 0.5
D102: Incoming as a proportion of total outgoing | H102: 0.5
D104: Outgoing on-net | F104: minutes | H104: =H98*$H$101 -> 70.20665865 | I104: =I98*$H$101 -> 78.54956413 | J104: 82.82545104 | K104: 86.51837639 | L104: 89.95019406 | M104: 93.00737936 | N104: 95.62262069 | O104: 97.79182221 | P104: 99.56956103 | Q104: 101.0463055 | R104: 102.3198687 | S104: 103.4736312 | T104: 104.5670528 | U104: 105.6365787 | V104: 106.7017026 | W104: 107.7716203 | X104: 108.8502022 | Y104: 109.9387042
D105: Outgoing off-net | F105: minutes | H105: =H98-H104 -> 70.20665865 | I105: =I98-I104 -> 78.54956413 | J105: =J98-J104 -> 82.82545104 | K105: 86.51837639 | L105: 89.95019406 | M105: 93.00737936 | N105: 95.62262069 | O105: 97.79182221 | P105: 99.56956103 | Q105: 101.0463055 | R105: 102.3198687 | S105: 103.4736312 | T105: 104.5670528 | U105: 105.6365787 | V105: 106.7017026 | W105: 107.7716203 | X105: 108.8502022 | Y105: 109.9387042
D106: Incoming | F106: minutes | H106: =H98*$H$102 -> 70.20665865 | I106: =I98*$H$102 -> 78.54956413 | J106: 82.82545104 | K106: 86.51837639 | L106: 89.95019406 | M106: 93.00737936 | N106: 95.62262069 | O106: 97.79182221 | P106: 99.56956103 | Q106: 101.0463055 | R106: 102.3198687 | S106: 103.4736312 | T106: 104.5670528 | U106: 105.6365787 | V106: 106.7017026 | W106: 107.7716203 | X106: 108.8502022 | Y106: 109.9387042
C108: Radio minutes per minute of traffic
D109: =$D$104:$D$106 -> Outgoing on-net | F109: # | H109: 2
D110: Outgoing off-net | F110: # | H110: 1
D111: Incoming | F111: # | H111: 1
C113: Average annual radio voice traffic per handset | F113: minutes | H113: =SUMPRODUCT(H104:H106,$H109:$H111)*12 -> 3369.919615 | I113: =SUMPRODUCT(I104:I106,$H109:$H111)*12 -> 3770.379078 | J113: 3975.62165 | K113: 4152.882067 | L113: 4317.609315 | M113: 4464.354209 | N113: 4589.885793 | O113: 4694.007466 | P113: 4779.338929 | Q113: 4850.222664 | R113: 4911.353697 | S113: 4966.734295 | T113: 5019.218532 | U113: 5070.555776 | V113: 5121.681726 | W113: 5173.037773 | X113: 5224.809705 | Y113: 5277.057802
C115: Total annual radio voice traffic | F115: million minutes | H115: =H95*thousand*H113/million -> 69612.42949 | I115: =I95*thousand*I113/million -> 78723.62997 | J115: =J95*J113*thousand/million -> 84197.70311 | K115: 89403.11244 | L115: 95322.4583 | M115: 101049.1619 | N115: 106481.6549 | O115: 111580.5692 | P115: 116373.1794 | Q115: 120935.9126 | R115: 125363.3132 | S115: 129742.2077 | T115: 134137.8332 | U115: 137905.3263 | V115: 141030.8453 | W115: 144188.0214 | X115: 147380.0041 | Y115: 150605.6639
C117: Split of voice traffic between 2G and 3G
D118: 2G | F118: % | H118: 0.2776524525 | I118: 0.2109025197 | J118: 0.1527975517 | K118: =IF(Sensitivity.2G.shutdown,IF(K3>=INDEX(Sensitivity.2G.shutdown.year,MATCH(operator.selected,Operators,0),),0%,$J118+(0%-$J118)*INDEX(curves.15Y,MATCH($AE118,curves,0),K$3-$J$3+1)),$J118+(5%-$J118)*INDEX(curves.15Y,MATCH($AE118,curves,0),K$3-$J$3+1)) -> 0.1010815213 | L118: 0.08147268624 | M118: 0.06131669095 | N118: 0.04275802092 | O118: 0.02745140479 | P118: 0.01614302675 | Q118: 0 | R118: 0 | S118: 0 | T118: 0 | U118: 0 | V118: 0 | W118: 0 | X118: 0 | Y118: 0 | AE118: S-curve 2
D119: 3G | F119: % | H119: 0.7223475475 | I119: 0.7890974803 | J119: 0.8130577144 | K119: =1-K118-K120 -> 0.8186151814 | L119: =1-L118-L120 -> 0.796285743 | M119: 0.7513005627 | N119: 0.6792259982 | O119: 0.5815769974 | P119: 0.4667846063 | Q119: 0.3568268639 | R119: 0.243871247 | S119: 0.1532380125 | T119: 0.0880968369 | U119: 0.04615856341 | V119: 0.02197333475 | W119: 0.009480186845 | X119: 0 | Y119: 0
D120: LTE | F120: % | H120: 0 | I120: 0 | J120: 0.03414473387 | K120: =IF(AND(Sensitivity.2G.shutdown,Sensitivity.3G.shutdown), IF(AND(K$3>=INDEX(Sensitivity.2G.shutdown.year,MATCH(operator.selected,Operators,0),),K$3>=INDEX(Sensitivity.3G.shutdown.year,MATCH(operator.selected,Operators,0),)),100%,$J120+(100%-$J120)*INDEX(curves.15Y,MATCH($AE120,curves,0),K$3-$J$3+1)), IF(Sensitivity.2G.shutdown, IF(K$3>=INDEX(Sensitivity.2G.shutdown.year,MATCH(operator.selected,Operators,0),),70%,$J120+(70%-$J120)*INDEX(curves.15Y,MATCH($AE120,curves,0),K$3-$J$3+1)), $J120+(65%-$J120)*INDEX(curves.15Y,MATCH($AE120,curves,0),K$3-$J$3+1))) -> 0.08030329729 | L120: 0.1222415708 | M120: 0.1873827464 | N120: 0.2780159809 | O120: 0.3909715978 | P120: 0.5170723669 | Q120: 0.6431731361 | R120: 0.756128753 | S120: 0.8467619875 | T120: 0.9119031631 | U120: 0.9538414366 | V120: 0.9780266653 | W120: 0.9905198132 | X120: 1 | Y120: 1 | AE120: S-curve 5
C122: Total annual radio voice traffic per network technology
D123: 2G | F123: million minutes | H123: =H$115*H118 -> 19328.06177 | I123: 16603.01192 | J123: =J$115*J118 -> 12865.20289 | K123: 9037.002614 | L123: 7766.176736 | M123: 6196.000231 | N123: 4552.944828 | O123: 3063.043373 | P123: 1878.615349 | Q123: 0 | R123: 0 | S123: 0 | T123: 0 | U123: 0 | V123: 0 | W123: 0 | X123: 0 | Y123: 0 | Z123: Traffic.2G.total.voice
D124: 3G | F124: million minutes | H124: 50284.36772 | I124: 62120.61805 | J124: =J$115*J119 -> 68457.59205 | K124: 73186.74511 | L124: 75903.91453 | M124: 75918.29219 | N124: 72325.10833 | O124: 64892.69242 | P124: 54321.20873 | Q124: 43153.18244 | R124: 30572.50753 | S124: 19881.43804 | T124: 11817.11882 | U124: 6365.511747 | V124: 3098.917974 | W124: 1366.929384 | X124: 0 | Y124: 0 | Z124: Traffic.3G.total.voice
D125: LTE | F125: million minutes | H125: 0 | I125: 0 | J125: 2874.908165 | K125: 7179.364717 | L125: 11652.36703 | M125: 18934.86948 | N125: 29603.60173 | O125: 43624.83344 | P125: 60173.35532 | Q125: 77782.73018 | R125: 94790.80569 | S125: 109860.7696 | T125: 122320.7144 | U125: 131539.8145 | V125: 137931.9274 | W125: 142821.092 | X125: 147380.0041 | Y125: 150605.6639 | Z125: Traffic.LTE.total.voice
C127: Total monthly voice traffic | I127: =SUM(I128:I130) -> 4920.226873 | J127: =SUM(J128:J130) -> 5262.356444 | K127: 5587.694528 | L127: 5957.653644 | M127: 6315.572619 | N127: 6655.103431 | O127: 6973.785577 | P127: 7273.323713 | Q127: 7558.494539 | R127: 7835.207076 | S127: 8108.887979 | T127: 8383.614578 | U127: 8619.082892 | V127: 8814.427833 | W127: 9011.751339 | X127: 9211.250258 | Y127: 9412.853997
D128: Outgoing on-net | F128: million minutes | I128: =I$95*thousand*I104/million -> 1640.075624 | J128: 1754.118815 | K128: 1862.564843 | L128: 1985.884548 | M128: 2105.190873 | N128: 2218.36781 | O128: 2324.595192 | P128: 2424.441238 | Q128: 2519.49818 | R128: 2611.735692 | S128: 2702.96266 | T128: 2794.538193 | U128: 2873.027631 | V128: 2938.142611 | W128: 3003.917113 | X128: 3070.416753 | Y128: 3137.617999
D129: Outgoing off-net | F129: million minutes | I129: =I$95*thousand*I105/million -> 1640.075624 | J129: 1754.118815 | K129: 1862.564843 | L129: 1985.884548 | M129: 2105.190873 | N129: 2218.36781 | O129: 2324.595192 | P129: 2424.441238 | Q129: 2519.49818 | R129: 2611.735692 | S129: 2702.96266 | T129: 2794.538193 | U129: 2873.027631 | V129: 2938.142611 | W129: 3003.917113 | X129: 3070.416753 | Y129: 3137.617999
D130: Incoming | F130: million minutes | I130: =I$95*thousand*I106/million -> 1640.075624 | J130: 1754.118815 | K130: 1862.564843 | L130: 1985.884548 | M130: 2105.190873 | N130: 2218.36781 | O130: 2324.595192 | P130: 2424.441238 | Q130: 2519.49818 | R130: 2611.735692 | S130: 2702.96266 | T130: 2794.538193 | U130: 2873.027631 | V130: 2938.142611 | W130: 3003.917113 | X130: 3070.416753 | Y130: 3137.617999
D131: Radio legs | F131: million minutes | I131: =I95*thousand*SUMPRODUCT(I104:I106,$H109:$H111)/million -> 6560.302497 | J131: 7016.475259 | K131: 7450.25937 | L131: 7943.538191 | M131: 8420.763492 | N131: 8873.471241 | O131: 9298.380769 | P131: 9697.764951 | Q131: 10077.99272 | R131: 10446.94277 | S131: 10811.85064 | T131: 11178.15277 | U131: 11492.11052 | V131: 11752.57044 | W131: 12015.66845 | X131: 12281.66701 | Y131: 12550.472
Z132: Traffic.total.voice
A133: 3G data subscribers
B135: Data traffic
C137: Number of 3G devices | F137: AOP, thousand | I137: =SUM(I138:I140) -> 10233.98287 | J137: =SUM(J138:J140) -> 20151.44791 | K137: =SUM(K138:K140) -> 19403.97491 | L137: =SUM(L138:L140) -> 17392.26171 | M137: =SUM(M138:M140) -> 13950.18218 | N137: =SUM(N138:N140) -> 10819.04954 | O137: =SUM(O138:O140) -> 8243.360532 | P137: =SUM(P138:P140) -> 5779.691311 | Q137: =SUM(Q138:Q140) -> 3718.032144 | R137: =SUM(R138:R140) -> 2187.995047 | S137: =SUM(S138:S140) -> 1175.087296 | T137: =SUM(T138:T140) -> 574.5545602 | U137: =SUM(U138:U140) -> 254.808214 | V137: =SUM(V138:V140) -> 102.2064543 | W137: =SUM(W138:W140) -> 37.13903346 | X137: =SUM(X138:X140) -> 0 | Y137: =SUM(Y138:Y140) -> 0
D138: =segments -> Handsets | F138: AOP, thousand | I138: =I79 -> 7571.044444 | J138: 14934.27916 | K138: 14643.0703 | L138: 13266.46016 | M138: 10447.40166 | N138: 7966.381537 | O138: 6029.784591 | P138: 4188.243575 | Q138: 2666.659732 | R138: 1553.151427 | S138: 825.3140932 | T138: 399.0610908 | U138: 174.6759697 | V138: 68.81214097 | W138: =W79 -> 24.52568887 | X138: 0 | Y138: 0
D139: Tablets | F139: AOP, thousand | I139: =I80 -> 274.55 | J139: 717.5818594 | K139: 892.2080196 | L139: 926.4235856 | M139: 916.2630553 | N139: 798.7087816 | O139: 628.4347583 | P139: 450.593337 | Q139: 291.9889558 | R139: 170.0160336 | S139: 89.33005601 | T139: 42.41893811 | U139: 18.10524944 | V139: 6.972014387 | W139: 2.419629226 | X139: 0 | Y139: 0
D140: Dongles/laptops | F140: AOP, thousand | I140: =I81 -> 2388.388425 | J140: 4499.586888 | K140: 3868.696596 | L140: 3199.377965 | M140: 2586.517473 | N140: 2053.95922 | O140: 1585.141183 | P140: 1140.854399 | Q140: 759.3834558 | R140: 464.8275863 | S140: 260.4431472 | T140: 133.0745312 | U140: 62.02699479 | V140: 26.42229896 | W140: 10.19371536 | X140: 0 | Y140: 0
D141: M2M | F141: AOP, thousand | I141: =I82 -> 199.133855 | J141: 447.3484539 | K141: 552.5448155 | L141: 666.411768 | M141: 775.750918 | N141: 861.745451 | O141: 902.9574438 | P141: 884.2715052 | Q141: 804.170107 | R141: 675.8764086 | S141: 523.0342132 | T141: 371.423287 | U141: 241.1241258 | V141: 142.3190419 | W141: 75.8485686 | X141: 0 | Y141: 0
C143: Average monthly traffic per 3G device before demand sensitivity | I143: =IF(I$137=0,0,SUMPRODUCT(I144:I146,I$138:I$140)/I$137) -> 544.1398958 | J143: =IF(J$171=0,0,SUMPRODUCT(J144:J146,J$172:J$174)/J$171) -> 944.2416505 | K143: 1036.210378 | L143: 1181.608042 | M143: 1323.457744 | N143: 1466.251929 | O143: 1732.472136 | P143: 2006.065858 | Q143: 2256.067268 | R143: 2458.624264 | S143: 2603.491864 | T143: 2693.153592 | U143: 2744.148692 | V143: 2770.787514 | W143: 2779.137864 | X143: 2777.259881 | Y143: 2771.33077
D144: =segments -> Handsets | F144: MB | H144: 196.3367647 | I144: 333.0230027 | J144: 381.989687 | K144: 599.04 | L144: 808.96 | M144: 957.44 | N144: =$J144+($Y144-$J144)*INDEX(curves.15Y,MATCH($AE144,curves,0),N$3-$J$3+1) -> 1052.224674 | O144: 1266.13184 | P144: 1471.953888 | Q144: 1649.351767 | R144: 1786.311906 | S144: 1881.0289 | T144: 1939.70318 | U144: 1972.260712 | V144: 1988.442859 | W144: 1995.647269 | X144: 1998.520263 | Y144: 2000 | AE144: S-curve 4
D145: Tablets | F145: MB | I145: 500 | J145: 793.6 | K145: 1044.48 | L145: 1198.08 | M145: 1356.8 | N145: 1603.192072 | O145: 1978.176713 | P145: 2396.8 | Q145: 2815.423287 | R145: 3190.407928 | S145: 3491.287794 | T145: 3707.540345 | U145: 3846.765014 | V145: 3927.053977 | W145: 3968.52813 | X145: 3987.718268 | Y145: 4000 | AE145: S-curve 5
D146: Dongles/laptops | F146: MB | H146: 1189.239192 | I146: 1218.441434 | J146: 1892.430668 | K146: 2304 | L146: 2698.24 | M146: 3138.56 | N146: =$K146+($Y146-$K146)*INDEX(curves.15Y,MATCH($AE146,curves,0),N$3-$K$3+1) -> 3671.285889 | O146: 4249.243162 | P146: 4870.072364 | Q146: 5467.435886 | R146: 5982.303088 | S146: 6379.806617 | T146: 6654.706597 | U146: 6824.998727 | V146: 6919.491429 | W146: 6966.457361 | X146: 6987.366939 | Y146: 7000 | AE146: S-curve 4
D147: M2M | F147: MB | H147: =H144*0.1 -> 19.63367647 | I147: =I144*0.1 -> 33.30230027 | J147: 38.1989687 | K147: 59.904 | L147: 80.896 | M147: 95.744 | N147: 105.2224674 | O147: 126.613184 | P147: 147.1953888 | Q147: 164.9351767 | R147: 178.6311906 | S147: 188.10289 | T147: 193.970318 | U147: 197.2260712 | V147: 198.8442859 | W147: 199.5647269 | X147: 199.8520263 | Y147: 200
J148: =J149/J143-1 -> 0 | K148: =K149/K143-1 -> 0 | L148: =L149/L143-1 -> 0 | M148: 0 | N148: 0 | O148: 0 | P148: 0 | Q148: 0 | R148: 0 | S148: 0 | T148: 0 | U148: 0 | V148: 0 | W148: 0 | X148: 0 | Y148: 0
C149: Average monthly traffic per 3G device after demand sensitivity | I149: =IF(I$137=0,0,SUMPRODUCT(I150:I152,I$138:I$140)/I$137) -> 544.1398958 | J149: =IF(J$171=0,0,SUMPRODUCT(J150:J152,J$172:J$174)/J$171) -> 944.2416505 | K149: 1036.210378 | L149: 1181.608042 | M149: 1323.457744 | N149: 1466.251929 | O149: 1732.472136 | P149: 2006.065858 | Q149: 2256.067268 | R149: 2458.624264 | S149: 2603.491864 | T149: 2693.153592 | U149: 2744.148692 | V149: 2770.787514 | W149: 2779.137864 | X149: 2777.259881 | Y149: 2771.33077
D150: =segments -> Handsets | F150: MB | H150: =H144 -> 196.3367647 | I150: =I144 -> 333.0230027 | J150: =J144 -> 381.989687 | K150: =K144 -> 599.04 | L150: =$K150+($R150-$K150)*((L144-$K144)/($R144-$K144)) -> 808.96 | M150: =$K150+($R150-$K150)*((M144-$K144)/($R144-$K144)) -> 957.44 | N150: 1052.224674 | O150: 1266.13184 | P150: 1471.953888 | Q150: 1649.351767 | R150: =R144*(1+sensitivity.traffic.selected) -> 1786.311906 | S150: =$K150+($R150-$K150)*((S144-$K144)/($R144-$K144)) -> 1881.0289 | T150: 1939.70318 | U150: 1972.260712 | V150: 1988.442859 | W150: 1995.647269 | X150: 1998.520263 | Y150: 2000
D151: Tablets | F151: MB | I151: =I145 -> 500 | J151: 793.6 | K151: 1044.48 | L151: =$K151+($R151-$K151)*((L145-$K145)/($R145-$K145)) -> 1198.08 | M151: =$K151+($R151-$K151)*((M145-$K145)/($R145-$K145)) -> 1356.8 | N151: 1603.192072 | O151: 1978.176713 | P151: 2396.8 | Q151: 2815.423287 | R151: =R145*(1+sensitivity.traffic.selected) -> 3190.407928 | S151: =$K151+($R151-$K151)*((S145-$K145)/($R145-$K145)) -> 3491.287794 | T151: 3707.540345 | U151: 3846.765014 | V151: 3927.053977 | W151: 3968.52813 | X151: 3987.718268 | Y151: 4000
D152: Dongles/laptops | F152: MB | H152: =H146 -> 1189.239192 | I152: 1218.441434 | J152: 1892.430668 | K152: 2304 | L152: =$K152+($R152-$K152)*((L146-$K146)/($R146-$K146)) -> 2698.24 | M152: 3138.56 | N152: 3671.285889 | O152: 4249.243162 | P152: 4870.072364 | Q152: 5467.435886 | R152: =R146*(1+sensitivity.traffic.selected) -> 5982.303088 | S152: =$K152+($R152-$K152)*((S146-$K146)/($R146-$K146)) -> 6379.806617 | T152: 6654.706597 | U152: 6824.998727 | V152: 6919.491429 | W152: 6966.457361 | X152: 6987.366939 | Y152: 7000
D153: M2M | F153: MB | H153: 19.63367647 | I153: 33.30230027 | J153: 38.1989687 | K153: 59.904 | L153: =$K153+($R153-$K153)*((L147-$K147)/($R147-$K147)) -> 80.896 | M153: 95.744 | N153: 105.2224674 | O153: 126.613184 | P153: 147.1953888 | Q153: 164.9351767 | R153: =R147*(1+sensitivity.traffic.selected) -> 178.6311906 | S153: =$K153+($R153-$K153)*((S147-$K147)/($R147-$K147)) -> 188.10289 | T153: 193.970318 | U153: 197.2260712 | V153: 198.8442859 | W153: 199.5647269 | X153: 199.8520263 | Y153: 200
C155: Average annual traffic per 3G device | F155: MB | H155: Average excluding M2M | I155: =IF(I$137=0,0,SUMPRODUCT(I156:I158,I$138:I$140)/I$137) -> 6529.67875 | J155: =IF(J$137=0,0,SUMPRODUCT(J156:J158,J$138:J$140)/J$137) -> 8806.932307 | K155: 11513.40711 | L155: 14126.73414 | M155: 16656.8889 | N155: 19081.43029 | O155: 22728.55717 | P155: 26577.73846 | Q155: 30248.94603 | R155: 33441.97456 | S155: 36006.4501 | T155: 37947.35077 | U155: 39440.83309 | V155: 40745.45319 | W155: 41862.50272 | X155: 0 | Y155: 0
D156: =segments -> Handsets | F156: MB | I156: =I150*month -> 3996.276032 | J156: 4583.876243 | K156: 7188.48 | L156: 9707.52 | M156: 11489.28 | N156: 12626.69609 | O156: 15193.58208 | P156: 17663.44665 | Q156: 19792.22121 | R156: 21435.74287 | S156: 22572.3468 | T156: 23276.43817 | U156: 23667.12854 | V156: 23861.3143 | W156: 23947.76723 | X156: 23982.24315 | Y156: 24000
D157: Tablets | F157: MB | I157: =I151*month -> 6000 | J157: 9523.2 | K157: 12533.76 | L157: 14376.96 | M157: 16281.6 | N157: 19238.30487 | O157: 23738.12056 | P157: 28761.6 | Q157: 33785.07944 | R157: 38284.89513 | S157: 41895.45353 | T157: 44490.48414 | U157: 46161.18017 | V157: 47124.64772 | W157: 47622.33756 | X157: 47852.61921 | Y157: 48000
D158: Dongles/laptops | F158: MB | I158: =I152*month -> 14621.29721 | J158: 22709.16801 | K158: 27648 | L158: 32378.88 | M158: 37662.72 | N158: 44055.43067 | O158: 50990.91795 | P158: 58440.86837 | Q158: 65609.23063 | R158: 71787.63705 | S158: 76557.6794 | T158: 79856.47916 | U158: 81899.98472 | V158: 83033.89715 | W158: 83597.48833 | X158: 83848.40327 | Y158: 84000
D159: M2M | F159: MB | I159: 399.6276032 | J159: 458.3876243 | K159: 718.848 | L159: 970.752 | M159: 1148.928 | N159: 1262.669609 | O159: 1519.358208 | P159: 1766.344665 | Q159: 1979.222121 | R159: 2143.574287 | S159: 2257.23468 | T159: 2327.643817 | U159: 2366.712854 | V159: 2386.13143 | W159: 2394.776723 | X159: 2398.224315 | Y159: 2400
C161: Total data traffic for 3G devices | F161: million MB | H161: =I161/(J161/I161) -> 25192.67798 | I161: =SUM(I162:I165) -> 66904.19985 | J161: =SUM(J162:J165) -> 177677.4966 | K161: 223803.0584 | L161: 246342.7779 | M161: 233257.9167 | N161: 207531.0394 | O161: 188731.6069 | P161: 155173.0523 | Q161: 114058.1849 | R161: 74619.66599 | S161: 43491.33307 | T161: 22667.36455 | U161: 10620.5198 | V161: 4504.040239 | W161: 1736.373276 | X161: 0 | Y161: 0 | Z161: Traffic.3G.devices.total.data
D162: =segments -> Handsets | F162: million MB | I162: =I138*thousand*I156/million -> 30255.98345 | J162: =J156*J138*thousand/million -> 68456.88748 | K162: 105261.418 | L162: 128784.4273 | M162: 120033.1229 | N162: 100589.0786 | O162: 91614.02709 | P162: 73978.81696 | Q162: 52779.11931 | R162: 33292.95463 | S162: 18629.27593 | T162: 9288.720805 | U162: 4134.078629 | V162: 1641.948124 | W162: 587.3354882 | X162: 0 | Y162: 0
D163: Tablets | F163: million MB | I163: =I157*I139*thousand/million -> 1647.3 | J163: =J157*J139*thousand/million -> 6833.675564 | K163: 11182.72119 | L163: 13319.15483 | M163: 14918.22856 | N163: 15365.80304 | O163: 14917.86006 | P163: 12959.78532 | Q163: 9864.870067 | R163: 6509.046018 | S163: 3742.52321 | T163: 1887.239093 | U163: 835.7596814 | V163: 328.5537219 | W163: 115.2283998 | X163: 0 | Y163: 0
D164: Dongles/laptops | F164: million MB | I164: =I158*I140*thousand/million -> 34921.33701 | J164: =J158*J140*thousand/million -> 102181.8746 | K164: 106961.7235 | L164: 103592.2752 | M164: 97415.28334 | N164: 90488.058 | O164: 80827.80399 | P164: 66672.52178 | Q164: 49822.56429 | R164: 33368.87405 | S164: 19938.92297 | T164: 10626.86353 | U164: 5080.009926 | V164: 2193.946455 | W164: 852.169001 | X164: 0 | Y164: 0
D165: M2M | F165: million MB | I165: =I159*I141*thousand/million -> 79.57938522 | J165: =J159*J141*thousand/million -> 205.0589951 | K165: 397.1957355 | L165: 646.9205566 | M165: 891.2819507 | N165: 1088.099791 | O165: 1371.915803 | P165: 1561.928256 | Q165: 1591.631265 | R165: 1448.791291 | S165: 1180.610965 | T165: 864.5411174 | U165: 570.6715681 | V165: 339.5919389 | W165: 181.6403866 | X165: 0 | Y165: 0
A167: LTE subscribers
B169: Data traffic
C171: Number of LTE devices | F171: AOP, thousand | I171: =SUM(I172:I174) -> 106.5171307 | J171: =SUM(J172:J174) -> 1282.552088 | K171: =SUM(K172:K174) -> 4479.507338 | L171: =SUM(L172:L174) -> 9105.29294 | M171: =SUM(M172:M174) -> 14235.04154 | N171: =SUM(N172:N174) -> 18726.07981 | O171: =SUM(O172:O174) -> 22369.81219 | P171: =SUM(P172:P174) -> 25730.59697 | Q171: =SUM(Q172:Q174) -> 28592.6649 | R171: =SUM(R172:R174) -> 30868.26612 | S171: =SUM(S172:S174) -> 32610.92199 | T171: =SUM(T172:T174) -> 33929.75657 | U171: =SUM(U172:U174) -> 34839.38985 | V171: =SUM(V172:V174) -> 35466.17111 | W171: =SUM(W172:W174) -> 35988.29113 | X171: =SUM(X172:X174) -> 36444.00686 | Y171: =SUM(Y172:Y174) -> 36850.08808
D172: =segments -> Handsets | F172: AOP, thousand | I172: =I85 -> 23.95555556 | J172: 756.7208351 | K172: 3127.88378 | L172: 6875.962162 | M172: 11138.46473 | N172: 14761.90223 | O172: 17568.09415 | P172: 20109.49422 | Q172: 22255.11105 | R172: 23969.69521 | S172: 25296.60254 | T172: 26325.7831 | U172: 27022.60424 | V172: 27467.23029 | W172: 27848.46263 | X172: 28201.63931 | Y172: 28539.7033
D173: Tablets | F173: AOP, thousand | I173: =I86 -> 0 | J173: 66.54314059 | K173: 274.8318304 | L173: 545.7820947 | M173: 866.4061512 | N173: 1271.37188 | O173: 1713.782785 | P173: 2166.422642 | Q173: 2582.83113 | R173: 2934.646691 | S173: 3235.33083 | T173: 3490.937032 | U173: 3707.132309 | V173: 3908.651876 | W173: 4091.175313 | X173: 4247.002694 | Y173: 4376.105703
D174: Dongles/laptops | F174: AOP, thousand | I174: =I87 -> 82.56157518 | J174: 459.2881125 | K174: 1076.791728 | L174: 1683.548683 | M174: 2230.170662 | N174: 2692.805699 | O174: 3087.935247 | P174: 3454.680104 | Q174: 3754.722717 | R174: 3963.924213 | S174: 4078.988621 | T174: 4113.036433 | U174: 4109.653301 | V174: 4090.288942 | W174: 4048.65319 | X174: 3995.364864 | Y174: 3934.279084
D175: M2M | F175: AOP, thousand | I175: =I88 -> 3.059209374 | J175: 11.62980228 | K175: 30.35756989 | L175: 71.94522599 | M175: 155.0849522 | N175: 304.8627807 | O175: 548.4710878 | P175: 908.9423366 | Q175: 1400.325462 | R175: 2026.97894 | S175: 2789.181535 | T175: 3690.201197 | U175: 4742.04382 | V175: 5952.917305 | W175: 7326.843431 | X175: 8891.558612 | Y175: 10651.4354
C177: Average monthly data traffic per LTE device before demand sensitivity (excluding VoLTE) | I177: =IF(I$171=0,0,SUMPRODUCT(I178:I180,I$172:I$174)/I$171) -> 969.7702094 | J177: 934.7998403 | K177: 1732.160362 | L177: 1976.135991 | M177: 2270.677748 | N177: 2630.477354 | O177: 3067.685643 | P177: 3563.753724 | Q177: 4113.205772 | R177: 4709.998153 | S177: 5350.607393 | T177: 6032.09418 | U177: 6765.703229 | V177: 7555.810366 | W177: 8389.882785 | X177: 9266.707622 | Y177: 10185.11882 | AB177: If exponential traffic growth | AC177: =TRANSPOSE(years) -> 2010 | AD177: 2011 | AE177: 2012 | AF177: 2013 | AG177: 2014 | AH177: 2015 | AI177: 2016 | AJ177: 2017 | AK177: 2018 | AL177: 2019 | AM177: 2020 | AN177: 2021 | AO177: 2022 | AP177: 2023 | AQ177: 2024 | AR177: 2025 | AS177: 2026 | AT177: 2027
D178: =segments -> Handsets | F178: MB | I178: 415.1217648 | J178: 476.16 | K178: 1095.68 | L178: 1372.16 | M178: 1633.28 | N178: =M178+270 -> 1903.28 | O178: =N178+310 -> 2213.28 | P178: =O178+350 -> 2563.28 | Q178: =P178+390 -> 2953.28 | R178: =Q178+430 -> 3383.28 | S178: =R178+470 -> 3853.28 | T178: =S178+510 -> 4363.28 | U178: =T178+550 -> 4913.28 | V178: =U178+590 -> 5503.28 | W178: =V178+630 -> 6133.28 | X178: =W178+670 -> 6803.28 | Y178: =X178+710 -> 7513.28 | AD178: 415.1217648 | AE178: 476.16 | AF178: 1095.68 | AG178: 1372.16 | AH178: 1633.28 | AI178: =AH178*(AH178/AG178+1%) -> 1960.423546 | AJ178: =AI178*(AI178/AH178+1%) -> 2372.697692 | AK178: 2895.399452 | AL178: 3562.205625 | AM178: 4418.198319 | AN178: 5524.066765 | AO178: 6961.973098 | AP178: 8843.784036 | AQ178: 11322.6835 | AR178: 14609.64162 | AS178: 18996.8952 | AT178: 24891.60342
D179: Tablets | F179: MB | I179: 400 | J179: 481.28 | K179: 1239.04 | L179: 1800 | M179: =L179+610 -> 2410 | N179: =M179+680 -> 3090 | O179: =N179+750 -> 3840 | P179: =O179+820 -> 4660 | Q179: =P179+890 -> 5550 | R179: =Q179+960 -> 6510 | S179: =R179+1030 -> 7540 | T179: =S179+1100 -> 8640 | U179: =T179+1170 -> 9810 | V179: =U179+1240 -> 11050 | W179: =V179+1310 -> 12360 | X179: =W179+1380 -> 13740 | Y179: =X179+1450 -> 15190 | AD179: 400 | AE179: 481.28 | AF179: 1239.04 | AG179: 1800 | AH179: =AG179+610 -> 2410 | AI179: =AH179*(AH179/AG179-0.5%) -> 3214.672222 | AJ179: =AI179*(AI179/AH179-0.5%) -> 4271.942198 | AK179: 5655.576809 | AL179: 7459.077414 | AM179: 9800.398936 | AN179: 12827.63327 | AO179: 16725.8085 | AP179: 21724.96681 | AQ179: 28109.69317 | AR179: 36230.2712 | AS179: 46515.64263 | AT179: 59488.33852
D180: Dongles/laptops | F180: MB | I180: 1130.703569 | J180: 1756.16 | K180: 3706.88 | L180: 4500 | M180: =L180+900 -> 5400 | N180: =M180+1000 -> 6400 | O180: =N180+1100 -> 7500 | P180: =O180+1200 -> 8700 | Q180: =P180+1300 -> 10000 | R180: =Q180+1400 -> 11400 | S180: =R180+1500 -> 12900 | T180: =S180+1600 -> 14500 | U180: =T180+1700 -> 16200 | V180: =U180+1800 -> 18000 | W180: =V180+1900 -> 19900 | X180: =W180+2000 -> 21900 | Y180: =X180+2100 -> 24000 | AD180: 1130.703569 | AE180: 1756.16 | AF180: 3706.88 | AG180: 4500 | AH180: =AG180+900 -> 5400 | AI180: =AH180*(AH180/AG180+1%) -> 6534 | AJ180: =AI180*(AI180/AH180+1%) -> 7971.48 | AK180: =AJ180*(AJ180/AI180+1%) -> 9804.9204 | AL180: =AK180*(AK180/AJ180+1%) -> 12158.1013 | AM180: =AL180*(AL180/AK180+1%) -> 15197.62662 | AN180: =AM180*(AM180/AL180+1%) -> 19149.00954 | AO180: =AN180*(AN180/AM180+1%) -> 24319.24212 | AP180: =AO180*(AO180/AN180+1%) -> 31128.62991 | AQ180: =AP180*(AP180/AO180+1%) -> 40155.93258 | AR180: =AQ180*(AQ180/AP180+1%) -> 52202.71236 | AS180: =AR180*(AR180/AQ180+1%) -> 68385.55319 | AT180: =AS180*(AS180/AR180+1%) -> 90268.93021
D181: M2M | F181: MB | I181: =I178*0.1 -> 41.51217648 | J181: =J178*0.1 -> 47.616 | K181: 109.568 | L181: 137.216 | M181: 163.328 | N181: 190.328 | O181: 221.328 | P181: 256.328 | Q181: 295.328 | R181: 338.328 | S181: 385.328 | T181: 436.328 | U181: 491.328 | V181: 550.328 | W181: 613.328 | X181: 680.328 | Y181: 751.328 | AD181: =AD178*0.1 -> 41.51217648 | AE181: =AE178*0.1 -> 47.616 | AF181: 109.568 | AG181: 137.216 | AH181: 163.328 | AI181: 196.0423546 | AJ181: 237.2697692 | AK181: 289.5399452 | AL181: 356.2205625 | AM181: 441.8198319 | AN181: 552.4066765 | AO181: 696.1973098 | AP181: 884.3784036 | AQ181: 1132.26835 | AR181: 1460.964162 | AS181: 1899.68952 | AT181: 2489.160342
C183: Average monthly data traffic per LTE device after demand sensitivity (excluding VoLTE) | I183: =IF(I$171=0,0,SUMPRODUCT(I184:I186,I$172:I$174)/I$171) -> 969.7702094 | J183: 934.7998403 | K183: 1732.160362 | L183: 1976.135991 | M183: 2270.677748 | N183: 2630.477354 | O183: 3067.685643 | P183: 3563.753724 | Q183: 4113.205772 | R183: 4709.998153 | S183: 5350.607393 | T183: 6032.09418 | U183: 6765.703229 | V183: 7555.810366 | W183: 8389.882785 | X183: 9266.707622 | Y183: 10185.11882
D184: =segments -> Handsets | F184: MB | I184: =I178 -> 415.1217648 | J184: 476.16 | K184: =K178 -> 1095.68 | L184: =$K184+($R184-$K184)*IF(Sensitivity.exponential.data.traffic.growth,(AG178-$AF178)/($AM178-$AF178),(L178-$K178)/($R178-$K178)) -> 1372.16 | M184: 1633.28 | N184: 1903.28 | O184: 2213.28 | P184: 2563.28 | Q184: 2953.28 | R184: =IF(Sensitivity.exponential.data.traffic.growth,AM178,R178)*(1+sensitivity.traffic.selected) -> 3383.28 | S184: =$K184+($R184-$K184)*IF(Sensitivity.exponential.data.traffic.growth,(AN178-$AF178)/($AM178-$AF178),(S178-$K178)/($R178-$K178)) -> 3853.28 | T184: 4363.28 | U184: 4913.28 | V184: 5503.28 | W184: 6133.28 | X184: 6803.28 | Y184: 7513.28
D185: Tablets | F185: MB | I185: =I179 -> 400 | J185: 481.28 | K185: 1239.04 | L185: 1800 | M185: 2410 | N185: 3090 | O185: 3840 | P185: 4660 | Q185: 5550 | R185: =IF(Sensitivity.exponential.data.traffic.growth,AM179,R179)*(1+sensitivity.traffic.selected) -> 6510 | S185: 7540 | T185: 8640 | U185: 9810 | V185: 11050 | W185: 12360 | X185: 13740 | Y185: 15190
D186: Dongles/laptops | F186: MB | I186: =I180 -> 1130.703569 | J186: 1756.16 | K186: 3706.88 | L186: 4500 | M186: 5400 | N186: 6400 | O186: 7500 | P186: 8700 | Q186: 10000 | R186: =IF(Sensitivity.exponential.data.traffic.growth,AM180,R180)*(1+sensitivity.traffic.selected) -> 11400 | S186: 12900 | T186: 14500 | U186: 16200 | V186: 18000 | W186: 19900 | X186: 21900 | Y186: 24000
D187: M2M | F187: MB | I187: 41.51217648 | J187: 47.616 | K187: 109.568 | L187: 137.216 | M187: 163.328 | N187: 190.328 | O187: 221.328 | P187: 256.328 | Q187: 295.328 | R187: =IF(Sensitivity.exponential.data.traffic.growth,AM181,R181)*(1+sensitivity.traffic.selected) -> 338.328 | S187: 385.328 | T187: 436.328 | U187: 491.328 | V187: 550.328 | W187: 613.328 | X187: 680.328 | Y187: 751.328
C189: Average annual data traffic per LTE device (excluding VoLTE) | F189: MB | H189: Average excluding M2M | I189: =IF(I$171=0,0,SUMPRODUCT(I190:I192,I$172:I$174)/I$171) -> 11637.24251 | J189: 11217.59808 | K189: 20785.92434 | L189: 23713.63189 | M189: 27248.13298 | N189: 31565.72824 | O189: 36812.22771 | P189: 42765.04469 | Q189: 49358.46927 | R189: 56519.97784 | S189: 64207.28872 | T189: 72385.13017 | U189: 81188.43874 | V189: 90669.72439 | W189: 100678.5934 | X189: 111200.4915 | Y189: 122221.4258
D190: =segments -> Handsets | F190: MB | I190: =I184*month -> 4981.461177 | J190: 5713.92 | K190: 13148.16 | L190: 16465.92 | M190: 19599.36 | N190: 22839.36 | O190: 26559.36 | P190: 30759.36 | Q190: 35439.36 | R190: 40599.36 | S190: 46239.36 | T190: 52359.36 | U190: 58959.36 | V190: 66039.36 | W190: 73599.36 | X190: 81639.36 | Y190: 90159.36
D191: Tablets | F191: MB | I191: =I185*month -> 4800 | J191: 5775.36 | K191: 14868.48 | L191: 21600 | M191: 28920 | N191: 37080 | O191: 46080 | P191: 55920 | Q191: 66600 | R191: 78120 | S191: 90480 | T191: 103680 | U191: 117720 | V191: 132600 | W191: 148320 | X191: 164880 | Y191: 182280
D192: Dongles/laptops | F192: MB | I192: =I186*month -> 13568.44282 | J192: 21073.92 | K192: 44482.56 | L192: 54000 | M192: 64800 | N192: =N186*month -> 76800 | O192: 90000 | P192: 104400 | Q192: 120000 | R192: 136800 | S192: 154800 | T192: 174000 | U192: 194400 | V192: 216000 | W192: 238800 | X192: 262800 | Y192: 288000
D193: M2M | F193: MB | I193: 498.1461177 | J193: 571.392 | K193: 1314.816 | L193: 1646.592 | M193: 1959.936 | N193: =N187*month -> 2283.936 | O193: 2655.936 | P193: 3075.936 | Q193: 3543.936 | R193: 4059.936 | S193: 4623.936 | T193: 5235.936 | U193: 5895.936 | V193: 6603.936 | W193: 7359.936 | X193: 8163.936 | Y193: 9015.936
C195: Total data traffic for LTE devices (excluding VoLTE) | F195: million MB | I195: =SUM(I196:I199) -> 1241.089615 | J195: 14393.79902 | K195: 93150.61524 | L195: 216038.0295 | M195: =SUM(M196:M199) -> 388182.2614 | N195: =SUM(N196:N199) -> 591798.6333 | O195: 824939.3242 | P195: 1103165.978 | Q195: 1416252.836 | R195: 1752903.122 | S195: 2106755.88 | T195: 2475331.503 | U195: 2856514.456 | V195: 3255020.645 | W195: 3677175.63 | X195: 4125181.59 | Y195: 4599902.967 | Z195: Traffic.LTE.devices.total.data
D196: =segments -> Handsets | F196: million MB | I196: =I172*thousand*I190/million -> 119.33367 | J196: =J190*J172*thousand/million -> 4323.842314 | K196: 41125.9164 | L196: 113219.0429 | M196: 218306.78 | N196: 337152.3992 | O196: 466597.3372 | P196: 618555.1721 | Q196: 788706.8924 | R196: 973154.285 | S196: 1169698.711 | T196: 1378401.155 | U196: 1593235.452 | V196: 1813918.309 | W196: 2049629.027 | X196: 2302363.784 | Y196: 2573121.384
D197: Tablets | F197: million MB | I197: =I191*I173*thousand/million -> 0 | J197: =J191*J173*thousand/million -> 384.3105924 | K197: 4086.331574 | L197: 11788.89325 | M197: 25056.46589 | N197: 47142.4693 | O197: 78971.11073 | P197: 121146.3541 | Q197: 172016.5532 | R197: 229254.5995 | S197: 292732.7335 | T197: 361940.3515 | U197: 436403.6154 | V197: 518287.2388 | W197: 606803.1224 | X197: 700245.8042 | Y197: 797676.5475
D198: Dongles/laptops | F198: million MB | I198: =I192*I174*thousand/million -> 1120.232012 | J198: =J192*J174*thousand/million -> 9679.000939 | K198: 47898.45265 | L198: 90911.62891 | M198: 144515.0589 | N198: =N192*N174*thousand/million -> 206807.4777 | O198: 277914.1722 | P198: 360668.6029 | Q198: 450566.7261 | R198: 542264.8324 | S198: 631427.4385 | T198: 715668.3394 | U198: 798916.6018 | V198: 883502.4115 | W198: 966818.3818 | X198: 1049981.886 | Y198: 1133072.376
D199: M2M | F199: million MB | I199: =I193*I175*thousand/million -> 1.523933273 | J199: 6.645175982 | K199: 39.91461861 | L199: 118.4644336 | M199: 303.9565808 | N199: =N193*N175*thousand/million -> 696.2870798 | O199: 1456.704107 | P199: 2795.848455 | Q199: 4962.663817 | R199: 8229.404771 | S199: 12896.99691 | T199: 19321.65729 | U199: 27958.78687 | V199: 39312.6849 | W199: 53925.09873 | X199: 72590.11545 | Y199: 96032.65988
C201: VoLTE bandwidth
D202: AMR-NB codec | F202: kbit/s | H202: 12.65
C204: Total traffic for LTE devices | F204: million MB | I204: =SUM(I205:I208) -> 1241.089615 | J204: =SUM(J205:J208) -> 14660.16319 | K204: =SUM(K205:K208) -> 93815.7932 | L204: =SUM(L205:L208) -> 217117.6372 | M204: =SUM(M205:M208) -> 389936.6029 | N204: =SUM(N205:N208) -> 594541.4475 | O204: 828981.2247 | P204: 1108741.121 | Q204: 1423459.512 | R204: 1761685.619 | S204: 2116934.631 | T204: 2486664.684 | U204: 2868701.799 | V204: 3267800.226 | W204: 3690408.199 | X204: 4138836.549 | Y204: 4613856.788 | Z204: Traffic.LTE.devices.total
D205: =segments -> Handsets | F205: million MB | I205: =I196:Y196+I125:Y125*seconds.per.minute*H202/Mbit.to.kbit/bits.per.byte -> 119.33367 | J205: 4590.206486 | K205: 41791.09435 | L205: 114298.6506 | M205: 220061.1216 | N205: 339895.2134 | O205: 470639.2376 | P205: 624130.3158 | Q205: 795913.5687 | R205: 981936.7828 | S205: 1179877.462 | T205: 1389734.336 | U205: 1605422.795 | V205: 1826697.891 | W205: 2062861.596 | X205: 2316018.743 | Y205: 2587075.204
D206: Tablets | F206: million MB | I206: =I197:Y199 -> 0 | J206: 384.3105924 | K206: 4086.331574 | L206: 11788.89325 | M206: 25056.46589 | N206: 47142.4693 | O206: 78971.11073 | P206: 121146.3541 | Q206: 172016.5532 | R206: 229254.5995 | S206: 292732.7335 | T206: 361940.3515 | U206: 436403.6154 | V206: 518287.2388 | W206: 606803.1224 | X206: 700245.8042 | Y206: 797676.5475
D207: Dongles/laptops | F207: million MB | I207: 1120.232012 | J207: 9679.000939 | K207: 47898.45265 | L207: 90911.62891 | M207: 144515.0589 | N207: 206807.4777 | O207: 277914.1722 | P207: 360668.6029 | Q207: 450566.7261 | R207: 542264.8324 | S207: 631427.4385 | T207: 715668.3394 | U207: 798916.6018 | V207: 883502.4115 | W207: 966818.3818 | X207: 1049981.886 | Y207: 1133072.376
D208: M2M | F208: million MB | I208: 1.523933273 | J208: 6.645175982 | K208: 39.91461861 | L208: 118.4644336 | M208: 303.9565808 | N208: 696.2870798 | O208: 1456.704107 | P208: 2795.848455 | Q208: 4962.663817 | R208: 8229.404771 | S208: 12896.99691 | T208: 19321.65729 | U208: 27958.78687 | V208: 39312.6849 | W208: 53925.09873 | X208: 72590.11545 | Y208: 96032.65988
C211: Total monthly data traffic (including VoLTE)
D212: Active scenario | F212: PB | I212: =(I161+I204)/1024^3*million/12 -> 5.288770536 | J212: 14.92736705 | K212: 24.65046722 | L212: 35.96926225 | M212: 48.36626038 | N212: 62.24901779 | O212: 78.98491121 | P212: 98.09265019 | Q212: 119.3270783 | R212: 142.5160472 | S212: 167.6711226 | T212: 194.7497987 | U212: 223.4648229 | V212: 253.9642362 | W212: 286.5481324 | X212: 321.2159925 | Y212: 358.0824152 | Z212: Traffic.total.data
D213: Base case | I213: 7.74197712 | J213: 12.49778136 | K213: 21.90299895 | L213: 32.94791977 | M213: 45.36459456 | N213: 59.13145601 | O213: 75.63784318 | P213: 94.35515127 | Q213: 115.1273359 | R213: 137.8584127 | S213: 162.6038594 | T213: 189.3416328 | U213: 218.1383435 | V213: 249.3045256 | W213: 282.8764588 | X213: 318.8242266 | Y213: 357.1587947
D214: Difference | I214: =I212/I213-1 -> -0.3168708129 | J214: =J212/J213-1 -> 0.1944013593 | K214: 0.1254379946 | L214: 0.09170055368 | M214: 0.0661675883 | N214: 0.05272256086 | O214: 0.04425123582 | P214: 0.03961096836 | Q214: 0.03647910681 | R214: 0.03378563806 | S214: 0.03116324027 | T214: 0.02856300443 | U214: 0.02441789645 | V214: 0.01869083828 | W214: 0.01297977773 | X214: 0.007501832309 | Y214: 0.002586022115
C216: Total traffic multiplier
D217: 2011 to 2020 | I217: =(R161+R195)/(I161+I195) -> 26.81803544
D218: 2011 to 2016 | I218: =(N161+N195)/(I161+I195) -> 11.72978615
D219: 2016 to 2021 | I219: =(S161+S195)/(N161+N195) -> 2.690063045
C221: CAGR | I221: 2011-2020 | J221: 2013-2017 | K221: 2017-2020
D222: Active scenario | I222: =(R212/I212)^(1/9)-1 -> 0.4419342222 | J222: =(O212/K212)^(1/4)-1 -> 0.3379187644 | K222: =(R212/O212)^(1/3)-1 -> 0.2174184466
D223: Base case | I223: =(R213/I213)^(1/9)-1 -> 0.3770619801 | J223: =(O213/K213)^(1/4)-1 -> 0.3631978376 | K223: =(R213/O213)^(1/3)-1 -> 0.2215128664
C225: Proportion of data traffic which is:
D226: 3G | I226: =I161/(I161+I195) -> 0.9817875949 | J226: 0.9250601243 | K226: 0.7061065291 | L226: 0.5327703356 | M226: 0.3753505566 | N226: 0.2596313467 | O226: 0.1861862673 | P226: 0.1233157747 | Q226: 0.07453268218 | R226: 0.04083104544 | S226: 0.02022620134 | T226: 0.009074209297 | U226: 0.003704227354 | V226: 0.001381808906 | W226: 0.0004719801056 | X226: 0 | Y226: 0
D227: 4G | I227: =1-I226 -> 0.01821240507 | J227: =1-J226 -> 0.07493987569 | K227: 0.2938934709 | L227: 0.4672296644 | M227: 0.6246494434 | N227: 0.7403686533 | O227: 0.8138137327 | P227: 0.8766842253 | Q227: 0.9254673178 | R227: 0.9591689546 | S227: 0.9797737987 | T227: 0.9909257907 | U227: 0.9962957726 | V227: 0.9986181911 | W227: 0.9995280199 | X227: 1 | Y227: 1
A231: Data for charts
C233: Total monthly data traffic for each scenario | F233: PB/month
D234: Base case | I234: 7.74197712 | J234: 12.49778136 | K234: 21.90299895 | L234: 32.94791977 | M234: 45.36459456 | N234: 59.13145601 | O234: 75.63784318 | P234: 94.35515127 | Q234: 115.1273359 | R234: 137.8584127 | S234: 162.6038594 | T234: 189.3416328 | U234: 218.1383435 | V234: 249.2249363 | W234: 283.0664308 | X234: 318.8242266 | Y234: 357.1587947
D235: =sensitivity.traffic.scenarios&" "&F233 -> 50 PB/month | I235: 7.74197712 | J235: 12.49778136 | K235: 21.90299895 | L235: 26.44465554 | M235: 31.07558034 | N235: 35.2740084 | O235: 39.04975603 | P235: 42.80617197 | Q235: 46.4759438 | R235: 50 | S235: 53.40728173 | T235: 56.73550006 | U235: 60.06038986 | V235: 63.48559596 | W235: 67.1488896 | X235: 70.84158507 | Y235: 74.71182258
D236: 100 PB/month | I236: 7.74197712 | J236: 12.49778136 | K236: 21.90299895 | L236: 30.14564673 | M236: 39.20742212 | N236: 48.85122136 | O236: 59.87194369 | P236: 72.14256543 | Q236: 85.54527706 | R236: 100 | S236: 115.5507773 | T236: 132.2013141 | U236: 150.0221526 | V236: 169.1893838 | W236: 190.027015 | X236: 211.9678778 | Y236: 235.4516785
D237: 150 PB/month | I237: 7.74197712 | J237: 12.49778136 | K237: 21.90299895 | L237: 33.84663792 | M237: 47.33926389 | N237: 62.42843432 | O237: 80.69413134 | P237: 101.4789589 | Q237: 124.6146103 | R237: 150 | S237: 177.6942729 | T237: 207.6671281 | U237: 239.9839153 | V237: 274.8931716 | W237: 312.9051404 | X237: 353.0941706 | Y237: 396.1915344
D238: 200 PB/month | I238: 7.74197712 | J238: 12.49778136 | K238: 21.90299895 | L238: 37.5476291 | M238: 55.47110567 | N238: 76.00564728 | O238: 101.516319 | P238: 130.8153524 | Q238: 163.6839436 | R238: 200 | S238: 239.8377685 | T238: 283.1329421 | U238: 329.945678 | V238: 380.5969594 | W238: 435.7832658 | X238: 494.2204634 | Y238: 556.9313903
D239: 250 PB/month | I239: 7.74197712 | J239: 12.49778136 | K239: 21.90299895 | L239: 41.24862029 | M239: 63.60294745 | N239: 89.58286024 | O239: 122.3385067 | P239: 160.1517458 | Q239: 202.7532768 | R239: 250 | S239: 301.9812641 | T239: 358.5987561 | U239: 419.9074407 | V239: 486.3007471 | W239: 558.6613912 | X239: 635.3467561 | Y239: 717.6712462
D240: 300 PB/month | I240: 7.74197712 | J240: 12.49778136 | K240: 21.90299895 | L240: 44.94961147 | M240: 71.73478922 | N240: 103.1600732 | O240: 143.1606943 | P240: 189.4881393 | Q240: 241.8226101 | R240: 300 | S240: 364.1247597 | T240: 434.0645702 | U240: 509.8692034 | V240: 592.0045349 | W240: 681.5395166 | X240: 776.4730489 | Y240: 878.4111021
D241: 350 PB/month | I241: 7.74197712 | J241: 12.49778136 | K241: 21.90299895 | L241: 48.65060266 | M241: 79.866631 | N241: 116.7372862 | O241: 163.982882 | P241: 218.8245327 | Q241: 280.8919433 | R241: 350 | S241: 426.2682553 | T241: 509.5303842 | U241: 599.8309661 | V241: 697.7083227 | W241: 804.417642 | X241: 917.5993416 | Y241: 1039.150958
D242: 400 PB/month | I242: 7.74197712 | J242: 12.49778136 | K242: 21.90299895 | L242: 52.35159385 | M242: 87.99847278 | N242: 130.3144991 | O242: 184.8050696 | P242: 248.1609262 | Q242: 319.9612766 | R242: 400 | S242: 488.4117509 | T242: 584.9961982 | U242: 689.7927289 | V242: 803.4121105 | W242: 927.2957674 | X242: 1058.725634 | Y242: 1199.890814
D243: 450 PB/month | I243: 7.74197712 | J243: 12.49778136 | K243: 21.90299895 | L243: 56.05258503 | M243: 96.13031456 | N243: 143.8917121 | O243: 205.6272573 | P243: 277.4973196 | Q243: 359.0306099 | R243: 450 | S243: 550.5552465 | T243: 660.4620122 | U243: 779.7544916 | V243: 909.1158983 | W243: 1050.173893 | X243: 1199.851927 | Y243: 1360.63067
D244: 500 PB/month | I244: 7.74197712 | J244: 12.49778136 | K244: 21.90299895 | L244: 59.75357622 | M244: 104.2621563 | N244: 157.468925 | O244: 226.4494449 | P244: 306.8337131 | Q244: 398.0999431 | R244: 500 | S244: 612.6987421 | T244: 735.9278262 | U244: 869.7162543 | V244: 1014.819686 | W244: 1173.052018 | X244: 1340.97822 | Y244: 1521.370526
A247: Average spectral efficiency
B249: This section is only used for comparison with third party forescasts
C251: Total volumes of data traffic
D252: 3G
D253: 4G | I253: =I161 -> 66904.19985 | J253: 177677.4966 | K253: 223803.0584 | L253: 246342.7779 | M253: 233257.9167 | N253: 207531.0394 | O253: 188731.6069 | P253: 155173.0523 | Q253: 114058.1849 | R253: 74619.66599 | S253: 43491.33307 | T253: 22667.36455 | U253: 10620.5198 | V253: 4504.040239 | W253: 1736.373276 | X253: 0 | Y253: 0
I254: =I195 -> 1241.089615 | J254: 14393.79902 | K254: 93150.61524 | L254: 216038.0295 | M254: 388182.2614 | N254: 591798.6333 | O254: 824939.3242 | P254: 1103165.978 | Q254: 1416252.836 | R254: 1752903.122 | S254: 2106755.88 | T254: 2475331.503 | U254: 2856514.456 | V254: 3255020.645 | W254: 3677175.63 | X254: 4125181.59 | Y254: 4599902.967
C255: Data traffic spectral efficiency
D256: 3G | I256: =IN!K920 -> 0.6 | J256: =IN!L920 -> 0.6 | K256: =IN!M920 -> 0.6 | L256: =IN!N920 -> 0.6 | M256: =IN!O920 -> 0.6 | N256: =IN!P920 -> 0.6 | O256: =IN!Q920 -> 0.6 | P256: =IN!R920 -> 0.6 | Q256: =IN!S920 -> 0.6 | R256: =IN!T920 -> 0.6 | S256: =IN!U920 -> 0.6 | T256: =IN!V920 -> 0.6 | U256: =IN!W920 -> 0.6 | V256: =IN!X920 -> 0.6 | W256: =IN!Y920 -> 0.6 | X256: =IN!Z920 -> 0.6 | Y256: =IN!AA920 -> 0.6
D257: 4G | I257: =IN!K1469 -> 0.95 | J257: =IN!L1469 -> 1 | K257: =IN!M1469 -> 1.05 | L257: =IN!N1469 -> 1.18 | M257: =IN!O1469 -> 1.31 | N257: =IN!P1469 -> 1.44 | O257: =IN!Q1469 -> 1.57 | P257: =IN!R1469 -> 1.7 | Q257: =IN!S1469 -> 1.83 | R257: =IN!T1469 -> 1.96 | S257: =IN!U1469 -> 2.09 | T257: =IN!V1469 -> 2.22 | U257: =IN!W1469 -> 2.35 | V257: =IN!X1469 -> 2.48 | W257: =IN!Y1469 -> 2.61 | X257: =IN!Z1469 -> 2.74 | Y257: =IN!AA1469 -> 2.87
H259: =TRANSPOSE(years) -> 2010 | I259: 2011 | J259: 2012 | K259: 2013 | L259: 2014 | M259: 2015 | N259: 2016 | O259: 2017 | P259: 2018 | Q259: 2019 | R259: 2020 | S259: 2021 | T259: 2022 | U259: 2023 | V259: 2024 | W259: 2025 | X259: 2026 | Y259: 2027
C260: Average data spectral efficiency | I260: =SUMPRODUCT(I253:I254,I256:I257)/SUM(I253:I254) -> 0.6063743418 | J260: =SUMPRODUCT(J253:J254,J256:J257)/SUM(J253:J254) -> 0.6299759503 | K260: 0.7322520619 | L260: 0.8709932054 | M260: 1.043501105 | N260: 1.221909669 | O260: 1.389399321 | P260: 1.564352648 | Q260: 1.738324801 | R260: 1.904469778 | S260: 2.05986296 | T260: 2.205299781 | U260: 2.343517602 | V260: 2.477402199 | W260: 2.60905132 | X260: 2.74 | Y260: 2.87
A263: Traffic per subscriber
B265: This section is only used for comparison with third party forescasts
... 25 more rows

Sheet IN
A1: Inputs
AE2: Trends
F3: Operator selected: | J3: 1 | K3: =1+J3 -> 2 | L3: =1+K3 -> 3 | M3: 4 | N3: 5 | O3: 6 | P3: 7 | Q3: 8 | R3: 9 | S3: 10 | T3: 11 | U3: 12 | V3: 13 | W3: 14 | X3: 15 | Y3: 16 | Z3: 17 | AA3: 18
F4: =operator.selected -> Vodafone Hutchison | G4: Source | H4: Unit | J4: =TRANSPOSE(years) -> 2010 | K4: 2011 | L4: 2012 | M4: 2013 | N4: 2014 | O4: 2015 | P4: 2016 | Q4: 2017 | R4: 2018 | S4: 2019 | T4: 2020 | U4: 2021 | V4: 2022 | W4: 2023 | X4: 2024 | Y4: 2025 | Z4: 2026 | AA4: 2027 | AB4: Name | AD4: Note | AE4: 5 years | AF4: 10 years | AG4: 15 years
A6: Demand forecast
B8: Total annual traffic (all market)
C9: Total annual voice traffic on 2G networks | H9: million minutes | J9: =Traffic.2G.total.voice -> 19328.06177 | K9: 16603.01192 | L9: 12865.20289 | M9: 9037.002614 | N9: 7766.176736 | O9: 6196.000231 | P9: 4552.944828 | Q9: 3063.043373 | R9: 1878.615349 | S9: 0 | T9: 0 | U9: 0 | V9: 0 | W9: 0 | X9: 0 | Y9: 0 | Z9: 0 | AA9: 0
C10: Total annual voice traffic on 3G networks | H10: million minutes | J10: =Traffic.3G.total.voice -> 50284.36772 | K10: 62120.61805 | L10: 68457.59205 | M10: 73186.74511 | N10: 75903.91453 | O10: 75918.29219 | P10: 72325.10833 | Q10: 64892.69242 | R10: 54321.20873 | S10: 43153.18244 | T10: 30572.50753 | U10: 19881.43804 | V10: 11817.11882 | W10: 6365.511747 | X10: 3098.917974 | Y10: 1366.929384 | Z10: 0 | AA10: 0
C11: Total data traffic for 3G devices | H11: million MB | J11: =Traffic.3G.devices.total.data -> 25192.67798 | K11: 66904.19985 | L11: 177677.4966 | M11: 223803.0584 | N11: 246342.7779 | O11: 233257.9167 | P11: 207531.0394 | Q11: 188731.6069 | R11: 155173.0523 | S11: 114058.1849 | T11: 74619.66599 | U11: 43491.33307 | V11: 22667.36455 | W11: 10620.5198 | X11: 4504.040239 | Y11: 1736.373276 | Z11: 0 | AA11: 0
C12: Total data traffic (including VoLTE) for LTE devices | H12: million MB | K12: =Traffic.LTE.devices.total -> 1241.089615 | L12: 14660.16319 | M12: 93815.7932 | N12: 217117.6372 | O12: 389936.6029 | P12: 594541.4475 | Q12: 828981.2247 | R12: 1108741.121 | S12: 1423459.512 | T12: 1761685.619 | U12: 2116934.631 | V12: 2486664.684 | W12: 2868701.799 | X12: 3267800.226 | Y12: 3690408.199 | Z12: 4138836.549 | AA12: 4613856.788
B15: Market share of the operator modelled | H15: % | J15: =Market.share.selected -> 0.3333333333 | K15: market.share
B18: Total annual traffic (operator modelled)
C19: Total annual voice traffic on 2G networks | H19: million minutes | K19: =K9*market.share -> 5534.337308 | L19: 4288.400965 | M19: 3012.334205 | N19: 2588.725579 | O19: 2065.33341 | P19: 1517.648276 | Q19: 1021.014458 | R19: 626.2051162 | S19: 0 | T19: 0 | U19: 0 | V19: 0 | W19: 0 | X19: 0 | Y19: 0 | Z19: 0 | AA19: 0
C20: Total annual voice traffic on 3G networks | H20: million minutes | K20: =K10*market.share -> 20706.87268 | L20: 22819.19735 | M20: 24395.5817 | N20: 25301.30484 | O20: 25306.0974 | P20: 24108.36944 | Q20: 21630.89747 | R20: 18107.06958 | S20: 14384.39415 | T20: 10190.83584 | U20: 6627.146014 | V20: 3939.039606 | W20: 2121.837249 | X20: 1032.972658 | Y20: 455.643128 | Z20: 0 | AA20: 0
C21: Total data traffic for 3G devices | H21: million MB | K21: =K11*market.share -> 22301.39995 | L21: 59225.83221 | M21: 74601.01946 | N21: 82114.25931 | O21: 77752.63892 | P21: 69177.01313 | Q21: 62910.53565 | R21: 51724.35077 | S21: 38019.39498 | T21: 24873.222 | U21: 14497.11102 | V21: 7555.788182 | W21: 3540.173268 | X21: 1501.346746 | Y21: 578.7910919 | Z21: 0 | AA21: 0
C22: Total data traffic (including VoLTE) for LTE devices | H22: million MB | K22: =K12*market.share -> 413.6965385 | L22: 4886.721064 | M22: 31271.93107 | N22: 72372.54573 | O22: 129978.8676 | P22: 198180.4825 | Q22: 276327.0749 | R22: 369580.3738 | S22: 474486.504 | T22: 587228.5398 | U22: 705644.8769 | V22: 828888.2281 | W22: 956233.9331 | X22: 1089266.742 | Y22: 1230136.066 | Z22: 1379612.183 | AA22: 1537952.263
B26: Market share of the operator using national roaming on the network of the operator modelled | H26: % | J26: =Market.share.of.the.operator.using.NR.on.the.network.modelled.selected -> 0 | K26: market.share.of.the.operator.using.NR.on.the.network.modelled
B29: Total annual traffic (operator using national roaming on the network of the operator modelled)
C30: Total annual voice traffic on 2G networks | H30: million minutes | K30: =K9*market.share.of.the.operator.using.NR.on.the.network.modelled -> 0 | L30: 0 | M30: 0 | N30: 0 | O30: 0 | P30: 0 | Q30: 0 | R30: 0 | S30: 0 | T30: 0 | U30: 0 | V30: 0 | W30: 0 | X30: 0 | Y30: 0 | Z30: 0 | AA30: 0
C31: Total annual voice traffic on 3G networks | H31: million minutes | K31: =K10*market.share.of.the.operator.using.NR.on.the.network.modelled -> 0 | L31: 0 | M31: 0 | N31: 0 | O31: 0 | P31: 0 | Q31: 0 | R31: 0 | S31: 0 | T31: 0 | U31: 0 | V31: 0 | W31: 0 | X31: 0 | Y31: 0 | Z31: 0 | AA31: 0
C32: Total data traffic for 3G devices | H32: million MB | K32: =K11*market.share.of.the.operator.using.NR.on.the.network.modelled -> 0 | L32: 0 | M32: 0 | N32: 0 | O32: 0 | P32: 0 | Q32: 0 | R32: 0 | S32: 0 | T32: 0 | U32: 0 | V32: 0 | W32: 0 | X32: 0 | Y32: 0 | Z32: 0 | AA32: 0
C33: Total data traffic (including VoLTE) for LTE devices | H33: million MB | K33: =K12*market.share.of.the.operator.using.NR.on.the.network.modelled -> 0 | L33: 0 | M33: 0 | N33: 0 | O33: 0 | P33: 0 | Q33: 0 | R33: 0 | S33: 0 | T33: 0 | U33: 0 | V33: 0 | W33: 0 | X33: 0 | Y33: 0 | Z33: 0 | AA33: 0
A37: Busy hour calculation (operator modelled)
B39: Data traffic conversion to busy hour traffic | J39: Voice | K39: Data
D40: Busy days per year | H40: days | J40: 250 | K40: 365
D41: Percentage of yearly traffic in these busy days | J41: 0.8 | K41: 1
D42: Percentage of daily traffic in the busy hour | H42: %
E43: Voice (constant over time) | J43: 0.07
E44: Data (may vary over time) | K44: =sensitivity.BH.start.selected -> 0.07 | L44: =$K44+($AA44-$K44)*(L$3-$K$3)/($AA$3-$K$3) -> 0.07 | M44: =$K44+($AA44-$K44)*(M$3-$K$3)/($AA$3-$K$3) -> 0.07 | N44: 0.07 | O44: 0.07 | P44: 0.07 | Q44: 0.07 | R44: 0.07 | S44: 0.07 | T44: 0.07 | U44: 0.07 | V44: 0.07 | W44: 0.07 | X44: 0.07 | Y44: 0.07 | Z44: 0.07 | AA44: =sensitivity.BH.end.selected -> 0.07
D45: Downlink share of traffic | H45: % | K45: 0.8
D46: IP overheads | H46: %
E47: For 3G | K47: 0.15
E48: For LTE | K48: 0.15
D49: Proportion of monthly traffic in the busy hour (for information) | J49: =J43/365*12 -> 0.002301369863 | K49: =K44/365*12 -> 0.002301369863 | L49: =L44/365*12 -> 0.002301369863 | M49: 0.002301369863 | N49: 0.002301369863 | O49: 0.002301369863 | P49: 0.002301369863 | Q49: 0.002301369863 | R49: 0.002301369863 | S49: 0.002301369863 | T49: 0.002301369863 | U49: 0.002301369863 | V49: 0.002301369863 | W49: 0.002301369863 | X49: 0.002301369863 | Y49: 0.002301369863 | Z49: 0.002301369863 | AA49: 0.002301369863
B51: Busy hour traffic for the operator modelled
C53: Voice traffic
D54: Total annual voice traffic on 2G networks | H54: Erlangs | K54: =K19*million/$J$40*$J$41*$J$43/minutes.per.hour -> 20661.52595 | L54: 16010.03027 | M54: 11246.0477 | N54: 9664.575494 | O54: 7710.578065 | P54: 5665.886897 | Q54: 3811.787308 | R54: 2337.832434 | S54: 0 | T54: 0 | U54: 0 | V54: 0 | W54: 0 | X54: 0 | Y54: 0 | Z54: 0 | AA54: 0 | AB54: Traffic.2G.busy.hour.voice.operator.modelled
D55: Total annual voice traffic on 3G networks | H55: Erlangs | K55: =K20*million/$J$40*$J$41*$J$43/minutes.per.hour -> 77305.65801 | L55: 85191.67011 | M55: 91076.83836 | N55: 94458.20475 | O55: 94476.09695 | P55: 90004.57925 | Q55: 80755.35057 | R55: 67599.72643 | S55: 53701.73814 | T55: 38045.78715 | U55: 24741.34512 | V55: 14705.74786 | W55: 7921.52573 | X55: 3856.431257 | Y55: 1701.067678 | Z55: 0 | AA55: 0 | AB55: Traffic.3G.busy.hour.voice.operator.modelled
C57: Data traffic
D58: Data traffic for 3G devices | H58: Mbps | K58: =K21/$K$40*$K$41*K$44*$K$45*(1+$K$47)*million*bits.per.byte/seconds.per.hour -> 8744.049661 | L58: 23221.5744 | M58: 29249.95831 | N58: 32195.78873 | O58: 30485.66177 | P58: 27123.28551 | Q58: 24666.29221 | R58: 20280.35428 | S58: 14906.84345 | T58: 9752.423114 | U58: 5684.103196 | V58: 2962.512992 | W58: 1388.049671 | X58: 588.6558932 | Y58: 226.9354418 | Z58: 0 | AA58: 0 | AB58: Traffic.3G.devices.busy.hour.data.operator.modelled
D59: Data traffic (including VoLTE) for LTE devices | H59: Mbps | K59: =K22/$K$40*$K$41*K$44*$K$45*(1+$K$48)*million*bits.per.byte/seconds.per.hour -> 162.2043049 | L59: 1916.011181 | M59: 12261.26247 | N59: 28376.20667 | O59: 50962.79499 | P59: 77703.64124 | Q59: 108343.7664 | R59: 144907.008 | S59: 186039.1528 | T59: 230243.6406 | U59: 276672.938 | V59: 324994.8365 | W59: 374925.2072 | X59: 427085.4076 | Y59: 482318.1898 | Z59: 540925.5682 | AA59: 603008.3757 | AB59: Traffic.LTE.devices.busy.hour.data.operator.modelled
B62: Busy hour traffic for the operator using national roaming on the network of the operator modelled
C64: Voice traffic
D65: Total annual voice traffic on 2G networks | H65: Erlangs | K65: =K30*million/$J$40*$J$41*$J$43/minutes.per.hour -> 0 | L65: 0 | M65: 0 | N65: 0 | O65: 0 | P65: 0 | Q65: 0 | R65: 0 | S65: 0 | T65: 0 | U65: 0 | V65: 0 | W65: 0 | X65: 0 | Y65: 0 | Z65: 0 | AA65: 0 | AB65: Traffic.2G.busy.hour.voice.operator.using.national.roaming
D66: Total annual voice traffic on 3G networks | H66: Erlangs | K66: =K31*million/$J$40*$J$41*$J$43/minutes.per.hour -> 0 | L66: 0 | M66: 0 | N66: 0 | O66: 0 | P66: 0 | Q66: 0 | R66: 0 | S66: 0 | T66: 0 | U66: 0 | V66: 0 | W66: 0 | X66: 0 | Y66: 0 | Z66: 0 | AA66: 0 | AB66: Traffic.3G.busy.hour.voice.operator.using.national.roaming
C68: Data traffic
D69: Data traffic for 3G devices | H69: Mbps | K69: =K32/$K$40*$K$41*K$44*$K$45*(1+$K$47)*million*bits.per.byte/seconds.per.hour -> 0 | L69: 0 | M69: 0 | N69: 0 | O69: 0 | P69: 0 | Q69: 0 | R69: 0 | S69: 0 | T69: 0 | U69: 0 | V69: 0 | W69: 0 | X69: 0 | Y69: 0 | Z69: 0 | AA69: 0 | AB69: Traffic.3G.devices.busy.hour.data.operator.using.national.roaming
D70: Data traffic for LTE devices | H70: Mbps | K70: =K33/$K$40*$K$41*K$44*$K$45*(1+$K$48)*million*bits.per.byte/seconds.per.hour -> 0 | L70: 0 | M70: 0 | N70: 0 | O70: 0 | P70: 0 | Q70: 0 | R70: 0 | S70: 0 | T70: 0 | U70: 0 | V70: 0 | W70: 0 | X70: 0 | Y70: 0 | Z70: 0 | AA70: 0 | AB70: Traffic.LTE.devices.busy.hour.data.operator.using.national.roaming
A74: Calculations for 2G
A76: Coverage
B78: 2G population coverage
E80: =INDEX(Coverage.options,C81,) -> Spare
C81: 1 | F81: Assuming the 2G coverage in 2013 is the same as the LTE target coverage | J81: =SUMPRODUCT(J82:J91,INDEX(Population.distribution.2010.2027,,J$3)) -> 0 | K81: 0 | L81: 0 | M81: 0 | N81: 0 | O81: 0 | P81: 0 | Q81: 0 | R81: 0 | S81: 0 | T81: 0 | U81: 0 | V81: 0 | W81: 0 | X81: 0 | Y81: 0 | Z81: 0 | AA81: 0
F82: =geotypes -> Dense urban | G82: Estimate | H82: % | J82: =INDEX(cumulative.pop.geotype1,MATCH(J164,cumulative.area.geotype1,1),) -> 0 | K82: 0 | L82: 0 | M82: 0 | N82: 0 | O82: 0 | P82: 0 | Q82: 0 | R82: 0 | S82: 0 | T82: 0 | U82: 0 | V82: 0 | W82: 0 | X82: 0 | Y82: 0 | Z82: 0 | AA82: 0
F83: Urban in metropolitan areas | G83: Estimate | H83: % | J83: =INDEX(cumulative.pop.geotype2,MATCH(J165,cumulative.area.geotype2,1),) -> 0 | K83: 0 | L83: 0 | M83: 0 | N83: 0 | O83: 0 | P83: 0 | Q83: 0 | R83: 0 | S83: 0 | T83: 0 | U83: 0 | V83: 0 | W83: 0 | X83: 0 | Y83: 0 | Z83: 0 | AA83: 0
F84: Urban in regional areas | G84: Estimate | H84: % | J84: =INDEX(cumulative.pop.geotype3,MATCH(J166,cumulative.area.geotype3,1),) -> 0 | K84: 0 | L84: 0 | M84: 0 | N84: 0 | O84: 0 | P84: 0 | Q84: 0 | R84: 0 | S84: 0 | T84: 0 | U84: 0 | V84: 0 | W84: 0 | X84: 0 | Y84: 0 | Z84: 0 | AA84: 0
F85: Suburban in metropolitan areas | H85: % | J85: =INDEX(cumulative.pop.geotype4,MATCH(J167,cumulative.area.geotype4,1),) -> 0 | K85: 0 | L85: 0 | M85: 0 | N85: 0 | O85: 0 | P85: 0 | Q85: 0 | R85: 0 | S85: 0 | T85: 0 | U85: 0 | V85: 0 | W85: 0 | X85: 0 | Y85: 0 | Z85: 0 | AA85: 0
F86: Suburban in regional areas | H86: % | J86: =INDEX(cumulative.pop.geotype5,MATCH(J168,cumulative.area.geotype5,1),) -> 0 | K86: 0 | L86: 0 | M86: 0 | N86: 0 | O86: 0 | P86: 0 | Q86: 0 | R86: 0 | S86: 0 | T86: 0 | U86: 0 | V86: 0 | W86: 0 | X86: 0 | Y86: 0 | Z86: 0 | AA86: 0
F87: Rural | J87: =INDEX(cumulative.pop.geotype6,MATCH(J169,cumulative.area.geotype6,1),) -> 0 | K87: 0 | L87: 0 | M87: 0 | N87: 0 | O87: 0 | P87: 0 | Q87: 0 | R87: 0 | S87: 0 | T87: 0 | U87: 0 | V87: 0 | W87: 0 | X87: 0 | Y87: 0 | Z87: 0 | AA87: 0
F88: Remote | J88: =INDEX(cumulative.pop.geotype7,MATCH(J170,cumulative.area.geotype7,1),) -> 0 | K88: 0 | L88: 0 | M88: 0 | N88: 0 | O88: 0 | P88: 0 | Q88: 0 | R88: 0 | S88: 0 | T88: 0 | U88: 0 | V88: 0 | W88: 0 | X88: 0 | Y88: 0 | Z88: 0 | AA88: 0
F89: Spare | J89: =INDEX(cumulative.pop.geotype8,MATCH(J171,cumulative.area.geotype8,1),) -> 0 | K89: 0 | L89: 0 | M89: 0 | N89: 0 | O89: 0 | P89: 0 | Q89: 0 | R89: 0 | S89: 0 | T89: 0 | U89: 0 | V89: 0 | W89: 0 | X89: 0 | Y89: 0 | Z89: 0 | AA89: 0
F90: Spare | J90: =INDEX(cumulative.pop.geotype9,MATCH(J172,cumulative.area.geotype9,1),) -> 0 | K90: 0 | L90: 0 | M90: 0 | N90: 0 | O90: 0 | P90: 0 | Q90: 0 | R90: 0 | S90: 0 | T90: 0 | U90: 0 | V90: 0 | W90: 0 | X90: 0 | Y90: 0 | Z90: 0 | AA90: 0
F91: Spare | J91: =INDEX(cumulative.pop.geotype10,MATCH(J173,cumulative.area.geotype10,1),) -> 0 | K91: 0 | L91: 0 | M91: 0 | N91: 0 | O91: 0 | P91: 0 | Q91: 0 | R91: 0 | S91: 0 | T91: 0 | U91: 0 | V91: 0 | W91: 0 | X91: 0 | Y91: 0 | Z91: 0 | AA91: 0
E93: =INDEX(Coverage.options,C94,) -> Telstra's 2013 coverage
C94: =1+C81 -> 2 | F94: These percentages aim to replicate Telstra's 2013 coverage in any band (therefore assuming the "total coverage" values announced by Telstra are applicable to both 2G and 3G) | J94: =SUMPRODUCT(J95:J104,INDEX(Population.distribution.2010.2027,,J$3)) -> 0.9878563826 | K94: 0.9878563826 | L94: 0.9878563826 | M94: 0.9878563826 | N94: 0.9878563826 | O94: 0.9878563826 | P94: 0.9878563826 | Q94: 0.9878563826 | R94: 0.9878563826 | S94: 0.9878563826 | T94: 0.9878563826 | U94: 0.9878563826 | V94: 0.9878563826 | W94: 0.9878563826 | X94: 0.9878563826 | Y94: 0.9878563826 | Z94: 0.9878563826 | AA94: 0.9878563826
F95: =geotypes -> Dense urban | G95: Estimate informed by geo-analysis | H95: % | J95: =INDEX(cumulative.pop.geotype1,MATCH(J177,cumulative.area.geotype1,1),) -> 1 | K95: 1 | L95: 1 | M95: 1 | N95: 1 | O95: 1 | P95: 1 | Q95: 1 | R95: 1 | S95: 1 | T95: 1 | U95: 1 | V95: 1 | W95: 1 | X95: 1 | Y95: 1 | Z95: 1 | AA95: 1 | AF95: S-curve 3
F96: Urban in metropolitan areas | G96: Estimate informed by geo-analysis | H96: % | J96: =INDEX(cumulative.pop.geotype2,MATCH(J178,cumulative.area.geotype2,1),) -> 1 | K96: 1 | L96: 1 | M96: 1 | N96: 1 | O96: 1 | P96: 1 | Q96: 1 | R96: 1 | S96: 1 | T96: 1 | U96: 1 | V96: 1 | W96: 1 | X96: 1 | Y96: 1 | Z96: 1 | AA96: 1 | AF96: S-curve 3
F97: Urban in regional areas | G97: Estimate informed by geo-analysis | H97: % | J97: =INDEX(cumulative.pop.geotype3,MATCH(J179,cumulative.area.geotype3,1),) -> 1 | K97: 1 | L97: 1 | M97: 1 | N97: 1 | O97: 1 | P97: 1 | Q97: 1 | R97: 1 | S97: 1 | T97: 1 | U97: 1 | V97: 1 | W97: 1 | X97: 1 | Y97: 1 | Z97: 1 | AA97: 1 | AF97: S-curve 4
F98: Suburban in metropolitan areas | G98: Estimate informed by geo-analysis | H98: % | J98: =INDEX(cumulative.pop.geotype4,MATCH(J180,cumulative.area.geotype4,1),) -> 1 | K98: 1 | L98: 1 | M98: 1 | N98: 1 | O98: 1 | P98: 1 | Q98: 1 | R98: 1 | S98: 1 | T98: 1 | U98: 1 | V98: 1 | W98: 1 | X98: 1 | Y98: 1 | Z98: 1 | AA98: 1 | AF98: S-curve 5
F99: Suburban in regional areas | G99: Estimate informed by geo-analysis | H99: % | J99: =INDEX(cumulative.pop.geotype5,MATCH(J181,cumulative.area.geotype5,1),) -> 1 | K99: 1 | L99: 1 | M99: 1 | N99: 1 | O99: 1 | P99: 1 | Q99: 1 | R99: 1 | S99: 1 | T99: 1 | U99: 1 | V99: 1 | W99: 1 | X99: 1 | Y99: 1 | Z99: 1 | AA99: 1 | AF99: S-curve 6
F100: Rural | J100: =INDEX(cumulative.pop.geotype6,MATCH(J182,cumulative.area.geotype6,1),) -> 0.9662777588 | K100: 0.9662777588 | L100: 0.9662777588 | M100: 0.9662777588 | N100: 0.9662777588 | O100: 0.9662777588 | P100: 0.9662777588 | Q100: 0.9662777588 | R100: 0.9662777588 | S100: 0.9662777588 | T100: 0.9662777588 | U100: 0.9662777588 | V100: 0.9662777588 | W100: 0.9662777588 | X100: 0.9662777588 | Y100: 0.9662777588 | Z100: 0.9662777588 | AA100: 0.9662777588
F101: Remote | J101: =INDEX(cumulative.pop.geotype7,MATCH(J183,cumulative.area.geotype7,1),) -> 0.3381889558 | K101: 0.3381889558 | L101: 0.3381889558 | M101: 0.3381889558 | N101: 0.3381889558 | O101: 0.3381889558 | P101: 0.3381889558 | Q101: 0.3381889558 | R101: 0.3381889558 | S101: 0.3381889558 | T101: 0.3381889558 | U101: 0.3381889558 | V101: 0.3381889558 | W101: 0.3381889558 | X101: 0.3381889558 | Y101: 0.3381889558 | Z101: 0.3381889558 | AA101: 0.3381889558
F102: Spare | J102: =INDEX(cumulative.pop.geotype8,MATCH(J184,cumulative.area.geotype8,1),) -> 0 | K102: 0 | L102: 0 | M102: 0 | N102: 0 | O102: 0 | P102: 0 | Q102: 0 | R102: 0 | S102: 0 | T102: 0 | U102: 0 | V102: 0 | W102: 0 | X102: 0 | Y102: 0 | Z102: 0 | AA102: 0
F103: Spare | J103: =INDEX(cumulative.pop.geotype9,MATCH(J185,cumulative.area.geotype9,1),) -> 0 | K103: 0 | L103: 0 | M103: 0 | N103: 0 | O103: 0 | P103: 0 | Q103: 0 | R103: 0 | S103: 0 | T103: 0 | U103: 0 | V103: 0 | W103: 0 | X103: 0 | Y103: 0 | Z103: 0 | AA103: 0
F104: Spare | J104: =INDEX(cumulative.pop.geotype10,MATCH(J186,cumulative.area.geotype10,1),) -> 0 | K104: 0 | L104: 0 | M104: 0 | N104: 0 | O104: 0 | P104: 0 | Q104: 0 | R104: 0 | S104: 0 | T104: 0 | U104: 0 | V104: 0 | W104: 0 | X104: 0 | Y104: 0 | Z104: 0 | AA104: 0
E106: =INDEX(Coverage.options,C107,) -> Optus' 2013 coverage
C107: =1+C94 -> 3 | F107: These percentages aim to replicate Optus' 2013 coverage in any band (therefore assuming the "total coverage" values announced by Optus are applicable to both 2G and 3G) | J107: =SUMPRODUCT(J108:J117,INDEX(Population.distribution.2010.2027,,J$3)) -> 0.9878563826 | K107: 0.9878563826 | L107: 0.9878563826 | M107: 0.9878563826 | N107: 0.9878563826 | O107: 0.9878563826 | P107: 0.9878563826 | Q107: 0.9878563826 | R107: 0.9878563826 | S107: 0.9878563826 | T107: 0.9878563826 | U107: 0.9878563826 | V107: 0.9878563826 | W107: 0.9878563826 | X107: 0.9878563826 | Y107: 0.9878563826 | Z107: 0.9878563826 | AA107: 0.9878563826
F108: =geotypes -> Dense urban | G108: Estimate informed by geo-analysis | H108: % | J108: =INDEX(cumulative.pop.geotype1,MATCH(J190,cumulative.area.geotype1,1),) -> 1 | K108: 1 | L108: 1 | M108: 1 | N108: 1 | O108: 1 | P108: 1 | Q108: 1 | R108: 1 | S108: 1 | T108: 1 | U108: 1 | V108: 1 | W108: 1 | X108: 1 | Y108: 1 | Z108: 1 | AA108: 1 | AF108: S-curve 3
F109: Urban in metropolitan areas | G109: Estimate informed by geo-analysis | H109: % | J109: =INDEX(cumulative.pop.geotype2,MATCH(J191,cumulative.area.geotype2,1),) -> 1 | K109: 1 | L109: 1 | M109: 1 | N109: 1 | O109: 1 | P109: 1 | Q109: 1 | R109: 1 | S109: 1 | T109: 1 | U109: 1 | V109: 1 | W109: 1 | X109: 1 | Y109: 1 | Z109: 1 | AA109: 1 | AF109: S-curve 3
F110: Urban in regional areas | G110: Estimate informed by geo-analysis | H110: % | J110: =INDEX(cumulative.pop.geotype3,MATCH(J192,cumulative.area.geotype3,1),) -> 1 | K110: 1 | L110: 1 | M110: 1 | N110: 1 | O110: 1 | P110: 1 | Q110: 1 | R110: 1 | S110: 1 | T110: 1 | U110: 1 | V110: 1 | W110: 1 | X110: 1 | Y110: 1 | Z110: 1 | AA110: 1 | AF110: S-curve 4
F111: Suburban in metropolitan areas | G111: Estimate informed by geo-analysis | H111: % | J111: =INDEX(cumulative.pop.geotype4,MATCH(J193,cumulative.area.geotype4,1),) -> 1 | K111: 1 | L111: 1 | M111: 1 | N111: 1 | O111: 1 | P111: 1 | Q111: 1 | R111: 1 | S111: 1 | T111: 1 | U111: 1 | V111: 1 | W111: 1 | X111: 1 | Y111: 1 | Z111: 1 | AA111: 1 | AF111: S-curve 5
F112: Suburban in regional areas | G112: Estimate informed by geo-analysis | H112: % | J112: =INDEX(cumulative.pop.geotype5,MATCH(J194,cumulative.area.geotype5,1),) -> 1 | K112: 1 | L112: 1 | M112: 1 | N112: 1 | O112: 1 | P112: 1 | Q112: 1 | R112: 1 | S112: 1 | T112: 1 | U112: 1 | V112: 1 | W112: 1 | X112: 1 | Y112: 1 | Z112: 1 | AA112: 1 | AF112: S-curve 6
F113: Rural | J113: =INDEX(cumulative.pop.geotype6,MATCH(J195,cumulative.area.geotype6,1),) -> 0.9662777588 | K113: 0.9662777588 | L113: 0.9662777588 | M113: 0.9662777588 | N113: 0.9662777588 | O113: 0.9662777588 | P113: 0.9662777588 | Q113: 0.9662777588 | R113: 0.9662777588 | S113: 0.9662777588 | T113: 0.9662777588 | U113: 0.9662777588 | V113: 0.9662777588 | W113: 0.9662777588 | X113: 0.9662777588 | Y113: 0.9662777588 | Z113: 0.9662777588 | AA113: 0.9662777588
F114: Remote | J114: =INDEX(cumulative.pop.geotype7,MATCH(J196,cumulative.area.geotype7,1),) -> 0.3381889558 | K114: 0.3381889558 | L114: 0.3381889558 | M114: 0.3381889558 | N114: 0.3381889558 | O114: 0.3381889558 | P114: 0.3381889558 | Q114: 0.3381889558 | R114: 0.3381889558 | S114: 0.3381889558 | T114: 0.3381889558 | U114: 0.3381889558 | V114: 0.3381889558 | W114: 0.3381889558 | X114: 0.3381889558 | Y114: 0.3381889558 | Z114: 0.3381889558 | AA114: 0.3381889558
F115: Spare | J115: =INDEX(cumulative.pop.geotype8,MATCH(J197,cumulative.area.geotype8,1),) -> 0 | K115: 0 | L115: 0 | M115: 0 | N115: 0 | O115: 0 | P115: 0 | Q115: 0 | R115: 0 | S115: 0 | T115: 0 | U115: 0 | V115: 0 | W115: 0 | X115: 0 | Y115: 0 | Z115: 0 | AA115: 0
F116: Spare | J116: =INDEX(cumulative.pop.geotype9,MATCH(J198,cumulative.area.geotype9,1),) -> 0 | K116: 0 | L116: 0 | M116: 0 | N116: 0 | O116: 0 | P116: 0 | Q116: 0 | R116: 0 | S116: 0 | T116: 0 | U116: 0 | V116: 0 | W116: 0 | X116: 0 | Y116: 0 | Z116: 0 | AA116: 0
F117: Spare | J117: =INDEX(cumulative.pop.geotype10,MATCH(J199,cumulative.area.geotype10,1),) -> 0 | K117: 0 | L117: 0 | M117: 0 | N117: 0 | O117: 0 | P117: 0 | Q117: 0 | R117: 0 | S117: 0 | T117: 0 | U117: 0 | V117: 0 | W117: 0 | X117: 0 | Y117: 0 | Z117: 0 | AA117: 0
E119: =INDEX(Coverage.options,C120,) -> Vodafone Hutchison's 2013 coverage
C120: =1+C107 -> 4 | F120: These percentages aim to replicate Vodafone Hutchison's 2013 coverage in any band (therefore assuming the "total coverage" values announced by Vodafone Hutchison are applicable to both 2G and 3G) | J120: =SUMPRODUCT(J121:J130,INDEX(Population.distribution.2010.2027,,J$3)) -> 0.9878563826 | K120: 0.9878563826 | L120: 0.9878563826 | M120: 0.9878563826 | N120: 0.9878563826 | O120: 0.9878563826 | P120: 0.9878563826 | Q120: 0.9878563826 | R120: 0.9878563826 | S120: 0.9878563826 | T120: 0.9878563826 | U120: 0.9878563826 | V120: 0.9878563826 | W120: 0.9878563826 | X120: 0.9878563826 | Y120: 0.9878563826 | Z120: 0.9878563826 | AA120: 0.9878563826
F121: =geotypes -> Dense urban | G121: Estimate informed by geo-analysis | H121: % | J121: =INDEX(cumulative.pop.geotype1,MATCH(J203,cumulative.area.geotype1,1),) -> 1 | K121: 1 | L121: 1 | M121: 1 | N121: 1 | O121: 1 | P121: 1 | Q121: 1 | R121: 1 | S121: 1 | T121: 1 | U121: 1 | V121: 1 | W121: 1 | X121: 1 | Y121: 1 | Z121: 1 | AA121: 1 | AF121: S-curve 3
F122: Urban in metropolitan areas | G122: Estimate informed by geo-analysis | H122: % | J122: =INDEX(cumulative.pop.geotype2,MATCH(J204,cumulative.area.geotype2,1),) -> 1 | K122: 1 | L122: 1 | M122: 1 | N122: 1 | O122: 1 | P122: 1 | Q122: 1 | R122: 1 | S122: 1 | T122: 1 | U122: 1 | V122: 1 | W122: 1 | X122: 1 | Y122: 1 | Z122: 1 | AA122: 1 | AF122: S-curve 3
F123: Urban in regional areas | G123: Estimate informed by geo-analysis | H123: % | J123: =INDEX(cumulative.pop.geotype3,MATCH(J205,cumulative.area.geotype3,1),) -> 1 | K123: 1 | L123: 1 | M123: 1 | N123: 1 | O123: 1 | P123: 1 | Q123: 1 | R123: 1 | S123: 1 | T123: 1 | U123: 1 | V123: 1 | W123: 1 | X123: 1 | Y123: 1 | Z123: 1 | AA123: 1 | AF123: S-curve 4
F124: Suburban in metropolitan areas | G124: Estimate informed by geo-analysis | H124: % | J124: =INDEX(cumulative.pop.geotype4,MATCH(J206,cumulative.area.geotype4,1),) -> 1 | K124: 1 | L124: 1 | M124: 1 | N124: 1 | O124: 1 | P124: 1 | Q124: 1 | R124: 1 | S124: 1 | T124: 1 | U124: 1 | V124: 1 | W124: 1 | X124: 1 | Y124: 1 | Z124: 1 | AA124: 1 | AF124: S-curve 5
F125: Suburban in regional areas | G125: Estimate informed by geo-analysis | H125: % | J125: =INDEX(cumulative.pop.geotype5,MATCH(J207,cumulative.area.geotype5,1),) -> 1 | K125: 1 | L125: 1 | M125: 1 | N125: 1 | O125: 1 | P125: 1 | Q125: 1 | R125: 1 | S125: 1 | T125: 1 | U125: 1 | V125: 1 | W125: 1 | X125: 1 | Y125: 1 | Z125: 1 | AA125: 1 | AF125: S-curve 6
F126: Rural | J126: =INDEX(cumulative.pop.geotype6,MATCH(J208,cumulative.area.geotype6,1),) -> 0.9662777588 | K126: 0.9662777588 | L126: 0.9662777588 | M126: 0.9662777588 | N126: 0.9662777588 | O126: 0.9662777588 | P126: 0.9662777588 | Q126: 0.9662777588 | R126: 0.9662777588 | S126: 0.9662777588 | T126: 0.9662777588 | U126: 0.9662777588 | V126: 0.9662777588 | W126: 0.9662777588 | X126: 0.9662777588 | Y126: 0.9662777588 | Z126: 0.9662777588 | AA126: 0.9662777588
F127: Remote | J127: =INDEX(cumulative.pop.geotype7,MATCH(J209,cumulative.area.geotype7,1),) -> 0.3381889558 | K127: 0.3381889558 | L127: 0.3381889558 | M127: 0.3381889558 | N127: 0.3381889558 | O127: 0.3381889558 | P127: 0.3381889558 | Q127: 0.3381889558 | R127: 0.3381889558 | S127: 0.3381889558 | T127: 0.3381889558 | U127: 0.3381889558 | V127: 0.3381889558 | W127: 0.3381889558 | X127: 0.3381889558 | Y127: 0.3381889558 | Z127: 0.3381889558 | AA127: 0.3381889558
F128: Spare | J128: =INDEX(cumulative.pop.geotype8,MATCH(J210,cumulative.area.geotype8,1),) -> 0 | K128: 0 | L128: 0 | M128: 0 | N128: 0 | O128: 0 | P128: 0 | Q128: 0 | R128: 0 | S128: 0 | T128: 0 | U128: 0 | V128: 0 | W128: 0 | X128: 0 | Y128: 0 | Z128: 0 | AA128: 0
F129: Spare | J129: =INDEX(cumulative.pop.geotype9,MATCH(J211,cumulative.area.geotype9,1),) -> 0 | K129: 0 | L129: 0 | M129: 0 | N129: 0 | O129: 0 | P129: 0 | Q129: 0 | R129: 0 | S129: 0 | T129: 0 | U129: 0 | V129: 0 | W129: 0 | X129: 0 | Y129: 0 | Z129: 0 | AA129: 0
F130: Spare | J130: =INDEX(cumulative.pop.geotype10,MATCH(J212,cumulative.area.geotype10,1),) -> 0 | K130: 0 | L130: 0 | M130: 0 | N130: 0 | O130: 0 | P130: 0 | Q130: 0 | R130: 0 | S130: 0 | T130: 0 | U130: 0 | V130: 0 | W130: 0 | X130: 0 | Y130: 0 | Z130: 0 | AA130: 0
E132: =INDEX(Coverage.options,C133,) -> No roaming
C133: =1+C120 -> 5 | F133: Leave as it is | J133: =SUMPRODUCT(J134:J143,INDEX(Population.distribution.2010.2027,,J$3)) -> 0 | K133: 0 | L133: 0 | M133: 0 | N133: 0 | O133: 0 | P133: 0 | Q133: 0 | R133: 0 | S133: 0 | T133: 0 | U133: 0 | V133: 0 | W133: 0 | X133: 0 | Y133: 0 | Z133: 0 | AA133: 0
F134: =geotypes -> Dense urban | G134: Estimate informed by geo-analysis | H134: % | J134: 0 | K134: 0 | L134: 0 | M134: 0 | N134: 0 | O134: 0 | P134: 0 | Q134: 0 | R134: 0 | S134: 0 | T134: 0 | U134: 0 | V134: 0 | W134: 0 | X134: 0 | Y134: 0 | Z134: 0 | AA134: 0 | AF134: S-curve 3
F135: Urban in metropolitan areas | G135: Estimate informed by geo-analysis | H135: % | J135: 0 | K135: 0 | L135: 0 | M135: 0 | N135: 0 | O135: 0 | P135: 0 | Q135: 0 | R135: 0 | S135: 0 | T135: 0 | U135: 0 | V135: 0 | W135: 0 | X135: 0 | Y135: 0 | Z135: 0 | AA135: 0 | AF135: S-curve 3
F136: Urban in regional areas | G136: Estimate informed by geo-analysis | H136: % | J136: 0 | K136: 0 | L136: 0 | M136: 0 | N136: 0 | O136: 0 | P136: 0 | Q136: 0 | R136: 0 | S136: 0 | T136: 0 | U136: 0 | V136: 0 | W136: 0 | X136: 0 | Y136: 0 | Z136: 0 | AA136: 0 | AF136: S-curve 4
F137: Suburban in metropolitan areas | G137: Estimate informed by geo-analysis | H137: % | J137: 0 | K137: 0 | L137: 0 | M137: 0 | N137: 0 | O137: 0 | P137: 0 | Q137: 0 | R137: 0 | S137: 0 | T137: 0 | U137: 0 | V137: 0 | W137: 0 | X137: 0 | Y137: 0 | Z137: 0 | AA137: 0 | AF137: S-curve 5
F138: Suburban in regional areas | G138: Estimate informed by geo-analysis | H138: % | J138: 0 | K138: 0 | L138: 0 | M138: 0 | N138: 0 | O138: 0 | P138: 0 | Q138: 0 | R138: 0 | S138: 0 | T138: 0 | U138: 0 | V138: 0 | W138: 0 | X138: 0 | Y138: 0 | Z138: 0 | AA138: 0 | AF138: S-curve 6
F139: Rural | J139: 0 | K139: 0 | L139: 0 | M139: 0 | N139: 0 | O139: 0 | P139: 0 | Q139: 0 | R139: 0 | S139: 0 | T139: 0 | U139: 0 | V139: 0 | W139: 0 | X139: 0 | Y139: 0 | Z139: 0 | AA139: 0
F140: Remote | J140: 0 | K140: 0 | L140: 0 | M140: 0 | N140: 0 | O140: 0 | P140: 0 | Q140: 0 | R140: 0 | S140: 0 | T140: 0 | U140: 0 | V140: 0 | W140: 0 | X140: 0 | Y140: 0 | Z140: 0 | AA140: 0
F141: Spare | J141: 0 | K141: 0 | L141: 0 | M141: 0 | N141: 0 | O141: 0 | P141: 0 | Q141: 0 | R141: 0 | S141: 0 | T141: 0 | U141: 0 | V141: 0 | W141: 0 | X141: 0 | Y141: 0 | Z141: 0 | AA141: 0
F142: Spare | J142: 0 | K142: 0 | L142: 0 | M142: 0 | N142: 0 | O142: 0 | P142: 0 | Q142: 0 | R142: 0 | S142: 0 | T142: 0 | U142: 0 | V142: 0 | W142: 0 | X142: 0 | Y142: 0 | Z142: 0 | AA142: 0
F143: Spare | J143: 0 | K143: 0 | L143: 0 | M143: 0 | N143: 0 | O143: 0 | P143: 0 | Q143: 0 | R143: 0 | S143: 0 | T143: 0 | U143: 0 | V143: 0 | W143: 0 | X143: 0 | Y143: 0 | Z143: 0 | AA143: 0
E145: =INDEX(Coverage.options,C146,) -> Spare
C146: =1+C133 -> 6 | F146: Can be used to create another coverage scenario | J146: =SUMPRODUCT(J147:J156,INDEX(Population.distribution.2010.2027,,J$3)) -> 0 | K146: 0 | L146: 0 | M146: 0 | N146: 0 | O146: 0 | P146: 0 | Q146: 0 | R146: 0 | S146: 0 | T146: 0 | U146: 0 | V146: 0 | W146: 0 | X146: 0 | Y146: 0 | Z146: 0 | AA146: 0
F147: =geotypes -> Dense urban | G147: Estimate informed by geo-analysis | H147: % | J147: =INDEX(cumulative.pop.geotype1,MATCH(J229,cumulative.area.geotype1,1),) -> 0 | K147: 0 | L147: 0 | M147: 0 | N147: 0 | O147: 0 | P147: 0 | Q147: 0 | R147: 0 | S147: 0 | T147: 0 | U147: 0 | V147: 0 | W147: 0 | X147: 0 | Y147: 0 | Z147: 0 | AA147: 0 | AF147: S-curve 3
F148: Urban in metropolitan areas | G148: Estimate informed by geo-analysis | H148: % | J148: =INDEX(cumulative.pop.geotype2,MATCH(J230,cumulative.area.geotype2,1),) -> 0 | K148: 0 | L148: 0 | M148: 0 | N148: 0 | O148: 0 | P148: 0 | Q148: 0 | R148: 0 | S148: 0 | T148: 0 | U148: 0 | V148: 0 | W148: 0 | X148: 0 | Y148: 0 | Z148: 0 | AA148: 0 | AF148: S-curve 3
F149: Urban in regional areas | G149: Estimate informed by geo-analysis | H149: % | J149: =INDEX(cumulative.pop.geotype3,MATCH(J231,cumulative.area.geotype3,1),) -> 0 | K149: 0 | L149: 0 | M149: 0 | N149: 0 | O149: 0 | P149: 0 | Q149: 0 | R149: 0 | S149: 0 | T149: 0 | U149: 0 | V149: 0 | W149: 0 | X149: 0 | Y149: 0 | Z149: 0 | AA149: 0 | AF149: S-curve 4
F150: Suburban in metropolitan areas | G150: Estimate informed by geo-analysis | H150: % | J150: =INDEX(cumulative.pop.geotype4,MATCH(J232,cumulative.area.geotype4,1),) -> 0 | K150: 0 | L150: 0 | M150: 0 | N150: 0 | O150: 0 | P150: 0 | Q150: 0 | R150: 0 | S150: 0 | T150: 0 | U150: 0 | V150: 0 | W150: 0 | X150: 0 | Y150: 0 | Z150: 0 | AA150: 0 | AF150: S-curve 5
F151: Suburban in regional areas | G151: Estimate informed by geo-analysis | H151: % | J151: =INDEX(cumulative.pop.geotype5,MATCH(J233,cumulative.area.geotype5,1),) -> 0 | K151: 0 | L151: 0 | M151: 0 | N151: 0 | O151: 0 | P151: 0 | Q151: 0 | R151: 0 | S151: 0 | T151: 0 | U151: 0 | V151: 0 | W151: 0 | X151: 0 | Y151: 0 | Z151: 0 | AA151: 0 | AF151: S-curve 6
F152: Rural | J152: =INDEX(cumulative.pop.geotype6,MATCH(J234,cumulative.area.geotype6,1),) -> 0 | K152: 0 | L152: 0 | M152: 0 | N152: 0 | O152: 0 | P152: 0 | Q152: 0 | R152: 0 | S152: 0 | T152: 0 | U152: 0 | V152: 0 | W152: 0 | X152: 0 | Y152: 0 | Z152: 0 | AA152: 0
F153: Remote | J153: =INDEX(cumulative.pop.geotype7,MATCH(J235,cumulative.area.geotype7,1),) -> 0 | K153: 0 | L153: 0 | M153: 0 | N153: 0 | O153: 0 | P153: 0 | Q153: 0 | R153: 0 | S153: 0 | T153: 0 | U153: 0 | V153: 0 | W153: 0 | X153: 0 | Y153: 0 | Z153: 0 | AA153: 0
F154: Spare | J154: =INDEX(cumulative.pop.geotype8,MATCH(J236,cumulative.area.geotype8,1),) -> 0 | K154: 0 | L154: 0 | M154: 0 | N154: 0 | O154: 0 | P154: 0 | Q154: 0 | R154: 0 | S154: 0 | T154: 0 | U154: 0 | V154: 0 | W154: 0 | X154: 0 | Y154: 0 | Z154: 0 | AA154: 0
F155: Spare | J155: =INDEX(cumulative.pop.geotype9,MATCH(J237,cumulative.area.geotype9,1),) -> 0 | K155: 0 | L155: 0 | M155: 0 | N155: 0 | O155: 0 | P155: 0 | Q155: 0 | R155: 0 | S155: 0 | T155: 0 | U155: 0 | V155: 0 | W155: 0 | X155: 0 | Y155: 0 | Z155: 0 | AA155: 0
F156: Spare | J156: =INDEX(cumulative.pop.geotype10,MATCH(J238,cumulative.area.geotype10,1),) -> 0 | K156: 0 | L156: 0 | M156: 0 | N156: 0 | O156: 0 | P156: 0 | Q156: 0 | R156: 0 | S156: 0 | T156: 0 | U156: 0 | V156: 0 | W156: 0 | X156: 0 | Y156: 0 | Z156: 0 | AA156: 0
C157: Population.coverage.2G.all.scenarios.numbers | AB157: Population.coverage.2G.all.scenarios
B160: 2G area coverage
E162: =INDEX(Coverage.options,C163,) -> Spare
C163: =C81 -> 1 | F163: Can be used to create another coverage scenario | J163: =SUMPRODUCT(J164:J173,area.to.be.covered.distribution)*SUM(area.to.be.covered)/SUM(area) -> 0 | K163: 0 | L163: 0 | M163: 0 | N163: 0 | O163: 0 | P163: 0 | Q163: 0 | R163: 0 | S163: 0 | T163: 0 | U163: 0 | V163: 0 | W163: 0 | X163: 0 | Y163: 0 | Z163: 0 | AA163: 0
F164: =geotypes -> Dense urban | H164: % | J164: =K164 -> 0 | K164: =L164 -> 0 | L164: =M164 -> 0 | M164: 0 | N164: =M164 -> 0 | O164: =N164 -> 0 | P164: =O164 -> 0 | Q164: =P164 -> 0 | R164: =Q164 -> 0 | S164: =R164 -> 0 | T164: =S164 -> 0 | U164: =T164 -> 0 | V164: =U164 -> 0 | W164: =V164 -> 0 | X164: =W164 -> 0 | Y164: =X164 -> 0 | Z164: =Y164 -> 0 | AA164: =Z164 -> 0
F165: Urban in metropolitan areas | H165: % | J165: 0 | K165: 0 | L165: =M165 -> 0 | M165: 0 | N165: 0 | O165: 0 | P165: 0 | Q165: 0 | R165: 0 | S165: 0 | T165: 0 | U165: =T165 -> 0 | V165: 0 | W165: 0 | X165: 0 | Y165: 0 | Z165: 0 | AA165: 0
F166: Urban in regional areas | H166: % | J166: 0 | K166: 0 | L166: 0 | M166: 0 | N166: 0 | O166: 0 | P166: 0 | Q166: 0 | R166: 0 | S166: 0 | T166: 0 | U166: 0 | V166: 0 | W166: 0 | X166: 0 | Y166: 0 | Z166: 0 | AA166: 0
F167: Suburban in metropolitan areas | H167: % | J167: 0 | K167: 0 | L167: 0 | M167: 0 | N167: 0 | O167: 0 | P167: 0 | Q167: 0 | R167: 0 | S167: 0 | T167: 0 | U167: 0 | V167: 0 | W167: 0 | X167: 0 | Y167: 0 | Z167: 0 | AA167: 0
F168: Suburban in regional areas | H168: % | J168: 0 | K168: 0 | L168: 0 | M168: 0 | N168: 0 | O168: 0 | P168: 0 | Q168: 0 | R168: 0 | S168: 0 | T168: 0 | U168: 0 | V168: 0 | W168: 0 | X168: 0 | Y168: 0 | Z168: 0 | AA168: 0
F169: Rural | J169: 0 | K169: 0 | L169: 0 | M169: 0 | N169: 0 | O169: 0 | P169: 0 | Q169: 0 | R169: 0 | S169: 0 | T169: 0 | U169: 0 | V169: 0 | W169: 0 | X169: 0 | Y169: 0 | Z169: 0 | AA169: 0
F170: Remote | J170: 0 | K170: 0 | L170: 0 | M170: 0 | N170: 0 | O170: 0 | P170: 0 | Q170: 0 | R170: 0 | S170: 0 | T170: 0 | U170: 0 | V170: 0 | W170: 0 | X170: 0 | Y170: 0 | Z170: 0 | AA170: 0
F171: Spare | J171: 0 | K171: 0 | L171: 0 | M171: 0 | N171: 0 | O171: 0 | P171: 0 | Q171: 0 | R171: 0 | S171: 0 | T171: 0 | U171: 0 | V171: 0 | W171: 0 | X171: 0 | Y171: 0 | Z171: 0 | AA171: 0
F172: Spare | J172: 0 | K172: 0 | L172: 0 | M172: 0 | N172: 0 | O172: 0 | P172: 0 | Q172: 0 | R172: 0 | S172: 0 | T172: 0 | U172: 0 | V172: 0 | W172: 0 | X172: 0 | Y172: 0 | Z172: 0 | AA172: 0
F173: Spare | J173: 0 | K173: 0 | L173: 0 | M173: 0 | N173: 0 | O173: 0 | P173: 0 | Q173: 0 | R173: 0 | S173: 0 | T173: 0 | U173: 0 | V173: 0 | W173: 0 | X173: 0 | Y173: 0 | Z173: 0 | AA173: 0
E175: =INDEX(Coverage.options,C176,) -> Telstra's 2013 coverage
C176: =C94 -> 2 | F176: These percentages aim to replicate Telstra's 2013 coverage in any band (therefore assuming the "total coverage" values announced by Telstra are applicable to both 2G and 3G) | J176: =SUMPRODUCT(J177:J186,area.to.be.covered.distribution)*SUM(area.to.be.covered)/SUM(area) -> 0.1845708422 | K176: 0.1845708422 | L176: 0.1845708422 | M176: 0.1845708422 | N176: 0.1845708422 | O176: 0.1845708422 | P176: 0.1845708422 | Q176: 0.1845708422 | R176: 0.1845708422 | S176: 0.1845708422 | T176: 0.1845708422 | U176: 0.1845708422 | V176: 0.1845708422 | W176: 0.1845708422 | X176: 0.1845708422 | Y176: 0.1845708422 | Z176: 0.1845708422 | AA176: 0.1845708422
F177: =geotypes -> Dense urban | G177: Estimate informed by geo-analysis | H177: % | J177: =K177 -> 1 | K177: 1 | L177: =M177 -> 1 | M177: 1 | N177: =M177 -> 1 | O177: 1 | P177: 1 | Q177: 1 | R177: 1 | S177: 1 | T177: 1 | U177: =T177 -> 1 | V177: =U177 -> 1 | W177: =V177 -> 1 | X177: =W177 -> 1 | Y177: =X177 -> 1 | Z177: =Y177 -> 1 | AA177: =Z177 -> 1 | AF177: S-curve 3
F178: Urban in metropolitan areas | G178: Estimate informed by geo-analysis | H178: % | J178: =K178 -> 1 | K178: 1 | L178: 1 | M178: 1 | N178: 1 | O178: 1 | P178: 1 | Q178: 1 | R178: 1 | S178: 1 | T178: 1 | U178: =T178 -> 1 | V178: 1 | W178: 1 | X178: 1 | Y178: 1 | Z178: 1 | AA178: 1 | AF178: S-curve 3
F179: Urban in regional areas | G179: Estimate informed by geo-analysis | H179: % | J179: =K179 -> 1 | K179: 1 | L179: 1 | M179: 1 | N179: 1 | O179: 1 | P179: 1 | Q179: 1 | R179: 1 | S179: 1 | T179: 1 | U179: 1 | V179: 1 | W179: 1 | X179: 1 | Y179: 1 | Z179: 1 | AA179: 1 | AF179: S-curve 4
F180: Suburban in metropolitan areas | G180: Estimate informed by geo-analysis | H180: % | J180: =K180 -> 1 | K180: 1 | L180: 1 | M180: 1 | N180: 1 | O180: 1 | P180: 1 | Q180: 1 | R180: 1 | S180: 1 | T180: 1 | U180: 1 | V180: 1 | W180: 1 | X180: 1 | Y180: 1 | Z180: 1 | AA180: 1 | AF180: S-curve 5
F181: Suburban in regional areas | G181: Estimate informed by geo-analysis | H181: % | J181: =K181 -> 1 | K181: 1 | L181: 1 | M181: 1 | N181: 1 | O181: 1 | P181: 1 | Q181: 1 | R181: 1 | S181: 1 | T181: 1 | U181: 1 | V181: 1 | W181: 1 | X181: 1 | Y181: 1 | Z181: 1 | AA181: 1 | AF181: S-curve 6
F182: Rural | J182: =K182 -> 0.7 | K182: =L182 -> 0.7 | L182: =M182 -> 0.7 | M182: 0.7 | N182: =M182 -> 0.7 | O182: =N182 -> 0.7 | P182: =O182 -> 0.7 | Q182: =P182 -> 0.7 | R182: =Q182 -> 0.7 | S182: =R182 -> 0.7 | T182: =S182 -> 0.7 | U182: =T182 -> 0.7 | V182: =U182 -> 0.7 | W182: =V182 -> 0.7 | X182: =W182 -> 0.7 | Y182: =X182 -> 0.7 | Z182: =Y182 -> 0.7 | AA182: =Z182 -> 0.7
F183: Remote | J183: 0.1 | K183: 0.1 | L183: 0.1 | M183: 0.1 | N183: 0.1 | O183: 0.1 | P183: 0.1 | Q183: 0.1 | R183: 0.1 | S183: 0.1 | T183: 0.1 | U183: 0.1 | V183: 0.1 | W183: 0.1 | X183: 0.1 | Y183: 0.1 | Z183: 0.1 | AA183: 0.1
F184: Spare | J184: 0 | K184: 0 | L184: 0 | M184: 0 | N184: 0 | O184: 0 | P184: 0 | Q184: 0 | R184: 0 | S184: 0 | T184: 0 | U184: 0 | V184: 0 | W184: 0 | X184: 0 | Y184: 0 | Z184: 0 | AA184: 0
F185: Spare | J185: 0 | K185: 0 | L185: 0 | M185: 0 | N185: 0 | O185: 0 | P185: 0 | Q185: 0 | R185: 0 | S185: 0 | T185: 0 | U185: 0 | V185: 0 | W185: 0 | X185: 0 | Y185: 0 | Z185: 0 | AA185: 0
F186: Spare | J186: 0 | K186: 0 | L186: 0 | M186: 0 | N186: 0 | O186: 0 | P186: 0 | Q186: 0 | R186: 0 | S186: 0 | T186: 0 | U186: 0 | V186: 0 | W186: 0 | X186: 0 | Y186: 0 | Z186: 0 | AA186: 0
E188: =INDEX(Coverage.options,C189,) -> Optus' 2013 coverage
C189: =C107 -> 3 | F189: These percentages aim to replicate Optus' 2013 coverage in any band (therefore assuming the "total coverage" values announced by Optus are applicable to both 2G and 3G) | J189: =SUMPRODUCT(J190:J199,area.to.be.covered.distribution)*SUM(area.to.be.covered)/SUM(area) -> 0.1845708422 | K189: 0.1845708422 | L189: 0.1845708422 | M189: 0.1845708422 | N189: 0.1845708422 | O189: 0.1845708422 | P189: 0.1845708422 | Q189: 0.1845708422 | R189: 0.1845708422 | S189: 0.1845708422 | T189: 0.1845708422 | U189: 0.1845708422 | V189: 0.1845708422 | W189: 0.1845708422 | X189: 0.1845708422 | Y189: 0.1845708422 | Z189: 0.1845708422 | AA189: 0.1845708422
F190: =geotypes -> Dense urban | G190: Estimate informed by geo-analysis | H190: % | J190: =K190 -> 1 | K190: 1 | L190: =M190 -> 1 | M190: 1 | N190: =M190 -> 1 | O190: 1 | P190: 1 | Q190: 1 | R190: 1 | S190: 1 | T190: 1 | U190: =T190 -> 1 | V190: =U190 -> 1 | W190: =V190 -> 1 | X190: =W190 -> 1 | Y190: =X190 -> 1 | Z190: =Y190 -> 1 | AA190: =Z190 -> 1 | AF190: S-curve 3
F191: Urban in metropolitan areas | G191: Estimate informed by geo-analysis | H191: % | J191: =K191 -> 1 | K191: 1 | L191: 1 | M191: 1 | N191: =M191 -> 1 | O191: 1 | P191: 1 | Q191: 1 | R191: 1 | S191: 1 | T191: 1 | U191: =T191 -> 1 | V191: 1 | W191: 1 | X191: 1 | Y191: 1 | Z191: 1 | AA191: 1 | AF191: S-curve 3
F192: Urban in regional areas | G192: Estimate informed by geo-analysis | H192: % | J192: =K192 -> 1 | K192: 1 | L192: 1 | M192: 1 | N192: =M192 -> 1 | O192: 1 | P192: 1 | Q192: 1 | R192: 1 | S192: 1 | T192: 1 | U192: 1 | V192: 1 | W192: 1 | X192: 1 | Y192: 1 | Z192: 1 | AA192: 1 | AF192: S-curve 4
F193: Suburban in metropolitan areas | G193: Estimate informed by geo-analysis | H193: % | J193: =K193 -> 1 | K193: 1 | L193: 1 | M193: 1 | N193: =M193 -> 1 | O193: 1 | P193: 1 | Q193: 1 | R193: 1 | S193: 1 | T193: 1 | U193: 1 | V193: 1 | W193: 1 | X193: 1 | Y193: 1 | Z193: 1 | AA193: 1 | AF193: S-curve 5
F194: Suburban in regional areas | G194: Estimate informed by geo-analysis | H194: % | J194: =K194 -> 1 | K194: 1 | L194: 1 | M194: 1 | N194: =M194 -> 1 | O194: 1 | P194: 1 | Q194: 1 | R194: 1 | S194: 1 | T194: 1 | U194: 1 | V194: 1 | W194: 1 | X194: 1 | Y194: 1 | Z194: 1 | AA194: 1 | AF194: S-curve 6
F195: Rural | J195: 0.7 | K195: 0.7 | L195: 0.7 | M195: 0.7 | N195: 0.7 | O195: 0.7 | P195: 0.7 | Q195: 0.7 | R195: 0.7 | S195: 0.7 | T195: 0.7 | U195: 0.7 | V195: 0.7 | W195: 0.7 | X195: 0.7 | Y195: 0.7 | Z195: 0.7 | AA195: 0.7
F196: Remote | J196: 0.1 | K196: 0.1 | L196: 0.1 | M196: 0.1 | N196: 0.1 | O196: 0.1 | P196: 0.1 | Q196: 0.1 | R196: 0.1 | S196: 0.1 | T196: 0.1 | U196: 0.1 | V196: 0.1 | W196: 0.1 | X196: 0.1 | Y196: 0.1 | Z196: 0.1 | AA196: 0.1
F197: Spare | J197: 0 | K197: 0 | L197: 0 | M197: 0 | N197: 0 | O197: 0 | P197: 0 | Q197: 0 | R197: 0 | S197: 0 | T197: 0 | U197: 0 | V197: 0 | W197: 0 | X197: 0 | Y197: 0 | Z197: 0 | AA197: 0
F198: Spare | J198: 0 | K198: 0 | L198: 0 | M198: 0 | N198: 0 | O198: 0 | P198: 0 | Q198: 0 | R198: 0 | S198: 0 | T198: 0 | U198: 0 | V198: 0 | W198: 0 | X198: 0 | Y198: 0 | Z198: 0 | AA198: 0
F199: Spare | J199: 0 | K199: 0 | L199: 0 | M199: 0 | N199: 0 | O199: 0 | P199: 0 | Q199: 0 | R199: 0 | S199: 0 | T199: 0 | U199: 0 | V199: 0 | W199: 0 | X199: 0 | Y199: 0 | Z199: 0 | AA199: 0
E201: =INDEX(Coverage.options,C202,) -> Vodafone Hutchison's 2013 coverage
C202: =C120 -> 4 | F202: These percentages aim to replicate Vodafone Hutchison's 2013 coverage in any band (therefore assuming the "total coverage" values announced by Vodafone Hutchison are applicable to both 2G and 3G) | J202: =SUMPRODUCT(J203:J212,area.to.be.covered.distribution)*SUM(area.to.be.covered)/SUM(area) -> 0.1845708422 | K202: 0.1845708422 | L202: 0.1845708422 | M202: 0.1845708422 | N202: 0.1845708422 | O202: 0.1845708422 | P202: 0.1845708422 | Q202: 0.1845708422 | R202: 0.1845708422 | S202: 0.1845708422 | T202: 0.1845708422 | U202: 0.1845708422 | V202: 0.1845708422 | W202: 0.1845708422 | X202: 0.1845708422 | Y202: 0.1845708422 | Z202: 0.1845708422 | AA202: 0.1845708422
F203: =geotypes -> Dense urban | G203: Estimate informed by geo-analysis | H203: % | J203: =K203 -> 1 | K203: 1 | L203: =M203 -> 1 | M203: 1 | N203: =M203 -> 1 | O203: 1 | P203: 1 | Q203: 1 | R203: 1 | S203: 1 | T203: 1 | U203: =T203 -> 1 | V203: =U203 -> 1 | W203: =V203 -> 1 | X203: =W203 -> 1 | Y203: =X203 -> 1 | Z203: =Y203 -> 1 | AA203: =Z203 -> 1 | AF203: S-curve 3
F204: Urban in metropolitan areas | G204: Estimate informed by geo-analysis | H204: % | J204: =K204 -> 1 | K204: 1 | L204: 1 | M204: 1 | N204: =M204 -> 1 | O204: 1 | P204: 1 | Q204: 1 | R204: 1 | S204: 1 | T204: 1 | U204: =T204 -> 1 | V204: 1 | W204: 1 | X204: 1 | Y204: 1 | Z204: 1 | AA204: 1 | AF204: S-curve 3
F205: Urban in regional areas | G205: Estimate informed by geo-analysis | H205: % | J205: =K205 -> 1 | K205: 1 | L205: 1 | M205: 1 | N205: =M205 -> 1 | O205: 1 | P205: 1 | Q205: 1 | R205: 1 | S205: 1 | T205: 1 | U205: 1 | V205: 1 | W205: 1 | X205: 1 | Y205: 1 | Z205: 1 | AA205: 1 | AF205: S-curve 4
F206: Suburban in metropolitan areas | G206: Estimate informed by geo-analysis | H206: % | J206: =K206 -> 1 | K206: 1 | L206: 1 | M206: 1 | N206: =M206 -> 1 | O206: 1 | P206: 1 | Q206: 1 | R206: 1 | S206: 1 | T206: 1 | U206: 1 | V206: 1 | W206: 1 | X206: 1 | Y206: 1 | Z206: 1 | AA206: 1 | AF206: S-curve 5
F207: Suburban in regional areas | G207: Estimate informed by geo-analysis | H207: % | J207: =K207 -> 1 | K207: 1 | L207: 1 | M207: 1 | N207: =M207 -> 1 | O207: 1 | P207: 1 | Q207: 1 | R207: 1 | S207: 1 | T207: 1 | U207: 1 | V207: 1 | W207: 1 | X207: 1 | Y207: 1 | Z207: 1 | AA207: 1 | AF207: S-curve 6
F208: Rural | J208: 0.7 | K208: 0.7 | L208: 0.7 | M208: 0.7 | N208: 0.7 | O208: 0.7 | P208: 0.7 | Q208: 0.7 | R208: 0.7 | S208: 0.7 | T208: 0.7 | U208: 0.7 | V208: 0.7 | W208: 0.7 | X208: 0.7 | Y208: 0.7 | Z208: 0.7 | AA208: 0.7
F209: Remote | J209: 0.1 | K209: 0.1 | L209: 0.1 | M209: 0.1 | N209: 0.1 | O209: 0.1 | P209: 0.1 | Q209: 0.1 | R209: 0.1 | S209: 0.1 | T209: 0.1 | U209: 0.1 | V209: 0.1 | W209: 0.1 | X209: 0.1 | Y209: 0.1 | Z209: 0.1 | AA209: 0.1
F210: Spare | J210: 0 | K210: 0 | L210: 0 | M210: 0 | N210: 0 | O210: 0 | P210: 0 | Q210: 0 | R210: 0 | S210: 0 | T210: 0 | U210: 0 | V210: 0 | W210: 0 | X210: 0 | Y210: 0 | Z210: 0 | AA210: 0
F211: Spare | J211: 0 | K211: 0 | L211: 0 | M211: 0 | N211: 0 | O211: 0 | P211: 0 | Q211: 0 | R211: 0 | S211: 0 | T211: 0 | U211: 0 | V211: 0 | W211: 0 | X211: 0 | Y211: 0 | Z211: 0 | AA211: 0
F212: Spare | J212: 0 | K212: 0 | L212: 0 | M212: 0 | N212: 0 | O212: 0 | P212: 0 | Q212: 0 | R212: 0 | S212: 0 | T212: 0 | U212: 0 | V212: 0 | W212: 0 | X212: 0 | Y212: 0 | Z212: 0 | AA212: 0
E214: =INDEX(Coverage.options,C215,) -> No roaming
C215: =C133 -> 5 | F215: Leave as it is | J215: =SUMPRODUCT(J216:J225,area.to.be.covered.distribution)*SUM(area.to.be.covered)/SUM(area) -> 0 | K215: 0 | L215: 0 | M215: 0 | N215: 0 | O215: 0 | P215: 0 | Q215: 0 | R215: 0 | S215: 0 | T215: 0 | U215: 0 | V215: 0 | W215: 0 | X215: 0 | Y215: 0 | Z215: 0 | AA215: 0
F216: =geotypes -> Dense urban | G216: Estimate informed by geo-analysis | H216: % | J216: 0 | K216: 0 | L216: 0 | M216: 0 | N216: 0 | O216: 0 | P216: 0 | Q216: 0 | R216: 0 | S216: 0 | T216: 0 | U216: 0 | V216: 0 | W216: 0 | X216: 0 | Y216: 0 | Z216: 0 | AA216: 0 | AF216: S-curve 3
F217: Urban in metropolitan areas | G217: Estimate informed by geo-analysis | H217: % | J217: 0 | K217: 0 | L217: 0 | M217: 0 | N217: 0 | O217: 0 | P217: 0 | Q217: 0 | R217: 0 | S217: 0 | T217: 0 | U217: 0 | V217: 0 | W217: 0 | X217: 0 | Y217: 0 | Z217: 0 | AA217: 0 | AF217: S-curve 3
F218: Urban in regional areas | G218: Estimate informed by geo-analysis | H218: % | J218: 0 | K218: 0 | L218: 0 | M218: 0 | N218: 0 | O218: 0 | P218: 0 | Q218: 0 | R218: 0 | S218: 0 | T218: 0 | U218: 0 | V218: 0 | W218: 0 | X218: 0 | Y218: 0 | Z218: 0 | AA218: 0 | AF218: S-curve 4
F219: Suburban in metropolitan areas | G219: Estimate informed by geo-analysis | H219: % | J219: 0 | K219: 0 | L219: 0 | M219: 0 | N219: 0 | O219: 0 | P219: 0 | Q219: 0 | R219: 0 | S219: 0 | T219: 0 | U219: 0 | V219: 0 | W219: 0 | X219: 0 | Y219: 0 | Z219: 0 | AA219: 0 | AF219: S-curve 5
F220: Suburban in regional areas | G220: Estimate informed by geo-analysis | H220: % | J220: 0 | K220: 0 | L220: 0 | M220: 0 | N220: 0 | O220: 0 | P220: 0 | Q220: 0 | R220: 0 | S220: 0 | T220: 0 | U220: 0 | V220: 0 | W220: 0 | X220: 0 | Y220: 0 | Z220: 0 | AA220: 0 | AF220: S-curve 6
F221: Rural | J221: 0 | K221: 0 | L221: 0 | M221: 0 | N221: 0 | O221: 0 | P221: 0 | Q221: 0 | R221: 0 | S221: 0 | T221: 0 | U221: 0 | V221: 0 | W221: 0 | X221: 0 | Y221: 0 | Z221: 0 | AA221: 0
F222: Remote | J222: 0 | K222: 0 | L222: 0 | M222: 0 | N222: 0 | O222: 0 | P222: 0 | Q222: 0 | R222: 0 | S222: 0 | T222: 0 | U222: 0 | V222: 0 | W222: 0 | X222: 0 | Y222: 0 | Z222: 0 | AA222: 0
F223: Spare | J223: 0 | K223: 0 | L223: 0 | M223: 0 | N223: 0 | O223: 0 | P223: 0 | Q223: 0 | R223: 0 | S223: 0 | T223: 0 | U223: 0 | V223: 0 | W223: 0 | X223: 0 | Y223: 0 | Z223: 0 | AA223: 0
F224: Spare | J224: 0 | K224: 0 | L224: 0 | M224: 0 | N224: 0 | O224: 0 | P224: 0 | Q224: 0 | R224: 0 | S224: 0 | T224: 0 | U224: 0 | V224: 0 | W224: 0 | X224: 0 | Y224: 0 | Z224: 0 | AA224: 0
F225: Spare | J225: 0 | K225: 0 | L225: 0 | M225: 0 | N225: 0 | O225: 0 | P225: 0 | Q225: 0 | R225: 0 | S225: 0 | T225: 0 | U225: 0 | V225: 0 | W225: 0 | X225: 0 | Y225: 0 | Z225: 0 | AA225: 0
E227: =INDEX(Coverage.options,C228,) -> Spare
C228: =C146 -> 6 | F228: Can be used to create another coverage scenario | J228: =SUMPRODUCT(J229:J238,area.to.be.covered.distribution)*SUM(area.to.be.covered)/SUM(area) -> 0 | K228: 0 | L228: 0 | M228: 0 | N228: 0 | O228: 0 | P228: 0 | Q228: 0 | R228: 0 | S228: 0 | T228: 0 | U228: 0 | V228: 0 | W228: 0 | X228: 0 | Y228: 0 | Z228: 0 | AA228: 0
F229: =geotypes -> Dense urban | G229: Estimate informed by geo-analysis | H229: % | J229: =K229 -> 0 | K229: 0 | L229: =M229 -> 0 | M229: 0 | N229: =M229 -> 0 | O229: 0 | P229: 0 | Q229: 0 | R229: 0 | S229: 0 | T229: 0 | U229: =T229 -> 0 | V229: =U229 -> 0 | W229: 0 | X229: 0 | Y229: 0 | Z229: 0 | AA229: 0 | AF229: S-curve 3
F230: Urban in metropolitan areas | G230: Estimate informed by geo-analysis | H230: % | J230: 0 | K230: 0 | L230: 0 | M230: 0 | N230: 0 | O230: 0 | P230: 0 | Q230: 0 | R230: 0 | S230: 0 | T230: 0 | U230: 0 | V230: 0 | W230: 0 | X230: 0 | Y230: 0 | Z230: 0 | AA230: 0 | AF230: S-curve 3
F231: Urban in regional areas | G231: Estimate informed by geo-analysis | H231: % | J231: 0 | K231: 0 | L231: 0 | M231: 0 | N231: 0 | O231: 0 | P231: 0 | Q231: 0 | R231: 0 | S231: 0 | T231: 0 | U231: 0 | V231: 0 | W231: 0 | X231: 0 | Y231: 0 | Z231: 0 | AA231: 0 | AF231: S-curve 4
F232: Suburban in metropolitan areas | G232: Estimate informed by geo-analysis | H232: % | J232: 0 | K232: 0 | L232: 0 | M232: 0 | N232: 0 | O232: 0 | P232: 0 | Q232: 0 | R232: 0 | S232: 0 | T232: 0 | U232: 0 | V232: 0 | W232: 0 | X232: 0 | Y232: 0 | Z232: 0 | AA232: 0 | AF232: S-curve 5
F233: Suburban in regional areas | G233: Estimate informed by geo-analysis | H233: % | J233: 0 | K233: 0 | L233: 0 | M233: 0 | N233: 0 | O233: 0 | P233: 0 | Q233: 0 | R233: 0 | S233: 0 | T233: 0 | U233: 0 | V233: 0 | W233: 0 | X233: 0 | Y233: 0 | Z233: 0 | AA233: 0 | AF233: S-curve 6
F234: Rural | J234: =K234 -> 0 | K234: =L234 -> 0 | L234: =M234 -> 0 | M234: 0 | N234: =M234 -> 0 | O234: =N234 -> 0 | P234: =O234 -> 0 | Q234: =P234 -> 0 | R234: =Q234 -> 0 | S234: =R234 -> 0 | T234: =S234 -> 0 | U234: =T234 -> 0 | V234: =U234 -> 0 | W234: =V234 -> 0 | X234: =W234 -> 0 | Y234: =X234 -> 0 | Z234: =Y234 -> 0 | AA234: =Z234 -> 0
F235: Remote | J235: 0 | K235: 0 | L235: 0 | M235: 0 | N235: 0 | O235: 0 | P235: 0 | Q235: 0 | R235: 0 | S235: 0 | T235: 0 | U235: 0 | V235: 0 | W235: 0 | X235: 0 | Y235: 0 | Z235: 0 | AA235: 0
F236: Spare | J236: 0 | K236: 0 | L236: 0 | M236: 0 | N236: 0 | O236: 0 | P236: 0 | Q236: 0 | R236: 0 | S236: 0 | T236: 0 | U236: 0 | V236: 0 | W236: 0 | X236: 0 | Y236: 0 | Z236: 0 | AA236: 0
F237: Spare | J237: 0 | K237: 0 | L237: 0 | M237: 0 | N237: 0 | O237: 0 | P237: 0 | Q237: 0 | R237: 0 | S237: 0 | T237: 0 | U237: 0 | V237: 0 | W237: 0 | X237: 0 | Y237: 0 | Z237: 0 | AA237: 0
F238: Spare | J238: 0 | K238: 0 | L238: 0 | M238: 0 | N238: 0 | O238: 0 | P238: 0 | Q238: 0 | R238: 0 | S238: 0 | T238: 0 | U238: 0 | V238: 0 | W238: 0 | X238: 0 | Y238: 0 | Z238: 0 | AA238: 0
C239: Area.coverage.2G.all.scenarios.numbers | AB239: Area.coverage.2G.all.scenarios
B241: Scenario selected
C242: Note: percentage covered of the "area to be covered" in each geotype; the total percentage for Australia is however calculated based on the total area of the country; for a definition of the "area to be covered", refer to the "GEO" sheet
... 1149 more rows

Sheet NW-2G
A1: Network design
AD2: Trends
E3: Operator selected:
E4: =operator.selected -> Vodafone Hutchison | F4: Source | G4: Unit | I4: =TRANSPOSE(years) -> 2010 | J4: 2011 | K4: 2012 | L4: 2013 | M4: 2014 | N4: 2015 | O4: 2016 | P4: 2017 | Q4: 2018 | R4: 2019 | S4: 2020 | T4: 2021 | U4: 2022 | V4: 2023 | W4: 2024 | X4: 2025 | Y4: 2026 | Z4: 2027 | AA4: Name | AC4: Note | AD4: 5 years | AE4: 10 years | AF4: 15 years
A6: Demand by geotype
B8: For the operator modelled
C10: Busy hour traffic
D12: Total voice traffic on the 2G network | G12: Erlangs | J12: =Traffic.2G.busy.hour.voice.operator.modelled -> 20661.52595 | K12: 16010.03027 | L12: 11246.0477 | M12: 9664.575494 | N12: 7710.578065 | O12: 5665.886897 | P12: 3811.787308 | Q12: 2337.832434 | R12: 0 | S12: 0 | T12: 0 | U12: 0 | V12: 0 | W12: 0 | X12: 0 | Y12: 0 | Z12: 0
C15: Demand distribution by geotype (assuming ubiquitous coverage)
E16: =geotypes -> Dense urban | G16: % | I16: =Traffic.demand.distribution.with.ubiquitous.coverage.2010.2027 -> 0.2248979561 | J16: 0.2248979561 | K16: 0.2248979561 | L16: 0.2248979561 | M16: 0.2248979561 | N16: 0.2248979561 | O16: 0.2248979561 | P16: 0.2248979561 | Q16: 0.2248979561 | R16: 0.2248979561 | S16: 0.2248979561 | T16: 0.2248979561 | U16: 0.2248979561 | V16: 0.2248979561 | W16: 0.2248979561 | X16: 0.2248979561 | Y16: 0.2248979561 | Z16: 0.2248979561
E17: Urban in metropolitan areas | G17: % | I17: 0.3260179131 | J17: 0.3260179131 | K17: 0.3260179131 | L17: 0.3260179131 | M17: 0.3260179131 | N17: 0.3260179131 | O17: 0.3260179131 | P17: 0.3260179131 | Q17: 0.3260179131 | R17: 0.3260179131 | S17: 0.3260179131 | T17: 0.3260179131 | U17: 0.3260179131 | V17: 0.3260179131 | W17: 0.3260179131 | X17: 0.3260179131 | Y17: 0.3260179131 | Z17: 0.3260179131
E18: Urban in regional areas | G18: % | I18: 0.04416509271 | J18: 0.04416509271 | K18: 0.04416509271 | L18: 0.04416509271 | M18: 0.04416509271 | N18: 0.04416509271 | O18: 0.04416509271 | P18: 0.04416509271 | Q18: 0.04416509271 | R18: 0.04416509271 | S18: 0.04416509271 | T18: 0.04416509271 | U18: 0.04416509271 | V18: 0.04416509271 | W18: 0.04416509271 | X18: 0.04416509271 | Y18: 0.04416509271 | Z18: 0.04416509271
E19: Suburban in metropolitan areas | G19: % | I19: 0.1738960247 | J19: 0.1738960247 | K19: 0.1738960247 | L19: 0.1738960247 | M19: 0.1738960247 | N19: 0.1738960247 | O19: 0.1738960247 | P19: 0.1738960247 | Q19: 0.1738960247 | R19: 0.1738960247 | S19: 0.1738960247 | T19: 0.1738960247 | U19: 0.1738960247 | V19: 0.1738960247 | W19: 0.1738960247 | X19: 0.1738960247 | Y19: 0.1738960247 | Z19: 0.1738960247
E20: Suburban in regional areas | G20: % | I20: 0.1586269254 | J20: 0.1586269254 | K20: 0.1586269254 | L20: 0.1586269254 | M20: 0.1586269254 | N20: 0.1586269254 | O20: 0.1586269254 | P20: 0.1586269254 | Q20: 0.1586269254 | R20: 0.1586269254 | S20: 0.1586269254 | T20: 0.1586269254 | U20: 0.1586269254 | V20: 0.1586269254 | W20: 0.1586269254 | X20: 0.1586269254 | Y20: 0.1586269254 | Z20: 0.1586269254
E21: Rural | G21: % | I21: 0.1651978638 | J21: 0.1651978638 | K21: 0.1651978638 | L21: 0.1651978638 | M21: 0.1651978638 | N21: 0.1651978638 | O21: 0.1651978638 | P21: 0.1651978638 | Q21: 0.1651978638 | R21: 0.1651978638 | S21: 0.1651978638 | T21: 0.1651978638 | U21: 0.1651978638 | V21: 0.1651978638 | W21: 0.1651978638 | X21: 0.1651978638 | Y21: 0.1651978638 | Z21: 0.1651978638
E22: Remote | G22: % | I22: 0.00993149813 | J22: 0.00993149813 | K22: 0.00993149813 | L22: 0.00993149813 | M22: 0.00993149813 | N22: 0.00993149813 | O22: 0.00993149813 | P22: 0.00993149813 | Q22: 0.00993149813 | R22: 0.00993149813 | S22: 0.00993149813 | T22: 0.00993149813 | U22: 0.00993149813 | V22: 0.00993149813 | W22: 0.00993149813 | X22: 0.00993149813 | Y22: 0.00993149813 | Z22: 0.00993149813
E23: Spare | G23: % | I23: 0 | J23: 0 | K23: 0 | L23: 0 | M23: 0 | N23: 0 | O23: 0 | P23: 0 | Q23: 0 | R23: 0 | S23: 0 | T23: 0 | U23: 0 | V23: 0 | W23: 0 | X23: 0 | Y23: 0 | Z23: 0
E24: Spare | G24: % | I24: 0 | J24: 0 | K24: 0 | L24: 0 | M24: 0 | N24: 0 | O24: 0 | P24: 0 | Q24: 0 | R24: 0 | S24: 0 | T24: 0 | U24: 0 | V24: 0 | W24: 0 | X24: 0 | Y24: 0 | Z24: 0
E25: Spare | G25: % | I25: 0 | J25: 0 | K25: 0 | L25: 0 | M25: 0 | N25: 0 | O25: 0 | P25: 0 | Q25: 0 | R25: 0 | S25: 0 | T25: 0 | U25: 0 | V25: 0 | W25: 0 | X25: 0 | Y25: 0 | Z25: 0
C28: 2G population coverage of the operator modelled
E29: =geotypes -> Dense urban | G29: % | I29: =Population.coverage.selected.2G -> 1 | J29: 1 | K29: 1 | L29: 1 | M29: 1 | N29: 1 | O29: 1 | P29: 1 | Q29: 1 | R29: 1 | S29: 1 | T29: 1 | U29: 1 | V29: 1 | W29: 1 | X29: 1 | Y29: 1 | Z29: 1
E30: Urban in metropolitan areas | G30: % | I30: 1 | J30: 1 | K30: 1 | L30: 1 | M30: 1 | N30: 1 | O30: 1 | P30: 1 | Q30: 1 | R30: 1 | S30: 1 | T30: 1 | U30: 1 | V30: 1 | W30: 1 | X30: 1 | Y30: 1 | Z30: 1
E31: Urban in regional areas | G31: % | I31: 1 | J31: 1 | K31: 1 | L31: 1 | M31: 1 | N31: 1 | O31: 1 | P31: 1 | Q31: 1 | R31: 1 | S31: 1 | T31: 1 | U31: 1 | V31: 1 | W31: 1 | X31: 1 | Y31: 1 | Z31: 1
E32: Suburban in metropolitan areas | G32: % | I32: 1 | J32: 1 | K32: 1 | L32: 1 | M32: 1 | N32: 1 | O32: 1 | P32: 1 | Q32: 1 | R32: 1 | S32: 1 | T32: 1 | U32: 1 | V32: 1 | W32: 1 | X32: 1 | Y32: 1 | Z32: 1
E33: Suburban in regional areas | G33: % | I33: 1 | J33: 1 | K33: 1 | L33: 1 | M33: 1 | N33: 1 | O33: 1 | P33: 1 | Q33: 1 | R33: 1 | S33: 1 | T33: 1 | U33: 1 | V33: 1 | W33: 1 | X33: 1 | Y33: 1 | Z33: 1
E34: Rural | G34: % | I34: 0.9662777588 | J34: 0.9662777588 | K34: 0.9662777588 | L34: 0.9662777588 | M34: 0.9662777588 | N34: 0.9662777588 | O34: 0.9662777588 | P34: 0.9662777588 | Q34: 0.9662777588 | R34: 0.9662777588 | S34: 0.9662777588 | T34: 0.9662777588 | U34: 0.9662777588 | V34: 0.9662777588 | W34: 0.9662777588 | X34: 0.9662777588 | Y34: 0.9662777588 | Z34: 0.9662777588
E35: Remote | G35: % | I35: 0.3381889558 | J35: 0.3381889558 | K35: 0.3381889558 | L35: 0.3381889558 | M35: 0.3381889558 | N35: 0.3381889558 | O35: 0.3381889558 | P35: 0.3381889558 | Q35: 0.3381889558 | R35: 0.3381889558 | S35: 0.3381889558 | T35: 0.3381889558 | U35: 0.3381889558 | V35: 0.3381889558 | W35: 0.3381889558 | X35: 0.3381889558 | Y35: 0.3381889558 | Z35: 0.3381889558
E36: Spare | G36: % | I36: 0 | J36: 0 | K36: 0 | L36: 0 | M36: 0 | N36: 0 | O36: 0 | P36: 0 | Q36: 0 | R36: 0 | S36: 0 | T36: 0 | U36: 0 | V36: 0 | W36: 0 | X36: 0 | Y36: 0 | Z36: 0
E37: Spare | G37: % | I37: 0 | J37: 0 | K37: 0 | L37: 0 | M37: 0 | N37: 0 | O37: 0 | P37: 0 | Q37: 0 | R37: 0 | S37: 0 | T37: 0 | U37: 0 | V37: 0 | W37: 0 | X37: 0 | Y37: 0 | Z37: 0
E38: Spare | G38: % | I38: 0 | J38: 0 | K38: 0 | L38: 0 | M38: 0 | N38: 0 | O38: 0 | P38: 0 | Q38: 0 | R38: 0 | S38: 0 | T38: 0 | U38: 0 | V38: 0 | W38: 0 | X38: 0 | Y38: 0 | Z38: 0
C41: 2G area coverage of the operator modelled
E42: =geotypes -> Dense urban | G42: % | I42: =Area.coverage.selected.2G -> 1 | J42: 1 | K42: 1 | L42: 1 | M42: 1 | N42: 1 | O42: 1 | P42: 1 | Q42: 1 | R42: 1 | S42: 1 | T42: 1 | U42: 1 | V42: 1 | W42: 1 | X42: 1 | Y42: 1 | Z42: 1
E43: Urban in metropolitan areas | G43: % | I43: 1 | J43: 1 | K43: 1 | L43: 1 | M43: 1 | N43: 1 | O43: 1 | P43: 1 | Q43: 1 | R43: 1 | S43: 1 | T43: 1 | U43: 1 | V43: 1 | W43: 1 | X43: 1 | Y43: 1 | Z43: 1
E44: Urban in regional areas | G44: % | I44: 1 | J44: 1 | K44: 1 | L44: 1 | M44: 1 | N44: 1 | O44: 1 | P44: 1 | Q44: 1 | R44: 1 | S44: 1 | T44: 1 | U44: 1 | V44: 1 | W44: 1 | X44: 1 | Y44: 1 | Z44: 1
E45: Suburban in metropolitan areas | G45: % | I45: 1 | J45: 1 | K45: 1 | L45: 1 | M45: 1 | N45: 1 | O45: 1 | P45: 1 | Q45: 1 | R45: 1 | S45: 1 | T45: 1 | U45: 1 | V45: 1 | W45: 1 | X45: 1 | Y45: 1 | Z45: 1
E46: Suburban in regional areas | G46: % | I46: 1 | J46: 1 | K46: 1 | L46: 1 | M46: 1 | N46: 1 | O46: 1 | P46: 1 | Q46: 1 | R46: 1 | S46: 1 | T46: 1 | U46: 1 | V46: 1 | W46: 1 | X46: 1 | Y46: 1 | Z46: 1
E47: Rural | G47: % | I47: 0.7 | J47: 0.7 | K47: 0.7 | L47: 0.7 | M47: 0.7 | N47: 0.7 | O47: 0.7 | P47: 0.7 | Q47: 0.7 | R47: 0.7 | S47: 0.7 | T47: 0.7 | U47: 0.7 | V47: 0.7 | W47: 0.7 | X47: 0.7 | Y47: 0.7 | Z47: 0.7
E48: Remote | G48: % | I48: 0.1 | J48: 0.1 | K48: 0.1 | L48: 0.1 | M48: 0.1 | N48: 0.1 | O48: 0.1 | P48: 0.1 | Q48: 0.1 | R48: 0.1 | S48: 0.1 | T48: 0.1 | U48: 0.1 | V48: 0.1 | W48: 0.1 | X48: 0.1 | Y48: 0.1 | Z48: 0.1
E49: Spare | G49: % | I49: 0 | J49: 0 | K49: 0 | L49: 0 | M49: 0 | N49: 0 | O49: 0 | P49: 0 | Q49: 0 | R49: 0 | S49: 0 | T49: 0 | U49: 0 | V49: 0 | W49: 0 | X49: 0 | Y49: 0 | Z49: 0
E50: Spare | G50: % | I50: 0 | J50: 0 | K50: 0 | L50: 0 | M50: 0 | N50: 0 | O50: 0 | P50: 0 | Q50: 0 | R50: 0 | S50: 0 | T50: 0 | U50: 0 | V50: 0 | W50: 0 | X50: 0 | Y50: 0 | Z50: 0
E51: Spare | G51: % | I51: 0 | J51: 0 | K51: 0 | L51: 0 | M51: 0 | N51: 0 | O51: 0 | P51: 0 | Q51: 0 | R51: 0 | S51: 0 | T51: 0 | U51: 0 | V51: 0 | W51: 0 | X51: 0 | Y51: 0 | Z51: 0
C54: Proportion of traffic by geotype (normalised) for the operator modelled, before considering national roaming
E55: =geotypes -> Dense urban | G55: % | J55: =IF(J29=0,0,J16*J29/(SUMPRODUCT(J$29:J$38,J$16:J$25)/SUM(J$16:J$25))) -> 0.2274021745 | K55: =IF(K29=0,0,K16*K29/(SUMPRODUCT(K$29:K$38,K$16:K$25)/SUM(K$16:K$25))) -> 0.2274021745 | L55: 0.2274021745 | M55: 0.2274021745 | N55: 0.2274021745 | O55: 0.2274021745 | P55: 0.2274021745 | Q55: 0.2274021745 | R55: 0.2274021745 | S55: 0.2274021745 | T55: 0.2274021745 | U55: 0.2274021745 | V55: 0.2274021745 | W55: 0.2274021745 | X55: 0.2274021745 | Y55: 0.2274021745 | Z55: 0.2274021745
E56: Urban in metropolitan areas | G56: % | J56: =IF(J30=0,0,J17*J30/(SUMPRODUCT(J$29:J$38,J$16:J$25)/SUM(J$16:J$25))) -> 0.3296480932 | K56: 0.3296480932 | L56: 0.3296480932 | M56: 0.3296480932 | N56: 0.3296480932 | O56: 0.3296480932 | P56: 0.3296480932 | Q56: 0.3296480932 | R56: 0.3296480932 | S56: 0.3296480932 | T56: 0.3296480932 | U56: 0.3296480932 | V56: 0.3296480932 | W56: 0.3296480932 | X56: 0.3296480932 | Y56: 0.3296480932 | Z56: 0.3296480932
E57: Urban in regional areas | G57: % | J57: =IF(J31=0,0,J18*J31/(SUMPRODUCT(J$29:J$38,J$16:J$25)/SUM(J$16:J$25))) -> 0.04465686703 | K57: 0.04465686703 | L57: 0.04465686703 | M57: 0.04465686703 | N57: 0.04465686703 | O57: 0.04465686703 | P57: 0.04465686703 | Q57: 0.04465686703 | R57: 0.04465686703 | S57: 0.04465686703 | T57: 0.04465686703 | U57: 0.04465686703 | V57: 0.04465686703 | W57: 0.04465686703 | X57: 0.04465686703 | Y57: 0.04465686703 | Z57: 0.04465686703
E58: Suburban in metropolitan areas | G58: % | J58: =IF(J32=0,0,J19*J32/(SUMPRODUCT(J$29:J$38,J$16:J$25)/SUM(J$16:J$25))) -> 0.1758323413 | K58: 0.1758323413 | L58: 0.1758323413 | M58: 0.1758323413 | N58: 0.1758323413 | O58: 0.1758323413 | P58: 0.1758323413 | Q58: 0.1758323413 | R58: 0.1758323413 | S58: 0.1758323413 | T58: 0.1758323413 | U58: 0.1758323413 | V58: 0.1758323413 | W58: 0.1758323413 | X58: 0.1758323413 | Y58: 0.1758323413 | Z58: 0.1758323413
E59: Suburban in regional areas | G59: % | J59: =IF(J33=0,0,J20*J33/(SUMPRODUCT(J$29:J$38,J$16:J$25)/SUM(J$16:J$25))) -> 0.1603932219 | K59: 0.1603932219 | L59: 0.1603932219 | M59: 0.1603932219 | N59: 0.1603932219 | O59: 0.1603932219 | P59: 0.1603932219 | Q59: 0.1603932219 | R59: 0.1603932219 | S59: 0.1603932219 | T59: 0.1603932219 | U59: 0.1603932219 | V59: 0.1603932219 | W59: 0.1603932219 | X59: 0.1603932219 | Y59: 0.1603932219 | Z59: 0.1603932219
E60: Rural | G60: % | J60: =IF(J34=0,0,J21*J34/(SUMPRODUCT(J$29:J$38,J$16:J$25)/SUM(J$16:J$25))) -> 0.1614044541 | K60: 0.1614044541 | L60: 0.1614044541 | M60: 0.1614044541 | N60: 0.1614044541 | O60: 0.1614044541 | P60: 0.1614044541 | Q60: 0.1614044541 | R60: 0.1614044541 | S60: 0.1614044541 | T60: 0.1614044541 | U60: 0.1614044541 | V60: 0.1614044541 | W60: 0.1614044541 | X60: 0.1614044541 | Y60: 0.1614044541 | Z60: 0.1614044541
E61: Remote | G61: % | J61: =IF(J35=0,0,J22*J35/(SUMPRODUCT(J$29:J$38,J$16:J$25)/SUM(J$16:J$25))) -> 0.00339612206 | K61: 0.00339612206 | L61: 0.00339612206 | M61: 0.00339612206 | N61: 0.00339612206 | O61: 0.00339612206 | P61: 0.00339612206 | Q61: 0.00339612206 | R61: 0.00339612206 | S61: 0.00339612206 | T61: 0.00339612206 | U61: 0.00339612206 | V61: 0.00339612206 | W61: 0.00339612206 | X61: 0.00339612206 | Y61: 0.00339612206 | Z61: 0.00339612206
E62: Spare | G62: % | J62: =IF(J36=0,0,J23*J36/(SUMPRODUCT(J$29:J$38,J$16:J$25)/SUM(J$16:J$25))) -> 0 | K62: 0 | L62: 0 | M62: 0 | N62: 0 | O62: 0 | P62: 0 | Q62: 0 | R62: 0 | S62: 0 | T62: 0 | U62: 0 | V62: 0 | W62: 0 | X62: 0 | Y62: 0 | Z62: 0
E63: Spare | G63: % | J63: =IF(J37=0,0,J24*J37/(SUMPRODUCT(J$29:J$38,J$16:J$25)/SUM(J$16:J$25))) -> 0 | K63: 0 | L63: 0 | M63: 0 | N63: 0 | O63: 0 | P63: 0 | Q63: 0 | R63: 0 | S63: 0 | T63: 0 | U63: 0 | V63: 0 | W63: 0 | X63: 0 | Y63: 0 | Z63: 0
E64: Spare | G64: % | J64: =IF(J38=0,0,J25*J38/(SUMPRODUCT(J$29:J$38,J$16:J$25)/SUM(J$16:J$25))) -> 0 | K64: 0 | L64: 0 | M64: 0 | N64: 0 | O64: 0 | P64: 0 | Q64: 0 | R64: 0 | S64: 0 | T64: 0 | U64: 0 | V64: 0 | W64: 0 | X64: 0 | Y64: 0 | Z64: 0
J65: =ABS(SUM(J55:J64)-CTRL!J561)<tiny -> TRUE | K65: =ABS(SUM(K55:K64)-CTRL!K561)<tiny -> TRUE | L65: =ABS(SUM(L55:L64)-CTRL!L561)<tiny -> TRUE | M65: =ABS(SUM(M55:M64)-CTRL!M561)<tiny -> TRUE | N65: =ABS(SUM(N55:N64)-CTRL!N561)<tiny -> TRUE | O65: =ABS(SUM(O55:O64)-CTRL!O561)<tiny -> TRUE | P65: =ABS(SUM(P55:P64)-CTRL!P561)<tiny -> TRUE | Q65: =ABS(SUM(Q55:Q64)-CTRL!Q561)<tiny -> TRUE | R65: =ABS(SUM(R55:R64)-CTRL!R561)<tiny -> TRUE | S65: =ABS(SUM(S55:S64)-CTRL!S561)<tiny -> TRUE | T65: =ABS(SUM(T55:T64)-CTRL!T561)<tiny -> TRUE | U65: =ABS(SUM(U55:U64)-CTRL!U561)<tiny -> TRUE | V65: =ABS(SUM(V55:V64)-CTRL!V561)<tiny -> TRUE | W65: =ABS(SUM(W55:W64)-CTRL!W561)<tiny -> TRUE | X65: =ABS(SUM(X55:X64)-CTRL!X561)<tiny -> TRUE | Y65: =ABS(SUM(Y55:Y64)-CTRL!Y561)<tiny -> TRUE | Z65: =ABS(SUM(Z55:Z64)-CTRL!Z561)<tiny -> TRUE
C67: Voice traffic on the 2G network by geotype
E68: =geotypes -> Dense urban | G68: Erlangs | J68: =J55:Z64*J12:Z12 -> 4698.475929 | K68: 3640.715697 | L68: 2557.375701 | M68: 2197.745483 | N68: 1753.402219 | O68: 1288.435001 | P68: 866.8087227 | Q68: 531.6281791 | R68: 0 | S68: 0 | T68: 0 | U68: 0 | V68: 0 | W68: 0 | X68: 0 | Y68: 0 | Z68: 0
E69: Urban in metropolitan areas | G69: Erlangs | J69: 6811.032631 | K69: 5277.67595 | L69: 3707.238179 | M69: 3185.908883 | N69: 2541.777356 | O69: 1867.748811 | P69: 1256.548418 | Q69: 770.662004 | R69: 0 | S69: 0 | T69: 0 | U69: 0 | V69: 0 | W69: 0 | X69: 0 | Y69: 0 | Z69: 0
E70: Urban in regional areas | G70: Erlangs | J70: 922.679017 | K70: 714.9577929 | L70: 502.2132567 | M70: 431.5896628 | N70: 344.3302594 | O70: 253.0207578 | P70: 170.222479 | Q70: 104.4002722 | R70: 0 | S70: 0 | T70: 0 | U70: 0 | V70: 0 | W70: 0 | X70: 0 | Y70: 0 | Z70: 0
E71: Suburban in metropolitan areas | G71: Erlangs | J71: 3632.964482 | K71: 2815.081106 | L71: 1977.418897 | M71: 1699.344937 | N71: 1355.768994 | O71: 996.2461584 | P71: 670.2354869 | Q71: 411.0665504 | R71: 0 | S71: 0 | T71: 0 | U71: 0 | V71: 0 | W71: 0 | X71: 0 | Y71: 0 | Z71: 0
E72: Suburban in regional areas | G72: Erlangs | J72: 3313.968717 | K72: 2567.900338 | L72: 1803.789824 | M72: 1550.132402 | N72: 1236.724459 | O72: 908.7698544 | P72: 611.3848477 | Q72: 374.9724764 | R72: 0 | S72: 0 | T72: 0 | U72: 0 | V72: 0 | W72: 0 | X72: 0 | Y72: 0 | Z72: 0
E73: Rural | G73: Erlangs | J73: 3334.862316 | K73: 2584.090195 | L73: 1815.162189 | M73: 1559.905531 | N73: 1244.521643 | O73: 914.4993814 | P73: 615.2394496 | Q73: 377.3365677 | R73: 0 | S73: 0 | T73: 0 | U73: 0 | V73: 0 | W73: 0 | X73: 0 | Y73: 0 | Z73: 0
E74: Remote | G74: Erlangs | J74: 70.16906406 | K74: 54.37201697 | L74: 38.19295067 | M74: 32.82207803 | N74: 26.18606426 | O74: 19.24204348 | P74: 12.94529496 | Q74: 7.939564301 | R74: 0 | S74: 0 | T74: 0 | U74: 0 | V74: 0 | W74: 0 | X74: 0 | Y74: 0 | Z74: 0
E75: Spare | G75: Erlangs | J75: 0 | K75: 0 | L75: 0 | M75: 0 | N75: 0 | O75: 0 | P75: 0 | Q75: 0 | R75: 0 | S75: 0 | T75: 0 | U75: 0 | V75: 0 | W75: 0 | X75: 0 | Y75: 0 | Z75: 0
E76: Spare | G76: Erlangs | J76: 0 | K76: 0 | L76: 0 | M76: 0 | N76: 0 | O76: 0 | P76: 0 | Q76: 0 | R76: 0 | S76: 0 | T76: 0 | U76: 0 | V76: 0 | W76: 0 | X76: 0 | Y76: 0 | Z76: 0
E77: Spare | G77: Erlangs | J77: 0 | K77: 0 | L77: 0 | M77: 0 | N77: 0 | O77: 0 | P77: 0 | Q77: 0 | R77: 0 | S77: 0 | T77: 0 | U77: 0 | V77: 0 | W77: 0 | X77: 0 | Y77: 0 | Z77: 0
B80: For the operator using national roaming on the network modelled
C82: Busy hour traffic
D84: Total voice traffic on the 2G network | G84: Erlangs | J84: =Traffic.2G.busy.hour.voice.operator.using.national.roaming -> 0 | K84: 0 | L84: 0 | M84: 0 | N84: 0 | O84: 0 | P84: 0 | Q84: 0 | R84: 0 | S84: 0 | T84: 0 | U84: 0 | V84: 0 | W84: 0 | X84: 0 | Y84: 0 | Z84: 0
C87: Demand distribution by geotype (assuming ubiquitous coverage)
E88: =geotypes -> Dense urban | G88: % | I88: =Traffic.demand.distribution.with.ubiquitous.coverage.2010.2027 -> 0.2248979561 | J88: 0.2248979561 | K88: 0.2248979561 | L88: 0.2248979561 | M88: 0.2248979561 | N88: 0.2248979561 | O88: 0.2248979561 | P88: 0.2248979561 | Q88: 0.2248979561 | R88: 0.2248979561 | S88: 0.2248979561 | T88: 0.2248979561 | U88: 0.2248979561 | V88: 0.2248979561 | W88: 0.2248979561 | X88: 0.2248979561 | Y88: 0.2248979561 | Z88: 0.2248979561
E89: Urban in metropolitan areas | G89: % | I89: 0.3260179131 | J89: 0.3260179131 | K89: 0.3260179131 | L89: 0.3260179131 | M89: 0.3260179131 | N89: 0.3260179131 | O89: 0.3260179131 | P89: 0.3260179131 | Q89: 0.3260179131 | R89: 0.3260179131 | S89: 0.3260179131 | T89: 0.3260179131 | U89: 0.3260179131 | V89: 0.3260179131 | W89: 0.3260179131 | X89: 0.3260179131 | Y89: 0.3260179131 | Z89: 0.3260179131
E90: Urban in regional areas | G90: % | I90: 0.04416509271 | J90: 0.04416509271 | K90: 0.04416509271 | L90: 0.04416509271 | M90: 0.04416509271 | N90: 0.04416509271 | O90: 0.04416509271 | P90: 0.04416509271 | Q90: 0.04416509271 | R90: 0.04416509271 | S90: 0.04416509271 | T90: 0.04416509271 | U90: 0.04416509271 | V90: 0.04416509271 | W90: 0.04416509271 | X90: 0.04416509271 | Y90: 0.04416509271 | Z90: 0.04416509271
E91: Suburban in metropolitan areas | G91: % | I91: 0.1738960247 | J91: 0.1738960247 | K91: 0.1738960247 | L91: 0.1738960247 | M91: 0.1738960247 | N91: 0.1738960247 | O91: 0.1738960247 | P91: 0.1738960247 | Q91: 0.1738960247 | R91: 0.1738960247 | S91: 0.1738960247 | T91: 0.1738960247 | U91: 0.1738960247 | V91: 0.1738960247 | W91: 0.1738960247 | X91: 0.1738960247 | Y91: 0.1738960247 | Z91: 0.1738960247
E92: Suburban in regional areas | G92: % | I92: 0.1586269254 | J92: 0.1586269254 | K92: 0.1586269254 | L92: 0.1586269254 | M92: 0.1586269254 | N92: 0.1586269254 | O92: 0.1586269254 | P92: 0.1586269254 | Q92: 0.1586269254 | R92: 0.1586269254 | S92: 0.1586269254 | T92: 0.1586269254 | U92: 0.1586269254 | V92: 0.1586269254 | W92: 0.1586269254 | X92: 0.1586269254 | Y92: 0.1586269254 | Z92: 0.1586269254
E93: Rural | G93: % | I93: 0.1651978638 | J93: 0.1651978638 | K93: 0.1651978638 | L93: 0.1651978638 | M93: 0.1651978638 | N93: 0.1651978638 | O93: 0.1651978638 | P93: 0.1651978638 | Q93: 0.1651978638 | R93: 0.1651978638 | S93: 0.1651978638 | T93: 0.1651978638 | U93: 0.1651978638 | V93: 0.1651978638 | W93: 0.1651978638 | X93: 0.1651978638 | Y93: 0.1651978638 | Z93: 0.1651978638
E94: Remote | G94: % | I94: 0.00993149813 | J94: 0.00993149813 | K94: 0.00993149813 | L94: 0.00993149813 | M94: 0.00993149813 | N94: 0.00993149813 | O94: 0.00993149813 | P94: 0.00993149813 | Q94: 0.00993149813 | R94: 0.00993149813 | S94: 0.00993149813 | T94: 0.00993149813 | U94: 0.00993149813 | V94: 0.00993149813 | W94: 0.00993149813 | X94: 0.00993149813 | Y94: 0.00993149813 | Z94: 0.00993149813
E95: Spare | G95: % | I95: 0 | J95: 0 | K95: 0 | L95: 0 | M95: 0 | N95: 0 | O95: 0 | P95: 0 | Q95: 0 | R95: 0 | S95: 0 | T95: 0 | U95: 0 | V95: 0 | W95: 0 | X95: 0 | Y95: 0 | Z95: 0
E96: Spare | G96: % | I96: 0 | J96: 0 | K96: 0 | L96: 0 | M96: 0 | N96: 0 | O96: 0 | P96: 0 | Q96: 0 | R96: 0 | S96: 0 | T96: 0 | U96: 0 | V96: 0 | W96: 0 | X96: 0 | Y96: 0 | Z96: 0
E97: Spare | G97: % | I97: 0 | J97: 0 | K97: 0 | L97: 0 | M97: 0 | N97: 0 | O97: 0 | P97: 0 | Q97: 0 | R97: 0 | S97: 0 | T97: 0 | U97: 0 | V97: 0 | W97: 0 | X97: 0 | Y97: 0 | Z97: 0
C100: 2G population coverage of the operator offering or using national roaming (if any)
E101: =geotypes -> Dense urban | G101: % | I101: =Roaming.population.coverage.selected.2G -> 0 | J101: 0 | K101: 0 | L101: 0 | M101: 0 | N101: 0 | O101: 0 | P101: 0 | Q101: 0 | R101: 0 | S101: 0 | T101: 0 | U101: 0 | V101: 0 | W101: 0 | X101: 0 | Y101: 0 | Z101: 0
E102: Urban in metropolitan areas | G102: % | I102: 0 | J102: 0 | K102: 0 | L102: 0 | M102: 0 | N102: 0 | O102: 0 | P102: 0 | Q102: 0 | R102: 0 | S102: 0 | T102: 0 | U102: 0 | V102: 0 | W102: 0 | X102: 0 | Y102: 0 | Z102: 0
E103: Urban in regional areas | G103: % | I103: 0 | J103: 0 | K103: 0 | L103: 0 | M103: 0 | N103: 0 | O103: 0 | P103: 0 | Q103: 0 | R103: 0 | S103: 0 | T103: 0 | U103: 0 | V103: 0 | W103: 0 | X103: 0 | Y103: 0 | Z103: 0
E104: Suburban in metropolitan areas | G104: % | I104: 0 | J104: 0 | K104: 0 | L104: 0 | M104: 0 | N104: 0 | O104: 0 | P104: 0 | Q104: 0 | R104: 0 | S104: 0 | T104: 0 | U104: 0 | V104: 0 | W104: 0 | X104: 0 | Y104: 0 | Z104: 0
E105: Suburban in regional areas | G105: % | I105: 0 | J105: 0 | K105: 0 | L105: 0 | M105: 0 | N105: 0 | O105: 0 | P105: 0 | Q105: 0 | R105: 0 | S105: 0 | T105: 0 | U105: 0 | V105: 0 | W105: 0 | X105: 0 | Y105: 0 | Z105: 0
E106: Rural | G106: % | I106: 0 | J106: 0 | K106: 0 | L106: 0 | M106: 0 | N106: 0 | O106: 0 | P106: 0 | Q106: 0 | R106: 0 | S106: 0 | T106: 0 | U106: 0 | V106: 0 | W106: 0 | X106: 0 | Y106: 0 | Z106: 0
E107: Remote | G107: % | I107: 0 | J107: 0 | K107: 0 | L107: 0 | M107: 0 | N107: 0 | O107: 0 | P107: 0 | Q107: 0 | R107: 0 | S107: 0 | T107: 0 | U107: 0 | V107: 0 | W107: 0 | X107: 0 | Y107: 0 | Z107: 0
E108: Spare | G108: % | I108: 0 | J108: 0 | K108: 0 | L108: 0 | M108: 0 | N108: 0 | O108: 0 | P108: 0 | Q108: 0 | R108: 0 | S108: 0 | T108: 0 | U108: 0 | V108: 0 | W108: 0 | X108: 0 | Y108: 0 | Z108: 0
E109: Spare | G109: % | I109: 0 | J109: 0 | K109: 0 | L109: 0 | M109: 0 | N109: 0 | O109: 0 | P109: 0 | Q109: 0 | R109: 0 | S109: 0 | T109: 0 | U109: 0 | V109: 0 | W109: 0 | X109: 0 | Y109: 0 | Z109: 0
E110: Spare | G110: % | I110: 0 | J110: 0 | K110: 0 | L110: 0 | M110: 0 | N110: 0 | O110: 0 | P110: 0 | Q110: 0 | R110: 0 | S110: 0 | T110: 0 | U110: 0 | V110: 0 | W110: 0 | X110: 0 | Y110: 0 | Z110: 0
C113: 2G area coverage of the operator offering or using national roaming (if any)
E114: =geotypes -> Dense urban | G114: % | I114: =Roaming.area.coverage.selected.2G -> 0 | J114: 0 | K114: 0 | L114: 0 | M114: 0 | N114: 0 | O114: 0 | P114: 0 | Q114: 0 | R114: 0 | S114: 0 | T114: 0 | U114: 0 | V114: 0 | W114: 0 | X114: 0 | Y114: 0 | Z114: 0
E115: Urban in metropolitan areas | G115: % | I115: 0 | J115: 0 | K115: 0 | L115: 0 | M115: 0 | N115: 0 | O115: 0 | P115: 0 | Q115: 0 | R115: 0 | S115: 0 | T115: 0 | U115: 0 | V115: 0 | W115: 0 | X115: 0 | Y115: 0 | Z115: 0
E116: Urban in regional areas | G116: % | I116: 0 | J116: 0 | K116: 0 | L116: 0 | M116: 0 | N116: 0 | O116: 0 | P116: 0 | Q116: 0 | R116: 0 | S116: 0 | T116: 0 | U116: 0 | V116: 0 | W116: 0 | X116: 0 | Y116: 0 | Z116: 0
E117: Suburban in metropolitan areas | G117: % | I117: 0 | J117: 0 | K117: 0 | L117: 0 | M117: 0 | N117: 0 | O117: 0 | P117: 0 | Q117: 0 | R117: 0 | S117: 0 | T117: 0 | U117: 0 | V117: 0 | W117: 0 | X117: 0 | Y117: 0 | Z117: 0
E118: Suburban in regional areas | G118: % | I118: 0 | J118: 0 | K118: 0 | L118: 0 | M118: 0 | N118: 0 | O118: 0 | P118: 0 | Q118: 0 | R118: 0 | S118: 0 | T118: 0 | U118: 0 | V118: 0 | W118: 0 | X118: 0 | Y118: 0 | Z118: 0
E119: Rural | G119: % | I119: 0 | J119: 0 | K119: 0 | L119: 0 | M119: 0 | N119: 0 | O119: 0 | P119: 0 | Q119: 0 | R119: 0 | S119: 0 | T119: 0 | U119: 0 | V119: 0 | W119: 0 | X119: 0 | Y119: 0 | Z119: 0
E120: Remote | G120: % | I120: 0 | J120: 0 | K120: 0 | L120: 0 | M120: 0 | N120: 0 | O120: 0 | P120: 0 | Q120: 0 | R120: 0 | S120: 0 | T120: 0 | U120: 0 | V120: 0 | W120: 0 | X120: 0 | Y120: 0 | Z120: 0
E121: Spare | G121: % | I121: 0 | J121: 0 | K121: 0 | L121: 0 | M121: 0 | N121: 0 | O121: 0 | P121: 0 | Q121: 0 | R121: 0 | S121: 0 | T121: 0 | U121: 0 | V121: 0 | W121: 0 | X121: 0 | Y121: 0 | Z121: 0
E122: Spare | G122: % | I122: 0 | J122: 0 | K122: 0 | L122: 0 | M122: 0 | N122: 0 | O122: 0 | P122: 0 | Q122: 0 | R122: 0 | S122: 0 | T122: 0 | U122: 0 | V122: 0 | W122: 0 | X122: 0 | Y122: 0 | Z122: 0
E123: Spare | G123: % | I123: 0 | J123: 0 | K123: 0 | L123: 0 | M123: 0 | N123: 0 | O123: 0 | P123: 0 | Q123: 0 | R123: 0 | S123: 0 | T123: 0 | U123: 0 | V123: 0 | W123: 0 | X123: 0 | Y123: 0 | Z123: 0
C126: Proportion of traffic by geotype (normalised)
E127: =geotypes -> Dense urban | G127: % | J127: =IF(J101=0,0,J88*J101/(SUMPRODUCT(J$101:J$110,J$88:J$97)/SUM(J$88:J$97))) -> 0 | K127: =IF(K101=0,0,K88*K101/(SUMPRODUCT(K$101:K$110,K$88:K$97)/SUM(K$88:K$97))) -> 0 | L127: 0 | M127: 0 | N127: 0 | O127: 0 | P127: 0 | Q127: 0 | R127: 0 | S127: 0 | T127: 0 | U127: 0 | V127: 0 | W127: 0 | X127: 0 | Y127: 0 | Z127: 0
E128: Urban in metropolitan areas | G128: % | J128: =IF(J102=0,0,J89*J102/(SUMPRODUCT(J$101:J$110,J$88:J$97)/SUM(J$88:J$97))) -> 0 | K128: 0 | L128: 0 | M128: 0 | N128: 0 | O128: 0 | P128: 0 | Q128: 0 | R128: 0 | S128: 0 | T128: 0 | U128: 0 | V128: 0 | W128: 0 | X128: 0 | Y128: 0 | Z128: 0
E129: Urban in regional areas | G129: % | J129: =IF(J103=0,0,J90*J103/(SUMPRODUCT(J$101:J$110,J$88:J$97)/SUM(J$88:J$97))) -> 0 | K129: 0 | L129: 0 | M129: 0 | N129: 0 | O129: 0 | P129: 0 | Q129: 0 | R129: 0 | S129: 0 | T129: 0 | U129: 0 | V129: 0 | W129: 0 | X129: 0 | Y129: 0 | Z129: 0
E130: Suburban in metropolitan areas | G130: % | J130: =IF(J104=0,0,J91*J104/(SUMPRODUCT(J$101:J$110,J$88:J$97)/SUM(J$88:J$97))) -> 0 | K130: 0 | L130: 0 | M130: 0 | N130: 0 | O130: 0 | P130: 0 | Q130: 0 | R130: 0 | S130: 0 | T130: 0 | U130: 0 | V130: 0 | W130: 0 | X130: 0 | Y130: 0 | Z130: 0
E131: Suburban in regional areas | G131: % | J131: =IF(J105=0,0,J92*J105/(SUMPRODUCT(J$101:J$110,J$88:J$97)/SUM(J$88:J$97))) -> 0 | K131: 0 | L131: 0 | M131: 0 | N131: 0 | O131: 0 | P131: 0 | Q131: 0 | R131: 0 | S131: 0 | T131: 0 | U131: 0 | V131: 0 | W131: 0 | X131: 0 | Y131: 0 | Z131: 0
E132: Rural | G132: % | J132: =IF(J106=0,0,J93*J106/(SUMPRODUCT(J$101:J$110,J$88:J$97)/SUM(J$88:J$97))) -> 0 | K132: 0 | L132: 0 | M132: 0 | N132: 0 | O132: 0 | P132: 0 | Q132: 0 | R132: 0 | S132: 0 | T132: 0 | U132: 0 | V132: 0 | W132: 0 | X132: 0 | Y132: 0 | Z132: 0
E133: Remote | G133: % | J133: =IF(J107=0,0,J94*J107/(SUMPRODUCT(J$101:J$110,J$88:J$97)/SUM(J$88:J$97))) -> 0 | K133: 0 | L133: 0 | M133: 0 | N133: 0 | O133: 0 | P133: 0 | Q133: 0 | R133: 0 | S133: 0 | T133: 0 | U133: 0 | V133: 0 | W133: 0 | X133: 0 | Y133: 0 | Z133: 0
E134: Spare | G134: % | J134: =IF(J108=0,0,J95*J108/(SUMPRODUCT(J$101:J$110,J$88:J$97)/SUM(J$88:J$97))) -> 0 | K134: 0 | L134: 0 | M134: 0 | N134: 0 | O134: 0 | P134: 0 | Q134: 0 | R134: 0 | S134: 0 | T134: 0 | U134: 0 | V134: 0 | W134: 0 | X134: 0 | Y134: 0 | Z134: 0
E135: Spare | G135: % | J135: =IF(J109=0,0,J96*J109/(SUMPRODUCT(J$101:J$110,J$88:J$97)/SUM(J$88:J$97))) -> 0 | K135: 0 | L135: 0 | M135: 0 | N135: 0 | O135: 0 | P135: 0 | Q135: 0 | R135: 0 | S135: 0 | T135: 0 | U135: 0 | V135: 0 | W135: 0 | X135: 0 | Y135: 0 | Z135: 0
E136: Spare | G136: % | J136: =IF(J110=0,0,J97*J110/(SUMPRODUCT(J$101:J$110,J$88:J$97)/SUM(J$88:J$97))) -> 0 | K136: 0 | L136: 0 | M136: 0 | N136: 0 | O136: 0 | P136: 0 | Q136: 0 | R136: 0 | S136: 0 | T136: 0 | U136: 0 | V136: 0 | W136: 0 | X136: 0 | Y136: 0 | Z136: 0
J137: =OR(SUM(J127:J136)=0,ABS(SUM(J127:J136)-CTRL!J561)<tiny) -> TRUE | K137: =OR(SUM(K127:K136)=0,ABS(SUM(K127:K136)-CTRL!K561)<tiny) -> TRUE | L137: =OR(SUM(L127:L136)=0,ABS(SUM(L127:L136)-CTRL!L561)<tiny) -> TRUE | M137: =OR(SUM(M127:M136)=0,ABS(SUM(M127:M136)-CTRL!M561)<tiny) -> TRUE | N137: =OR(SUM(N127:N136)=0,ABS(SUM(N127:N136)-CTRL!N561)<tiny) -> TRUE | O137: =OR(SUM(O127:O136)=0,ABS(SUM(O127:O136)-CTRL!O561)<tiny) -> TRUE | P137: =OR(SUM(P127:P136)=0,ABS(SUM(P127:P136)-CTRL!P561)<tiny) -> TRUE | Q137: =OR(SUM(Q127:Q136)=0,ABS(SUM(Q127:Q136)-CTRL!Q561)<tiny) -> TRUE | R137: =OR(SUM(R127:R136)=0,ABS(SUM(R127:R136)-CTRL!R561)<tiny) -> TRUE | S137: =OR(SUM(S127:S136)=0,ABS(SUM(S127:S136)-CTRL!S561)<tiny) -> TRUE | T137: =OR(SUM(T127:T136)=0,ABS(SUM(T127:T136)-CTRL!T561)<tiny) -> TRUE | U137: =OR(SUM(U127:U136)=0,ABS(SUM(U127:U136)-CTRL!U561)<tiny) -> TRUE | V137: =OR(SUM(V127:V136)=0,ABS(SUM(V127:V136)-CTRL!V561)<tiny) -> TRUE | W137: =OR(SUM(W127:W136)=0,ABS(SUM(W127:W136)-CTRL!W561)<tiny) -> TRUE | X137: =OR(SUM(X127:X136)=0,ABS(SUM(X127:X136)-CTRL!X561)<tiny) -> TRUE | Y137: =OR(SUM(Y127:Y136)=0,ABS(SUM(Y127:Y136)-CTRL!Y561)<tiny) -> TRUE | Z137: =OR(SUM(Z127:Z136)=0,ABS(SUM(Z127:Z136)-CTRL!Z561)<tiny) -> TRUE
C139: Voice traffic on the 2G network by geotype
E140: =geotypes -> Dense urban | G140: Erlangs | J140: =J127:Z136*J84:Z84 -> 0 | K140: 0 | L140: 0 | M140: 0 | N140: 0 | O140: 0 | P140: 0 | Q140: 0 | R140: 0 | S140: 0 | T140: 0 | U140: 0 | V140: 0 | W140: 0 | X140: 0 | Y140: 0 | Z140: 0
E141: Urban in metropolitan areas | G141: Erlangs | J141: 0 | K141: 0 | L141: 0 | M141: 0 | N141: 0 | O141: 0 | P141: 0 | Q141: 0 | R141: 0 | S141: 0 | T141: 0 | U141: 0 | V141: 0 | W141: 0 | X141: 0 | Y141: 0 | Z141: 0
E142: Urban in regional areas | G142: Erlangs | J142: 0 | K142: 0 | L142: 0 | M142: 0 | N142: 0 | O142: 0 | P142: 0 | Q142: 0 | R142: 0 | S142: 0 | T142: 0 | U142: 0 | V142: 0 | W142: 0 | X142: 0 | Y142: 0 | Z142: 0
E143: Suburban in metropolitan areas | G143: Erlangs | J143: 0 | K143: 0 | L143: 0 | M143: 0 | N143: 0 | O143: 0 | P143: 0 | Q143: 0 | R143: 0 | S143: 0 | T143: 0 | U143: 0 | V143: 0 | W143: 0 | X143: 0 | Y143: 0 | Z143: 0
E144: Suburban in regional areas | G144: Erlangs | J144: 0 | K144: 0 | L144: 0 | M144: 0 | N144: 0 | O144: 0 | P144: 0 | Q144: 0 | R144: 0 | S144: 0 | T144: 0 | U144: 0 | V144: 0 | W144: 0 | X144: 0 | Y144: 0 | Z144: 0
E145: Rural | G145: Erlangs | J145: 0 | K145: 0 | L145: 0 | M145: 0 | N145: 0 | O145: 0 | P145: 0 | Q145: 0 | R145: 0 | S145: 0 | T145: 0 | U145: 0 | V145: 0 | W145: 0 | X145: 0 | Y145: 0 | Z145: 0
E146: Remote | G146: Erlangs | J146: 0 | K146: 0 | L146: 0 | M146: 0 | N146: 0 | O146: 0 | P146: 0 | Q146: 0 | R146: 0 | S146: 0 | T146: 0 | U146: 0 | V146: 0 | W146: 0 | X146: 0 | Y146: 0 | Z146: 0
E147: Spare | G147: Erlangs | J147: 0 | K147: 0 | L147: 0 | M147: 0 | N147: 0 | O147: 0 | P147: 0 | Q147: 0 | R147: 0 | S147: 0 | T147: 0 | U147: 0 | V147: 0 | W147: 0 | X147: 0 | Y147: 0 | Z147: 0
E148: Spare | G148: Erlangs | J148: 0 | K148: 0 | L148: 0 | M148: 0 | N148: 0 | O148: 0 | P148: 0 | Q148: 0 | R148: 0 | S148: 0 | T148: 0 | U148: 0 | V148: 0 | W148: 0 | X148: 0 | Y148: 0 | Z148: 0
E149: Spare | G149: Erlangs | J149: 0 | K149: 0 | L149: 0 | M149: 0 | N149: 0 | O149: 0 | P149: 0 | Q149: 0 | R149: 0 | S149: 0 | T149: 0 | U149: 0 | V149: 0 | W149: 0 | X149: 0 | Y149: 0 | Z149: 0
B152: For the network modelled
C154: Voice traffic on the 2G network by geotype, from own subscribers and national roaming provided (if any)
E155: =geotypes -> Dense urban | G155: Erlangs | J155: =J68:Z77*IF(INDEX(Operator.uses.NR,MATCH(operator.selected,Operators,0),),1-Proportion.of.traffic.using.national.roaming.by.geotype.2G.3G,1)+J140:Z149*Proportion.of.traffic.using.national.roaming.by.geotype.2G.3G -> 4698.475929 | K155: 3640.715697 | L155: 2557.375701 | M155: 2197.745483 | N155: 1753.402219 | O155: 1288.435001 | P155: 866.8087227 | Q155: 531.6281791 | R155: 0 | S155: 0 | T155: 0 | U155: 0 | V155: 0 | W155: 0 | X155: 0 | Y155: 0 | Z155: 0
E156: Urban in metropolitan areas | G156: Erlangs | J156: 6811.032631 | K156: 5277.67595 | L156: 3707.238179 | M156: 3185.908883 | N156: 2541.777356 | O156: 1867.748811 | P156: 1256.548418 | Q156: 770.662004 | R156: 0 | S156: 0 | T156: 0 | U156: 0 | V156: 0 | W156: 0 | X156: 0 | Y156: 0 | Z156: 0
E157: Urban in regional areas | G157: Erlangs | J157: 922.679017 | K157: 714.9577929 | L157: 502.2132567 | M157: 431.5896628 | N157: 344.3302594 | O157: 253.0207578 | P157: 170.222479 | Q157: 104.4002722 | R157: 0 | S157: 0 | T157: 0 | U157: 0 | V157: 0 | W157: 0 | X157: 0 | Y157: 0 | Z157: 0
E158: Suburban in metropolitan areas | G158: Erlangs | J158: 3632.964482 | K158: 2815.081106 | L158: 1977.418897 | M158: 1699.344937 | N158: 1355.768994 | O158: 996.2461584 | P158: 670.2354869 | Q158: 411.0665504 | R158: 0 | S158: 0 | T158: 0 | U158: 0 | V158: 0 | W158: 0 | X158: 0 | Y158: 0 | Z158: 0
E159: Suburban in regional areas | G159: Erlangs | J159: 3313.968717 | K159: 2567.900338 | L159: 1803.789824 | M159: 1550.132402 | N159: 1236.724459 | O159: 908.7698544 | P159: 611.3848477 | Q159: 374.9724764 | R159: 0 | S159: 0 | T159: 0 | U159: 0 | V159: 0 | W159: 0 | X159: 0 | Y159: 0 | Z159: 0
E160: Rural | G160: Erlangs | J160: 1333.944926 | K160: 1033.636078 | L160: 726.0648757 | M160: 623.9622126 | N160: 497.8086573 | O160: 365.7997526 | P160: 246.0957798 | Q160: 150.9346271 | R160: 0 | S160: 0 | T160: 0 | U160: 0 | V160: 0 | W160: 0 | X160: 0 | Y160: 0 | Z160: 0
E161: Remote | G161: Erlangs | J161: 42.10143844 | K161: 32.62321018 | L161: 22.9157704 | M161: 19.69324682 | N161: 15.71163856 | O161: 11.54522609 | P161: 7.767176979 | Q161: 4.76373858 | R161: 0 | S161: 0 | T161: 0 | U161: 0 | V161: 0 | W161: 0 | X161: 0 | Y161: 0 | Z161: 0
E162: Spare | G162: Erlangs | J162: 0 | K162: 0 | L162: 0 | M162: 0 | N162: 0 | O162: 0 | P162: 0 | Q162: 0 | R162: 0 | S162: 0 | T162: 0 | U162: 0 | V162: 0 | W162: 0 | X162: 0 | Y162: 0 | Z162: 0
E163: Spare | G163: Erlangs | J163: 0 | K163: 0 | L163: 0 | M163: 0 | N163: 0 | O163: 0 | P163: 0 | Q163: 0 | R163: 0 | S163: 0 | T163: 0 | U163: 0 | V163: 0 | W163: 0 | X163: 0 | Y163: 0 | Z163: 0
E164: Spare | G164: Erlangs | J164: 0 | K164: 0 | L164: 0 | M164: 0 | N164: 0 | O164: 0 | P164: 0 | Q164: 0 | R164: 0 | S164: 0 | T164: 0 | U164: 0 | V164: 0 | W164: 0 | X164: 0 | Y164: 0 | Z164: 0
A168: Coverage requirement
B170: Area to be covered
E171: =geotypes -> Dense urban | G171: sq km | I171: =area.to.be.covered -> 799.7285058
E172: Urban in metropolitan areas | G172: sq km | I172: 3719.807938
E173: Urban in regional areas | G173: sq km | I173: 433.6532454
E174: Suburban in metropolitan areas | G174: sq km | I174: 9360.834801
E175: Suburban in regional areas | G175: sq km | I175: 13179.81536
E176: Rural | G176: sq km | I176: 1274533.358
E177: Remote | G177: sq km | I177: 4992781.205
E178: Spare | G178: sq km | I178: 0
E179: Spare | G179: sq km | I179: 0
E180: Spare | G180: sq km | I180: 0
B183: 2G - area covered
E184: =geotypes -> Dense urban | G184: sq km | J184: =$I171:$I180*J42:Z51 -> 799.7285058 | K184: 799.7285058 | L184: 799.7285058 | M184: 799.7285058 | N184: 799.7285058 | O184: 799.7285058 | P184: 799.7285058 | Q184: 799.7285058 | R184: 799.7285058 | S184: 799.7285058 | T184: 799.7285058 | U184: 799.7285058 | V184: 799.7285058 | W184: 799.7285058 | X184: 799.7285058 | Y184: 799.7285058 | Z184: 799.7285058
E185: Urban in metropolitan areas | G185: sq km | J185: 3719.807938 | K185: 3719.807938 | L185: 3719.807938 | M185: 3719.807938 | N185: 3719.807938 | O185: 3719.807938 | P185: 3719.807938 | Q185: 3719.807938 | R185: 3719.807938 | S185: 3719.807938 | T185: 3719.807938 | U185: 3719.807938 | V185: 3719.807938 | W185: 3719.807938 | X185: 3719.807938 | Y185: 3719.807938 | Z185: 3719.807938
E186: Urban in regional areas | G186: sq km | J186: 433.6532454 | K186: 433.6532454 | L186: 433.6532454 | M186: 433.6532454 | N186: 433.6532454 | O186: 433.6532454 | P186: 433.6532454 | Q186: 433.6532454 | R186: 433.6532454 | S186: 433.6532454 | T186: 433.6532454 | U186: 433.6532454 | V186: 433.6532454 | W186: 433.6532454 | X186: 433.6532454 | Y186: 433.6532454 | Z186: 433.6532454
E187: Suburban in metropolitan areas | G187: sq km | J187: 9360.834801 | K187: 9360.834801 | L187: 9360.834801 | M187: 9360.834801 | N187: 9360.834801 | O187: 9360.834801 | P187: 9360.834801 | Q187: 9360.834801 | R187: 9360.834801 | S187: 9360.834801 | T187: 9360.834801 | U187: 9360.834801 | V187: 9360.834801 | W187: 9360.834801 | X187: 9360.834801 | Y187: 9360.834801 | Z187: 9360.834801
E188: Suburban in regional areas | G188: sq km | J188: 13179.81536 | K188: 13179.81536 | L188: 13179.81536 | M188: 13179.81536 | N188: 13179.81536 | O188: 13179.81536 | P188: 13179.81536 | Q188: 13179.81536 | R188: 13179.81536 | S188: 13179.81536 | T188: 13179.81536 | U188: 13179.81536 | V188: 13179.81536 | W188: 13179.81536 | X188: 13179.81536 | Y188: 13179.81536 | Z188: 13179.81536
E189: Rural | G189: sq km | J189: 892173.3503 | K189: 892173.3503 | L189: 892173.3503 | M189: 892173.3503 | N189: 892173.3503 | O189: 892173.3503 | P189: 892173.3503 | Q189: 892173.3503 | R189: 892173.3503 | S189: 892173.3503 | T189: 892173.3503 | U189: 892173.3503 | V189: 892173.3503 | W189: 892173.3503 | X189: 892173.3503 | Y189: 892173.3503 | Z189: 892173.3503
E190: Remote | G190: sq km | J190: 499278.1205 | K190: 499278.1205 | L190: 499278.1205 | M190: 499278.1205 | N190: 499278.1205 | O190: 499278.1205 | P190: 499278.1205 | Q190: 499278.1205 | R190: 499278.1205 | S190: 499278.1205 | T190: 499278.1205 | U190: 499278.1205 | V190: 499278.1205 | W190: 499278.1205 | X190: 499278.1205 | Y190: 499278.1205 | Z190: 499278.1205
E191: Spare | G191: sq km | J191: 0 | K191: 0 | L191: 0 | M191: 0 | N191: 0 | O191: 0 | P191: 0 | Q191: 0 | R191: 0 | S191: 0 | T191: 0 | U191: 0 | V191: 0 | W191: 0 | X191: 0 | Y191: 0 | Z191: 0
E192: Spare | G192: sq km | J192: 0 | K192: 0 | L192: 0 | M192: 0 | N192: 0 | O192: 0 | P192: 0 | Q192: 0 | R192: 0 | S192: 0 | T192: 0 | U192: 0 | V192: 0 | W192: 0 | X192: 0 | Y192: 0 | Z192: 0
E193: Spare | G193: sq km | J193: 0 | K193: 0 | L193: 0 | M193: 0 | N193: 0 | O193: 0 | P193: 0 | Q193: 0 | R193: 0 | S193: 0 | T193: 0 | U193: 0 | V193: 0 | W193: 0 | X193: 0 | Y193: 0 | Z193: 0
A196: Sites required for coverage
B198: =J199&" - site coverage area" -> 900MHz - site coverage area
E199: =geotypes -> Dense urban | F199: =E199&J$199 -> Dense urban900MHz | G199: sq km | I199: =INDEX(Site.coverage.area.2G,,K199) -> 0.9353074361 | J199: =INDEX(spectrum,K199,) -> 900MHz | K199: 3
E200: Urban in metropolitan areas | F200: =E200&J$199 -> Urban in metropolitan areas900MHz | G200: sq km | I200: 3.741229744
E201: Urban in regional areas | F201: Urban in regional areas900MHz | G201: sq km | I201: 3.741229744
E202: Suburban in metropolitan areas | F202: Suburban in metropolitan areas900MHz | G202: sq km | I202: 20.3689175
E203: Suburban in regional areas | F203: Suburban in regional areas900MHz | G203: sq km | I203: 20.3689175
E204: Rural | F204: =E204&J$199 -> Rural900MHz | G204: sq km | I204: 509.2229374
E205: Remote | F205: Remote900MHz | G205: sq km | I205: 1257.468886
E206: Spare | F206: Spare900MHz | G206: sq km | I206: 0
E207: Spare | F207: Spare900MHz | G207: sq km | I207: 0
E208: Spare | F208: Spare900MHz | G208: sq km | I208: 0
B210: =J211&" - site coverage area" -> 1800MHz - site coverage area
E211: =geotypes -> Dense urban | F211: =E211&J$211 -> Dense urban1800MHz | G211: sq km | I211: =INDEX(Site.coverage.area.2G,,K211) -> 0.4324861584 | J211: =INDEX(spectrum,K211,) -> 1800MHz | K211: 4
E212: Urban in metropolitan areas | F212: =E212&J$211 -> Urban in metropolitan areas1800MHz | G212: sq km | I212: 1.729944634
E213: Urban in regional areas | F213: Urban in regional areas1800MHz | G213: sq km | I213: 1.729944634
E214: Suburban in metropolitan areas | F214: Suburban in metropolitan areas1800MHz | G214: sq km | I214: 9.418587451
E215: Suburban in regional areas | F215: Suburban in regional areas1800MHz | G215: sq km | I215: 9.418587451
E216: Rural | F216: =E216&J$211 -> Rural1800MHz | G216: sq km | I216: 235.4646863
E217: Remote | F217: Remote1800MHz | G217: sq km | I217: 581.453613
E218: Spare | F218: Spare1800MHz | G218: sq km | I218: 0
E219: Spare | F219: Spare1800MHz | G219: sq km | I219: 0
E220: Spare | F220: Spare1800MHz | G220: sq km | I220: 0
B222: Not applicable - only two spectrum bands used for 2G
E223: =geotypes -> Dense urban | F223: =E223&J$223 -> Dense urbanN/A | G223: sq km | I223: 0 | J223: N/A | K223: N/A
E224: Urban in metropolitan areas | F224: =E224&J$223 -> Urban in metropolitan areasN/A | G224: sq km | I224: 0
E225: Urban in regional areas | F225: Urban in regional areasN/A | G225: sq km | I225: 0
E226: Suburban in metropolitan areas | F226: Suburban in metropolitan areasN/A | G226: sq km | I226: 0
E227: Suburban in regional areas | F227: Suburban in regional areasN/A | G227: sq km | I227: 0
E228: Rural | F228: =E228&J$223 -> RuralN/A | G228: sq km | I228: 0
E229: Remote | F229: RemoteN/A | G229: sq km | I229: 0
E230: Spare | F230: SpareN/A | G230: sq km | I230: 0
E231: Spare | F231: SpareN/A | G231: sq km | I231: 0
E232: Spare | F232: SpareN/A | G232: sq km | I232: 0
B235: Frequency band used for coverage
E236: =geotypes -> Dense urban | I236: =Frequency.band.coverage.2G -> 900MHz | J236: 900MHz | K236: 900MHz | L236: 900MHz | M236: 900MHz | N236: 900MHz | O236: 900MHz | P236: 900MHz | Q236: 900MHz | R236: 900MHz | S236: 900MHz | T236: 900MHz | U236: 900MHz | V236: 900MHz | W236: 900MHz | X236: 900MHz | Y236: 900MHz | Z236: 900MHz
E237: Urban in metropolitan areas | I237: 900MHz | J237: 900MHz | K237: 900MHz | L237: 900MHz | M237: 900MHz | N237: 900MHz | O237: 900MHz | P237: 900MHz | Q237: 900MHz | R237: 900MHz | S237: 900MHz | T237: 900MHz | U237: 900MHz | V237: 900MHz | W237: 900MHz | X237: 900MHz | Y237: 900MHz | Z237: 900MHz
E238: Urban in regional areas | I238: 900MHz | J238: 900MHz | K238: 900MHz | L238: 900MHz | M238: 900MHz | N238: 900MHz | O238: 900MHz | P238: 900MHz | Q238: 900MHz | R238: 900MHz | S238: 900MHz | T238: 900MHz | U238: 900MHz | V238: 900MHz | W238: 900MHz | X238: 900MHz | Y238: 900MHz | Z238: 900MHz
E239: Suburban in metropolitan areas | I239: 900MHz | J239: 900MHz | K239: 900MHz | L239: 900MHz | M239: 900MHz | N239: 900MHz | O239: 900MHz | P239: 900MHz | Q239: 900MHz | R239: 900MHz | S239: 900MHz | T239: 900MHz | U239: 900MHz | V239: 900MHz | W239: 900MHz | X239: 900MHz | Y239: 900MHz | Z239: 900MHz
E240: Suburban in regional areas | I240: 900MHz | J240: 900MHz | K240: 900MHz | L240: 900MHz | M240: 900MHz | N240: 900MHz | O240: 900MHz | P240: 900MHz | Q240: 900MHz | R240: 900MHz | S240: 900MHz | T240: 900MHz | U240: 900MHz | V240: 900MHz | W240: 900MHz | X240: 900MHz | Y240: 900MHz | Z240: 900MHz
E241: Rural | I241: 900MHz | J241: 900MHz | K241: 900MHz | L241: 900MHz | M241: 900MHz | N241: 900MHz | O241: 900MHz | P241: 900MHz | Q241: 900MHz | R241: 900MHz | S241: 900MHz | T241: 900MHz | U241: 900MHz | V241: 900MHz | W241: 900MHz | X241: 900MHz | Y241: 900MHz | Z241: 900MHz
E242: Remote | I242: 900MHz | J242: 900MHz | K242: 900MHz | L242: 900MHz | M242: 900MHz | N242: 900MHz | O242: 900MHz | P242: 900MHz | Q242: 900MHz | R242: 900MHz | S242: 900MHz | T242: 900MHz | U242: 900MHz | V242: 900MHz | W242: 900MHz | X242: 900MHz | Y242: 900MHz | Z242: 900MHz
... 272 more rows

Sheet NW-3G
A1: Network design
AD2: Trends
E3: Operator selected: | I3: 1 | J3: =1+I3 -> 2 | K3: =1+J3 -> 3 | L3: 4 | M3: 5 | N3: 6 | O3: 7 | P3: 8 | Q3: 9 | R3: 10 | S3: 11 | T3: 12 | U3: 13 | V3: 14 | W3: 15 | X3: 16 | Y3: 17 | Z3: 18
E4: =operator.selected -> Vodafone Hutchison | F4: Source | G4: Unit | I4: =TRANSPOSE(years) -> 2010 | J4: 2011 | K4: 2012 | L4: 2013 | M4: 2014 | N4: 2015 | O4: 2016 | P4: 2017 | Q4: 2018 | R4: 2019 | S4: 2020 | T4: 2021 | U4: 2022 | V4: 2023 | W4: 2024 | X4: 2025 | Y4: 2026 | Z4: 2027 | AA4: Name | AC4: Note | AD4: 5 years | AE4: 10 years | AF4: 15 years
A6: Demand by geotype
B8: For the operator modelled
C10: Busy hour traffic
D12: Total voice traffic on the 3G network | G12: Erlangs | J12: =Traffic.3G.busy.hour.voice.operator.modelled -> 77305.65801 | K12: 85191.67011 | L12: 91076.83836 | M12: 94458.20475 | N12: 94476.09695 | O12: 90004.57925 | P12: 80755.35057 | Q12: 67599.72643 | R12: 53701.73814 | S12: 38045.78715 | T12: 24741.34512 | U12: 14705.74786 | V12: 7921.52573 | W12: 3856.431257 | X12: 1701.067678 | Y12: 0 | Z12: 0
D15: Data traffic from 3G devices | G15: Mbps | J15: =Traffic.3G.devices.busy.hour.data.operator.modelled -> 8744.049661 | K15: 23221.5744 | L15: 29249.95831 | M15: 32195.78873 | N15: 30485.66177 | O15: 27123.28551 | P15: 24666.29221 | Q15: 20280.35428 | R15: 14906.84345 | S15: 9752.423114 | T15: 5684.103196 | U15: 2962.512992 | V15: 1388.049671 | W15: 588.6558932 | X15: 226.9354418 | Y15: 0 | Z15: 0
C18: Demand distribution by geotype (assuming ubiquitous coverage)
E19: =geotypes -> Dense urban | G19: % | I19: =Traffic.demand.distribution.with.ubiquitous.coverage.2010.2027 -> 0.2248979561 | J19: 0.2248979561 | K19: 0.2248979561 | L19: 0.2248979561 | M19: 0.2248979561 | N19: 0.2248979561 | O19: 0.2248979561 | P19: 0.2248979561 | Q19: 0.2248979561 | R19: 0.2248979561 | S19: 0.2248979561 | T19: 0.2248979561 | U19: 0.2248979561 | V19: 0.2248979561 | W19: 0.2248979561 | X19: 0.2248979561 | Y19: 0.2248979561 | Z19: 0.2248979561
E20: Urban in metropolitan areas | G20: % | I20: 0.3260179131 | J20: 0.3260179131 | K20: 0.3260179131 | L20: 0.3260179131 | M20: 0.3260179131 | N20: 0.3260179131 | O20: 0.3260179131 | P20: 0.3260179131 | Q20: 0.3260179131 | R20: 0.3260179131 | S20: 0.3260179131 | T20: 0.3260179131 | U20: 0.3260179131 | V20: 0.3260179131 | W20: 0.3260179131 | X20: 0.3260179131 | Y20: 0.3260179131 | Z20: 0.3260179131
E21: Urban in regional areas | G21: % | I21: 0.04416509271 | J21: 0.04416509271 | K21: 0.04416509271 | L21: 0.04416509271 | M21: 0.04416509271 | N21: 0.04416509271 | O21: 0.04416509271 | P21: 0.04416509271 | Q21: 0.04416509271 | R21: 0.04416509271 | S21: 0.04416509271 | T21: 0.04416509271 | U21: 0.04416509271 | V21: 0.04416509271 | W21: 0.04416509271 | X21: 0.04416509271 | Y21: 0.04416509271 | Z21: 0.04416509271
E22: Suburban in metropolitan areas | G22: % | I22: 0.1738960247 | J22: 0.1738960247 | K22: 0.1738960247 | L22: 0.1738960247 | M22: 0.1738960247 | N22: 0.1738960247 | O22: 0.1738960247 | P22: 0.1738960247 | Q22: 0.1738960247 | R22: 0.1738960247 | S22: 0.1738960247 | T22: 0.1738960247 | U22: 0.1738960247 | V22: 0.1738960247 | W22: 0.1738960247 | X22: 0.1738960247 | Y22: 0.1738960247 | Z22: 0.1738960247
E23: Suburban in regional areas | G23: % | I23: 0.1586269254 | J23: 0.1586269254 | K23: 0.1586269254 | L23: 0.1586269254 | M23: 0.1586269254 | N23: 0.1586269254 | O23: 0.1586269254 | P23: 0.1586269254 | Q23: 0.1586269254 | R23: 0.1586269254 | S23: 0.1586269254 | T23: 0.1586269254 | U23: 0.1586269254 | V23: 0.1586269254 | W23: 0.1586269254 | X23: 0.1586269254 | Y23: 0.1586269254 | Z23: 0.1586269254
E24: Rural | G24: % | I24: 0.1651978638 | J24: 0.1651978638 | K24: 0.1651978638 | L24: 0.1651978638 | M24: 0.1651978638 | N24: 0.1651978638 | O24: 0.1651978638 | P24: 0.1651978638 | Q24: 0.1651978638 | R24: 0.1651978638 | S24: 0.1651978638 | T24: 0.1651978638 | U24: 0.1651978638 | V24: 0.1651978638 | W24: 0.1651978638 | X24: 0.1651978638 | Y24: 0.1651978638 | Z24: 0.1651978638
E25: Remote | G25: % | I25: 0.00993149813 | J25: 0.00993149813 | K25: 0.00993149813 | L25: 0.00993149813 | M25: 0.00993149813 | N25: 0.00993149813 | O25: 0.00993149813 | P25: 0.00993149813 | Q25: 0.00993149813 | R25: 0.00993149813 | S25: 0.00993149813 | T25: 0.00993149813 | U25: 0.00993149813 | V25: 0.00993149813 | W25: 0.00993149813 | X25: 0.00993149813 | Y25: 0.00993149813 | Z25: 0.00993149813
E26: Spare | G26: % | I26: 0 | J26: 0 | K26: 0 | L26: 0 | M26: 0 | N26: 0 | O26: 0 | P26: 0 | Q26: 0 | R26: 0 | S26: 0 | T26: 0 | U26: 0 | V26: 0 | W26: 0 | X26: 0 | Y26: 0 | Z26: 0
E27: Spare | G27: % | I27: 0 | J27: 0 | K27: 0 | L27: 0 | M27: 0 | N27: 0 | O27: 0 | P27: 0 | Q27: 0 | R27: 0 | S27: 0 | T27: 0 | U27: 0 | V27: 0 | W27: 0 | X27: 0 | Y27: 0 | Z27: 0
E28: Spare | G28: % | I28: 0 | J28: 0 | K28: 0 | L28: 0 | M28: 0 | N28: 0 | O28: 0 | P28: 0 | Q28: 0 | R28: 0 | S28: 0 | T28: 0 | U28: 0 | V28: 0 | W28: 0 | X28: 0 | Y28: 0 | Z28: 0
C31: 3G population coverage | I31: =SUMPRODUCT(I32:I41,INDEX(Population.distribution.2010.2027,,I$3)) -> 0.9878563826 | J31: 0.9878563826 | K31: 0.9878563826 | L31: 0.9878563826 | M31: 0.9878563826 | N31: 0.9878563826 | O31: 0.9878563826 | P31: 0.9878563826 | Q31: 0.9878563826 | R31: 0.9878563826 | S31: 0.9878563826 | T31: 0.9878563826 | U31: 0.9878563826 | V31: 0.9878563826 | W31: 0.9878563826 | X31: 0.9878563826 | Y31: 0.9878563826 | Z31: 0.9878563826
E32: =geotypes -> Dense urban | G32: % | I32: =Population.coverage.selected.3G -> 1 | J32: 1 | K32: 1 | L32: 1 | M32: 1 | N32: 1 | O32: 1 | P32: 1 | Q32: 1 | R32: 1 | S32: 1 | T32: 1 | U32: 1 | V32: 1 | W32: 1 | X32: 1 | Y32: 1 | Z32: 1
E33: Urban in metropolitan areas | G33: % | I33: 1 | J33: 1 | K33: 1 | L33: 1 | M33: 1 | N33: 1 | O33: 1 | P33: 1 | Q33: 1 | R33: 1 | S33: 1 | T33: 1 | U33: 1 | V33: 1 | W33: 1 | X33: 1 | Y33: 1 | Z33: 1
E34: Urban in regional areas | G34: % | I34: 1 | J34: 1 | K34: 1 | L34: 1 | M34: 1 | N34: 1 | O34: 1 | P34: 1 | Q34: 1 | R34: 1 | S34: 1 | T34: 1 | U34: 1 | V34: 1 | W34: 1 | X34: 1 | Y34: 1 | Z34: 1
E35: Suburban in metropolitan areas | G35: % | I35: 1 | J35: 1 | K35: 1 | L35: 1 | M35: 1 | N35: 1 | O35: 1 | P35: 1 | Q35: 1 | R35: 1 | S35: 1 | T35: 1 | U35: 1 | V35: 1 | W35: 1 | X35: 1 | Y35: 1 | Z35: 1
E36: Suburban in regional areas | G36: % | I36: 1 | J36: 1 | K36: 1 | L36: 1 | M36: 1 | N36: 1 | O36: 1 | P36: 1 | Q36: 1 | R36: 1 | S36: 1 | T36: 1 | U36: 1 | V36: 1 | W36: 1 | X36: 1 | Y36: 1 | Z36: 1
E37: Rural | G37: % | I37: 0.9662777588 | J37: 0.9662777588 | K37: 0.9662777588 | L37: 0.9662777588 | M37: 0.9662777588 | N37: 0.9662777588 | O37: 0.9662777588 | P37: 0.9662777588 | Q37: 0.9662777588 | R37: 0.9662777588 | S37: 0.9662777588 | T37: 0.9662777588 | U37: 0.9662777588 | V37: 0.9662777588 | W37: 0.9662777588 | X37: 0.9662777588 | Y37: 0.9662777588 | Z37: 0.9662777588
E38: Remote | G38: % | I38: 0.3381889558 | J38: 0.3381889558 | K38: 0.3381889558 | L38: 0.3381889558 | M38: 0.3381889558 | N38: 0.3381889558 | O38: 0.3381889558 | P38: 0.3381889558 | Q38: 0.3381889558 | R38: 0.3381889558 | S38: 0.3381889558 | T38: 0.3381889558 | U38: 0.3381889558 | V38: 0.3381889558 | W38: 0.3381889558 | X38: 0.3381889558 | Y38: 0.3381889558 | Z38: 0.3381889558
E39: Spare | G39: % | I39: 0 | J39: 0 | K39: 0 | L39: 0 | M39: 0 | N39: 0 | O39: 0 | P39: 0 | Q39: 0 | R39: 0 | S39: 0 | T39: 0 | U39: 0 | V39: 0 | W39: 0 | X39: 0 | Y39: 0 | Z39: 0
E40: Spare | G40: % | I40: 0 | J40: 0 | K40: 0 | L40: 0 | M40: 0 | N40: 0 | O40: 0 | P40: 0 | Q40: 0 | R40: 0 | S40: 0 | T40: 0 | U40: 0 | V40: 0 | W40: 0 | X40: 0 | Y40: 0 | Z40: 0
E41: Spare | G41: % | I41: 0 | J41: 0 | K41: 0 | L41: 0 | M41: 0 | N41: 0 | O41: 0 | P41: 0 | Q41: 0 | R41: 0 | S41: 0 | T41: 0 | U41: 0 | V41: 0 | W41: 0 | X41: 0 | Y41: 0 | Z41: 0
E42: Across all geotypes
C44: 3G area coverage | I44: =SUMPRODUCT(I45:I54,area.to.be.covered.distribution)*SUM(area.to.be.covered)/SUM(area) -> 0.1845708422 | J44: 0.1845708422 | K44: 0.1845708422 | L44: 0.1845708422 | M44: 0.1845708422 | N44: 0.1845708422 | O44: 0.1845708422 | P44: 0.1845708422 | Q44: 0.1845708422 | R44: 0.1845708422 | S44: 0.1845708422 | T44: 0.1845708422 | U44: 0.1845708422 | V44: 0.1845708422 | W44: 0.1845708422 | X44: 0.1845708422 | Y44: 0.1845708422 | Z44: 0.1845708422
E45: =geotypes -> Dense urban | G45: % | I45: =Area.coverage.selected.3G -> 1 | J45: 1 | K45: 1 | L45: 1 | M45: 1 | N45: 1 | O45: 1 | P45: 1 | Q45: 1 | R45: 1 | S45: 1 | T45: 1 | U45: 1 | V45: 1 | W45: 1 | X45: 1 | Y45: 1 | Z45: 1
E46: Urban in metropolitan areas | G46: % | I46: 1 | J46: 1 | K46: 1 | L46: 1 | M46: 1 | N46: 1 | O46: 1 | P46: 1 | Q46: 1 | R46: 1 | S46: 1 | T46: 1 | U46: 1 | V46: 1 | W46: 1 | X46: 1 | Y46: 1 | Z46: 1
E47: Urban in regional areas | G47: % | I47: 1 | J47: 1 | K47: 1 | L47: 1 | M47: 1 | N47: 1 | O47: 1 | P47: 1 | Q47: 1 | R47: 1 | S47: 1 | T47: 1 | U47: 1 | V47: 1 | W47: 1 | X47: 1 | Y47: 1 | Z47: 1
E48: Suburban in metropolitan areas | G48: % | I48: 1 | J48: 1 | K48: 1 | L48: 1 | M48: 1 | N48: 1 | O48: 1 | P48: 1 | Q48: 1 | R48: 1 | S48: 1 | T48: 1 | U48: 1 | V48: 1 | W48: 1 | X48: 1 | Y48: 1 | Z48: 1
E49: Suburban in regional areas | G49: % | I49: 1 | J49: 1 | K49: 1 | L49: 1 | M49: 1 | N49: 1 | O49: 1 | P49: 1 | Q49: 1 | R49: 1 | S49: 1 | T49: 1 | U49: 1 | V49: 1 | W49: 1 | X49: 1 | Y49: 1 | Z49: 1
E50: Rural | G50: % | I50: 0.7 | J50: 0.7 | K50: 0.7 | L50: 0.7 | M50: 0.7 | N50: 0.7 | O50: 0.7 | P50: 0.7 | Q50: 0.7 | R50: 0.7 | S50: 0.7 | T50: 0.7 | U50: 0.7 | V50: 0.7 | W50: 0.7 | X50: 0.7 | Y50: 0.7 | Z50: 0.7
E51: Remote | G51: % | I51: 0.1 | J51: 0.1 | K51: 0.1 | L51: 0.1 | M51: 0.1 | N51: 0.1 | O51: 0.1 | P51: 0.1 | Q51: 0.1 | R51: 0.1 | S51: 0.1 | T51: 0.1 | U51: 0.1 | V51: 0.1 | W51: 0.1 | X51: 0.1 | Y51: 0.1 | Z51: 0.1
E52: Spare | G52: % | I52: 0 | J52: 0 | K52: 0 | L52: 0 | M52: 0 | N52: 0 | O52: 0 | P52: 0 | Q52: 0 | R52: 0 | S52: 0 | T52: 0 | U52: 0 | V52: 0 | W52: 0 | X52: 0 | Y52: 0 | Z52: 0
E53: Spare | G53: % | I53: 0 | J53: 0 | K53: 0 | L53: 0 | M53: 0 | N53: 0 | O53: 0 | P53: 0 | Q53: 0 | R53: 0 | S53: 0 | T53: 0 | U53: 0 | V53: 0 | W53: 0 | X53: 0 | Y53: 0 | Z53: 0
E54: Spare | G54: % | I54: 0 | J54: 0 | K54: 0 | L54: 0 | M54: 0 | N54: 0 | O54: 0 | P54: 0 | Q54: 0 | R54: 0 | S54: 0 | T54: 0 | U54: 0 | V54: 0 | W54: 0 | X54: 0 | Y54: 0 | Z54: 0
E55: Across all geotypes
C57: Proportion of traffic by geotype (normalised) for the operator modelled, before considering national roaming
E58: =geotypes -> Dense urban | G58: % | J58: =IF(J32=0,0,J19*J32/(SUMPRODUCT(J$32:J$41,J$19:J$28)/SUM(J$19:J$28))) -> 0.2274021745 | K58: =IF(K32=0,0,K19*K32/(SUMPRODUCT(K$32:K$41,K$19:K$28)/SUM(K$19:K$28))) -> 0.2274021745 | L58: 0.2274021745 | M58: 0.2274021745 | N58: 0.2274021745 | O58: 0.2274021745 | P58: 0.2274021745 | Q58: 0.2274021745 | R58: 0.2274021745 | S58: 0.2274021745 | T58: 0.2274021745 | U58: 0.2274021745 | V58: 0.2274021745 | W58: 0.2274021745 | X58: 0.2274021745 | Y58: 0.2274021745 | Z58: 0.2274021745
E59: Urban in metropolitan areas | G59: % | J59: =IF(J33=0,0,J20*J33/(SUMPRODUCT(J$32:J$41,J$19:J$28)/SUM(J$19:J$28))) -> 0.3296480932 | K59: 0.3296480932 | L59: 0.3296480932 | M59: 0.3296480932 | N59: 0.3296480932 | O59: 0.3296480932 | P59: 0.3296480932 | Q59: 0.3296480932 | R59: 0.3296480932 | S59: 0.3296480932 | T59: 0.3296480932 | U59: 0.3296480932 | V59: 0.3296480932 | W59: 0.3296480932 | X59: 0.3296480932 | Y59: 0.3296480932 | Z59: 0.3296480932
E60: Urban in regional areas | G60: % | J60: =IF(J34=0,0,J21*J34/(SUMPRODUCT(J$32:J$41,J$19:J$28)/SUM(J$19:J$28))) -> 0.04465686703 | K60: 0.04465686703 | L60: 0.04465686703 | M60: 0.04465686703 | N60: 0.04465686703 | O60: 0.04465686703 | P60: 0.04465686703 | Q60: 0.04465686703 | R60: 0.04465686703 | S60: 0.04465686703 | T60: 0.04465686703 | U60: 0.04465686703 | V60: 0.04465686703 | W60: 0.04465686703 | X60: 0.04465686703 | Y60: 0.04465686703 | Z60: 0.04465686703
E61: Suburban in metropolitan areas | G61: % | J61: =IF(J35=0,0,J22*J35/(SUMPRODUCT(J$32:J$41,J$19:J$28)/SUM(J$19:J$28))) -> 0.1758323413 | K61: 0.1758323413 | L61: 0.1758323413 | M61: 0.1758323413 | N61: 0.1758323413 | O61: 0.1758323413 | P61: 0.1758323413 | Q61: 0.1758323413 | R61: 0.1758323413 | S61: 0.1758323413 | T61: 0.1758323413 | U61: 0.1758323413 | V61: 0.1758323413 | W61: 0.1758323413 | X61: 0.1758323413 | Y61: 0.1758323413 | Z61: 0.1758323413
E62: Suburban in regional areas | G62: % | J62: =IF(J36=0,0,J23*J36/(SUMPRODUCT(J$32:J$41,J$19:J$28)/SUM(J$19:J$28))) -> 0.1603932219 | K62: 0.1603932219 | L62: 0.1603932219 | M62: 0.1603932219 | N62: 0.1603932219 | O62: 0.1603932219 | P62: 0.1603932219 | Q62: 0.1603932219 | R62: 0.1603932219 | S62: 0.1603932219 | T62: 0.1603932219 | U62: 0.1603932219 | V62: 0.1603932219 | W62: 0.1603932219 | X62: 0.1603932219 | Y62: 0.1603932219 | Z62: 0.1603932219
E63: Rural | G63: % | J63: =IF(J37=0,0,J24*J37/(SUMPRODUCT(J$32:J$41,J$19:J$28)/SUM(J$19:J$28))) -> 0.1614044541 | K63: 0.1614044541 | L63: 0.1614044541 | M63: 0.1614044541 | N63: 0.1614044541 | O63: 0.1614044541 | P63: 0.1614044541 | Q63: 0.1614044541 | R63: 0.1614044541 | S63: 0.1614044541 | T63: 0.1614044541 | U63: 0.1614044541 | V63: 0.1614044541 | W63: 0.1614044541 | X63: 0.1614044541 | Y63: 0.1614044541 | Z63: 0.1614044541
E64: Remote | G64: % | J64: =IF(J38=0,0,J25*J38/(SUMPRODUCT(J$32:J$41,J$19:J$28)/SUM(J$19:J$28))) -> 0.00339612206 | K64: 0.00339612206 | L64: 0.00339612206 | M64: 0.00339612206 | N64: 0.00339612206 | O64: 0.00339612206 | P64: 0.00339612206 | Q64: 0.00339612206 | R64: 0.00339612206 | S64: 0.00339612206 | T64: 0.00339612206 | U64: 0.00339612206 | V64: 0.00339612206 | W64: 0.00339612206 | X64: 0.00339612206 | Y64: 0.00339612206 | Z64: 0.00339612206
E65: Spare | G65: % | J65: =IF(J39=0,0,J26*J39/(SUMPRODUCT(J$32:J$41,J$19:J$28)/SUM(J$19:J$28))) -> 0 | K65: 0 | L65: 0 | M65: 0 | N65: 0 | O65: 0 | P65: 0 | Q65: 0 | R65: 0 | S65: 0 | T65: 0 | U65: 0 | V65: 0 | W65: 0 | X65: 0 | Y65: 0 | Z65: 0
E66: Spare | G66: % | J66: =IF(J40=0,0,J27*J40/(SUMPRODUCT(J$32:J$41,J$19:J$28)/SUM(J$19:J$28))) -> 0 | K66: 0 | L66: 0 | M66: 0 | N66: 0 | O66: 0 | P66: 0 | Q66: 0 | R66: 0 | S66: 0 | T66: 0 | U66: 0 | V66: 0 | W66: 0 | X66: 0 | Y66: 0 | Z66: 0
E67: Spare | G67: % | J67: =IF(J41=0,0,J28*J41/(SUMPRODUCT(J$32:J$41,J$19:J$28)/SUM(J$19:J$28))) -> 0 | K67: 0 | L67: 0 | M67: 0 | N67: 0 | O67: 0 | P67: 0 | Q67: 0 | R67: 0 | S67: 0 | T67: 0 | U67: 0 | V67: 0 | W67: 0 | X67: 0 | Y67: 0 | Z67: 0
J68: =ABS(SUM(J58:J67)-CTRL!J561)<tiny -> TRUE | K68: =ABS(SUM(K58:K67)-CTRL!K561)<tiny -> TRUE | L68: =ABS(SUM(L58:L67)-CTRL!L561)<tiny -> TRUE | M68: =ABS(SUM(M58:M67)-CTRL!M561)<tiny -> TRUE | N68: =ABS(SUM(N58:N67)-CTRL!N561)<tiny -> TRUE | O68: =ABS(SUM(O58:O67)-CTRL!O561)<tiny -> TRUE | P68: =ABS(SUM(P58:P67)-CTRL!P561)<tiny -> TRUE | Q68: =ABS(SUM(Q58:Q67)-CTRL!Q561)<tiny -> TRUE | R68: =ABS(SUM(R58:R67)-CTRL!R561)<tiny -> TRUE | S68: =ABS(SUM(S58:S67)-CTRL!S561)<tiny -> TRUE | T68: =ABS(SUM(T58:T67)-CTRL!T561)<tiny -> TRUE | U68: =ABS(SUM(U58:U67)-CTRL!U561)<tiny -> TRUE | V68: =ABS(SUM(V58:V67)-CTRL!V561)<tiny -> TRUE | W68: =ABS(SUM(W58:W67)-CTRL!W561)<tiny -> TRUE | X68: =ABS(SUM(X58:X67)-CTRL!X561)<tiny -> TRUE | Y68: =ABS(SUM(Y58:Y67)-CTRL!Y561)<tiny -> TRUE | Z68: =ABS(SUM(Z58:Z67)-CTRL!Z561)<tiny -> TRUE
C70: Voice traffic on the 3G network by geotype
E71: =geotypes -> Dense urban | G71: Erlangs | J71: =J58:Z67*J$12:Z$12 -> 17579.47473 | K71: 19372.77103 | L71: 20711.07109 | M71: 21480.00116 | N71: 21484.06988 | O71: 20467.23704 | P71: 18363.94232 | Q71: 15372.32478 | R71: 12211.89203 | S71: 8651.694728 | T71: 5626.23568 | U71: 3344.119041 | V71: 1801.372176 | W71: 876.9608536 | X71: 386.8264889 | Y71: 0 | Z71: 0
E72: Urban in metropolitan areas | G72: Erlangs | J72: 25483.66275 | K72: 28083.2716 | L72: 30023.3061 | M72: 31137.96708 | N72: 31143.86521 | O72: 29669.83793 | P72: 26620.84733 | Q72: 22284.12091 | R72: 17702.67558 | S72: 12541.72119 | T72: 8155.93724 | U72: 4847.721741 | V72: 2611.315852 | W72: 1271.26521 | X72: 560.7537163 | Y72: 0 | Z72: 0
E73: Urban in regional areas | G73: Erlangs | J73: 3452.228491 | K73: 3804.393084 | L73: 4067.206261 | M73: 4218.20749 | N73: 4219.006499 | O73: 4019.322528 | P73: 3606.280953 | Q73: 3018.791994 | R73: 2398.15138 | S73: 1699.005658 | T73: 1104.870959 | U73: 656.7126269 | V73: 353.7505212 | W73: 172.2161379 | X73: 75.9643531 | Y73: 0 | Z73: 0
E74: Suburban in metropolitan areas | G74: Erlangs | J74: 13592.83484 | K74: 14979.45081 | L74: 16014.25372 | M74: 16608.80729 | N74: 16611.95332 | O74: 15825.7159 | P74: 14199.40236 | Q74: 11886.21817 | R74: 9442.502348 | S74: 6689.67983 | T74: 4350.328638 | U74: 2585.746077 | V74: 1392.860416 | W74: 678.0853368 | X74: 299.1027125 | Y74: 0 | Z74: 0
E75: Suburban in regional areas | G75: Erlangs | J75: 12399.30356 | K75: 13664.16645 | L75: 14608.10755 | M75: 15150.4558 | N75: 15153.32558 | O75: 14436.12445 | P75: 12952.61087 | Q75: 10842.53792 | R75: 8613.394804 | S75: 6102.286381 | T75: 3968.344058 | U75: 2358.70228 | V75: 1270.559034 | W75: 618.5454344 | X75: 272.8397255 | Y75: 0 | Z75: 0
E76: Rural | G76: Erlangs | J76: 12477.47753 | K76: 13750.31501 | L76: 14700.20737 | M76: 15245.97497 | N76: 15248.86285 | O76: 14527.13998 | P76: 13034.27327 | Q76: 10910.89694 | R76: 8667.699728 | S76: 6140.759504 | T76: 3993.363302 | U76: 2373.573205 | V76: 1278.569536 | W76: 622.4451817 | X76: 274.5598999 | Y76: 0 | Z76: 0
E77: Remote | G77: Erlangs | J77: 262.5394505 | K77: 289.3213101 | L77: 309.3080599 | M77: 320.7915928 | N77: 320.852357 | O77: 305.6665371 | P77: 274.2550275 | Q77: 229.5769221 | R77: 182.3776576 | S77: 129.208137 | T77: 84.02462794 | U77: 49.94251472 | V77: 26.90246828 | W77: 13.09691126 | X77: 5.777033465 | Y77: 0 | Z77: 0
E78: Spare | G78: Erlangs | J78: 0 | K78: 0 | L78: 0 | M78: 0 | N78: 0 | O78: 0 | P78: 0 | Q78: 0 | R78: 0 | S78: 0 | T78: 0 | U78: 0 | V78: 0 | W78: 0 | X78: 0 | Y78: 0 | Z78: 0
E79: Spare | G79: Erlangs | J79: 0 | K79: 0 | L79: 0 | M79: 0 | N79: 0 | O79: 0 | P79: 0 | Q79: 0 | R79: 0 | S79: 0 | T79: 0 | U79: 0 | V79: 0 | W79: 0 | X79: 0 | Y79: 0 | Z79: 0
E80: Spare | G80: Erlangs | J80: 0 | K80: 0 | L80: 0 | M80: 0 | N80: 0 | O80: 0 | P80: 0 | Q80: 0 | R80: 0 | S80: 0 | T80: 0 | U80: 0 | V80: 0 | W80: 0 | X80: 0 | Y80: 0 | Z80: 0
C83: Data traffic from 3G devices by geotype
E84: =geotypes -> Dense urban | G84: Mbps | J84: =J58:Z67*J$15:Z$15 -> 1988.415907 | K84: 5280.636513 | L84: 6651.504124 | M84: 7321.392368 | N84: 6932.505778 | O84: 6167.894105 | P84: 5609.168485 | Q84: 4611.796662 | R84: 3389.848615 | S84: 2217.722223 | T84: 1292.577427 | U84: 673.6818964 | V84: 315.6455135 | W84: 133.8616302 | X84: 51.60561294 | Y84: 0 | Z84: 0
E85: Urban in metropolitan areas | G85: Mbps | J85: 2882.459297 | K85: 7654.94772 | L85: 9642.192983 | M85: 10613.28036 | N85: 10049.54027 | O85: 8941.13935 | P85: 8131.196192 | Q85: 6685.380116 | R85: 4914.012518 | S85: 3214.867683 | T85: 1873.75378 | U85: 976.5867588 | V85: 457.5679273 | W85: 194.0492927 | X85: 74.80883566 | Y85: 0 | Z85: 0
E86: Urban in regional areas | G86: Mbps | J86: 390.481863 | K86: 1037.00276 | L86: 1306.211499 | M86: 1437.763057 | N86: 1361.394144 | O86: 1211.240955 | P86: 1101.519331 | Q86: 905.6570843 | R86: 665.6929258 | S86: 435.5126623 | T86: 253.8342406 | U86: 132.2965488 | V86: 61.98594959 | W86: 26.28752795 | X86: 10.13422585 | Y86: 0 | Z86: 0
E87: Suburban in metropolitan areas | G87: Mbps | J87: 1537.486724 | K87: 4083.103794 | L87: 5143.088653 | M87: 5661.060912 | N87: 5360.365285 | O87: 4769.150795 | P87: 4337.13191 | Q87: 3565.942174 | R87: 2621.105185 | S87: 1714.791389 | T87: 999.449173 | U87: 520.9055954 | V87: 244.0640235 | W87: 103.5047439 | X87: 39.90259005 | Y87: 0 | Z87: 0
E88: Suburban in regional areas | G88: Mbps | J88: 1402.486298 | K88: 3724.583136 | L88: 4691.495055 | M88: 5163.986287 | N88: 4889.693514 | O88: 4350.391153 | P88: 3956.30608 | Q88: 3252.831364 | R88: 2390.956649 | S88: 1564.222565 | T88: 911.6916253 | U88: 475.1670038 | V88: 222.6337589 | W88: 94.41641532 | X88: 36.39890668 | Y88: 0 | Z88: 0
E89: Rural | G89: Mbps | J89: 1411.328562 | K89: 3748.065538 | L89: 4721.073553 | M89: 5196.543704 | N89: 4920.521596 | O89: 4377.819091 | P89: 3981.249428 | Q89: 3273.33951 | R89: 2406.030929 | S89: 1574.084529 | T89: 917.4395732 | U89: 478.1627922 | V89: 224.0373994 | W89: 95.01168309 | X89: 36.62839109 | Y89: 0 | Z89: 0
E90: Remote | G90: Mbps | J90: 29.69585994 | K90: 78.86330107 | L90: 99.33642867 | M90: 109.3408283 | N90: 103.5330284 | O90: 92.11398826 | P90: 83.7697391 | Q90: 68.87455853 | R90: 50.62545988 | S90: 33.12041927 | T90: 19.30390825 | U90: 10.06105572 | V90: 4.713986107 | W90: 1.999147265 | X90: 0.77070046 | Y90: 0 | Z90: 0
E91: Spare | G91: Mbps | J91: 0 | K91: 0 | L91: 0 | M91: 0 | N91: 0 | O91: 0 | P91: 0 | Q91: 0 | R91: 0 | S91: 0 | T91: 0 | U91: 0 | V91: 0 | W91: 0 | X91: 0 | Y91: 0 | Z91: 0
E92: Spare | G92: Mbps | J92: 0 | K92: 0 | L92: 0 | M92: 0 | N92: 0 | O92: 0 | P92: 0 | Q92: 0 | R92: 0 | S92: 0 | T92: 0 | U92: 0 | V92: 0 | W92: 0 | X92: 0 | Y92: 0 | Z92: 0
E93: Spare | G93: Mbps | J93: 0 | K93: 0 | L93: 0 | M93: 0 | N93: 0 | O93: 0 | P93: 0 | Q93: 0 | R93: 0 | S93: 0 | T93: 0 | U93: 0 | V93: 0 | W93: 0 | X93: 0 | Y93: 0 | Z93: 0
B96: For the operator using national roaming on the network modelled
C98: Busy hour traffic
D100: Total voice traffic on the 3G network | G100: Erlangs | J100: =Traffic.3G.busy.hour.voice.operator.using.national.roaming -> 0 | K100: 0 | L100: 0 | M100: 0 | N100: 0 | O100: 0 | P100: 0 | Q100: 0 | R100: 0 | S100: 0 | T100: 0 | U100: 0 | V100: 0 | W100: 0 | X100: 0 | Y100: 0 | Z100: 0
D103: Data traffic from 3G devices | G103: Mbps | J103: =Traffic.3G.devices.busy.hour.data.operator.using.national.roaming -> 0 | K103: 0 | L103: 0 | M103: 0 | N103: 0 | O103: 0 | P103: 0 | Q103: 0 | R103: 0 | S103: 0 | T103: 0 | U103: 0 | V103: 0 | W103: 0 | X103: 0 | Y103: 0 | Z103: 0
C106: Demand distribution by geotype (assuming ubiquitous coverage)
E107: =geotypes -> Dense urban | G107: % | I107: =Traffic.demand.distribution.with.ubiquitous.coverage.2010.2027 -> 0.2248979561 | J107: 0.2248979561 | K107: 0.2248979561 | L107: 0.2248979561 | M107: 0.2248979561 | N107: 0.2248979561 | O107: 0.2248979561 | P107: 0.2248979561 | Q107: 0.2248979561 | R107: 0.2248979561 | S107: 0.2248979561 | T107: 0.2248979561 | U107: 0.2248979561 | V107: 0.2248979561 | W107: 0.2248979561 | X107: 0.2248979561 | Y107: 0.2248979561 | Z107: 0.2248979561
E108: Urban in metropolitan areas | G108: % | I108: 0.3260179131 | J108: 0.3260179131 | K108: 0.3260179131 | L108: 0.3260179131 | M108: 0.3260179131 | N108: 0.3260179131 | O108: 0.3260179131 | P108: 0.3260179131 | Q108: 0.3260179131 | R108: 0.3260179131 | S108: 0.3260179131 | T108: 0.3260179131 | U108: 0.3260179131 | V108: 0.3260179131 | W108: 0.3260179131 | X108: 0.3260179131 | Y108: 0.3260179131 | Z108: 0.3260179131
E109: Urban in regional areas | G109: % | I109: 0.04416509271 | J109: 0.04416509271 | K109: 0.04416509271 | L109: 0.04416509271 | M109: 0.04416509271 | N109: 0.04416509271 | O109: 0.04416509271 | P109: 0.04416509271 | Q109: 0.04416509271 | R109: 0.04416509271 | S109: 0.04416509271 | T109: 0.04416509271 | U109: 0.04416509271 | V109: 0.04416509271 | W109: 0.04416509271 | X109: 0.04416509271 | Y109: 0.04416509271 | Z109: 0.04416509271
E110: Suburban in metropolitan areas | G110: % | I110: 0.1738960247 | J110: 0.1738960247 | K110: 0.1738960247 | L110: 0.1738960247 | M110: 0.1738960247 | N110: 0.1738960247 | O110: 0.1738960247 | P110: 0.1738960247 | Q110: 0.1738960247 | R110: 0.1738960247 | S110: 0.1738960247 | T110: 0.1738960247 | U110: 0.1738960247 | V110: 0.1738960247 | W110: 0.1738960247 | X110: 0.1738960247 | Y110: 0.1738960247 | Z110: 0.1738960247
E111: Suburban in regional areas | G111: % | I111: 0.1586269254 | J111: 0.1586269254 | K111: 0.1586269254 | L111: 0.1586269254 | M111: 0.1586269254 | N111: 0.1586269254 | O111: 0.1586269254 | P111: 0.1586269254 | Q111: 0.1586269254 | R111: 0.1586269254 | S111: 0.1586269254 | T111: 0.1586269254 | U111: 0.1586269254 | V111: 0.1586269254 | W111: 0.1586269254 | X111: 0.1586269254 | Y111: 0.1586269254 | Z111: 0.1586269254
E112: Rural | G112: % | I112: 0.1651978638 | J112: 0.1651978638 | K112: 0.1651978638 | L112: 0.1651978638 | M112: 0.1651978638 | N112: 0.1651978638 | O112: 0.1651978638 | P112: 0.1651978638 | Q112: 0.1651978638 | R112: 0.1651978638 | S112: 0.1651978638 | T112: 0.1651978638 | U112: 0.1651978638 | V112: 0.1651978638 | W112: 0.1651978638 | X112: 0.1651978638 | Y112: 0.1651978638 | Z112: 0.1651978638
E113: Remote | G113: % | I113: 0.00993149813 | J113: 0.00993149813 | K113: 0.00993149813 | L113: 0.00993149813 | M113: 0.00993149813 | N113: 0.00993149813 | O113: 0.00993149813 | P113: 0.00993149813 | Q113: 0.00993149813 | R113: 0.00993149813 | S113: 0.00993149813 | T113: 0.00993149813 | U113: 0.00993149813 | V113: 0.00993149813 | W113: 0.00993149813 | X113: 0.00993149813 | Y113: 0.00993149813 | Z113: 0.00993149813
E114: Spare | G114: % | I114: 0 | J114: 0 | K114: 0 | L114: 0 | M114: 0 | N114: 0 | O114: 0 | P114: 0 | Q114: 0 | R114: 0 | S114: 0 | T114: 0 | U114: 0 | V114: 0 | W114: 0 | X114: 0 | Y114: 0 | Z114: 0
E115: Spare | G115: % | I115: 0 | J115: 0 | K115: 0 | L115: 0 | M115: 0 | N115: 0 | O115: 0 | P115: 0 | Q115: 0 | R115: 0 | S115: 0 | T115: 0 | U115: 0 | V115: 0 | W115: 0 | X115: 0 | Y115: 0 | Z115: 0
E116: Spare | G116: % | I116: 0 | J116: 0 | K116: 0 | L116: 0 | M116: 0 | N116: 0 | O116: 0 | P116: 0 | Q116: 0 | R116: 0 | S116: 0 | T116: 0 | U116: 0 | V116: 0 | W116: 0 | X116: 0 | Y116: 0 | Z116: 0
C119: 3G population coverage
E120: =geotypes -> Dense urban | G120: % | I120: =Roaming.population.coverage.selected.3G -> 0 | J120: 0 | K120: 0 | L120: 0 | M120: 0 | N120: 0 | O120: 0 | P120: 0 | Q120: 0 | R120: 0 | S120: 0 | T120: 0 | U120: 0 | V120: 0 | W120: 0 | X120: 0 | Y120: 0 | Z120: 0
E121: Urban in metropolitan areas | G121: % | I121: 0 | J121: 0 | K121: 0 | L121: 0 | M121: 0 | N121: 0 | O121: 0 | P121: 0 | Q121: 0 | R121: 0 | S121: 0 | T121: 0 | U121: 0 | V121: 0 | W121: 0 | X121: 0 | Y121: 0 | Z121: 0
E122: Urban in regional areas | G122: % | I122: 0 | J122: 0 | K122: 0 | L122: 0 | M122: 0 | N122: 0 | O122: 0 | P122: 0 | Q122: 0 | R122: 0 | S122: 0 | T122: 0 | U122: 0 | V122: 0 | W122: 0 | X122: 0 | Y122: 0 | Z122: 0
E123: Suburban in metropolitan areas | G123: % | I123: 0 | J123: 0 | K123: 0 | L123: 0 | M123: 0 | N123: 0 | O123: 0 | P123: 0 | Q123: 0 | R123: 0 | S123: 0 | T123: 0 | U123: 0 | V123: 0 | W123: 0 | X123: 0 | Y123: 0 | Z123: 0
E124: Suburban in regional areas | G124: % | I124: 0 | J124: 0 | K124: 0 | L124: 0 | M124: 0 | N124: 0 | O124: 0 | P124: 0 | Q124: 0 | R124: 0 | S124: 0 | T124: 0 | U124: 0 | V124: 0 | W124: 0 | X124: 0 | Y124: 0 | Z124: 0
E125: Rural | G125: % | I125: 0 | J125: 0 | K125: 0 | L125: 0 | M125: 0 | N125: 0 | O125: 0 | P125: 0 | Q125: 0 | R125: 0 | S125: 0 | T125: 0 | U125: 0 | V125: 0 | W125: 0 | X125: 0 | Y125: 0 | Z125: 0
E126: Remote | G126: % | I126: 0 | J126: 0 | K126: 0 | L126: 0 | M126: 0 | N126: 0 | O126: 0 | P126: 0 | Q126: 0 | R126: 0 | S126: 0 | T126: 0 | U126: 0 | V126: 0 | W126: 0 | X126: 0 | Y126: 0 | Z126: 0
E127: Spare | G127: % | I127: 0 | J127: 0 | K127: 0 | L127: 0 | M127: 0 | N127: 0 | O127: 0 | P127: 0 | Q127: 0 | R127: 0 | S127: 0 | T127: 0 | U127: 0 | V127: 0 | W127: 0 | X127: 0 | Y127: 0 | Z127: 0
E128: Spare | G128: % | I128: 0 | J128: 0 | K128: 0 | L128: 0 | M128: 0 | N128: 0 | O128: 0 | P128: 0 | Q128: 0 | R128: 0 | S128: 0 | T128: 0 | U128: 0 | V128: 0 | W128: 0 | X128: 0 | Y128: 0 | Z128: 0
E129: Spare | G129: % | I129: 0 | J129: 0 | K129: 0 | L129: 0 | M129: 0 | N129: 0 | O129: 0 | P129: 0 | Q129: 0 | R129: 0 | S129: 0 | T129: 0 | U129: 0 | V129: 0 | W129: 0 | X129: 0 | Y129: 0 | Z129: 0
C132: 3G area coverage
E133: =geotypes -> Dense urban | G133: % | I133: =Roaming.area.coverage.selected.3G -> 0 | J133: 0 | K133: 0 | L133: 0 | M133: 0 | N133: 0 | O133: 0 | P133: 0 | Q133: 0 | R133: 0 | S133: 0 | T133: 0 | U133: 0 | V133: 0 | W133: 0 | X133: 0 | Y133: 0 | Z133: 0
E134: Urban in metropolitan areas | G134: % | I134: 0 | J134: 0 | K134: 0 | L134: 0 | M134: 0 | N134: 0 | O134: 0 | P134: 0 | Q134: 0 | R134: 0 | S134: 0 | T134: 0 | U134: 0 | V134: 0 | W134: 0 | X134: 0 | Y134: 0 | Z134: 0
E135: Urban in regional areas | G135: % | I135: 0 | J135: 0 | K135: 0 | L135: 0 | M135: 0 | N135: 0 | O135: 0 | P135: 0 | Q135: 0 | R135: 0 | S135: 0 | T135: 0 | U135: 0 | V135: 0 | W135: 0 | X135: 0 | Y135: 0 | Z135: 0
E136: Suburban in metropolitan areas | G136: % | I136: 0 | J136: 0 | K136: 0 | L136: 0 | M136: 0 | N136: 0 | O136: 0 | P136: 0 | Q136: 0 | R136: 0 | S136: 0 | T136: 0 | U136: 0 | V136: 0 | W136: 0 | X136: 0 | Y136: 0 | Z136: 0
E137: Suburban in regional areas | G137: % | I137: 0 | J137: 0 | K137: 0 | L137: 0 | M137: 0 | N137: 0 | O137: 0 | P137: 0 | Q137: 0 | R137: 0 | S137: 0 | T137: 0 | U137: 0 | V137: 0 | W137: 0 | X137: 0 | Y137: 0 | Z137: 0
E138: Rural | G138: % | I138: 0 | J138: 0 | K138: 0 | L138: 0 | M138: 0 | N138: 0 | O138: 0 | P138: 0 | Q138: 0 | R138: 0 | S138: 0 | T138: 0 | U138: 0 | V138: 0 | W138: 0 | X138: 0 | Y138: 0 | Z138: 0
E139: Remote | G139: % | I139: 0 | J139: 0 | K139: 0 | L139: 0 | M139: 0 | N139: 0 | O139: 0 | P139: 0 | Q139: 0 | R139: 0 | S139: 0 | T139: 0 | U139: 0 | V139: 0 | W139: 0 | X139: 0 | Y139: 0 | Z139: 0
E140: Spare | G140: % | I140: 0 | J140: 0 | K140: 0 | L140: 0 | M140: 0 | N140: 0 | O140: 0 | P140: 0 | Q140: 0 | R140: 0 | S140: 0 | T140: 0 | U140: 0 | V140: 0 | W140: 0 | X140: 0 | Y140: 0 | Z140: 0
E141: Spare | G141: % | I141: 0 | J141: 0 | K141: 0 | L141: 0 | M141: 0 | N141: 0 | O141: 0 | P141: 0 | Q141: 0 | R141: 0 | S141: 0 | T141: 0 | U141: 0 | V141: 0 | W141: 0 | X141: 0 | Y141: 0 | Z141: 0
E142: Spare | G142: % | I142: 0 | J142: 0 | K142: 0 | L142: 0 | M142: 0 | N142: 0 | O142: 0 | P142: 0 | Q142: 0 | R142: 0 | S142: 0 | T142: 0 | U142: 0 | V142: 0 | W142: 0 | X142: 0 | Y142: 0 | Z142: 0
C145: Proportion of traffic by geotype (normalised)
E146: =geotypes -> Dense urban | G146: % | J146: =IF(J120=0,0,J107*J120/(SUMPRODUCT(J$120:J$129,J$107:J$116)/SUM(J$107:J$116))) -> 0 | K146: =IF(K120=0,0,K107*K120/(SUMPRODUCT(K$120:K$129,K$107:K$116)/SUM(K$107:K$116))) -> 0 | L146: 0 | M146: 0 | N146: 0 | O146: 0 | P146: 0 | Q146: 0 | R146: 0 | S146: 0 | T146: 0 | U146: 0 | V146: 0 | W146: 0 | X146: 0 | Y146: 0 | Z146: 0
E147: Urban in metropolitan areas | G147: % | J147: =IF(J121=0,0,J108*J121/(SUMPRODUCT(J$120:J$129,J$107:J$116)/SUM(J$107:J$116))) -> 0 | K147: 0 | L147: 0 | M147: 0 | N147: 0 | O147: 0 | P147: 0 | Q147: 0 | R147: 0 | S147: 0 | T147: 0 | U147: 0 | V147: 0 | W147: 0 | X147: 0 | Y147: 0 | Z147: 0
E148: Urban in regional areas | G148: % | J148: =IF(J122=0,0,J109*J122/(SUMPRODUCT(J$120:J$129,J$107:J$116)/SUM(J$107:J$116))) -> 0 | K148: 0 | L148: 0 | M148: 0 | N148: 0 | O148: 0 | P148: 0 | Q148: 0 | R148: 0 | S148: 0 | T148: 0 | U148: 0 | V148: 0 | W148: 0 | X148: 0 | Y148: 0 | Z148: 0
E149: Suburban in metropolitan areas | G149: % | J149: =IF(J123=0,0,J110*J123/(SUMPRODUCT(J$120:J$129,J$107:J$116)/SUM(J$107:J$116))) -> 0 | K149: 0 | L149: 0 | M149: 0 | N149: 0 | O149: 0 | P149: 0 | Q149: 0 | R149: 0 | S149: 0 | T149: 0 | U149: 0 | V149: 0 | W149: 0 | X149: 0 | Y149: 0 | Z149: 0
E150: Suburban in regional areas | G150: % | J150: =IF(J124=0,0,J111*J124/(SUMPRODUCT(J$120:J$129,J$107:J$116)/SUM(J$107:J$116))) -> 0 | K150: 0 | L150: 0 | M150: 0 | N150: 0 | O150: 0 | P150: 0 | Q150: 0 | R150: 0 | S150: 0 | T150: 0 | U150: 0 | V150: 0 | W150: 0 | X150: 0 | Y150: 0 | Z150: 0
E151: Rural | G151: % | J151: =IF(J125=0,0,J112*J125/(SUMPRODUCT(J$120:J$129,J$107:J$116)/SUM(J$107:J$116))) -> 0 | K151: 0 | L151: 0 | M151: 0 | N151: 0 | O151: 0 | P151: 0 | Q151: 0 | R151: 0 | S151: 0 | T151: 0 | U151: 0 | V151: 0 | W151: 0 | X151: 0 | Y151: 0 | Z151: 0
E152: Remote | G152: % | J152: =IF(J126=0,0,J113*J126/(SUMPRODUCT(J$120:J$129,J$107:J$116)/SUM(J$107:J$116))) -> 0 | K152: 0 | L152: 0 | M152: 0 | N152: 0 | O152: 0 | P152: 0 | Q152: 0 | R152: 0 | S152: 0 | T152: 0 | U152: 0 | V152: 0 | W152: 0 | X152: 0 | Y152: 0 | Z152: 0
E153: Spare | G153: % | J153: =IF(J127=0,0,J114*J127/(SUMPRODUCT(J$120:J$129,J$107:J$116)/SUM(J$107:J$116))) -> 0 | K153: 0 | L153: 0 | M153: 0 | N153: 0 | O153: 0 | P153: 0 | Q153: 0 | R153: 0 | S153: 0 | T153: 0 | U153: 0 | V153: 0 | W153: 0 | X153: 0 | Y153: 0 | Z153: 0
E154: Spare | G154: % | J154: =IF(J128=0,0,J115*J128/(SUMPRODUCT(J$120:J$129,J$107:J$116)/SUM(J$107:J$116))) -> 0 | K154: 0 | L154: 0 | M154: 0 | N154: 0 | O154: 0 | P154: 0 | Q154: 0 | R154: 0 | S154: 0 | T154: 0 | U154: 0 | V154: 0 | W154: 0 | X154: 0 | Y154: 0 | Z154: 0
E155: Spare | G155: % | J155: =IF(J129=0,0,J116*J129/(SUMPRODUCT(J$120:J$129,J$107:J$116)/SUM(J$107:J$116))) -> 0 | K155: 0 | L155: 0 | M155: 0 | N155: 0 | O155: 0 | P155: 0 | Q155: 0 | R155: 0 | S155: 0 | T155: 0 | U155: 0 | V155: 0 | W155: 0 | X155: 0 | Y155: 0 | Z155: 0
J156: =OR(SUM(J146:J155)=0,ABS(SUM(J146:J155)-CTRL!J561)<tiny) -> TRUE | K156: =OR(SUM(K146:K155)=0,ABS(SUM(K146:K155)-CTRL!K561)<tiny) -> TRUE | L156: =OR(SUM(L146:L155)=0,ABS(SUM(L146:L155)-CTRL!L561)<tiny) -> TRUE | M156: =OR(SUM(M146:M155)=0,ABS(SUM(M146:M155)-CTRL!M561)<tiny) -> TRUE | N156: =OR(SUM(N146:N155)=0,ABS(SUM(N146:N155)-CTRL!N561)<tiny) -> TRUE | O156: =OR(SUM(O146:O155)=0,ABS(SUM(O146:O155)-CTRL!O561)<tiny) -> TRUE | P156: =OR(SUM(P146:P155)=0,ABS(SUM(P146:P155)-CTRL!P561)<tiny) -> TRUE | Q156: =OR(SUM(Q146:Q155)=0,ABS(SUM(Q146:Q155)-CTRL!Q561)<tiny) -> TRUE | R156: =OR(SUM(R146:R155)=0,ABS(SUM(R146:R155)-CTRL!R561)<tiny) -> TRUE | S156: =OR(SUM(S146:S155)=0,ABS(SUM(S146:S155)-CTRL!S561)<tiny) -> TRUE | T156: =OR(SUM(T146:T155)=0,ABS(SUM(T146:T155)-CTRL!T561)<tiny) -> TRUE | U156: =OR(SUM(U146:U155)=0,ABS(SUM(U146:U155)-CTRL!U561)<tiny) -> TRUE | V156: =OR(SUM(V146:V155)=0,ABS(SUM(V146:V155)-CTRL!V561)<tiny) -> TRUE | W156: =OR(SUM(W146:W155)=0,ABS(SUM(W146:W155)-CTRL!W561)<tiny) -> TRUE | X156: =OR(SUM(X146:X155)=0,ABS(SUM(X146:X155)-CTRL!X561)<tiny) -> TRUE | Y156: =OR(SUM(Y146:Y155)=0,ABS(SUM(Y146:Y155)-CTRL!Y561)<tiny) -> TRUE | Z156: =OR(SUM(Z146:Z155)=0,ABS(SUM(Z146:Z155)-CTRL!Z561)<tiny) -> TRUE
C158: Voice traffic on the 3G network by geotype
E159: =geotypes -> Dense urban | G159: Erlangs | J159: =J146:Z155*J$100:Z$100 -> 0 | K159: 0 | L159: 0 | M159: 0 | N159: 0 | O159: 0 | P159: 0 | Q159: 0 | R159: 0 | S159: 0 | T159: 0 | U159: 0 | V159: 0 | W159: 0 | X159: 0 | Y159: 0 | Z159: 0
E160: Urban in metropolitan areas | G160: Erlangs | J160: 0 | K160: 0 | L160: 0 | M160: 0 | N160: 0 | O160: 0 | P160: 0 | Q160: 0 | R160: 0 | S160: 0 | T160: 0 | U160: 0 | V160: 0 | W160: 0 | X160: 0 | Y160: 0 | Z160: 0
E161: Urban in regional areas | G161: Erlangs | J161: 0 | K161: 0 | L161: 0 | M161: 0 | N161: 0 | O161: 0 | P161: 0 | Q161: 0 | R161: 0 | S161: 0 | T161: 0 | U161: 0 | V161: 0 | W161: 0 | X161: 0 | Y161: 0 | Z161: 0
E162: Suburban in metropolitan areas | G162: Erlangs | J162: 0 | K162: 0 | L162: 0 | M162: 0 | N162: 0 | O162: 0 | P162: 0 | Q162: 0 | R162: 0 | S162: 0 | T162: 0 | U162: 0 | V162: 0 | W162: 0 | X162: 0 | Y162: 0 | Z162: 0
E163: Suburban in regional areas | G163: Erlangs | J163: 0 | K163: 0 | L163: 0 | M163: 0 | N163: 0 | O163: 0 | P163: 0 | Q163: 0 | R163: 0 | S163: 0 | T163: 0 | U163: 0 | V163: 0 | W163: 0 | X163: 0 | Y163: 0 | Z163: 0
E164: Rural | G164: Erlangs | J164: 0 | K164: 0 | L164: 0 | M164: 0 | N164: 0 | O164: 0 | P164: 0 | Q164: 0 | R164: 0 | S164: 0 | T164: 0 | U164: 0 | V164: 0 | W164: 0 | X164: 0 | Y164: 0 | Z164: 0
E165: Remote | G165: Erlangs | J165: 0 | K165: 0 | L165: 0 | M165: 0 | N165: 0 | O165: 0 | P165: 0 | Q165: 0 | R165: 0 | S165: 0 | T165: 0 | U165: 0 | V165: 0 | W165: 0 | X165: 0 | Y165: 0 | Z165: 0
E166: Spare | G166: Erlangs | J166: 0 | K166: 0 | L166: 0 | M166: 0 | N166: 0 | O166: 0 | P166: 0 | Q166: 0 | R166: 0 | S166: 0 | T166: 0 | U166: 0 | V166: 0 | W166: 0 | X166: 0 | Y166: 0 | Z166: 0
E167: Spare | G167: Erlangs | J167: 0 | K167: 0 | L167: 0 | M167: 0 | N167: 0 | O167: 0 | P167: 0 | Q167: 0 | R167: 0 | S167: 0 | T167: 0 | U167: 0 | V167: 0 | W167: 0 | X167: 0 | Y167: 0 | Z167: 0
E168: Spare | G168: Erlangs | J168: 0 | K168: 0 | L168: 0 | M168: 0 | N168: 0 | O168: 0 | P168: 0 | Q168: 0 | R168: 0 | S168: 0 | T168: 0 | U168: 0 | V168: 0 | W168: 0 | X168: 0 | Y168: 0 | Z168: 0
C171: Data traffic from 3G devices by geotype
E172: =geotypes -> Dense urban | G172: Mbps | J172: =J146:Z155*J$103:Z$103 -> 0 | K172: 0 | L172: 0 | M172: 0 | N172: 0 | O172: 0 | P172: 0 | Q172: 0 | R172: 0 | S172: 0 | T172: 0 | U172: 0 | V172: 0 | W172: 0 | X172: 0 | Y172: 0 | Z172: 0
E173: Urban in metropolitan areas | G173: Mbps | J173: 0 | K173: 0 | L173: 0 | M173: 0 | N173: 0 | O173: 0 | P173: 0 | Q173: 0 | R173: 0 | S173: 0 | T173: 0 | U173: 0 | V173: 0 | W173: 0 | X173: 0 | Y173: 0 | Z173: 0
E174: Urban in regional areas | G174: Mbps | J174: 0 | K174: 0 | L174: 0 | M174: 0 | N174: 0 | O174: 0 | P174: 0 | Q174: 0 | R174: 0 | S174: 0 | T174: 0 | U174: 0 | V174: 0 | W174: 0 | X174: 0 | Y174: 0 | Z174: 0
E175: Suburban in metropolitan areas | G175: Mbps | J175: 0 | K175: 0 | L175: 0 | M175: 0 | N175: 0 | O175: 0 | P175: 0 | Q175: 0 | R175: 0 | S175: 0 | T175: 0 | U175: 0 | V175: 0 | W175: 0 | X175: 0 | Y175: 0 | Z175: 0
E176: Suburban in regional areas | G176: Mbps | J176: 0 | K176: 0 | L176: 0 | M176: 0 | N176: 0 | O176: 0 | P176: 0 | Q176: 0 | R176: 0 | S176: 0 | T176: 0 | U176: 0 | V176: 0 | W176: 0 | X176: 0 | Y176: 0 | Z176: 0
E177: Rural | G177: Mbps | J177: 0 | K177: 0 | L177: 0 | M177: 0 | N177: 0 | O177: 0 | P177: 0 | Q177: 0 | R177: 0 | S177: 0 | T177: 0 | U177: 0 | V177: 0 | W177: 0 | X177: 0 | Y177: 0 | Z177: 0
E178: Remote | G178: Mbps | J178: 0 | K178: 0 | L178: 0 | M178: 0 | N178: 0 | O178: 0 | P178: 0 | Q178: 0 | R178: 0 | S178: 0 | T178: 0 | U178: 0 | V178: 0 | W178: 0 | X178: 0 | Y178: 0 | Z178: 0
E179: Spare | G179: Mbps | J179: 0 | K179: 0 | L179: 0 | M179: 0 | N179: 0 | O179: 0 | P179: 0 | Q179: 0 | R179: 0 | S179: 0 | T179: 0 | U179: 0 | V179: 0 | W179: 0 | X179: 0 | Y179: 0 | Z179: 0
E180: Spare | G180: Mbps | J180: 0 | K180: 0 | L180: 0 | M180: 0 | N180: 0 | O180: 0 | P180: 0 | Q180: 0 | R180: 0 | S180: 0 | T180: 0 | U180: 0 | V180: 0 | W180: 0 | X180: 0 | Y180: 0 | Z180: 0
E181: Spare | G181: Mbps | J181: 0 | K181: 0 | L181: 0 | M181: 0 | N181: 0 | O181: 0 | P181: 0 | Q181: 0 | R181: 0 | S181: 0 | T181: 0 | U181: 0 | V181: 0 | W181: 0 | X181: 0 | Y181: 0 | Z181: 0
B184: For the network modelled
C186: Voice traffic on the 3G network by geotype, from own subscribers and national roaming provided (if any)
E187: =geotypes -> Dense urban | G187: Erlangs | J187: =J71:Z80*IF(INDEX(Operator.uses.NR,MATCH(operator.selected,Operators,0),),1-Proportion.of.traffic.using.national.roaming.by.geotype.2G.3G,1)+J159:Z168*Proportion.of.traffic.using.national.roaming.by.geotype.2G.3G -> 17579.47473 | K187: 19372.77103 | L187: 20711.07109 | M187: 21480.00116 | N187: 21484.06988 | O187: 20467.23704 | P187: 18363.94232 | Q187: 15372.32478 | R187: 12211.89203 | S187: 8651.694728 | T187: 5626.23568 | U187: 3344.119041 | V187: 1801.372176 | W187: 876.9608536 | X187: 386.8264889 | Y187: 0 | Z187: 0
E188: Urban in metropolitan areas | G188: Erlangs | J188: 25483.66275 | K188: 28083.2716 | L188: 30023.3061 | M188: 31137.96708 | N188: 31143.86521 | O188: 29669.83793 | P188: 26620.84733 | Q188: 22284.12091 | R188: 17702.67558 | S188: 12541.72119 | T188: 8155.93724 | U188: 4847.721741 | V188: 2611.315852 | W188: 1271.26521 | X188: 560.7537163 | Y188: 0 | Z188: 0
E189: Urban in regional areas | G189: Erlangs | J189: 3452.228491 | K189: 3804.393084 | L189: 4067.206261 | M189: 4218.20749 | N189: 4219.006499 | O189: 4019.322528 | P189: 3606.280953 | Q189: 3018.791994 | R189: 2398.15138 | S189: 1699.005658 | T189: 1104.870959 | U189: 656.7126269 | V189: 353.7505212 | W189: 172.2161379 | X189: 75.9643531 | Y189: 0 | Z189: 0
E190: Suburban in metropolitan areas | G190: Erlangs | J190: 13592.83484 | K190: 14979.45081 | L190: 16014.25372 | M190: 16608.80729 | N190: 16611.95332 | O190: 15825.7159 | P190: 14199.40236 | Q190: 11886.21817 | R190: 9442.502348 | S190: 6689.67983 | T190: 4350.328638 | U190: 2585.746077 | V190: 1392.860416 | W190: 678.0853368 | X190: 299.1027125 | Y190: 0 | Z190: 0
E191: Suburban in regional areas | G191: Erlangs | J191: 12399.30356 | K191: 13664.16645 | L191: 14608.10755 | M191: 15150.4558 | N191: 15153.32558 | O191: 14436.12445 | P191: 12952.61087 | Q191: 10842.53792 | R191: 8613.394804 | S191: 6102.286381 | T191: 3968.344058 | U191: 2358.70228 | V191: 1270.559034 | W191: 618.5454344 | X191: 272.8397255 | Y191: 0 | Z191: 0
E192: Rural | G192: Erlangs | J192: 4990.991011 | K192: 5500.126002 | L192: 5880.08295 | M192: 6098.389988 | N192: 6099.545141 | O192: 5810.855992 | P192: 5213.709309 | Q192: 4364.358776 | R192: 3467.079891 | S192: 2456.303802 | T192: 1597.345321 | U192: 949.4292822 | V192: 511.4278144 | W192: 248.9780727 | X192: 109.82396 | Y192: 0 | Z192: 0
E193: Remote | G193: Erlangs | J193: 157.5236703 | K193: 173.5927861 | L193: 185.5848359 | M193: 192.4749557 | N193: 192.5114142 | O193: 183.3999222 | P193: 164.5530165 | Q193: 137.7461533 | R193: 109.4265945 | S193: 77.5248822 | T193: 50.41477676 | U193: 29.96550883 | V193: 16.14148097 | W193: 7.858146757 | X193: 3.466220079 | Y193: 0 | Z193: 0
E194: Spare | G194: Erlangs | J194: 0 | K194: 0 | L194: 0 | M194: 0 | N194: 0 | O194: 0 | P194: 0 | Q194: 0 | R194: 0 | S194: 0 | T194: 0 | U194: 0 | V194: 0 | W194: 0 | X194: 0 | Y194: 0 | Z194: 0
E195: Spare | G195: Erlangs | J195: 0 | K195: 0 | L195: 0 | M195: 0 | N195: 0 | O195: 0 | P195: 0 | Q195: 0 | R195: 0 | S195: 0 | T195: 0 | U195: 0 | V195: 0 | W195: 0 | X195: 0 | Y195: 0 | Z195: 0
E196: Spare | G196: Erlangs | J196: 0 | K196: 0 | L196: 0 | M196: 0 | N196: 0 | O196: 0 | P196: 0 | Q196: 0 | R196: 0 | S196: 0 | T196: 0 | U196: 0 | V196: 0 | W196: 0 | X196: 0 | Y196: 0 | Z196: 0
C199: Data traffic from 3G devices by geotype, from own subscribers and national roaming provided (if any)
E200: =geotypes -> Dense urban | G200: Mbps | J200: =J84:Z93*IF(INDEX(Operator.uses.NR,MATCH(operator.selected,Operators,0),),1-Proportion.of.traffic.using.national.roaming.by.geotype.2G.3G,1)+J172:Z181*Proportion.of.traffic.using.national.roaming.by.geotype.2G.3G -> 1988.415907 | K200: 5280.636513 | L200: 6651.504124 | M200: 7321.392368 | N200: 6932.505778 | O200: 6167.894105 | P200: 5609.168485 | Q200: 4611.796662 | R200: 3389.848615 | S200: 2217.722223 | T200: 1292.577427 | U200: 673.6818964 | V200: 315.6455135 | W200: 133.8616302 | X200: 51.60561294 | Y200: 0 | Z200: 0
E201: Urban in metropolitan areas | G201: Mbps | J201: 2882.459297 | K201: 7654.94772 | L201: 9642.192983 | M201: 10613.28036 | N201: 10049.54027 | O201: 8941.13935 | P201: 8131.196192 | Q201: 6685.380116 | R201: 4914.012518 | S201: 3214.867683 | T201: 1873.75378 | U201: 976.5867588 | V201: 457.5679273 | W201: 194.0492927 | X201: 74.80883566 | Y201: 0 | Z201: 0
E202: Urban in regional areas | G202: Mbps | J202: 390.481863 | K202: 1037.00276 | L202: 1306.211499 | M202: 1437.763057 | N202: 1361.394144 | O202: 1211.240955 | P202: 1101.519331 | Q202: 905.6570843 | R202: 665.6929258 | S202: 435.5126623 | T202: 253.8342406 | U202: 132.2965488 | V202: 61.98594959 | W202: 26.28752795 | X202: 10.13422585 | Y202: 0 | Z202: 0
E203: Suburban in metropolitan areas | G203: Mbps | J203: 1537.486724 | K203: 4083.103794 | L203: 5143.088653 | M203: 5661.060912 | N203: 5360.365285 | O203: 4769.150795 | P203: 4337.13191 | Q203: 3565.942174 | R203: 2621.105185 | S203: 1714.791389 | T203: 999.449173 | U203: 520.9055954 | V203: 244.0640235 | W203: 103.5047439 | X203: 39.90259005 | Y203: 0 | Z203: 0
E204: Suburban in regional areas | G204: Mbps | J204: 1402.486298 | K204: 3724.583136 | L204: 4691.495055 | M204: 5163.986287 | N204: 4889.693514 | O204: 4350.391153 | P204: 3956.30608 | Q204: 3252.831364 | R204: 2390.956649 | S204: 1564.222565 | T204: 911.6916253 | U204: 475.1670038 | V204: 222.6337589 | W204: 94.41641532 | X204: 36.39890668 | Y204: 0 | Z204: 0
E205: Rural | G205: Mbps | J205: 564.5314248 | K205: 1499.226215 | L205: 1888.429421 | M205: 2078.617482 | N205: 1968.208638 | O205: 1751.127636 | P205: 1592.499771 | Q205: 1309.335804 | R205: 962.4123716 | S205: 629.6338115 | T205: 366.9758293 | U205: 191.2651169 | V205: 89.61495975 | W205: 38.00467324 | X205: 14.65135644 | Y205: 0 | Z205: 0
E206: Remote | G206: Mbps | J206: 17.81751597 | K206: 47.31798064 | L206: 59.6018572 | M206: 65.60449701 | N206: 62.11981707 | O206: 55.26839296 | P206: 50.26184346 | Q206: 41.32473512 | R206: 30.37527593 | S206: 19.87225156 | T206: 11.58234495 | U206: 6.036633434 | V206: 2.828391664 | W206: 1.199488359 | X206: 0.462420276 | Y206: 0 | Z206: 0
E207: Spare | G207: Mbps | J207: 0 | K207: 0 | L207: 0 | M207: 0 | N207: 0 | O207: 0 | P207: 0 | Q207: 0 | R207: 0 | S207: 0 | T207: 0 | U207: 0 | V207: 0 | W207: 0 | X207: 0 | Y207: 0 | Z207: 0
E208: Spare | G208: Mbps | J208: 0 | K208: 0 | L208: 0 | M208: 0 | N208: 0 | O208: 0 | P208: 0 | Q208: 0 | R208: 0 | S208: 0 | T208: 0 | U208: 0 | V208: 0 | W208: 0 | X208: 0 | Y208: 0 | Z208: 0
E209: Spare | G209: Mbps | J209: 0 | K209: 0 | L209: 0 | M209: 0 | N209: 0 | O209: 0 | P209: 0 | Q209: 0 | R209: 0 | S209: 0 | T209: 0 | U209: 0 | V209: 0 | W209: 0 | X209: 0 | Y209: 0 | Z209: 0
A213: Traffic management
A214: No rebalancing of traffic between LTE and HSPA as the volumes provided by the operators are the volumes carried by network technology, not the volumes by device technology
B215: Data traffic originated by 3G devices carried by HSPA
E217: =geotypes -> Dense urban | J217: =J200:Z209 -> 1988.415907 | K217: 5280.636513 | L217: 6651.504124 | M217: 7321.392368 | N217: 6932.505778 | O217: 6167.894105 | P217: 5609.168485 | Q217: 4611.796662 | R217: 3389.848615 | S217: 2217.722223 | T217: 1292.577427 | U217: 673.6818964 | V217: 315.6455135 | W217: 133.8616302 | X217: 51.60561294 | Y217: 0 | Z217: 0
E218: Urban in metropolitan areas | J218: 2882.459297 | K218: 7654.94772 | L218: 9642.192983 | M218: 10613.28036 | N218: 10049.54027 | O218: 8941.13935 | P218: 8131.196192 | Q218: 6685.380116 | R218: 4914.012518 | S218: 3214.867683 | T218: 1873.75378 | U218: 976.5867588 | V218: 457.5679273 | W218: 194.0492927 | X218: 74.80883566 | Y218: 0 | Z218: 0
E219: Urban in regional areas | J219: 390.481863 | K219: 1037.00276 | L219: 1306.211499 | M219: 1437.763057 | N219: 1361.394144 | O219: 1211.240955 | P219: 1101.519331 | Q219: 905.6570843 | R219: 665.6929258 | S219: 435.5126623 | T219: 253.8342406 | U219: 132.2965488 | V219: 61.98594959 | W219: 26.28752795 | X219: 10.13422585 | Y219: 0 | Z219: 0
E220: Suburban in metropolitan areas | J220: 1537.486724 | K220: 4083.103794 | L220: 5143.088653 | M220: 5661.060912 | N220: 5360.365285 | O220: 4769.150795 | P220: 4337.13191 | Q220: 3565.942174 | R220: 2621.105185 | S220: 1714.791389 | T220: 999.449173 | U220: 520.9055954 | V220: 244.0640235 | W220: 103.5047439 | X220: 39.90259005 | Y220: 0 | Z220: 0
E221: Suburban in regional areas | J221: 1402.486298 | K221: 3724.583136 | L221: 4691.495055 | M221: 5163.986287 | N221: 4889.693514 | O221: 4350.391153 | P221: 3956.30608 | Q221: 3252.831364 | R221: 2390.956649 | S221: 1564.222565 | T221: 911.6916253 | U221: 475.1670038 | V221: 222.6337589 | W221: 94.41641532 | X221: 36.39890668 | Y221: 0 | Z221: 0
E222: Rural | J222: 564.5314248 | K222: 1499.226215 | L222: 1888.429421 | M222: 2078.617482 | N222: 1968.208638 | O222: 1751.127636 | P222: 1592.499771 | Q222: 1309.335804 | R222: 962.4123716 | S222: 629.6338115 | T222: 366.9758293 | U222: 191.2651169 | V222: 89.61495975 | W222: 38.00467324 | X222: 14.65135644 | Y222: 0 | Z222: 0
E223: Remote | J223: 17.81751597 | K223: 47.31798064 | L223: 59.6018572 | M223: 65.60449701 | N223: 62.11981707 | O223: 55.26839296 | P223: 50.26184346 | Q223: 41.32473512 | R223: 30.37527593 | S223: 19.87225156 | T223: 11.58234495 | U223: 6.036633434 | V223: 2.828391664 | W223: 1.199488359 | X223: 0.462420276 | Y223: 0 | Z223: 0
E224: Spare | J224: 0 | K224: 0 | L224: 0 | M224: 0 | N224: 0 | O224: 0 | P224: 0 | Q224: 0 | R224: 0 | S224: 0 | T224: 0 | U224: 0 | V224: 0 | W224: 0 | X224: 0 | Y224: 0 | Z224: 0
E225: Spare | J225: 0 | K225: 0 | L225: 0 | M225: 0 | N225: 0 | O225: 0 | P225: 0 | Q225: 0 | R225: 0 | S225: 0 | T225: 0 | U225: 0 | V225: 0 | W225: 0 | X225: 0 | Y225: 0 | Z225: 0
E226: Spare | J226: 0 | K226: 0 | L226: 0 | M226: 0 | N226: 0 | O226: 0 | P226: 0 | Q226: 0 | R226: 0 | S226: 0 | T226: 0 | U226: 0 | V226: 0 | W226: 0 | X226: 0 | Y226: 0 | Z226: 0
B229: Data traffic originated by LTE devices carried by HSPA
F230: Assumed to be zero as the volumes provided by the operators are the volumes carried by network technology, not the volumes by device technology
E231: =geotypes -> Dense urban | J231: =Data.traffic.LTE.devices.on.HSPA -> 0 | K231: 0 | L231: 0 | M231: 0 | N231: 0 | O231: 0 | P231: 0 | Q231: 0 | R231: 0 | S231: 0 | T231: 0 | U231: 0 | V231: 0 | W231: 0 | X231: 0 | Y231: 0 | Z231: 0
E232: Urban in metropolitan areas | J232: 0 | K232: 0 | L232: 0 | M232: 0 | N232: 0 | O232: 0 | P232: 0 | Q232: 0 | R232: 0 | S232: 0 | T232: 0 | U232: 0 | V232: 0 | W232: 0 | X232: 0 | Y232: 0 | Z232: 0
E233: Urban in regional areas | J233: 0 | K233: 0 | L233: 0 | M233: 0 | N233: 0 | O233: 0 | P233: 0 | Q233: 0 | R233: 0 | S233: 0 | T233: 0 | U233: 0 | V233: 0 | W233: 0 | X233: 0 | Y233: 0 | Z233: 0
E234: Suburban in metropolitan areas | J234: 0 | K234: 0 | L234: 0 | M234: 0 | N234: 0 | O234: 0 | P234: 0 | Q234: 0 | R234: 0 | S234: 0 | T234: 0 | U234: 0 | V234: 0 | W234: 0 | X234: 0 | Y234: 0 | Z234: 0
E235: Suburban in regional areas | J235: 0 | K235: 0 | L235: 0 | M235: 0 | N235: 0 | O235: 0 | P235: 0 | Q235: 0 | R235: 0 | S235: 0 | T235: 0 | U235: 0 | V235: 0 | W235: 0 | X235: 0 | Y235: 0 | Z235: 0
E236: Rural | J236: 0 | K236: 0 | L236: 0 | M236: 0 | N236: 0 | O236: 0 | P236: 0 | Q236: 0 | R236: 0 | S236: 0 | T236: 0 | U236: 0 | V236: 0 | W236: 0 | X236: 0 | Y236: 0 | Z236: 0
E237: Remote | J237: 0 | K237: 0 | L237: 0 | M237: 0 | N237: 0 | O237: 0 | P237: 0 | Q237: 0 | R237: 0 | S237: 0 | T237: 0 | U237: 0 | V237: 0 | W237: 0 | X237: 0 | Y237: 0 | Z237: 0
E238: Spare | J238: 0 | K238: 0 | L238: 0 | M238: 0 | N238: 0 | O238: 0 | P238: 0 | Q238: 0 | R238: 0 | S238: 0 | T238: 0 | U238: 0 | V238: 0 | W238: 0 | X238: 0 | Y238: 0 | Z238: 0
E239: Spare | J239: 0 | K239: 0 | L239: 0 | M239: 0 | N239: 0 | O239: 0 | P239: 0 | Q239: 0 | R239: 0 | S239: 0 | T239: 0 | U239: 0 | V239: 0 | W239: 0 | X239: 0 | Y239: 0 | Z239: 0
E240: Spare | J240: 0 | K240: 0 | L240: 0 | M240: 0 | N240: 0 | O240: 0 | P240: 0 | Q240: 0 | R240: 0 | S240: 0 | T240: 0 | U240: 0 | V240: 0 | W240: 0 | X240: 0 | Y240: 0 | Z240: 0
B243: Total data traffic carried by HSPA | J243: =SUM(J244:J253) -> 8783.67903 | K243: =SUM(K244:K253) -> 23326.81812 | L243: =SUM(L244:L253) -> 29382.52359 | M243: =SUM(M244:M253) -> 32341.70497 | N243: =SUM(N244:N253) -> 30623.82745 | O243: =SUM(O244:O253) -> 27246.21239 | P243: =SUM(P244:P253) -> 24778.08361 | Q243: =SUM(Q244:Q253) -> 20372.26794 | R243: =SUM(R244:R253) -> 14974.40354 | S243: =SUM(S244:S253) -> 9796.622586 | T243: =SUM(T244:T253) -> 5709.86442 | U243: =SUM(U244:U253) -> 2975.939553 | V243: =SUM(V244:V253) -> 1394.340524 | W243: =SUM(W244:W253) -> 591.3237717 | X243: =SUM(X244:X253) -> 227.9639479 | Y243: =SUM(Y244:Y253) -> 0 | Z243: =SUM(Z244:Z253) -> 0
E244: =geotypes -> Dense urban | J244: =J217:Z226+J231:Z240 -> 1988.415907 | K244: 5280.636513 | L244: 6651.504124 | M244: 7321.392368 | N244: 6932.505778 | O244: 6167.894105 | P244: 5609.168485 | Q244: 4611.796662 | R244: 3389.848615 | S244: 2217.722223 | T244: 1292.577427 | U244: 673.6818964 | V244: 315.6455135 | W244: 133.8616302 | X244: 51.60561294 | Y244: 0 | Z244: 0
E245: Urban in metropolitan areas | J245: 2882.459297 | K245: 7654.94772 | L245: 9642.192983 | M245: 10613.28036 | N245: 10049.54027 | O245: 8941.13935 | P245: 8131.196192 | Q245: 6685.380116 | R245: 4914.012518 | S245: 3214.867683 | T245: 1873.75378 | U245: 976.5867588 | V245: 457.5679273 | W245: 194.0492927 | X245: 74.80883566 | Y245: 0 | Z245: 0
... 813 more rows

Sheet NW-LTE
A1: Network design
AD2: Trends
E3: Operator selected: | I3: 1 | J3: =1+I3 -> 2 | K3: =1+J3 -> 3 | L3: 4 | M3: 5 | N3: 6 | O3: 7 | P3: 8 | Q3: 9 | R3: 10 | S3: 11 | T3: 12 | U3: 13 | V3: 14 | W3: 15 | X3: 16 | Y3: 17 | Z3: 18
E4: =operator.selected -> Vodafone Hutchison | F4: Source | G4: Unit | I4: =TRANSPOSE(years) -> 2010 | J4: 2011 | K4: 2012 | L4: 2013 | M4: 2014 | N4: 2015 | O4: 2016 | P4: 2017 | Q4: 2018 | R4: 2019 | S4: 2020 | T4: 2021 | U4: 2022 | V4: 2023 | W4: 2024 | X4: 2025 | Y4: 2026 | Z4: 2027 | AA4: Name | AC4: Note | AD4: 5 years | AE4: 10 years | AF4: 15 years
A6: Demand by geotype
B8: For the operator modelled
C10: Busy hour traffic | G10: Mbps | J10: =Traffic.LTE.devices.busy.hour.data.operator.modelled -> 162.2043049 | K10: 1916.011181 | L10: 12261.26247 | M10: 28376.20667 | N10: 50962.79499 | O10: 77703.64124 | P10: 108343.7664 | Q10: 144907.008 | R10: 186039.1528 | S10: 230243.6406 | T10: 276672.938 | U10: 324994.8365 | V10: 374925.2072 | W10: 427085.4076 | X10: 482318.1898 | Y10: 540925.5682 | Z10: 603008.3757
C13: Demand distribution by geotype (assuming ubiquitous coverage)
E14: =geotypes -> Dense urban | G14: % | I14: =Traffic.demand.distribution.with.ubiquitous.coverage.2010.2027 -> 0.2248979561 | J14: 0.2248979561 | K14: 0.2248979561 | L14: 0.2248979561 | M14: 0.2248979561 | N14: 0.2248979561 | O14: 0.2248979561 | P14: 0.2248979561 | Q14: 0.2248979561 | R14: 0.2248979561 | S14: 0.2248979561 | T14: 0.2248979561 | U14: 0.2248979561 | V14: 0.2248979561 | W14: 0.2248979561 | X14: 0.2248979561 | Y14: 0.2248979561 | Z14: 0.2248979561
E15: Urban in metropolitan areas | G15: % | I15: 0.3260179131 | J15: 0.3260179131 | K15: 0.3260179131 | L15: 0.3260179131 | M15: 0.3260179131 | N15: 0.3260179131 | O15: 0.3260179131 | P15: 0.3260179131 | Q15: 0.3260179131 | R15: 0.3260179131 | S15: 0.3260179131 | T15: 0.3260179131 | U15: 0.3260179131 | V15: 0.3260179131 | W15: 0.3260179131 | X15: 0.3260179131 | Y15: 0.3260179131 | Z15: 0.3260179131
E16: Urban in regional areas | G16: % | I16: 0.04416509271 | J16: 0.04416509271 | K16: 0.04416509271 | L16: 0.04416509271 | M16: 0.04416509271 | N16: 0.04416509271 | O16: 0.04416509271 | P16: 0.04416509271 | Q16: 0.04416509271 | R16: 0.04416509271 | S16: 0.04416509271 | T16: 0.04416509271 | U16: 0.04416509271 | V16: 0.04416509271 | W16: 0.04416509271 | X16: 0.04416509271 | Y16: 0.04416509271 | Z16: 0.04416509271
E17: Suburban in metropolitan areas | G17: % | I17: 0.1738960247 | J17: 0.1738960247 | K17: 0.1738960247 | L17: 0.1738960247 | M17: 0.1738960247 | N17: 0.1738960247 | O17: 0.1738960247 | P17: 0.1738960247 | Q17: 0.1738960247 | R17: 0.1738960247 | S17: 0.1738960247 | T17: 0.1738960247 | U17: 0.1738960247 | V17: 0.1738960247 | W17: 0.1738960247 | X17: 0.1738960247 | Y17: 0.1738960247 | Z17: 0.1738960247
E18: Suburban in regional areas | G18: % | I18: 0.1586269254 | J18: 0.1586269254 | K18: 0.1586269254 | L18: 0.1586269254 | M18: 0.1586269254 | N18: 0.1586269254 | O18: 0.1586269254 | P18: 0.1586269254 | Q18: 0.1586269254 | R18: 0.1586269254 | S18: 0.1586269254 | T18: 0.1586269254 | U18: 0.1586269254 | V18: 0.1586269254 | W18: 0.1586269254 | X18: 0.1586269254 | Y18: 0.1586269254 | Z18: 0.1586269254
E19: Rural | G19: % | I19: 0.1651978638 | J19: 0.1651978638 | K19: 0.1651978638 | L19: 0.1651978638 | M19: 0.1651978638 | N19: 0.1651978638 | O19: 0.1651978638 | P19: 0.1651978638 | Q19: 0.1651978638 | R19: 0.1651978638 | S19: 0.1651978638 | T19: 0.1651978638 | U19: 0.1651978638 | V19: 0.1651978638 | W19: 0.1651978638 | X19: 0.1651978638 | Y19: 0.1651978638 | Z19: 0.1651978638
E20: Remote | G20: % | I20: 0.00993149813 | J20: 0.00993149813 | K20: 0.00993149813 | L20: 0.00993149813 | M20: 0.00993149813 | N20: 0.00993149813 | O20: 0.00993149813 | P20: 0.00993149813 | Q20: 0.00993149813 | R20: 0.00993149813 | S20: 0.00993149813 | T20: 0.00993149813 | U20: 0.00993149813 | V20: 0.00993149813 | W20: 0.00993149813 | X20: 0.00993149813 | Y20: 0.00993149813 | Z20: 0.00993149813
E21: Spare | G21: % | I21: 0 | J21: 0 | K21: 0 | L21: 0 | M21: 0 | N21: 0 | O21: 0 | P21: 0 | Q21: 0 | R21: 0 | S21: 0 | T21: 0 | U21: 0 | V21: 0 | W21: 0 | X21: 0 | Y21: 0 | Z21: 0
